Workbook

Sheet RaceList
M2: Race Selection
N4: Market | O4: 1 | U4: Highlight meeting in the "Race Lists", press copy
U5: then click the cell with corresponding meeting under "Race Venues" and press paste
M7: Race Venues | U7: Race List
O9: =IF(Data!AW1="","",Data!AW1) -> Wanganui | U9: =IF(Meetings2!B4="","",Meetings2!B4) -> ALBION PARK (BG) race 08 ($23,058)
O10: =IF(Data!AW2="","",Data!AW2) ->  | U10: =IF(Meetings2!B5="","",Meetings2!B5) -> ANGLE PARK (AG) race 08 ($838)
O11: =IF(Data!AW3="","",Data!AW3) -> Rockhampton | U11: =IF(Meetings2!B6="","",Meetings2!B6) -> 
O12: =IF(Data!AW4="","",Data!AW4) -> Hawkesbury | U12: =IF(Meetings2!B7="","",Meetings2!B7) -> ROCKHAMPTON (QR)
O13: =IF(Data!AW5="","",Data!AW5) -> Geraldton | U13: =IF(Meetings2!B8="","",Meetings2!B8) -> HAWKESBURY (NR)
M14: BALLARAT (VR) | O14: =IF(Data!AW6="","",Data!AW6) -> Ballarat | U14: =IF(Meetings2!B9="","",Meetings2!B9) -> BALLARAT (VR)
O15: =IF(Data!AW7="","",Data!AW7) ->  | U15: =IF(Meetings2!B10="","",Meetings2!B10) -> GERALDTON (PR)
O16: =IF(Data!AW8="","",Data!AW8) ->  | U16: =IF(Meetings2!B11="","",Meetings2!B11) -> WOLVERHAMPTON (BS)
O17: =IF(Data!AW9="","",Data!AW9) ->  | U17: =IF(Meetings2!B12="","",Meetings2!B12) -> VAAL (AS)
O18: =IF(Data!AW10="","",Data!AW10) ->  | U18: =IF(Meetings2!B13="","",Meetings2!B13) -> SOUTHWELL (CS)
O19: =IF(Data!AW11="","",Data!AW11) ->  | U19: =IF(Meetings2!B14="","",Meetings2!B14) -> WANGANUI (ZS)
O20: =IF(Data!AW12="","",Data!AW12) ->  | U20: =IF(Meetings2!B15="","",Meetings2!B15) -> 
O21: =IF(Data!AW13="","",Data!AW13) ->  | U21: =IF(Meetings2!B16="","",Meetings2!B16) -> PENRITH (ST)
O22: =IF(Data!AW14="","",Data!AW14) ->  | U22: =IF(Meetings2!B17="","",Meetings2!B17) -> MELTON (MT)
O23: =IF(Data!AW15="","",Data!AW15) ->  | U23: =IF(Meetings2!B18="","",Meetings2!B18) -> GOLD COAST (QT)
O24: =IF(Data!AW16="","",Data!AW16) ->  | U24: =IF(Meetings2!B19="","",Meetings2!B19) -> NEWCASTLE (NT)
O25: =IF(Data!AW17="","",Data!AW17) ->  | U25: =IF(Meetings2!B20="","",Meetings2!B20) -> KILMORE (VT)
O26: =IF(Data!AW18="","",Data!AW18) ->  | U26: =IF(Meetings2!B21="","",Meetings2!B21) -> GLOUCESTER PARK (PT)
O27: =IF(Data!AW19="","",Data!AW19) ->  | U27: =IF(Meetings2!B22="","",Meetings2!B22) -> FORBURY PARK (ZT)
O28: =IF(Data!AW20="","",Data!AW20) ->  | U28: =IF(Meetings2!B23="","",Meetings2!B23) -> 
O29: =IF(Data!AW21="","",Data!AW21) ->  | U29: =IF(Meetings2!B24="","",Meetings2!B24) -> ALBION PARK (BG)
O30: =IF(Data!AW22="","",Data!AW22) ->  | U30: =IF(Meetings2!B25="","",Meetings2!B25) -> DAPTO (SG)
O31: =IF(Data!AW23="","",Data!AW23) ->  | U31: =IF(Meetings2!B26="","",Meetings2!B26) -> SANDOWN PARK (MG)
O32: =IF(Data!AW24="","",Data!AW24) ->  | U32: =IF(Meetings2!B27="","",Meetings2!B27) -> MAITLAND (NG)
O33: =IF(Data!AW25="","",Data!AW25) ->  | U33: =IF(Meetings2!B28="","",Meetings2!B28) -> GEELONG (VG)
O34: =IF(Data!AW26="","",Data!AW26) ->  | U34: =IF(Meetings2!B29="","",Meetings2!B29) -> ANGLE PARK (AG)
O35: =IF(Data!AW27="","",Data!AW27) ->  | U35: =IF(Meetings2!B30="","",Meetings2!B30) -> GRAFTON (CG)
O36: =IF(Data!AW28="","",Data!AW28) ->  | U36: =IF(Meetings2!B31="","",Meetings2!B31) -> MANDURAH (PG)
O37: =IF(Data!AW29="","",Data!AW29) ->  | U37: =IF(Meetings2!B32="","",Meetings2!B32) -> BALLARAT (EG)
O38: =IF(Data!AW30="","",Data!AW30) ->  | U38: =IF(Meetings2!B33="","",Meetings2!B33) -> CAMBRIDGE (OG)
O39: =IF(Data!AW31="","",Data!AW31) ->  | U39: =IF(Meetings2!B34="","",Meetings2!B34) -> ADDINGTON (ZG)
O40: =IF(Data!AW32="","",Data!AW32) ->  | U40: =IF(Meetings2!B35="","",Meetings2!B35) -> HOBART (TG)
O41: =IF(Data!AW33="","",Data!AW33) ->  | U41: =IF(Meetings2!B36="","",Meetings2!B36) -> Multi-leg Info
M42: Race Lists
M43: =IF(Meetings1!A2="","",Meetings1!A2) -> Ballarat | N43: =IF(Meetings1!B2="","",Meetings1!C2) -> 
M44: =IF(Meetings1!A3="","",Meetings1!A3) -> 1 | N44: =IF(Meetings1!B3="","",Meetings1!C3) -> Porter Plant Mdn Plate - 1400 | R44: =IF(Meetings1!A3="","",getAddress(Meetings1!E3)) -> http://formguide.cyberhorse.com.au/Form/form.html?formdate=2012-02-02&track=Ball't&raceno=1
M45: =IF(Meetings1!A4="","",Meetings1!A4) -> 2 | N45: =IF(Meetings1!B4="","",Meetings1!C4) -> Dowling Forest Equine Mdn - 1200 | R45: =IF(Meetings1!B4="","",getAddress(Meetings1!E4)) -> http://formguide.cyberhorse.com.au/Form/form.html?formdate=2012-02-02&track=Ball't&raceno=2
M46: =IF(Meetings1!A5="","",Meetings1!A5) -> 3 | N46: =IF(Meetings1!B5="","",Meetings1!C5) -> Tracy The Placement People Mdn - 1000 | R46: =IF(Meetings1!B5="","",getAddress(Meetings1!E5)) -> http://formguide.cyberhorse.com.au/Form/form.html?formdate=2012-02-02&track=Ball't&raceno=3
M47: =IF(Meetings1!A6="","",Meetings1!A6) -> 4 | N47: =IF(Meetings1!B6="","",Meetings1!C6) -> Ryan & McDonald Homes Hcp (72) - 1000 | R47: =IF(Meetings1!B6="","",getAddress(Meetings1!E6)) -> http://formguide.cyberhorse.com.au/Form/form.html?formdate=2012-02-02&track=Ball't&raceno=4
M48: =IF(Meetings1!A7="","",Meetings1!A7) -> 5 | N48: =IF(Meetings1!B7="","",Meetings1!C7) -> Ballarat Bakery Hcp (62) - 1200 | R48: =IF(Meetings1!B7="","",getAddress(Meetings1!E7)) -> http://formguide.cyberhorse.com.au/Form/form.html?formdate=2012-02-02&track=Ball't&raceno=5
M49: =IF(Meetings1!A8="","",Meetings1!A8) -> 6 | N49: =IF(Meetings1!B8="","",Meetings1!C8) -> Westag Hcp (68) - 2200 | R49: =IF(Meetings1!B8="","",getAddress(Meetings1!E8)) -> http://formguide.cyberhorse.com.au/Form/form.html?formdate=2012-02-02&track=Ball't&raceno=6
M50: =IF(Meetings1!A9="","",Meetings1!A9) -> 7 | N50: =IF(Meetings1!B9="","",Meetings1!C9) -> Sportsbet.Com.Au Hcp (62) - 1600 | R50: =IF(Meetings1!B9="","",getAddress(Meetings1!E9)) -> http://formguide.cyberhorse.com.au/Form/form.html?formdate=2012-02-02&track=Ball't&raceno=7
M51: =IF(Meetings1!A10="","",Meetings1!A10) -> 8 | N51: =IF(Meetings1!B10="","",Meetings1!C10) -> Transport Tyres Hcp (62) - 1400 | R51: =IF(Meetings1!B10="","",getAddress(Meetings1!E10)) -> http://formguide.cyberhorse.com.au/Form/form.html?formdate=2012-02-02&track=Ball't&raceno=8
M52: =IF(Meetings1!A11="","",Meetings1!A11) -> Geraldton | N52: =IF(Meetings1!B11="","",Meetings1!C11) ->  | R52: =IF(Meetings1!B11="","",getAddress(Meetings1!E11)) -> 
M53: =IF(Meetings1!A12="","",Meetings1!A12) ->  | N53: =IF(Meetings1!B12="","",Meetings1!C12) -> Purcher International Mdn - 1600 | R53: =IF(Meetings1!B12="","",getAddress(Meetings1!E12)) -> http://formguide.cyberhorse.com.au/Form/form.html?formdate=2012-02-02&track=Gldton&raceno=1
M54: =IF(Meetings1!A13="","",Meetings1!A13) ->  | N54: =IF(Meetings1!B13="","",Meetings1!C13) -> Hahn Super Dry Mdn - 1200 | R54: =IF(Meetings1!B13="","",getAddress(Meetings1!E13)) -> http://formguide.cyberhorse.com.au/Form/form.html?formdate=2012-02-02&track=Gldton&raceno=2
M55: =IF(Meetings1!A14="","",Meetings1!A14) ->  | N55: =IF(Meetings1!B14="","",Meetings1!C14) -> Mitchell & Brown (Bm68+) - 1300 | R55: =IF(Meetings1!B14="","",getAddress(Meetings1!E14)) -> http://formguide.cyberhorse.com.au/Form/form.html?formdate=2012-02-02&track=Gldton&raceno=3
M56: =IF(Meetings1!A15="","",Meetings1!A15) ->  | N56: =IF(Meetings1!B15="","",Meetings1!C15) -> Wafm Hcp (68) - 1600 | R56: =IF(Meetings1!B15="","",getAddress(Meetings1!E15)) -> http://formguide.cyberhorse.com.au/Form/form.html?formdate=2012-02-02&track=Gldton&raceno=4
M57: =IF(Meetings1!A16="","",Meetings1!A16) ->  | N57: =IF(Meetings1!B16="","",Meetings1!C16) -> Geraldton Guardian Hcp (68) - 1300 | R57: =IF(Meetings1!B16="","",getAddress(Meetings1!E16)) -> http://formguide.cyberhorse.com.au/Form/form.html?formdate=2012-02-02&track=Gldton&raceno=5
M58: =IF(Meetings1!A17="","",Meetings1!A17) ->  | N58: =IF(Meetings1!B17="","",Meetings1!C17) -> Boat Show In April (Bm62+) - 1900 | R58: =IF(Meetings1!B17="","",getAddress(Meetings1!E17)) -> http://formguide.cyberhorse.com.au/Form/form.html?formdate=2012-02-02&track=Gldton&raceno=6
M59: =IF(Meetings1!A18="","",Meetings1!A18) ->  | N59: =IF(Meetings1!B18="","",Meetings1!C18) -> Gwn Hcp (63) - 1100 | R59: =IF(Meetings1!B18="","",getAddress(Meetings1!E18)) -> http://formguide.cyberhorse.com.au/Form/form.html?formdate=2012-02-02&track=Gldton&raceno=7
M60: =IF(Meetings1!A19="","",Meetings1!A19) -> Hawkesbury | N60: =IF(Meetings1!B19="","",Meetings1!C19) ->  | R60: =IF(Meetings1!B19="","",getAddress(Meetings1!E19)) -> 
M61: =IF(Meetings1!A20="","",Meetings1!A20) ->  | N61: =IF(Meetings1!B20="","",Meetings1!C20) -> Tooheys New Hcp (C1) - 1000 | R61: =IF(Meetings1!B20="","",getAddress(Meetings1!E20)) -> http://formguide.cyberhorse.com.au/Form/form.html?formdate=2012-02-02&track=H'bury&raceno=1
M62: =IF(Meetings1!A21="","",Meetings1!A21) ->  | N62: =IF(Meetings1!B21="","",Meetings1!C21) -> Tru Blu Recruitment Mdn Plate - 1800 | R62: =IF(Meetings1!B21="","",getAddress(Meetings1!E21)) -> http://formguide.cyberhorse.com.au/Form/form.html?formdate=2012-02-02&track=H'bury&raceno=2
M63: =IF(Meetings1!A22="","",Meetings1!A22) ->  | N63: =IF(Meetings1!B22="","",Meetings1!C22) -> Acpe Mdn Plate - 1200 | R63: =IF(Meetings1!B22="","",getAddress(Meetings1!E22)) -> http://formguide.cyberhorse.com.au/Form/form.html?formdate=2012-02-02&track=H'bury&raceno=3
M64: =IF(Meetings1!A23="","",Meetings1!A23) ->  | N64: =IF(Meetings1!B23="","",Meetings1!C23) -> Penrith Juniors Mdn Plate - 1200 | R64: =IF(Meetings1!B23="","",getAddress(Meetings1!E23)) -> http://formguide.cyberhorse.com.au/Form/form.html?formdate=2012-02-02&track=H'bury&raceno=4
M65: =IF(Meetings1!A24="","",Meetings1!A24) ->  | N65: =IF(Meetings1!B24="","",Meetings1!C24) -> Kaos Mdn Hcp - 1300 | R65: =IF(Meetings1!B24="","",getAddress(Meetings1!E24)) -> http://formguide.cyberhorse.com.au/Form/form.html?formdate=2012-02-02&track=H'bury&raceno=5
M66: =IF(Meetings1!A25="","",Meetings1!A25) ->  | N66: =IF(Meetings1!B25="","",Meetings1!C25) -> Cabe (Bm60) - 1600 | R66: =IF(Meetings1!B25="","",getAddress(Meetings1!E25)) -> http://formguide.cyberhorse.com.au/Form/form.html?formdate=2012-02-02&track=H'bury&raceno=6
M67: =IF(Meetings1!A26="","",Meetings1!A26) ->  | N67: =IF(Meetings1!B26="","",Meetings1!C26) -> Penrith Panthers Hcp (C2) - 1400 | R67: =IF(Meetings1!B26="","",getAddress(Meetings1!E26)) -> http://formguide.cyberhorse.com.au/Form/form.html?formdate=2012-02-02&track=H'bury&raceno=7
M68: =IF(Meetings1!A27="","",Meetings1!A27) ->  | N68: =IF(Meetings1!B27="","",Meetings1!C27) -> Sky Racing (Bm65) - 1300 | R68: =IF(Meetings1!B27="","",getAddress(Meetings1!E27)) -> http://formguide.cyberhorse.com.au/Form/form.html?formdate=2012-02-02&track=H'bury&raceno=8
M69: =IF(Meetings1!A28="","",Meetings1!A28) -> Rockhampton | N69: =IF(Meetings1!B28="","",Meetings1!C28) ->  | R69: =IF(Meetings1!B28="","",getAddress(Meetings1!E28)) -> 
M70: =IF(Meetings1!A29="","",Meetings1!A29) ->  | N70: =IF(Meetings1!B29="","",Meetings1!C29) -> Bank Of Qld Nth Rockhampton-C2 - 1600 | R70: =IF(Meetings1!B29="","",getAddress(Meetings1!E29)) -> http://formguide.cyberhorse.com.au/Form/form.html?formdate=2012-02-02&track=Rocky&raceno=1
M71: =IF(Meetings1!A30="","",Meetings1!A30) ->  | N71: =IF(Meetings1!B30="","",Meetings1!C30) -> Lacey's 4x4 Megastore Hcp (C3) - 970 | R71: =IF(Meetings1!B30="","",getAddress(Meetings1!E30)) -> http://formguide.cyberhorse.com.au/Form/form.html?formdate=2012-02-02&track=Rocky&raceno=2
M72: =IF(Meetings1!A31="","",Meetings1!A31) ->  | N72: =IF(Meetings1!B31="","",Meetings1!C31) -> Motel 98 Hcp (C6) - 1200 | R72: =IF(Meetings1!B31="","",getAddress(Meetings1!E31)) -> http://formguide.cyberhorse.com.au/Form/form.html?formdate=2012-02-02&track=Rocky&raceno=3
M73: =IF(Meetings1!A32="","",Meetings1!A32) ->  | N73: =IF(Meetings1!B32="","",Meetings1!C32) -> O'Dowds Irish Pub Mdn Plate - 1100 | R73: =IF(Meetings1!B32="","",getAddress(Meetings1!E32)) -> http://formguide.cyberhorse.com.au/Form/form.html?formdate=2012-02-02&track=Rocky&raceno=4
M74: =IF(Meetings1!A33="","",Meetings1!A33) ->  | N74: =IF(Meetings1!B33="","",Meetings1!C33) -> Prydes Easifeeds Hcp - 1100 | R74: =IF(Meetings1!B33="","",getAddress(Meetings1!E33)) -> http://formguide.cyberhorse.com.au/Form/form.html?formdate=2012-02-02&track=Rocky&raceno=5
M75: =IF(Meetings1!A34="","",Meetings1!A34) ->  | N75: =IF(Meetings1!B34="","",Meetings1!C34) -> Sam's Fencing Hcp (C1) - 1200 | R75: =IF(Meetings1!B34="","",getAddress(Meetings1!E34)) -> http://formguide.cyberhorse.com.au/Form/form.html?formdate=2012-02-02&track=Rocky&raceno=6
M76: =IF(Meetings1!A35="","",Meetings1!A35) ->  | N76: =IF(Meetings1!B35="","",Meetings1!C35) -> Touch Hcp (C1) - 1200 | R76: =IF(Meetings1!B35="","",getAddress(Meetings1!E35)) -> http://formguide.cyberhorse.com.au/Form/form.html?formdate=2012-02-02&track=Rocky&raceno=7
M77: =IF(Meetings1!A36="","",Meetings1!A36) ->  | N77: =IF(Meetings1!B36="","",Meetings1!C36) -> X X X X Gold Hcp (C4) - 1400 | R77: =IF(Meetings1!B36="","",getAddress(Meetings1!E36)) -> http://formguide.cyberhorse.com.au/Form/form.html?formdate=2012-02-02&track=Rocky&raceno=8
M78: =IF(Meetings1!A37="","",Meetings1!A37) -> Wanganui | N78: =IF(Meetings1!B37="","",Meetings1!C37) ->  | R78: =IF(Meetings1!B37="","",getAddress(Meetings1!E37)) -> 
M79: =IF(Meetings1!A38="","",Meetings1!A38) ->  | N79: =IF(Meetings1!B38="","",Meetings1!C38) -> 94.4 The Sound Mdn - 1200 | R79: =IF(Meetings1!B38="","",getAddress(Meetings1!E38)) -> http://formguide.cyberhorse.com.au/Form/form.html?formdate=2012-02-02&track=Waganu&raceno=1
M80: =IF(Meetings1!A39="","",Meetings1!A39) ->  | N80: =IF(Meetings1!B39="","",Meetings1!C39) -> G Bristol & Sons Hcp (75) - 1200 | R80: =IF(Meetings1!B39="","",getAddress(Meetings1!E39)) -> http://formguide.cyberhorse.com.au/Form/form.html?formdate=2012-02-02&track=Waganu&raceno=2
M81: =IF(Meetings1!A40="","",Meetings1!A40) ->  | N81: =IF(Meetings1!B40="","",Meetings1!C40) -> Wanganui Steelformers Mdn - 1340 | R81: =IF(Meetings1!B40="","",getAddress(Meetings1!E40)) -> http://formguide.cyberhorse.com.au/Form/form.html?formdate=2012-02-02&track=Waganu&raceno=3
M82: =IF(Meetings1!A41="","",Meetings1!A41) ->  | N82: =IF(Meetings1!B41="","",Meetings1!C41) -> Guthrie Bowron Mdn - 1340 | R82: =IF(Meetings1!B41="","",getAddress(Meetings1!E41)) -> http://formguide.cyberhorse.com.au/Form/form.html?formdate=2012-02-02&track=Waganu&raceno=4
M83: =IF(Meetings1!A42="","",Meetings1!A42) ->  | N83: =IF(Meetings1!B42="","",Meetings1!C42) -> Jd Workman & Co Hcp (65) - 1340 | R83: =IF(Meetings1!B42="","",getAddress(Meetings1!E42)) -> http://formguide.cyberhorse.com.au/Form/form.html?formdate=2012-02-02&track=Waganu&raceno=5
M84: =IF(Meetings1!A43="","",Meetings1!A43) ->  | N84: =IF(Meetings1!B43="","",Meetings1!C43) -> Fauldings Sound Mdn - 1600 | R84: =IF(Meetings1!B43="","",getAddress(Meetings1!E43)) -> http://formguide.cyberhorse.com.au/Form/form.html?formdate=2012-02-02&track=Waganu&raceno=6
M85: =IF(Meetings1!A44="","",Meetings1!A44) ->  | N85: =IF(Meetings1!B44="","",Meetings1!C44) -> Mickeys Superliquor Mdn - 1600 | R85: =IF(Meetings1!B44="","",getAddress(Meetings1!E44)) -> http://formguide.cyberhorse.com.au/Form/form.html?formdate=2012-02-02&track=Waganu&raceno=7
M86: =IF(Meetings1!A45="","",Meetings1!A45) ->  | N86: =IF(Meetings1!B45="","",Meetings1!C45) -> Re Downs Builder Hcp (65) - 1600 | R86: =IF(Meetings1!B45="","",getAddress(Meetings1!E45)) -> http://formguide.cyberhorse.com.au/Form/form.html?formdate=2012-02-02&track=Waganu&raceno=8
M87: =IF(Meetings1!A46="","",Meetings1!A46) -> END | N87: =IF(Meetings1!B46="","",Meetings1!C46) ->  | R87: =IF(Meetings1!B46="","",getAddress(Meetings1!E46)) -> 
M88: =IF(Meetings1!A47="","",Meetings1!A47) ->  | N88: =IF(Meetings1!B47="","",Meetings1!C47) ->  | R88: =IF(Meetings1!B47="","",getAddress(Meetings1!E47)) -> 
M89: =IF(Meetings1!A48="","",Meetings1!A48) ->  | N89: =IF(Meetings1!B48="","",Meetings1!C48) ->  | R89: =IF(Meetings1!B48="","",getAddress(Meetings1!E48)) -> 
M90: =IF(Meetings1!A49="","",Meetings1!A49) ->  | N90: =IF(Meetings1!B49="","",Meetings1!C49) ->  | R90: =IF(Meetings1!B49="","",getAddress(Meetings1!E49)) -> 
M91: =IF(Meetings1!A50="","",Meetings1!A50) ->  | N91: =IF(Meetings1!B50="","",Meetings1!C50) ->  | R91: =IF(Meetings1!B50="","",getAddress(Meetings1!E50)) -> 
M92: =IF(Meetings1!A51="","",Meetings1!A51) ->  | N92: =IF(Meetings1!B51="","",Meetings1!C51) ->  | R92: =IF(Meetings1!B51="","",getAddress(Meetings1!E51)) -> 
M93: =IF(Meetings1!A52="","",Meetings1!A52) ->  | N93: =IF(Meetings1!B52="","",Meetings1!C52) ->  | R93: =IF(Meetings1!B52="","",getAddress(Meetings1!E52)) -> 
M94: =IF(Meetings1!A53="","",Meetings1!A53) ->  | N94: =IF(Meetings1!B53="","",Meetings1!C53) ->  | R94: =IF(Meetings1!B53="","",getAddress(Meetings1!E53)) -> 
M95: =IF(Meetings1!A54="","",Meetings1!A54) ->  | N95: =IF(Meetings1!B54="","",Meetings1!C54) ->  | R95: =IF(Meetings1!B54="","",getAddress(Meetings1!E54)) -> 
M96: =IF(Meetings1!A55="","",Meetings1!A55) ->  | N96: =IF(Meetings1!B55="","",Meetings1!C55) ->  | R96: =IF(Meetings1!B55="","",getAddress(Meetings1!E55)) -> 
M97: =IF(Meetings1!A56="","",Meetings1!A56) ->  | N97: =IF(Meetings1!B56="","",Meetings1!C56) ->  | R97: =IF(Meetings1!B56="","",getAddress(Meetings1!E56)) -> 
M98: =IF(Meetings1!A57="","",Meetings1!A57) ->  | N98: =IF(Meetings1!B57="","",Meetings1!C57) ->  | R98: =IF(Meetings1!B57="","",getAddress(Meetings1!E57)) -> 
M99: =IF(Meetings1!A58="","",Meetings1!A58) ->  | N99: =IF(Meetings1!B58="","",Meetings1!C58) ->  | R99: =IF(Meetings1!B58="","",getAddress(Meetings1!E58)) -> 
M100: =IF(Meetings1!A59="","",Meetings1!A59) ->  | N100: =IF(Meetings1!B59="","",Meetings1!C59) ->  | R100: =IF(Meetings1!B59="","",getAddress(Meetings1!E59)) -> 
M101: =IF(Meetings1!A60="","",Meetings1!A60) ->  | N101: =IF(Meetings1!B60="","",Meetings1!C60) ->  | R101: =IF(Meetings1!B60="","",getAddress(Meetings1!E60)) -> 
M102: =IF(Meetings1!A61="","",Meetings1!A61) ->  | N102: =IF(Meetings1!B61="","",Meetings1!C61) ->  | R102: =IF(Meetings1!B61="","",getAddress(Meetings1!E61)) -> 
M103: =IF(Meetings1!A62="","",Meetings1!A62) ->  | N103: =IF(Meetings1!B62="","",Meetings1!C62) ->  | R103: =IF(Meetings1!B62="","",getAddress(Meetings1!E62)) -> 
M104: =IF(Meetings1!A63="","",Meetings1!A63) ->  | N104: =IF(Meetings1!B63="","",Meetings1!C63) ->  | R104: =IF(Meetings1!B63="","",getAddress(Meetings1!E63)) -> 
M105: =IF(Meetings1!A64="","",Meetings1!A64) ->  | N105: =IF(Meetings1!B64="","",Meetings1!C64) ->  | R105: =IF(Meetings1!B64="","",getAddress(Meetings1!E64)) -> 
M106: =IF(Meetings1!A65="","",Meetings1!A65) ->  | N106: =IF(Meetings1!B65="","",Meetings1!C65) ->  | R106: =IF(Meetings1!B65="","",getAddress(Meetings1!E65)) -> 
M107: =IF(Meetings1!A66="","",Meetings1!A66) ->  | N107: =IF(Meetings1!B66="","",Meetings1!C66) ->  | R107: =IF(Meetings1!B66="","",getAddress(Meetings1!E66)) -> 
M108: =IF(Meetings1!A67="","",Meetings1!A67) ->  | N108: =IF(Meetings1!B67="","",Meetings1!C67) ->  | R108: =IF(Meetings1!B67="","",getAddress(Meetings1!E67)) -> 
M109: =IF(Meetings1!A68="","",Meetings1!A68) ->  | N109: =IF(Meetings1!B68="","",Meetings1!C68) ->  | R109: =IF(Meetings1!B68="","",getAddress(Meetings1!E68)) -> 
M110: =IF(Meetings1!A69="","",Meetings1!A69) ->  | N110: =IF(Meetings1!B69="","",Meetings1!C69) ->  | R110: =IF(Meetings1!B69="","",getAddress(Meetings1!E69)) -> 
M111: =IF(Meetings1!A70="","",Meetings1!A70) ->  | N111: =IF(Meetings1!B70="","",Meetings1!C70) ->  | R111: =IF(Meetings1!B70="","",getAddress(Meetings1!E70)) -> 
M112: =IF(Meetings1!A71="","",Meetings1!A71) ->  | N112: =IF(Meetings1!B71="","",Meetings1!C71) ->  | R112: =IF(Meetings1!B71="","",getAddress(Meetings1!E71)) -> 
M113: =IF(Meetings1!A72="","",Meetings1!A72) ->  | N113: =IF(Meetings1!B72="","",Meetings1!C72) ->  | R113: =IF(Meetings1!B72="","",getAddress(Meetings1!E72)) -> 
M114: =IF(Meetings1!A73="","",Meetings1!A73) ->  | N114: =IF(Meetings1!B73="","",Meetings1!C73) ->  | R114: =IF(Meetings1!B73="","",getAddress(Meetings1!E73)) -> 
M115: =IF(Meetings1!A74="","",Meetings1!A74) ->  | N115: =IF(Meetings1!B74="","",Meetings1!C74) ->  | R115: =IF(Meetings1!B74="","",getAddress(Meetings1!E74)) -> 
M116: =IF(Meetings1!A75="","",Meetings1!A75) ->  | N116: =IF(Meetings1!B75="","",Meetings1!C75) ->  | R116: =IF(Meetings1!B75="","",getAddress(Meetings1!E75)) -> 
M117: =IF(Meetings1!A76="","",Meetings1!A76) ->  | N117: =IF(Meetings1!B76="","",Meetings1!C76) ->  | R117: =IF(Meetings1!B76="","",getAddress(Meetings1!E76)) -> 
M118: =IF(Meetings1!A77="","",Meetings1!A77) ->  | N118: =IF(Meetings1!B77="","",Meetings1!C77) ->  | R118: =IF(Meetings1!B77="","",getAddress(Meetings1!E77)) -> 
M119: =IF(Meetings1!A78="","",Meetings1!A78) ->  | N119: =IF(Meetings1!B78="","",Meetings1!C78) ->  | R119: =IF(Meetings1!B78="","",getAddress(Meetings1!E78)) -> 
M120: =IF(Meetings1!A79="","",Meetings1!A79) ->  | N120: =IF(Meetings1!B79="","",Meetings1!C79) ->  | R120: =IF(Meetings1!B79="","",getAddress(Meetings1!E79)) -> 
M121: =IF(Meetings1!A80="","",Meetings1!A80) ->  | N121: =IF(Meetings1!B80="","",Meetings1!C80) ->  | R121: =IF(Meetings1!B80="","",getAddress(Meetings1!E80)) -> 
M122: =IF(Meetings1!A81="","",Meetings1!A81) ->  | N122: =IF(Meetings1!B81="","",Meetings1!C81) ->  | R122: =IF(Meetings1!B81="","",getAddress(Meetings1!E81)) -> 
M123: =IF(Meetings1!A82="","",Meetings1!A82) ->  | N123: =IF(Meetings1!B82="","",Meetings1!C82) ->  | R123: =IF(Meetings1!B82="","",getAddress(Meetings1!E82)) -> 
M124: =IF(Meetings1!A83="","",Meetings1!A83) ->  | N124: =IF(Meetings1!B83="","",Meetings1!C83) ->  | R124: =IF(Meetings1!B83="","",getAddress(Meetings1!E83)) -> 
M125: =IF(Meetings1!A84="","",Meetings1!A84) ->  | N125: =IF(Meetings1!B84="","",Meetings1!C84) ->  | R125: =IF(Meetings1!B84="","",getAddress(Meetings1!E84)) -> 
M126: =IF(Meetings1!A85="","",Meetings1!A85) ->  | N126: =IF(Meetings1!B85="","",Meetings1!C85) ->  | R126: =IF(Meetings1!B85="","",getAddress(Meetings1!E85)) -> 
M127: =IF(Meetings1!A86="","",Meetings1!A86) ->  | N127: =IF(Meetings1!B86="","",Meetings1!C86) ->  | R127: =IF(Meetings1!B86="","",getAddress(Meetings1!E86)) -> 
M128: =IF(Meetings1!A87="","",Meetings1!A87) ->  | N128: =IF(Meetings1!B87="","",Meetings1!C87) ->  | R128: =IF(Meetings1!B87="","",getAddress(Meetings1!E87)) -> 
M129: =IF(Meetings1!A88="","",Meetings1!A88) ->  | N129: =IF(Meetings1!B88="","",Meetings1!C88) ->  | R129: =IF(Meetings1!B88="","",getAddress(Meetings1!E88)) -> 
M130: =IF(Meetings1!A89="","",Meetings1!A89) ->  | N130: =IF(Meetings1!B89="","",Meetings1!C89) ->  | R130: =IF(Meetings1!B89="","",getAddress(Meetings1!E89)) -> 
M131: =IF(Meetings1!A90="","",Meetings1!A90) ->  | N131: =IF(Meetings1!B90="","",Meetings1!C90) ->  | R131: =IF(Meetings1!B90="","",getAddress(Meetings1!E90)) -> 
M132: =IF(Meetings1!A91="","",Meetings1!A91) ->  | N132: =IF(Meetings1!B91="","",Meetings1!C91) ->  | R132: =IF(Meetings1!B91="","",getAddress(Meetings1!E91)) -> 
M133: =IF(Meetings1!A92="","",Meetings1!A92) ->  | N133: =IF(Meetings1!B92="","",Meetings1!C92) ->  | R133: =IF(Meetings1!B92="","",getAddress(Meetings1!E92)) -> 
M134: =IF(Meetings1!A93="","",Meetings1!A93) ->  | N134: =IF(Meetings1!B93="","",Meetings1!C93) ->  | R134: =IF(Meetings1!B93="","",getAddress(Meetings1!E93)) -> 
M135: =IF(Meetings1!A94="","",Meetings1!A94) ->  | N135: =IF(Meetings1!B94="","",Meetings1!C94) ->  | R135: =IF(Meetings1!B94="","",getAddress(Meetings1!E94)) -> 
M136: =IF(Meetings1!A95="","",Meetings1!A95) ->  | N136: =IF(Meetings1!B95="","",Meetings1!C95) ->  | R136: =IF(Meetings1!B95="","",getAddress(Meetings1!E95)) -> 
M137: =IF(Meetings1!A96="","",Meetings1!A96) ->  | N137: =IF(Meetings1!B96="","",Meetings1!C96) ->  | R137: =IF(Meetings1!B96="","",getAddress(Meetings1!E96)) -> 
M138: =IF(Meetings1!A97="","",Meetings1!A97) ->  | N138: =IF(Meetings1!B97="","",Meetings1!C97) ->  | R138: =IF(Meetings1!B97="","",getAddress(Meetings1!E97)) -> 
M139: =IF(Meetings1!A98="","",Meetings1!A98) ->  | N139: =IF(Meetings1!B98="","",Meetings1!C98) ->  | R139: =IF(Meetings1!B98="","",getAddress(Meetings1!E98)) -> 
M140: =IF(Meetings1!A99="","",Meetings1!A99) ->  | N140: =IF(Meetings1!B99="","",Meetings1!C99) ->  | R140: =IF(Meetings1!B99="","",getAddress(Meetings1!E99)) -> 
M141: =IF(Meetings1!A100="","",Meetings1!A100) ->  | N141: =IF(Meetings1!B100="","",Meetings1!C100) ->  | R141: =IF(Meetings1!B100="","",getAddress(Meetings1!E100)) -> 
M142: =IF(Meetings1!A101="","",Meetings1!A101) ->  | N142: =IF(Meetings1!B101="","",Meetings1!C101) ->  | R142: =IF(Meetings1!B101="","",getAddress(Meetings1!E101)) -> 
M143: =IF(Meetings1!A102="","",Meetings1!A102) ->  | N143: =IF(Meetings1!B102="","",Meetings1!C102) ->  | R143: =IF(Meetings1!B102="","",getAddress(Meetings1!E102)) -> 
M144: =IF(Meetings1!A103="","",Meetings1!A103) ->  | N144: =IF(Meetings1!B103="","",Meetings1!C103) ->  | R144: =IF(Meetings1!B103="","",getAddress(Meetings1!E103)) -> 
M145: =IF(Meetings1!A104="","",Meetings1!A104) ->  | N145: =IF(Meetings1!B104="","",Meetings1!C104) ->  | R145: =IF(Meetings1!B104="","",getAddress(Meetings1!E104)) -> 
M146: =IF(Meetings1!A105="","",Meetings1!A105) ->  | N146: =IF(Meetings1!B105="","",Meetings1!C105) ->  | R146: =IF(Meetings1!B105="","",getAddress(Meetings1!E105)) -> 
M147: =IF(Meetings1!A106="","",Meetings1!A106) ->  | N147: =IF(Meetings1!B106="","",Meetings1!C106) ->  | R147: =IF(Meetings1!B106="","",getAddress(Meetings1!E106)) -> 
M148: =IF(Meetings1!A107="","",Meetings1!A107) ->  | N148: =IF(Meetings1!B107="","",Meetings1!C107) ->  | R148: =IF(Meetings1!B107="","",getAddress(Meetings1!E107)) -> 
M149: =IF(Meetings1!A108="","",Meetings1!A108) ->  | N149: =IF(Meetings1!B108="","",Meetings1!C108) ->  | R149: =IF(Meetings1!B108="","",getAddress(Meetings1!E108)) -> 
M150: =IF(Meetings1!A109="","",Meetings1!A109) ->  | N150: =IF(Meetings1!B109="","",Meetings1!C109) ->  | R150: =IF(Meetings1!B109="","",getAddress(Meetings1!E109)) -> 
M151: =IF(Meetings1!A110="","",Meetings1!A110) ->  | N151: =IF(Meetings1!B110="","",Meetings1!C110) ->  | R151: =IF(Meetings1!B110="","",getAddress(Meetings1!E110)) -> 
M152: =IF(Meetings1!A111="","",Meetings1!A111) ->  | N152: =IF(Meetings1!B111="","",Meetings1!C111) ->  | R152: =IF(Meetings1!B111="","",getAddress(Meetings1!E111)) -> 
M153: =IF(Meetings1!A112="","",Meetings1!A112) ->  | N153: =IF(Meetings1!B112="","",Meetings1!C112) ->  | R153: =IF(Meetings1!B112="","",getAddress(Meetings1!E112)) -> 
M154: =IF(Meetings1!A113="","",Meetings1!A113) ->  | N154: =IF(Meetings1!B113="","",Meetings1!C113) ->  | R154: =IF(Meetings1!B113="","",getAddress(Meetings1!E113)) -> 
M155: =IF(Meetings1!A114="","",Meetings1!A114) ->  | N155: =IF(Meetings1!B114="","",Meetings1!C114) ->  | R155: =IF(Meetings1!B114="","",getAddress(Meetings1!E114)) -> 
M156: =IF(Meetings1!A115="","",Meetings1!A115) ->  | N156: =IF(Meetings1!B115="","",Meetings1!C115) ->  | R156: =IF(Meetings1!B115="","",getAddress(Meetings1!E115)) -> 
M157: =IF(Meetings1!A116="","",Meetings1!A116) ->  | N157: =IF(Meetings1!B116="","",Meetings1!C116) ->  | R157: =IF(Meetings1!B116="","",getAddress(Meetings1!E116)) -> 
M158: =IF(Meetings1!A117="","",Meetings1!A117) ->  | N158: =IF(Meetings1!B117="","",Meetings1!C117) ->  | R158: =IF(Meetings1!B117="","",getAddress(Meetings1!E117)) -> 
M159: =IF(Meetings1!A118="","",Meetings1!A118) ->  | N159: =IF(Meetings1!B118="","",Meetings1!C118) ->  | R159: =IF(Meetings1!B118="","",getAddress(Meetings1!E118)) -> 
M160: =IF(Meetings1!A119="","",Meetings1!A119) ->  | N160: =IF(Meetings1!B119="","",Meetings1!C119) ->  | R160: =IF(Meetings1!B119="","",getAddress(Meetings1!E119)) -> 
M161: =IF(Meetings1!A120="","",Meetings1!A120) ->  | N161: =IF(Meetings1!B120="","",Meetings1!C120) ->  | R161: =IF(Meetings1!B120="","",getAddress(Meetings1!E120)) -> 
M162: =IF(Meetings1!A121="","",Meetings1!A121) ->  | N162: =IF(Meetings1!B121="","",Meetings1!C121) ->  | R162: =IF(Meetings1!B121="","",getAddress(Meetings1!E121)) -> 
M163: =IF(Meetings1!A122="","",Meetings1!A122) ->  | N163: =IF(Meetings1!B122="","",Meetings1!C122) ->  | R163: =IF(Meetings1!B122="","",getAddress(Meetings1!E122)) -> 
M164: =IF(Meetings1!A123="","",Meetings1!A123) ->  | N164: =IF(Meetings1!B123="","",Meetings1!C123) ->  | R164: =IF(Meetings1!B123="","",getAddress(Meetings1!E123)) -> 
M165: =IF(Meetings1!A124="","",Meetings1!A124) ->  | N165: =IF(Meetings1!B124="","",Meetings1!C124) ->  | R165: =IF(Meetings1!B124="","",getAddress(Meetings1!E124)) -> 
M166: =IF(Meetings1!A125="","",Meetings1!A125) ->  | N166: =IF(Meetings1!B125="","",Meetings1!C125) ->  | R166: =IF(Meetings1!B125="","",getAddress(Meetings1!E125)) -> 
M167: =IF(Meetings1!A126="","",Meetings1!A126) ->  | N167: =IF(Meetings1!B126="","",Meetings1!C126) ->  | R167: =IF(Meetings1!B126="","",getAddress(Meetings1!E126)) -> 
M168: =IF(Meetings1!A127="","",Meetings1!A127) ->  | N168: =IF(Meetings1!B127="","",Meetings1!C127) ->  | R168: =IF(Meetings1!B127="","",getAddress(Meetings1!E127)) -> 
M169: =IF(Meetings1!A128="","",Meetings1!A128) ->  | N169: =IF(Meetings1!B128="","",Meetings1!C128) ->  | R169: =IF(Meetings1!B128="","",getAddress(Meetings1!E128)) -> 
M170: =IF(Meetings1!A129="","",Meetings1!A129) ->  | N170: =IF(Meetings1!B129="","",Meetings1!C129) ->  | R170: =IF(Meetings1!B129="","",getAddress(Meetings1!E129)) -> 
M171: =IF(Meetings1!A130="","",Meetings1!A130) ->  | N171: =IF(Meetings1!B130="","",Meetings1!C130) ->  | R171: =IF(Meetings1!B130="","",getAddress(Meetings1!E130)) -> 
M172: =IF(Meetings1!A131="","",Meetings1!A131) ->  | N172: =IF(Meetings1!B131="","",Meetings1!C131) ->  | R172: =IF(Meetings1!B131="","",getAddress(Meetings1!E131)) -> 
M173: =IF(Meetings1!A132="","",Meetings1!A132) ->  | N173: =IF(Meetings1!B132="","",Meetings1!C132) ->  | R173: =IF(Meetings1!B132="","",getAddress(Meetings1!E132)) -> 
M174: =IF(Meetings1!A133="","",Meetings1!A133) ->  | N174: =IF(Meetings1!B133="","",Meetings1!C133) ->  | R174: =IF(Meetings1!B133="","",getAddress(Meetings1!E133)) -> 
M175: =IF(Meetings1!A134="","",Meetings1!A134) ->  | N175: =IF(Meetings1!B134="","",Meetings1!C134) ->  | R175: =IF(Meetings1!B134="","",getAddress(Meetings1!E134)) -> 
M176: =IF(Meetings1!A135="","",Meetings1!A135) ->  | N176: =IF(Meetings1!B135="","",Meetings1!C135) ->  | R176: =IF(Meetings1!B135="","",getAddress(Meetings1!E135)) -> 
M177: =IF(Meetings1!A136="","",Meetings1!A136) ->  | N177: =IF(Meetings1!B136="","",Meetings1!C136) ->  | R177: =IF(Meetings1!B136="","",getAddress(Meetings1!E136)) -> 
M178: =IF(Meetings1!A137="","",Meetings1!A137) ->  | N178: =IF(Meetings1!B137="","",Meetings1!C137) ->  | R178: =IF(Meetings1!B137="","",getAddress(Meetings1!E137)) -> 
M179: =IF(Meetings1!A138="","",Meetings1!A138) ->  | N179: =IF(Meetings1!B138="","",Meetings1!C138) ->  | R179: =IF(Meetings1!B138="","",getAddress(Meetings1!E138)) -> 
M180: =IF(Meetings1!A139="","",Meetings1!A139) ->  | N180: =IF(Meetings1!B139="","",Meetings1!C139) ->  | R180: =IF(Meetings1!B139="","",getAddress(Meetings1!E139)) -> 
M181: =IF(Meetings1!A140="","",Meetings1!A140) ->  | N181: =IF(Meetings1!B140="","",Meetings1!C140) ->  | R181: =IF(Meetings1!B140="","",getAddress(Meetings1!E140)) -> 
M182: =IF(Meetings1!A141="","",Meetings1!A141) ->  | N182: =IF(Meetings1!B141="","",Meetings1!C141) ->  | R182: =IF(Meetings1!B141="","",getAddress(Meetings1!E141)) -> 
M183: =IF(Meetings1!A142="","",Meetings1!A142) ->  | N183: =IF(Meetings1!B142="","",Meetings1!C142) ->  | R183: =IF(Meetings1!B142="","",getAddress(Meetings1!E142)) -> 
M184: =IF(Meetings1!A143="","",Meetings1!A143) ->  | N184: =IF(Meetings1!B143="","",Meetings1!C143) ->  | R184: =IF(Meetings1!B143="","",getAddress(Meetings1!E143)) -> 
M185: =IF(Meetings1!A144="","",Meetings1!A144) ->  | N185: =IF(Meetings1!B144="","",Meetings1!C144) ->  | R185: =IF(Meetings1!B144="","",getAddress(Meetings1!E144)) -> 
M186: =IF(Meetings1!A145="","",Meetings1!A145) ->  | N186: =IF(Meetings1!B145="","",Meetings1!C145) ->  | R186: =IF(Meetings1!B145="","",getAddress(Meetings1!E145)) -> 
M187: =IF(Meetings1!A146="","",Meetings1!A146) ->  | N187: =IF(Meetings1!B146="","",Meetings1!C146) ->  | R187: =IF(Meetings1!B146="","",getAddress(Meetings1!E146)) -> 
M188: =IF(Meetings1!A147="","",Meetings1!A147) ->  | N188: =IF(Meetings1!B147="","",Meetings1!C147) ->  | R188: =IF(Meetings1!B147="","",getAddress(Meetings1!E147)) -> 
M189: =IF(Meetings1!A148="","",Meetings1!A148) ->  | N189: =IF(Meetings1!B148="","",Meetings1!C148) ->  | R189: =IF(Meetings1!B148="","",getAddress(Meetings1!E148)) -> 
M190: =IF(Meetings1!A149="","",Meetings1!A149) ->  | N190: =IF(Meetings1!B149="","",Meetings1!C149) ->  | R190: =IF(Meetings1!B149="","",getAddress(Meetings1!E149)) -> 
M191: =IF(Meetings1!A150="","",Meetings1!A150) ->  | N191: =IF(Meetings1!B150="","",Meetings1!C150) ->  | R191: =IF(Meetings1!B150="","",getAddress(Meetings1!E150)) -> 
M192: =IF(Meetings1!A151="","",Meetings1!A151) ->  | N192: =IF(Meetings1!B151="","",Meetings1!C151) ->  | R192: =IF(Meetings1!B151="","",getAddress(Meetings1!E151)) -> 
M193: =IF(Meetings1!A152="","",Meetings1!A152) ->  | N193: =IF(Meetings1!B152="","",Meetings1!C152) ->  | R193: =IF(Meetings1!B152="","",getAddress(Meetings1!E152)) -> 
M194: =IF(Meetings1!A153="","",Meetings1!A153) ->  | N194: =IF(Meetings1!B153="","",Meetings1!C153) ->  | R194: =IF(Meetings1!B153="","",getAddress(Meetings1!E153)) -> 
M195: =IF(Meetings1!A154="","",Meetings1!A154) ->  | N195: =IF(Meetings1!B154="","",Meetings1!C154) ->  | R195: =IF(Meetings1!B154="","",getAddress(Meetings1!E154)) -> 
M196: =IF(Meetings1!A155="","",Meetings1!A155) ->  | N196: =IF(Meetings1!B155="","",Meetings1!C155) ->  | R196: =IF(Meetings1!B155="","",getAddress(Meetings1!E155)) -> 
M197: =IF(Meetings1!A156="","",Meetings1!A156) ->  | N197: =IF(Meetings1!B156="","",Meetings1!C156) ->  | R197: =IF(Meetings1!B156="","",getAddress(Meetings1!E156)) -> 
M198: =IF(Meetings1!A157="","",Meetings1!A157) ->  | N198: =IF(Meetings1!B157="","",Meetings1!C157) ->  | R198: =IF(Meetings1!B157="","",getAddress(Meetings1!E157)) -> 
M199: =IF(Meetings1!A158="","",Meetings1!A158) ->  | N199: =IF(Meetings1!B158="","",Meetings1!C158) ->  | R199: =IF(Meetings1!B158="","",getAddress(Meetings1!E158)) -> 
M200: =IF(Meetings1!A159="","",Meetings1!A159) ->  | N200: =IF(Meetings1!B159="","",Meetings1!C159) ->  | R200: =IF(Meetings1!B159="","",getAddress(Meetings1!E159)) -> 
M201: =IF(Meetings1!A160="","",Meetings1!A160) ->  | N201: =IF(Meetings1!B160="","",Meetings1!C160) ->  | R201: =IF(Meetings1!B160="","",getAddress(Meetings1!E160)) -> 
M202: =IF(Meetings1!A161="","",Meetings1!A161) ->  | N202: =IF(Meetings1!B161="","",Meetings1!C161) ->  | R202: =IF(Meetings1!B161="","",getAddress(Meetings1!E161)) -> 
M203: =IF(Meetings1!A162="","",Meetings1!A162) ->  | N203: =IF(Meetings1!B162="","",Meetings1!C162) ->  | R203: =IF(Meetings1!B162="","",getAddress(Meetings1!E162)) -> 
M204: =IF(Meetings1!A163="","",Meetings1!A163) ->  | N204: =IF(Meetings1!B163="","",Meetings1!C163) ->  | R204: =IF(Meetings1!B163="","",getAddress(Meetings1!E163)) -> 
... 118 more rows

Sheet MainSheet
B2: Average Prizemoney | E2: Win & Place Percentage | H2: Distance - Track | K2: Wet Tracks | M2: =Tables!J1 -> GOOD | N2: Fitness | Q2: Class | T2: Form | W2: Qtab Rating | Z2: Pre Post Prices | AC2: Concensess
B3: =INDEX(Data!$BC$2:'Data'!$BC$26,MATCH(1,Data!$BK$2:'Data'!$BK$26,0),1) -> 2 Eight Stars | D3: =INDEX(Data!$BL$2:'Data'!$BL$26,MATCH(1,Data!$BK$2:'Data'!$BK$26,0),1) -> 10 | E3: =INDEX(Data!$BC$2:'Data'!$BC$26,MATCH(1,Data!$BP$2:'Data'!$BP$26,0),1) -> 2 Eight Stars | G3: =INDEX(Data!$BQ$2:'Data'!$BQ$26,MATCH(1,Data!$BP$2:'Data'!$BP$26,0),1) -> 10 | H3: =INDEX(Data!$BC$2:'Data'!$BC$26,MATCH(1,Data!$CG$2:'Data'!$CG$26,0),1) -> 10 Gothic Crown | J3: =INDEX(Data!$CH$2:'Data'!$CH$26,MATCH(1,Data!$CG$2:'Data'!$CG$26,0),1) -> 10 | K3: =IF(Tables!$K$1=1,(INDEX(Data!$BC$2:'Data'!$BC$26,MATCH(1,Data!$CQ$2:'Data'!$CQ$26,0),1)),IF(Tables!$K$1=2,INDEX(Data!$BC$2:'Data'!$BC$26,MATCH(1,Data!$DA$2:'Data'!$DA$26,0),1),"")) ->  | M3: =IF(INDEX(Data!$CR$2:'Data'!$CR$26,MATCH(1,Data!$CQ$2:'Data'!$CQ$26,0),1)=0,INDEX(Data!$DB$2:'Data'!$DB$26,MATCH(1,Data!$DA$2:'Data'!$DA$26,0),1),INDEX(Data!$CR$2:'Data'!$CR$26,MATCH(1,Data!$CQ$2:'Data'!$CQ$26,0),1)) -> 0 | N3: =INDEX(Data!$BC$2:'Data'!$BC$26,MATCH(1,Data!$DJ$2:'Data'!$DJ$26,0),1) -> 9 Tequila Queen | P3: =INDEX(Data!$DK$2:'Data'!$DK$26,MATCH(1,Data!$DJ$2:'Data'!$DJ$26,0),1) -> 10 | Q3: =INDEX(Data!$BC$2:'Data'!$BC$26,MATCH(1,Data!$DN$2:'Data'!$DN$26,0),1) -> 7 King's Shilling | S3: =INDEX(Data!$DO$2:'Data'!$DO$26,MATCH(1,Data!$DN$2:'Data'!$DN$26,0),1) -> 10 | T3: =INDEX(Data!$BC$2:'Data'!$BC$26,MATCH(1,Data!$EI$2:'Data'!$EI$26,0),1) -> 6 Printed | V3: =INDEX(Data!$EJ$2:'Data'!$EJ$26,MATCH(1,Data!$EI$2:'Data'!$EI$26,0),1) -> 10 | W3: =INDEX(Data!$BC$2:'Data'!$BC$26,MATCH(1,Data!$EM$2:'Data'!$EM$26,0),1) -> 2 Eight Stars | Y3: =INDEX(Data!$EN$2:'Data'!$EN$26,MATCH(1,Data!$EM$2:'Data'!$EM$26,0),1) -> 10 | Z3: =INDEX(Data!$BC$2:'Data'!$BC$26,MATCH(1,Data!$ET$2:'Data'!$ET$26,0),1) -> 2 Eight Stars | AB3: =INDEX(Data!$EN$2:'Data'!$EN$26,MATCH(1,Data!$EM$2:'Data'!$EM$26,0),1) -> 10 | AC3: =T31&" "&U31 -> 2 Eight Stars | AE3: =IF(ISNA(VLOOKUP(U31,Data!$BD$2:'Data'!$EV$26,97,FALSE)),"",VLOOKUP(U31,Data!$BD$2:'Data'!$EV$26,97,FALSE)) -> 50
B4: =INDEX(Data!$BC$2:'Data'!$BC$26,MATCH(2,Data!$BK$2:'Data'!$BK$26,0),1) -> 1 Alter Ego | D4: =INDEX(Data!$BL$2:'Data'!$BL$26,MATCH(2,Data!$BK$2:'Data'!$BK$26,0),1) -> 8 | E4: =INDEX(Data!$BC$2:'Data'!$BC$26,MATCH(2,Data!$BP$2:'Data'!$BP$26,0),1) -> 3 Federation Square | G4: =INDEX(Data!$BQ$2:'Data'!$BQ$26,MATCH(2,Data!$BP$2:'Data'!$BP$26,0),1) -> 8 | H4: =INDEX(Data!$BC$2:'Data'!$BC$26,MATCH(2,Data!$CG$2:'Data'!$CG$26,0),1) -> 8 Miss Reveal | J4: =INDEX(Data!$CH$2:'Data'!$CH$26,MATCH(2,Data!$CG$2:'Data'!$CG$26,0),1) -> 8 | K4: =IF(Tables!$K$1=1,(INDEX(Data!$BC$2:'Data'!$BC$26,MATCH(2,Data!$CQ$2:'Data'!$CQ$26,0),1)),IF(Tables!$K$1=2,INDEX(Data!$BC$2:'Data'!$BC$26,MATCH(2,Data!$DA$2:'Data'!$DA$26,0),1),"")) ->  | M4: =IF(INDEX(Data!$CR$2:'Data'!$CR$26,MATCH(2,Data!$CQ$2:'Data'!$CQ$26,0),1)=0,INDEX(Data!$DB$2:'Data'!$DB$26,MATCH(2,Data!$DA$2:'Data'!$DA$26,0),1),INDEX(Data!$CR$2:'Data'!$CR$26,MATCH(2,Data!$CQ$2:'Data'!$CQ$26,0),1)) -> 0 | N4: =INDEX(Data!$BC$2:'Data'!$BC$26,MATCH(2,Data!$DJ$2:'Data'!$DJ$26,0),1) -> 11 Lucy Lil | P4: =INDEX(Data!$DK$2:'Data'!$DK$26,MATCH(2,Data!$DJ$2:'Data'!$DJ$26,0),1) -> 8 | Q4: =INDEX(Data!$BC$2:'Data'!$BC$26,MATCH(2,Data!$DN$2:'Data'!$DN$26,0),1) -> 5 Go Faraglioni | S4: =INDEX(Data!$DO$2:'Data'!$DO$26,MATCH(2,Data!$DN$2:'Data'!$DN$26,0),1) -> 8 | T4: =INDEX(Data!$BC$2:'Data'!$BC$26,MATCH(2,Data!$EI$2:'Data'!$EI$26,0),1) -> 8 Miss Reveal | V4: =INDEX(Data!$EJ$2:'Data'!$EJ$26,MATCH(2,Data!$EI$2:'Data'!$EI$26,0),1) -> 8 | W4: =INDEX(Data!$BC$2:'Data'!$BC$26,MATCH(2,Data!$EM$2:'Data'!$EM$26,0),1) -> 4 Bongiorno | Y4: =INDEX(Data!$EN$2:'Data'!$EN$26,MATCH(2,Data!$EM$2:'Data'!$EM$26,0),1) -> 8 | Z4: =INDEX(Data!$BC$2:'Data'!$BC$26,MATCH(2,Data!$ET$2:'Data'!$ET$26,0),1) -> 1 Alter Ego | AB4: =INDEX(Data!$EN$2:'Data'!$EN$26,MATCH(2,Data!$EM$2:'Data'!$EM$26,0),1) -> 8 | AC4: =T32&" "&U32 -> 8 Miss Reveal | AE4: =IF(ISNA(VLOOKUP(U32,Data!$BD$2:'Data'!$EV$26,97,FALSE)),"",VLOOKUP(U32,Data!$BD$2:'Data'!$EV$26,97,FALSE)) -> 36
B5: =INDEX(Data!$BC$2:'Data'!$BC$26,MATCH(3,Data!$BK$2:'Data'!$BK$26,0),1) -> 4 Bongiorno | D5: =INDEX(Data!$BL$2:'Data'!$BL$26,MATCH(3,Data!$BK$2:'Data'!$BK$26,0),1) -> 6 | E5: =INDEX(Data!$BC$2:'Data'!$BC$26,MATCH(3,Data!$BP$2:'Data'!$BP$26,0),1) -> 1 Alter Ego | G5: =INDEX(Data!$BQ$2:'Data'!$BQ$26,MATCH(3,Data!$BP$2:'Data'!$BP$26,0),1) -> 6 | H5: =INDEX(Data!$BC$2:'Data'!$BC$26,MATCH(3,Data!$CG$2:'Data'!$CG$26,0),1) -> 13 Orihime | J5: =INDEX(Data!$CH$2:'Data'!$CH$26,MATCH(3,Data!$CG$2:'Data'!$CG$26,0),1) -> 6 | K5: =IF(Tables!$K$1=1,(INDEX(Data!$BC$2:'Data'!$BC$26,MATCH(3,Data!$CQ$2:'Data'!$CQ$26,0),1)),IF(Tables!$K$1=2,INDEX(Data!$BC$2:'Data'!$BC$26,MATCH(3,Data!$DA$2:'Data'!$DA$26,0),1),"")) ->  | M5: =IF(INDEX(Data!$CR$2:'Data'!$CR$26,MATCH(3,Data!$CQ$2:'Data'!$CQ$26,0),1)=0,INDEX(Data!$DB$2:'Data'!$DB$26,MATCH(3,Data!$DA$2:'Data'!$DA$26,0),1),INDEX(Data!$CR$2:'Data'!$CR$26,MATCH(3,Data!$CQ$2:'Data'!$CQ$26,0),1)) -> 0 | N5: =INDEX(Data!$BC$2:'Data'!$BC$26,MATCH(3,Data!$DJ$2:'Data'!$DJ$26,0),1) -> 13 Orihime | P5: =INDEX(Data!$DK$2:'Data'!$DK$26,MATCH(3,Data!$DJ$2:'Data'!$DJ$26,0),1) -> 6 | Q5: =INDEX(Data!$BC$2:'Data'!$BC$26,MATCH(3,Data!$DN$2:'Data'!$DN$26,0),1) -> 9 Tequila Queen | S5: =INDEX(Data!$DO$2:'Data'!$DO$26,MATCH(3,Data!$DN$2:'Data'!$DN$26,0),1) -> 6 | T5: =INDEX(Data!$BC$2:'Data'!$BC$26,MATCH(3,Data!$EI$2:'Data'!$EI$26,0),1) -> 11 Lucy Lil | V5: =INDEX(Data!$EJ$2:'Data'!$EJ$26,MATCH(3,Data!$EI$2:'Data'!$EI$26,0),1) -> 6 | W5: =INDEX(Data!$BC$2:'Data'!$BC$26,MATCH(3,Data!$EM$2:'Data'!$EM$26,0),1) -> 11 Lucy Lil | Y5: =INDEX(Data!$EN$2:'Data'!$EN$26,MATCH(3,Data!$EM$2:'Data'!$EM$26,0),1) -> 6 | Z5: =INDEX(Data!$BC$2:'Data'!$BC$26,MATCH(3,Data!$ET$2:'Data'!$ET$26,0),1) -> 4 Bongiorno | AB5: =INDEX(Data!$EN$2:'Data'!$EN$26,MATCH(3,Data!$EM$2:'Data'!$EM$26,0),1) -> 6 | AC5: =T33&" "&U33 -> 11 Lucy Lil | AE5: =IF(ISNA(VLOOKUP(U33,Data!$BD$2:'Data'!$EV$26,97,FALSE)),"",VLOOKUP(U33,Data!$BD$2:'Data'!$EV$26,97,FALSE)) -> 26
B6: =INDEX(Data!$BC$2:'Data'!$BC$26,MATCH(4,Data!$BK$2:'Data'!$BK$26,0),1) -> 8 Miss Reveal | D6: =INDEX(Data!$BL$2:'Data'!$BL$26,MATCH(4,Data!$BK$2:'Data'!$BK$26,0),1) -> 4 | E6: =INDEX(Data!$BC$2:'Data'!$BC$26,MATCH(4,Data!$BP$2:'Data'!$BP$26,0),1) -> 11 Lucy Lil | G6: =INDEX(Data!$BQ$2:'Data'!$BQ$26,MATCH(4,Data!$BP$2:'Data'!$BP$26,0),1) -> 4 | H6: =INDEX(Data!$BC$2:'Data'!$BC$26,MATCH(4,Data!$CG$2:'Data'!$CG$26,0),1) -> 2 Eight Stars | J6: =INDEX(Data!$CH$2:'Data'!$CH$26,MATCH(4,Data!$CG$2:'Data'!$CG$26,0),1) -> 4 | K6: =IF(Tables!$K$1=1,(INDEX(Data!$BC$2:'Data'!$BC$26,MATCH(4,Data!$CQ$2:'Data'!$CQ$26,0),1)),IF(Tables!$K$1=2,INDEX(Data!$BC$2:'Data'!$BC$26,MATCH(4,Data!$DA$2:'Data'!$DA$26,0),1),"")) ->  | M6: =IF(INDEX(Data!$CR$2:'Data'!$CR$26,MATCH(4,Data!$CQ$2:'Data'!$CQ$26,0),1)=0,INDEX(Data!$DB$2:'Data'!$DB$26,MATCH(4,Data!$DA$2:'Data'!$DA$26,0),1),INDEX(Data!$CR$2:'Data'!$CR$26,MATCH(4,Data!$CQ$2:'Data'!$CQ$26,0),1)) -> 0 | N6: =INDEX(Data!$BC$2:'Data'!$BC$26,MATCH(4,Data!$DJ$2:'Data'!$DJ$26,0),1) -> 8 Miss Reveal | P6: =INDEX(Data!$DK$2:'Data'!$DK$26,MATCH(4,Data!$DJ$2:'Data'!$DJ$26,0),1) -> 4 | Q6: =INDEX(Data!$BC$2:'Data'!$BC$26,MATCH(4,Data!$DN$2:'Data'!$DN$26,0),1) -> 8 Miss Reveal | S6: =INDEX(Data!$DO$2:'Data'!$DO$26,MATCH(4,Data!$DN$2:'Data'!$DN$26,0),1) -> 4 | T6: =INDEX(Data!$BC$2:'Data'!$BC$26,MATCH(4,Data!$EI$2:'Data'!$EI$26,0),1) -> 2 Eight Stars | V6: =INDEX(Data!$EJ$2:'Data'!$EJ$26,MATCH(4,Data!$EI$2:'Data'!$EI$26,0),1) -> 4 | W6: =INDEX(Data!$BC$2:'Data'!$BC$26,MATCH(4,Data!$EM$2:'Data'!$EM$26,0),1) -> 8 Miss Reveal | Y6: =INDEX(Data!$EN$2:'Data'!$EN$26,MATCH(4,Data!$EM$2:'Data'!$EM$26,0),1) -> 4 | Z6: =INDEX(Data!$BC$2:'Data'!$BC$26,MATCH(4,Data!$ET$2:'Data'!$ET$26,0),1) -> 8 Miss Reveal | AB6: =INDEX(Data!$EN$2:'Data'!$EN$26,MATCH(4,Data!$EM$2:'Data'!$EM$26,0),1) -> 4 | AC6: =T34&" "&U34 -> 1 Alter Ego | AE6: =IF(ISNA(VLOOKUP(U34,Data!$BD$2:'Data'!$EV$26,97,FALSE)),"",VLOOKUP(U34,Data!$BD$2:'Data'!$EV$26,97,FALSE)) -> 22
B7: =INDEX(Data!$BC$2:'Data'!$BC$26,MATCH(5,Data!$BK$2:'Data'!$BK$26,0),1) -> 3 Federation Square | D7: =INDEX(Data!$BL$2:'Data'!$BL$26,MATCH(5,Data!$BK$2:'Data'!$BK$26,0),1) -> 2 | E7: =INDEX(Data!$BC$2:'Data'!$BC$26,MATCH(5,Data!$BP$2:'Data'!$BP$26,0),1) -> 4 Bongiorno | G7: =INDEX(Data!$BQ$2:'Data'!$BQ$26,MATCH(5,Data!$BP$2:'Data'!$BP$26,0),1) -> 2 | H7: =INDEX(Data!$BC$2:'Data'!$BC$26,MATCH(5,Data!$CG$2:'Data'!$CG$26,0),1) -> 9 Tequila Queen | J7: =INDEX(Data!$CH$2:'Data'!$CH$26,MATCH(5,Data!$CG$2:'Data'!$CG$26,0),1) -> 2 | K7: =IF(Tables!$K$1=1,(INDEX(Data!$BC$2:'Data'!$BC$26,MATCH(5,Data!$CQ$2:'Data'!$CQ$26,0),1)),IF(Tables!$K$1=2,INDEX(Data!$BC$2:'Data'!$BC$26,MATCH(5,Data!$DA$2:'Data'!$DA$26,0),1),"")) ->  | M7: =IF(INDEX(Data!$CR$2:'Data'!$CR$26,MATCH(5,Data!$CQ$2:'Data'!$CQ$26,0),1)=0,INDEX(Data!$DB$2:'Data'!$DB$26,MATCH(5,Data!$DA$2:'Data'!$DA$26,0),1),INDEX(Data!$CR$2:'Data'!$CR$26,MATCH(5,Data!$CQ$2:'Data'!$CQ$26,0),1)) -> 0 | N7: =INDEX(Data!$BC$2:'Data'!$BC$26,MATCH(5,Data!$DJ$2:'Data'!$DJ$26,0),1) -> 2 Eight Stars | P7: =INDEX(Data!$DK$2:'Data'!$DK$26,MATCH(5,Data!$DJ$2:'Data'!$DJ$26,0),1) -> 2 | Q7: =INDEX(Data!$BC$2:'Data'!$BC$26,MATCH(5,Data!$DN$2:'Data'!$DN$26,0),1) -> 3 Federation Square | S7: =INDEX(Data!$DO$2:'Data'!$DO$26,MATCH(5,Data!$DN$2:'Data'!$DN$26,0),1) -> 2 | T7: =INDEX(Data!$BC$2:'Data'!$BC$26,MATCH(5,Data!$EI$2:'Data'!$EI$26,0),1) -> 9 Tequila Queen | V7: =INDEX(Data!$EJ$2:'Data'!$EJ$26,MATCH(5,Data!$EI$2:'Data'!$EI$26,0),1) -> 2 | W7: =INDEX(Data!$BC$2:'Data'!$BC$26,MATCH(5,Data!$EM$2:'Data'!$EM$26,0),1) -> 3 Federation Square | Y7: =INDEX(Data!$EN$2:'Data'!$EN$26,MATCH(5,Data!$EM$2:'Data'!$EM$26,0),1) -> 2 | Z7: =INDEX(Data!$BC$2:'Data'!$BC$26,MATCH(5,Data!$ET$2:'Data'!$ET$26,0),1) -> 11 Lucy Lil | AB7: =INDEX(Data!$EN$2:'Data'!$EN$26,MATCH(5,Data!$EM$2:'Data'!$EM$26,0),1) -> 2 | AC7: =T35&" "&U35 -> 4 Bongiorno | AE7: =IF(ISNA(VLOOKUP(U35,Data!$BD$2:'Data'!$EV$26,97,FALSE)),"",VLOOKUP(U35,Data!$BD$2:'Data'!$EV$26,97,FALSE)) -> 22
B9: =Race!A5 -> RADIO TAB | D9: =Race!B5 -> 2-1-4-8 | F9: =Race!C5 -> BRENDON TUPPER | H9: =Race!D5 -> 2-1-8-10 | J9: =Race!E5 -> Late Mail 2
C11: Venue | D11: =Data!N1 -> Ballarat | G11: Race | H11: =Data!O2 -> 8 | I11: Class | J11: =Form!F3 -> Restricted 62 | L11: Value | M11: =Form!I4 -> 22500 | N11: Distance | O11: =Form!J3 -> 1400m | Q11: Market % | R11: =RaceList!O4 -> 1 | S11: =IF(Form!B4="","",SUBSTITUTE(Form!B4,"::",":")) -> 07:10 | T11: Race Time | U11: =IF(S11="","",(S11-(W11/24))) -> 05:10:00 | V11: - | W11: 2 | X11: Hours
B14: Form | C14: No | D14: Runner | G14: Trainer | I14: Jockey | K14: Weight | L14: Barrier | N14: Rated | O14: Rating | P14: Form | Q14: PPP | R14: Rated Price
B16: =IF(C16="","",Form!C6) -> 2107x | C16: =IF(Data!BF2="","",Data!BF2) -> 1 | D16: =IF(Data!BF2="","",Data!BD2) -> Alter Ego | G16: =IF(C16="","",IF(Data!BG2="","SCRATCHED",Form!E6)) -> P G Moody | I16: =IF(C16="","",IF(Data!BG2="","",Form!F6)) -> J Duffy | K16: =IF(C16="","",IF(I16="","",Form!G6)) -> 60 | L16: =IF(C16="","",IF(D16="SCRATCHED","",Data!BG2)) -> 11 | M16: =IF(C16="","",IF(O16="","",COUNT($O$16:$O$43)-(RANK(O16,$O$16:$O$43)+COUNTIF($O$16:O16,O16)-1)+1)) -> 10 | N16: =IF(M16="","",RANK(M16,$M$16:$M$43)) -> 4 | O16: =IF(C16="","",IF(D16="SCRATCHED","",Data!EX2)) -> 47.47368421 | P16: =IF(G16="","",IF(IF(ISNA(VLOOKUP(D16,Data!$AX$1:'Data'!$BA$100,4,FALSE)),"",VLOOKUP(D16,Data!$AX$1:'Data'!$BA$100,4,FALSE))=0,"",IF(ISNA(VLOOKUP(D16,Data!$AX$1:'Data'!$BA$100,4,FALSE)),"",VLOOKUP(D16,Data!$AX$1:'Data'!$BA$100,4,FALSE)))) -> DW | Q16: =IF(G16<>"",Data!ER2,"") -> 3.5 | R16: =IF(O16="","",Data!FD2) -> 9.317073171 | S16: =IF(Race!D2="Paying","Paying","") -> Paying
B17: =IF(C17="","",Form!C7) -> 3331x2 | C17: =IF(Data!BF3="","",Data!BF3) -> 2 | D17: =IF(Data!BF3="","",Data!BD3) -> Eight Stars | G17: =IF(C17="","",IF(Data!BG3="","SCRATCHED",Form!E7)) -> Patrick Payne | I17: =IF(C17="","",IF(Data!BG3="","",Form!F7)) -> Ms Michelle Payne | K17: =IF(C17="","",IF(I17="","",Form!G7)) -> 59.5 | L17: =IF(C17="","",IF(D17="SCRATCHED","",Data!BG3)) -> 12 | M17: =IF(C17="","",IF(O17="","",COUNT($O$16:$O$43)-(RANK(O17,$O$16:$O$43)+COUNTIF($O$16:O17,O17)-1)+1)) -> 13 | N17: =IF(M17="","",RANK(M17,$M$16:$M$43)) -> 1 | O17: =IF(C17="","",IF(D17="SCRATCHED","",Data!EX3)) -> 181.5789474 | P17: =IF(G17="","",IF(IF(ISNA(VLOOKUP(D17,Data!$AX$1:'Data'!$BA$100,4,FALSE)),"",VLOOKUP(D17,Data!$AX$1:'Data'!$BA$100,4,FALSE))=0,"",IF(ISNA(VLOOKUP(D17,Data!$AX$1:'Data'!$BA$100,4,FALSE)),"",VLOOKUP(D17,Data!$AX$1:'Data'!$BA$100,4,FALSE)))) -> D | Q17: =IF(G17<>"",Data!ER3,"") -> 3.25 | R17: =IF(O17="","",Data!FD3) -> 2.435942029 | W17: =IF(S16<>"","Win","") -> Win | X17: =IF(S16<>"","Place","") -> Place
B18: =IF(C18="","",Form!C8) -> 321x9 | C18: =IF(Data!BF4="","",Data!BF4) -> 3 | D18: =IF(Data!BF4="","",Data!BD4) -> Federation Square | G18: =IF(C18="","",IF(Data!BG4="","SCRATCHED",Form!E8)) -> M, W & J Hawkes | I18: =IF(C18="","",IF(Data!BG4="","",Form!F8)) -> D Dunn | K18: =IF(C18="","",IF(I18="","",Form!G8)) -> 59.5 | L18: =IF(C18="","",IF(D18="SCRATCHED","",Data!BG4)) -> 8 | M18: =IF(C18="","",IF(O18="","",COUNT($O$16:$O$43)-(RANK(O18,$O$16:$O$43)+COUNTIF($O$16:O18,O18)-1)+1)) -> 7 | N18: 7 | O18: =IF(C18="","",IF(D18="SCRATCHED","",Data!EX4)) -> 24.31578947 | P18: =IF(G18="","",IF(IF(ISNA(VLOOKUP(D18,Data!$AX$1:'Data'!$BA$100,4,FALSE)),"",VLOOKUP(D18,Data!$AX$1:'Data'!$BA$100,4,FALSE))=0,"",IF(ISNA(VLOOKUP(D18,Data!$AX$1:'Data'!$BA$100,4,FALSE)),"",VLOOKUP(D18,Data!$AX$1:'Data'!$BA$100,4,FALSE)))) ->  | Q18: =IF(G18<>"",Data!ER4,"") -> 11 | R18: =IF(O18="","",Data!FD4) -> 24.07575758 | S18: =IF($S$16<>"","1st","") -> 1st | T18: =IF($S$16="","",INDEX(Race!$A$1:$A$20,MATCH("QN",Race!$A1:$A$20,0)-4,0)) -> 7 | U18: =IF($S$16="","",INDEX(Race!$A$1:$C20,MATCH("QN",Race!$A1:$A$20,0)-4,3)) -> KING'S SHILLING | W18: =IF(S16<>"",Race!D8,"") -> 5.9 | X18: =IF(S16<>"",Race!E8,"") -> 2.3 | Y18: =IF($U$18="","",IF(ISNA(VLOOKUP(U18,$U$31:$U$35,1,FALSE)),"",VLOOKUP(U18,$U$31:$U$35,1,FALSE))) ->  | Z18: =IF(Y18="","",1) -> 
B19: =IF(C19="","",Form!C9) -> 2634x1 | C19: =IF(Data!BF5="","",Data!BF5) -> 4 | D19: =IF(Data!BF5="","",Data!BD5) -> Bongiorno | G19: =IF(C19="","",IF(Data!BG5="","SCRATCHED",Form!E9)) -> M Ellerton & S Zahra | I19: =IF(C19="","",IF(Data!BG5="","",Form!F9)) -> Chris Symons | K19: =IF(C19="","",IF(I19="","",Form!G9)) -> 59 | L19: =IF(C19="","",IF(D19="SCRATCHED","",Data!BG5)) -> 1 | M19: =IF(C19="","",IF(O19="","",COUNT($O$16:$O$43)-(RANK(O19,$O$16:$O$43)+COUNTIF($O$16:O19,O19)-1)+1)) -> 9 | N19: 5 | O19: =IF(C19="","",IF(D19="SCRATCHED","",Data!EX5)) -> 47.47368421 | P19: =IF(G19="","",IF(IF(ISNA(VLOOKUP(D19,Data!$AX$1:'Data'!$BA$100,4,FALSE)),"",VLOOKUP(D19,Data!$AX$1:'Data'!$BA$100,4,FALSE))=0,"",IF(ISNA(VLOOKUP(D19,Data!$AX$1:'Data'!$BA$100,4,FALSE)),"",VLOOKUP(D19,Data!$AX$1:'Data'!$BA$100,4,FALSE)))) ->  | Q19: =IF(G19<>"",Data!ER5,"") -> 5.5 | R19: =IF(O19="","",Data!FD5) -> 9.317073171 | S19: =IF($S$16<>"","2nd","") -> 2nd | T19: =IF($S$16="","",INDEX(Race!$A$1:$A$20,MATCH("QN",Race!$A1:$A$20,0)-3,0)) -> 10 | U19: =IF($S$16="","",INDEX(Race!$A$1:$C21,MATCH("QN",Race!$A2:$A$20,0)-2,3)) -> GOTHIC CROWN | X19: =IF(S16<>"",Race!E9,"") -> 6.9 | Y19: =IF($U$18="","",IF(ISNA(VLOOKUP(U19,$U$31:$U$35,1,FALSE)),"",VLOOKUP(U19,$U$31:$U$35,1,FALSE))) ->  | Z19: =IF(Y19="","",1) -> 
B20: =IF(C20="","",Form!C10) -> 03619x | C20: =IF(Data!BF6="","",Data!BF6) -> 5 | D20: =IF(Data!BF6="","",Data!BD6) -> Go Faraglioni | G20: =IF(C20="","",IF(Data!BG6="","SCRATCHED",Form!E10)) -> G Eurell | I20: =IF(C20="","",IF(Data!BG6="","",Form!F10)) -> Brent Evans | K20: =IF(C20="","",IF(I20="","",Form!G10)) -> 59 | L20: =IF(C20="","",IF(D20="SCRATCHED","",Data!BG6)) -> 9 | M20: =IF(C20="","",IF(O20="","",COUNT($O$16:$O$43)-(RANK(O20,$O$16:$O$43)+COUNTIF($O$16:O20,O20)-1)+1)) -> 2 | N20: 12 | O20: =IF(C20="","",IF(D20="SCRATCHED","",Data!EX6)) -> 11.36842105 | P20: =IF(G20="","",IF(IF(ISNA(VLOOKUP(D20,Data!$AX$1:'Data'!$BA$100,4,FALSE)),"",VLOOKUP(D20,Data!$AX$1:'Data'!$BA$100,4,FALSE))=0,"",IF(ISNA(VLOOKUP(D20,Data!$AX$1:'Data'!$BA$100,4,FALSE)),"",VLOOKUP(D20,Data!$AX$1:'Data'!$BA$100,4,FALSE)))) ->  | Q20: =IF(G20<>"",Data!ER6,"") -> 13 | R20: =IF(O20="","",Data!FD6) -> 51.49537037 | S20: =IF($S$16<>"","3rd","") -> 3rd | T20: =IF($S$16="","",INDEX(Race!$A$1:$A$20,MATCH("QN",Race!$A1:$A$20,0)-2,0)) -> 11 | U20: =IF($S$16="","",INDEX(Race!$A$1:$C22,MATCH("QN",Race!$A3:$A$20,0)-0,3)) -> LUCY LIL | X20: =IF(S16<>"",Race!E10,"") -> 3.3 | Y20: =IF($U$18="","",IF(ISNA(VLOOKUP(U20,$U$31:$U$35,1,FALSE)),"",VLOOKUP(U20,$U$31:$U$35,1,FALSE))) -> Lucy Lil | Z20: 1
B21: =IF(C21="","",Form!C11) -> 64471x | C21: =IF(Data!BF7="","",Data!BF7) -> 6 | D21: =IF(Data!BF7="","",Data!BD7) -> Printed | G21: =IF(C21="","",IF(Data!BG7="","SCRATCHED",Form!E11)) -> P Morgan | I21: =IF(C21="","",IF(Data!BG7="","",Form!F11)) -> C A Robertson | K21: =IF(C21="","",IF(I21="","",Form!G11)) -> 59 | L21: =IF(C21="","",IF(D21="SCRATCHED","",Data!BG7)) -> 4 | M21: =IF(C21="","",IF(O21="","",COUNT($O$16:$O$43)-(RANK(O21,$O$16:$O$43)+COUNTIF($O$16:O21,O21)-1)+1)) -> 5 | N21: 9 | O21: =IF(C21="","",IF(D21="SCRATCHED","",Data!EX7)) -> 15.26315789 | P21: =IF(G21="","",IF(IF(ISNA(VLOOKUP(D21,Data!$AX$1:'Data'!$BA$100,4,FALSE)),"",VLOOKUP(D21,Data!$AX$1:'Data'!$BA$100,4,FALSE))=0,"",IF(ISNA(VLOOKUP(D21,Data!$AX$1:'Data'!$BA$100,4,FALSE)),"",VLOOKUP(D21,Data!$AX$1:'Data'!$BA$100,4,FALSE)))) -> D | Q21: =IF(G21<>"",Data!ER7,"") -> 11 | R21: =IF(O21="","",Data!FD7) -> 38.35517241 | Y21: =IF($U$26="","",IF(ISNA(VLOOKUP(U26,$T$31:$T$35,1,FALSE)),"",VLOOKUP(U26,$T$31:$T$35,1,FALSE))) -> 
B22: =IF(C22="","",Form!C12) -> x40619 | C22: =IF(Data!BF8="","",Data!BF8) -> 7 | D22: =IF(Data!BF8="","",Data!BD8) -> King's Shilling | G22: =IF(C22="","",IF(Data!BG8="","SCRATCHED",Form!E12)) -> J W Mason | I22: =IF(C22="","",IF(Data!BG8="","",Form!F12)) -> C Newitt | K22: =IF(C22="","",IF(I22="","",Form!G12)) -> 58.5 | L22: =IF(C22="","",IF(D22="SCRATCHED","",Data!BG8)) -> 6 | M22: =IF(C22="","",IF(O22="","",COUNT($O$16:$O$43)-(RANK(O22,$O$16:$O$43)+COUNTIF($O$16:O22,O22)-1)+1)) -> 4 | N22: 10 | O22: =IF(C22="","",IF(D22="SCRATCHED","",Data!EX8)) -> 15.26315789 | P22: =IF(G22="","",IF(IF(ISNA(VLOOKUP(D22,Data!$AX$1:'Data'!$BA$100,4,FALSE)),"",VLOOKUP(D22,Data!$AX$1:'Data'!$BA$100,4,FALSE))=0,"",IF(ISNA(VLOOKUP(D22,Data!$AX$1:'Data'!$BA$100,4,FALSE)),"",VLOOKUP(D22,Data!$AX$1:'Data'!$BA$100,4,FALSE)))) ->  | Q22: =IF(G22<>"",Data!ER8,"") -> 16 | R22: =IF(O22="","",Data!FD8) -> 38.35517241 | S22: =IF(S16<>"",Race!A12,"") -> QN | T22: =IF(S16<>"",Race!B12,"") -> 7*10 | W22: =IF(S16<>"",Race!C12,"") -> 126.5
B23: =IF(C23="","",Form!C13) -> 372x68 | C23: =IF(Data!BF9="","",Data!BF9) -> 8 | D23: =IF(Data!BF9="","",Data!BD9) -> Miss Reveal | G23: =IF(C23="","",IF(Data!BG9="","SCRATCHED",Form!E13)) -> A J Vasil | I23: =IF(C23="","",IF(Data!BG9="","",Form!F13)) -> M Zahra | K23: =IF(C23="","",IF(I23="","",Form!G13)) -> 58 | L23: =IF(C23="","",IF(D23="SCRATCHED","",Data!BG9)) -> 13 | M23: =IF(C23="","",IF(O23="","",COUNT($O$16:$O$43)-(RANK(O23,$O$16:$O$43)+COUNTIF($O$16:O23,O23)-1)+1)) -> 12 | N23: 2 | O23: =IF(C23="","",IF(D23="SCRATCHED","",Data!EX9)) -> 104.2105263 | P23: =IF(G23="","",IF(IF(ISNA(VLOOKUP(D23,Data!$AX$1:'Data'!$BA$100,4,FALSE)),"",VLOOKUP(D23,Data!$AX$1:'Data'!$BA$100,4,FALSE))=0,"",IF(ISNA(VLOOKUP(D23,Data!$AX$1:'Data'!$BA$100,4,FALSE)),"",VLOOKUP(D23,Data!$AX$1:'Data'!$BA$100,4,FALSE)))) -> C | Q23: =IF(G23<>"",Data!ER9,"") -> 8 | R23: =IF(O23="","",Data!FD9) -> 4.244444444 | S23: =IF(S16<>"",Race!A13,"") -> EX | T23: =IF(S16<>"",Race!B13,"") -> 7*10 | W23: =IF(S16<>"",Race!C13,"") -> 166.1
B24: =IF(C24="","",Form!C14) -> 74756 | C24: =IF(Data!BF10="","",Data!BF10) -> 9 | D24: =IF(Data!BF10="","",Data!BD10) -> Tequila Queen | G24: =IF(C24="","",IF(Data!BG10="","SCRATCHED",Form!E14)) -> D T Curran | I24: =IF(C24="","",IF(Data!BG10="","",Form!F14)) -> J Londregan | K24: =IF(C24="","",IF(I24="","",Form!G14)) -> 58 | L24: =IF(C24="","",IF(D24="SCRATCHED","",Data!BG10)) -> 5 | M24: =IF(C24="","",IF(O24="","",COUNT($O$16:$O$43)-(RANK(O24,$O$16:$O$43)+COUNTIF($O$16:O24,O24)-1)+1)) -> 8 | N24: 6 | O24: =IF(C24="","",IF(D24="SCRATCHED","",Data!EX10)) -> 41.05263158 | P24: =IF(G24="","",IF(IF(ISNA(VLOOKUP(D24,Data!$AX$1:'Data'!$BA$100,4,FALSE)),"",VLOOKUP(D24,Data!$AX$1:'Data'!$BA$100,4,FALSE))=0,"",IF(ISNA(VLOOKUP(D24,Data!$AX$1:'Data'!$BA$100,4,FALSE)),"",VLOOKUP(D24,Data!$AX$1:'Data'!$BA$100,4,FALSE)))) -> WT | Q24: =IF(G24<>"",Data!ER10,"") -> 11 | R24: =IF(O24="","",Data!FD10) -> 14.26025641 | S24: =IF(S16<>"",Race!G12,"") -> TF | T24: =IF(S16<>"",Race!H12,"") -> 7*10*11 | W24: =IF(S16<>"",Race!I12,"") -> 2325.8
B25: =IF(C25="","",Form!C15) -> 55x630 | C25: =IF(Data!BF11="","",Data!BF11) -> 10 | D25: =IF(Data!BF11="","",Data!BD11) -> Gothic Crown | G25: =IF(C25="","",IF(Data!BG11="","SCRATCHED",Form!E15)) -> Todd Balfour | I25: =IF(C25="","",IF(Data!BG11="","",Form!F15)) -> Nicholas Hall | K25: =IF(C25="","",IF(I25="","",Form!G15)) -> 57.5 | L25: =IF(C25="","",IF(D25="SCRATCHED","",Data!BG11)) -> 3 | M25: =IF(C25="","",IF(O25="","",COUNT($O$16:$O$43)-(RANK(O25,$O$16:$O$43)+COUNTIF($O$16:O25,O25)-1)+1)) -> 3 | N25: 11 | O25: =IF(C25="","",IF(D25="SCRATCHED","",Data!EX11)) -> 15.26315789 | P25: =IF(G25="","",IF(IF(ISNA(VLOOKUP(D25,Data!$AX$1:'Data'!$BA$100,4,FALSE)),"",VLOOKUP(D25,Data!$AX$1:'Data'!$BA$100,4,FALSE))=0,"",IF(ISNA(VLOOKUP(D25,Data!$AX$1:'Data'!$BA$100,4,FALSE)),"",VLOOKUP(D25,Data!$AX$1:'Data'!$BA$100,4,FALSE)))) -> DW | Q25: =IF(G25<>"",Data!ER11,"") -> 16 | R25: =IF(O25="","",Data!FD11) -> 38.35517241 | S25: =IF(S16<>"",Race!A14,"") -> DD | T25: =IF(S16<>"",Race!B14,"") -> 4* 7 | W25: =IF(S16<>"",Race!C14,"") -> 81.6
B26: =IF(C26="","",Form!C16) -> 66x163 | C26: =IF(Data!BF12="","",Data!BF12) -> 11 | D26: =IF(Data!BF12="","",Data!BD12) -> Lucy Lil | G26: =IF(C26="","",IF(Data!BG12="","SCRATCHED",Form!E16)) -> Ms Allison Sheehan | I26: =IF(C26="","",IF(Data!BG12="","",Form!F16)) -> Katelyn Mallyon | K26: =IF(C26="","",IF(I26="","",Form!G16)) -> 57.5 | L26: =IF(C26="","",IF(D26="SCRATCHED","",Data!BG12)) -> 2 | M26: =IF(C26="","",IF(O26="","",COUNT($O$16:$O$43)-(RANK(O26,$O$16:$O$43)+COUNTIF($O$16:O26,O26)-1)+1)) -> 11 | N26: 3 | O26: =IF(C26="","",IF(D26="SCRATCHED","",Data!EX12)) -> 61.57894737 | P26: =IF(G26="","",IF(IF(ISNA(VLOOKUP(D26,Data!$AX$1:'Data'!$BA$100,4,FALSE)),"",VLOOKUP(D26,Data!$AX$1:'Data'!$BA$100,4,FALSE))=0,"",IF(ISNA(VLOOKUP(D26,Data!$AX$1:'Data'!$BA$100,4,FALSE)),"",VLOOKUP(D26,Data!$AX$1:'Data'!$BA$100,4,FALSE)))) ->  | Q26: =IF(G26<>"",Data!ER12,"") -> 11 | R26: =IF(O26="","",Data!FD12) -> 7.182905983 | T26: =IF(T25="","",SUBSTITUTE(T25,"*"," ")) -> 4 7 | U26: =IF(T26="","",RIGHT(T26,FIND(" ",T26)-1)) -> 7
B27: =IF(C27="","",Form!C17) -> 564900 | C27: =IF(Data!BF13="","",Data!BF13) -> 12 | D27: =IF(Data!BF13="","",Data!BD13) -> Keypoints | G27: =IF(C27="","",IF(Data!BG13="","SCRATCHED",Form!E17)) -> A F Murphy | I27: =IF(C27="","",IF(Data!BG13="","",Form!F17)) -> I Gundogdu | K27: =IF(C27="","",IF(I27="","",Form!G17)) -> 54.5 | L27: =IF(C27="","",IF(D27="SCRATCHED","",Data!BG13)) -> 10 | M27: =IF(C27="","",IF(O27="","",COUNT($O$16:$O$43)-(RANK(O27,$O$16:$O$43)+COUNTIF($O$16:O27,O27)-1)+1)) -> 1 | N27: 13 | O27: =IF(C27="","",IF(D27="SCRATCHED","",Data!EX13)) -> 1 | P27: =IF(G27="","",IF(IF(ISNA(VLOOKUP(D27,Data!$AX$1:'Data'!$BA$100,4,FALSE)),"",VLOOKUP(D27,Data!$AX$1:'Data'!$BA$100,4,FALSE))=0,"",IF(ISNA(VLOOKUP(D27,Data!$AX$1:'Data'!$BA$100,4,FALSE)),"",VLOOKUP(D27,Data!$AX$1:'Data'!$BA$100,4,FALSE)))) ->  | Q27: =IF(G27<>"",Data!ER13,"") -> 21 | R27: =IF(O27="","",Data!FD13) -> 50
B28: =IF(C28="","",Form!C18) -> 400966 | C28: =IF(Data!BF14="","",Data!BF14) -> 13 | D28: =IF(Data!BF14="","",Data!BD14) -> Orihime | G28: =IF(C28="","",IF(Data!BG14="","SCRATCHED",Form!E18)) -> Ms S Idnurm | I28: =IF(C28="","",IF(Data!BG14="","",Form!F18)) -> D Larsson | K28: =IF(C28="","",IF(I28="","",Form!G18)) -> 54 | L28: =IF(C28="","",IF(D28="SCRATCHED","",Data!BG14)) -> 7 | M28: =IF(C28="","",IF(O28="","",COUNT($O$16:$O$43)-(RANK(O28,$O$16:$O$43)+COUNTIF($O$16:O28,O28)-1)+1)) -> 6 | N28: 8 | O28: =IF(C28="","",IF(D28="SCRATCHED","",Data!EX14)) -> 19.57894737 | P28: =IF(G28="","",IF(IF(ISNA(VLOOKUP(D28,Data!$AX$1:'Data'!$BA$100,4,FALSE)),"",VLOOKUP(D28,Data!$AX$1:'Data'!$BA$100,4,FALSE))=0,"",IF(ISNA(VLOOKUP(D28,Data!$AX$1:'Data'!$BA$100,4,FALSE)),"",VLOOKUP(D28,Data!$AX$1:'Data'!$BA$100,4,FALSE)))) ->  | Q28: =IF(G28<>"",Data!ER14,"") -> 26 | R28: =IF(O28="","",Data!FD14) -> 29.90053763
B29: =IF(C29="","",Form!C19) ->  | C29: =IF(Data!BF15="","",Data!BF15) ->  | D29: =IF(Data!BF15="","",Data!BD15) ->  | G29: =IF(C29="","",IF(Data!BG15="","SCRATCHED",Form!E19)) ->  | I29: =IF(C29="","",IF(Data!BG15="","",Form!F19)) ->  | K29: =IF(C29="","",IF(I29="","",Form!G19)) ->  | L29: =IF(C29="","",IF(D29="SCRATCHED","",Data!BG15)) ->  | M29: =IF(C29="","",IF(O29="","",COUNT($O$16:$O$43)-(RANK(O29,$O$16:$O$43)+COUNTIF($O$16:O29,O29)-1)+1)) ->  | O29: =IF(C29="","",IF(D29="SCRATCHED","",Data!EX15)) ->  | P29: =IF(G29="","",IF(IF(ISNA(VLOOKUP(D29,Data!$AX$1:'Data'!$BA$100,4,FALSE)),"",VLOOKUP(D29,Data!$AX$1:'Data'!$BA$100,4,FALSE))=0,"",IF(ISNA(VLOOKUP(D29,Data!$AX$1:'Data'!$BA$100,4,FALSE)),"",VLOOKUP(D29,Data!$AX$1:'Data'!$BA$100,4,FALSE)))) ->  | Q29: =IF(G29<>"",Data!ER15,"") ->  | R29: =IF(O29="","",Data!FD15) -> 
B30: =IF(C30="","",Form!C20) ->  | C30: =IF(Data!BF16="","",Data!BF16) ->  | D30: =IF(Data!BF16="","",Data!BD16) ->  | G30: =IF(C30="","",IF(Data!BG16="","SCRATCHED",Form!E20)) ->  | I30: =IF(C30="","",IF(Data!BG16="","",Form!F20)) ->  | K30: =IF(C30="","",IF(I30="","",Form!G20)) ->  | L30: =IF(C30="","",IF(D30="SCRATCHED","",Data!BG16)) ->  | M30: =IF(C30="","",IF(O30="","",COUNT($O$16:$O$43)-(RANK(O30,$O$16:$O$43)+COUNTIF($O$16:O30,O30)-1)+1)) ->  | O30: =IF(C30="","",IF(D30="SCRATCHED","",Data!EX16)) ->  | P30: =IF(G30="","",IF(IF(ISNA(VLOOKUP(D30,Data!$AX$1:'Data'!$BA$100,4,FALSE)),"",VLOOKUP(D30,Data!$AX$1:'Data'!$BA$100,4,FALSE))=0,"",IF(ISNA(VLOOKUP(D30,Data!$AX$1:'Data'!$BA$100,4,FALSE)),"",VLOOKUP(D30,Data!$AX$1:'Data'!$BA$100,4,FALSE)))) ->  | Q30: =IF(G30<>"",Data!ER16,"") ->  | R30: =IF(O30="","",Data!FD16) ->  | S30: =D11 -> Ballarat | U30: =G11&" "&H11 -> Race 8 | V30: =J11 -> Restricted 62 | W30: R/Price | X30: Win | Y30: Place | Z30: Exotics | AA30: Paid
B31: =IF(C31="","",Form!C21) ->  | C31: =IF(Data!BF17="","",Data!BF17) ->  | D31: =IF(Data!BF17="","",Data!BD17) ->  | G31: =IF(C31="","",IF(Data!BG17="","SCRATCHED",Form!E21)) ->  | I31: =IF(C31="","",IF(Data!BG17="","",Form!F21)) ->  | K31: =IF(C31="","",IF(I31="","",Form!G21)) ->  | L31: =IF(C31="","",IF(D31="SCRATCHED","",Data!BG17)) ->  | M31: =IF(C31="","",IF(O31="","",COUNT($O$16:$O$43)-(RANK(O31,$O$16:$O$43)+COUNTIF($O$16:O31,O31)-1)+1)) ->  | O31: =IF(C31="","",IF(D31="SCRATCHED","",Data!EX17)) ->  | P31: =IF(G31="","",IF(IF(ISNA(VLOOKUP(D31,Data!$AX$1:'Data'!$BA$100,4,FALSE)),"",VLOOKUP(D31,Data!$AX$1:'Data'!$BA$100,4,FALSE))=0,"",IF(ISNA(VLOOKUP(D31,Data!$AX$1:'Data'!$BA$100,4,FALSE)),"",VLOOKUP(D31,Data!$AX$1:'Data'!$BA$100,4,FALSE)))) ->  | Q31: =IF(G31<>"",Data!ER17,"") ->  | R31: =IF(O31="","",Data!FD17) ->  | S31: ="1st" -> 1st | T31: =INDEX($C$16:$C$39,MATCH(1,$N$16:$N$39,0),1) -> 2 | U31: =INDEX($D$16:$D$39,MATCH(1,$N$16:$N$39,0),1) -> Eight Stars | W31: =INDEX($R$16:$R$42,MATCH(1,$N$16:$N$39,0),1) -> 2.435942029 | X31: =IF($S$16="","",IF(IF(ISNA(VLOOKUP(U31,$U$18:$X$20,3,FALSE)),"",VLOOKUP(U31,$U$18:$X$20,3,FALSE))=0,"",IF(ISNA(VLOOKUP(U31,$U$18:$X$20,3,FALSE)),"",VLOOKUP(U31,$U$18:$X$20,3,FALSE)))) ->  | Y31: =IF($S$16="","",IF(IF(ISNA(VLOOKUP(U31,$U$18:$X$20,4,FALSE)),"",VLOOKUP(U31,$U$18:$X$20,4,FALSE))=0,"",IF(ISNA(VLOOKUP(U31,$U$18:$X$20,4,FALSE)),"",VLOOKUP(U31,$U$18:$X$20,4,FALSE)))) ->  | Z31: Quin | AA31: =IF(AND(Y18<>"",Y19<>""),W22,"") -> 
B32: =IF(C32="","",Form!C22) ->  | C32: =IF(Data!BF18="","",Data!BF18) ->  | D32: =IF(Data!BF18="","",Data!BD18) ->  | G32: =IF(C32="","",IF(Data!BG18="","SCRATCHED",Form!E22)) ->  | I32: =IF(C32="","",IF(Data!BG18="","",Form!F22)) ->  | K32: =IF(C32="","",IF(I32="","",Form!G22)) ->  | L32: =IF(C32="","",IF(D32="SCRATCHED","",Data!BG18)) ->  | M32: =IF(C32="","",IF(O32="","",COUNT($O$16:$O$43)-(RANK(O32,$O$16:$O$43)+COUNTIF($O$16:O32,O32)-1)+1)) ->  | O32: =IF(C32="","",IF(D32="SCRATCHED","",Data!EX18)) ->  | P32: =IF(G32="","",IF(IF(ISNA(VLOOKUP(D32,Data!$AX$1:'Data'!$BA$100,4,FALSE)),"",VLOOKUP(D32,Data!$AX$1:'Data'!$BA$100,4,FALSE))=0,"",IF(ISNA(VLOOKUP(D32,Data!$AX$1:'Data'!$BA$100,4,FALSE)),"",VLOOKUP(D32,Data!$AX$1:'Data'!$BA$100,4,FALSE)))) ->  | Q32: =IF(G32<>"",Data!ER18,"") ->  | R32: =IF(O32="","",Data!FD18) ->  | S32: ="2nd" -> 2nd | T32: =INDEX($C$16:$C$39,MATCH(2,$N$16:$N$39,0),1) -> 8 | U32: =INDEX($D$16:$D$39,MATCH(2,$N$16:$N$39,0),1) -> Miss Reveal | W32: =INDEX($R$16:$R$42,MATCH(2,$N$16:$N$39,0),1) -> 4.244444444 | X32: =IF($S$16="","",IF(IF(ISNA(VLOOKUP(U32,$U$18:$X$20,3,FALSE)),"",VLOOKUP(U32,$U$18:$X$20,3,FALSE))=0,"",IF(ISNA(VLOOKUP(U32,$U$18:$X$20,3,FALSE)),"",VLOOKUP(U32,$U$18:$X$20,3,FALSE)))) ->  | Y32: =IF($S$16="","",IF(IF(ISNA(VLOOKUP(U32,$U$18:$X$20,4,FALSE)),"",VLOOKUP(U32,$U$18:$X$20,4,FALSE))=0,"",IF(ISNA(VLOOKUP(U32,$U$18:$X$20,4,FALSE)),"",VLOOKUP(U32,$U$18:$X$20,4,FALSE)))) ->  | Z32: Tri | AA32: =IF(COUNT(Z18:Z21)=3,W24,"") -> 
B33: =IF(C33="","",Form!C23) ->  | C33: =IF(Data!BF19="","",Data!BF19) ->  | D33: =IF(Data!BF19="","",Data!BD19) ->  | G33: =IF(C33="","",IF(Data!BG19="","SCRATCHED",Form!E23)) ->  | I33: =IF(C33="","",IF(Data!BG19="","",Form!F23)) ->  | K33: =IF(C33="","",IF(I33="","",Form!G23)) ->  | L33: =IF(C33="","",IF(D33="SCRATCHED","",Data!BG19)) ->  | M33: =IF(C33="","",IF(O33="","",COUNT($O$16:$O$43)-(RANK(O33,$O$16:$O$43)+COUNTIF($O$16:O33,O33)-1)+1)) ->  | O33: =IF(C33="","",IF(D33="SCRATCHED","",Data!EX19)) ->  | P33: =IF(G33="","",IF(IF(ISNA(VLOOKUP(D33,Data!$AX$1:'Data'!$BA$100,4,FALSE)),"",VLOOKUP(D33,Data!$AX$1:'Data'!$BA$100,4,FALSE))=0,"",IF(ISNA(VLOOKUP(D33,Data!$AX$1:'Data'!$BA$100,4,FALSE)),"",VLOOKUP(D33,Data!$AX$1:'Data'!$BA$100,4,FALSE)))) ->  | Q33: =IF(G33<>"",Data!ER19,"") ->  | R33: =IF(O33="","",Data!FD19) ->  | S33: ="3rd" -> 3rd | T33: =INDEX($C$16:$C$39,MATCH(3,$N$16:$N$39,0),1) -> 11 | U33: =INDEX($D$16:$D$39,MATCH(3,$N$16:$N$39,0),1) -> Lucy Lil | W33: =INDEX($R$16:$R$42,MATCH(3,$N$16:$N$39,0),1) -> 7.182905983 | Y33: 3.3 | Z33: F4 | AA33: =IF(COUNT(Z18:Z22)=4,W25,"") -> 
B34: =IF(C34="","",Form!C24) ->  | C34: =IF(Data!BF20="","",Data!BF20) ->  | D34: =IF(Data!BF20="","",Data!BD20) ->  | G34: =IF(C34="","",IF(Data!BG20="","SCRATCHED",Form!E24)) ->  | I34: =IF(C34="","",IF(Data!BG20="","",Form!F24)) ->  | K34: =IF(C34="","",IF(I34="","",Form!G24)) ->  | L34: =IF(C34="","",IF(D34="SCRATCHED","",Data!BG20)) ->  | M34: =IF(C34="","",IF(O34="","",COUNT($O$16:$O$43)-(RANK(O34,$O$16:$O$43)+COUNTIF($O$16:O34,O34)-1)+1)) ->  | O34: =IF(C34="","",IF(D34="SCRATCHED","",Data!EX20)) ->  | P34: =IF(G34="","",IF(IF(ISNA(VLOOKUP(D34,Data!$AX$1:'Data'!$BA$100,4,FALSE)),"",VLOOKUP(D34,Data!$AX$1:'Data'!$BA$100,4,FALSE))=0,"",IF(ISNA(VLOOKUP(D34,Data!$AX$1:'Data'!$BA$100,4,FALSE)),"",VLOOKUP(D34,Data!$AX$1:'Data'!$BA$100,4,FALSE)))) ->  | Q34: =IF(G34<>"",Data!ER20,"") ->  | R34: =IF(O34="","",Data!FD20) ->  | S34: ="4th" -> 4th | T34: =INDEX($C$16:$C$39,MATCH(4,$N$16:$N$39,0),1) -> 1 | U34: =INDEX($D$16:$D$39,MATCH(4,$N$16:$N$39,0),1) -> Alter Ego | W34: =INDEX($R$16:$R$42,MATCH(4,$N$16:$N$39,0),1) -> 9.317073171
B35: =IF(C35="","",Form!C25) ->  | C35: =IF(Data!BF21="","",Data!BF21) ->  | D35: =IF(Data!BF21="","",Data!BD21) ->  | G35: =IF(C35="","",IF(Data!BG21="","SCRATCHED",Form!E25)) ->  | I35: =IF(C35="","",IF(Data!BG21="","",Form!F25)) ->  | K35: =IF(C35="","",IF(I35="","",Form!G25)) ->  | L35: =IF(C35="","",IF(D35="SCRATCHED","",Data!BG21)) ->  | M35: =IF(C35="","",IF(O35="","",COUNT($O$16:$O$43)-(RANK(O35,$O$16:$O$43)+COUNTIF($O$16:O35,O35)-1)+1)) ->  | O35: =IF(C35="","",IF(D35="SCRATCHED","",Data!EX21)) ->  | P35: =IF(G35="","",IF(IF(ISNA(VLOOKUP(D35,Data!$AX$1:'Data'!$BA$100,4,FALSE)),"",VLOOKUP(D35,Data!$AX$1:'Data'!$BA$100,4,FALSE))=0,"",IF(ISNA(VLOOKUP(D35,Data!$AX$1:'Data'!$BA$100,4,FALSE)),"",VLOOKUP(D35,Data!$AX$1:'Data'!$BA$100,4,FALSE)))) ->  | Q35: =IF(G35<>"",Data!ER21,"") ->  | R35: =IF(O35="","",Data!FD21) ->  | S35: ="5th" -> 5th | T35: =INDEX($C$16:$C$39,MATCH(5,$N$16:$N$39,0),1) -> 4 | U35: =INDEX($D$16:$D$39,MATCH(5,$N$16:$N$39,0),1) -> Bongiorno | W35: =INDEX($R$16:$R$42,MATCH(5,$N$16:$N$39,0),1) -> 9.317073171
B36: =IF(C36="","",Form!C26) ->  | C36: =IF(Data!BF22="","",Data!BF22) ->  | D36: =IF(Data!BF22="","",Data!BD22) ->  | G36: =IF(C36="","",IF(Data!BG22="","SCRATCHED",Form!E26)) ->  | I36: =IF(C36="","",IF(Data!BG22="","",Form!F26)) ->  | K36: =IF(C36="","",IF(I36="","",Form!G26)) ->  | L36: =IF(C36="","",IF(D36="SCRATCHED","",Data!BG22)) ->  | M36: =IF(C36="","",IF(O36="","",COUNT($O$16:$O$43)-(RANK(O36,$O$16:$O$43)+COUNTIF($O$16:O36,O36)-1)+1)) ->  | O36: =IF(C36="","",IF(D36="SCRATCHED","",Data!EX22)) ->  | P36: =IF(G36="","",IF(IF(ISNA(VLOOKUP(D36,Data!$AX$1:'Data'!$BA$100,4,FALSE)),"",VLOOKUP(D36,Data!$AX$1:'Data'!$BA$100,4,FALSE))=0,"",IF(ISNA(VLOOKUP(D36,Data!$AX$1:'Data'!$BA$100,4,FALSE)),"",VLOOKUP(D36,Data!$AX$1:'Data'!$BA$100,4,FALSE)))) ->  | Q36: =IF(G36<>"",Data!ER22,"") ->  | R36: =IF(O36="","",Data!FD22) ->  | T36: Bets
B37: =IF(C37="","",Form!C27) ->  | C37: =IF(Data!BF23="","",Data!BF23) ->  | D37: =IF(Data!BF23="","",Data!BD23) ->  | G37: =IF(C37="","",IF(Data!BG23="","SCRATCHED",Form!E27)) ->  | I37: =IF(C37="","",IF(Data!BG23="","",Form!F27)) ->  | K37: =IF(C37="","",IF(I37="","",Form!G27)) ->  | L37: =IF(C37="","",IF(D37="SCRATCHED","",Data!BG23)) ->  | M37: =IF(C37="","",IF(O37="","",COUNT($O$16:$O$43)-(RANK(O37,$O$16:$O$43)+COUNTIF($O$16:O37,O37)-1)+1)) ->  | O37: =IF(C37="","",IF(D37="SCRATCHED","",Data!EX23)) ->  | P37: =IF(G37="","",IF(IF(ISNA(VLOOKUP(D37,Data!$AX$1:'Data'!$BA$100,4,FALSE)),"",VLOOKUP(D37,Data!$AX$1:'Data'!$BA$100,4,FALSE))=0,"",IF(ISNA(VLOOKUP(D37,Data!$AX$1:'Data'!$BA$100,4,FALSE)),"",VLOOKUP(D37,Data!$AX$1:'Data'!$BA$100,4,FALSE)))) ->  | Q37: =IF(G37<>"",Data!ER23,"") ->  | R37: =IF(O37="","",Data!FD23) ->  | T37: =S30 -> Ballarat | V37: =U30 -> Race 8 | W37: =V30 -> Restricted 62
B38: =IF(C38="","",Form!C28) ->  | C38: =IF(Data!BF24="","",Data!BF24) ->  | D38: =IF(Data!BF24="","",Data!BD24) ->  | G38: =IF(C38="","",IF(Data!BG24="","SCRATCHED",Form!E28)) ->  | I38: =IF(C38="","",IF(Data!BG24="","",Form!F28)) ->  | K38: =IF(C38="","",IF(I38="","",Form!G28)) ->  | L38: =IF(C38="","",IF(D38="SCRATCHED","",Data!BG24)) ->  | M38: =IF(C38="","",IF(O38="","",COUNT($O$16:$O$43)-(RANK(O38,$O$16:$O$43)+COUNTIF($O$16:O38,O38)-1)+1)) ->  | O38: =IF(C38="","",IF(D38="SCRATCHED","",Data!EX24)) ->  | P38: =IF(G38="","",IF(IF(ISNA(VLOOKUP(D38,Data!$AX$1:'Data'!$BA$100,4,FALSE)),"",VLOOKUP(D38,Data!$AX$1:'Data'!$BA$100,4,FALSE))=0,"",IF(ISNA(VLOOKUP(D38,Data!$AX$1:'Data'!$BA$100,4,FALSE)),"",VLOOKUP(D38,Data!$AX$1:'Data'!$BA$100,4,FALSE)))) ->  | Q38: =IF(G38<>"",Data!ER24,"") ->  | R38: =IF(O38="","",Data!FD24) ->  | T38: =T31&". "&U31 -> 2. Eight Stars | V38: =W31 -> 2.435942029
B39: =IF(C39="","",Form!C29) ->  | C39: =IF(Data!BF25="","",Data!BF25) ->  | D39: =IF(Data!BF25="","",Data!BD25) ->  | G39: =IF(C39="","",IF(Data!BG25="","SCRATCHED",Form!E29)) ->  | I39: =IF(C39="","",IF(Data!BG25="","",Form!F29)) ->  | K39: =IF(C39="","",IF(I39="","",Form!G29)) ->  | L39: =IF(C39="","",IF(D39="SCRATCHED","",Data!BG25)) ->  | M39: =IF(C39="","",IF(O39="","",COUNT($O$16:$O$43)-(RANK(O39,$O$16:$O$43)+COUNTIF($O$16:O39,O39)-1)+1)) ->  | O39: =IF(C39="","",IF(D39="SCRATCHED","",Data!EX25)) ->  | P39: =IF(G39="","",IF(IF(ISNA(VLOOKUP(D39,Data!$AX$1:'Data'!$BA$100,4,FALSE)),"",VLOOKUP(D39,Data!$AX$1:'Data'!$BA$100,4,FALSE))=0,"",IF(ISNA(VLOOKUP(D39,Data!$AX$1:'Data'!$BA$100,4,FALSE)),"",VLOOKUP(D39,Data!$AX$1:'Data'!$BA$100,4,FALSE)))) ->  | Q39: =IF(G39<>"",Data!ER25,"") ->  | R39: =IF(O39="","",Data!FD25) ->  | T39: =T32&". "&U32 -> 8. Miss Reveal | V39: =W32 -> 4.244444444
P40: =IF(G40="","",IF(IF(ISNA(VLOOKUP(D40,Data!$AX$1:'Data'!$BA$100,4,FALSE)),"",VLOOKUP(D40,Data!$AX$1:'Data'!$BA$100,4,FALSE))=0,"",IF(ISNA(VLOOKUP(D40,Data!$AX$1:'Data'!$BA$100,4,FALSE)),"",VLOOKUP(D40,Data!$AX$1:'Data'!$BA$100,4,FALSE)))) ->  | Q40: =IF(G40<>"",Data!ER26,"") ->  | R40: =IF(O40="","",Data!FD26) ->  | T40: =T33&". "&U33 -> 11. Lucy Lil | V40: =W33 -> 7.182905983
P41: =IF(G41="","",IF(IF(ISNA(VLOOKUP(D41,Data!$AX$1:'Data'!$BA$100,4,FALSE)),"",VLOOKUP(D41,Data!$AX$1:'Data'!$BA$100,4,FALSE))=0,"",IF(ISNA(VLOOKUP(D41,Data!$AX$1:'Data'!$BA$100,4,FALSE)),"",VLOOKUP(D41,Data!$AX$1:'Data'!$BA$100,4,FALSE)))) ->  | Q41: =IF(G41<>"",Data!ER27,"") ->  | R41: =IF(O41="","",Data!FD27) ->  | T41: 1. Alter Ego | V41: 9.317073171
P42: =IF(G42="","",IF(IF(ISNA(VLOOKUP(D42,Data!$AX$1:'Data'!$BA$100,4,FALSE)),"",VLOOKUP(D42,Data!$AX$1:'Data'!$BA$100,4,FALSE))=0,"",IF(ISNA(VLOOKUP(D42,Data!$AX$1:'Data'!$BA$100,4,FALSE)),"",VLOOKUP(D42,Data!$AX$1:'Data'!$BA$100,4,FALSE)))) ->  | Q42: =IF(G42<>"",Data!ER28,"") ->  | R42: =IF(O42="","",Data!FD28) ->  | T42: 4. Bongiorno | V42: 9.317073171
B66: =IF(C34="","",C34) ->  | E66: =IF(M34="","",M34) ->  | F66: =IF($E66=1,C66,"") ->  | G66: =IF($E66=2,C66,"") ->  | H66: =IF($E66=3,C66,"") ->  | I66: =IF($E66=4,C66,"") -> 
B72: =IF(C43="","",C43) ->  | E72: =IF(M43="","",M43) -> 

Sheet Meetings1
A1: Select Date | H1: Live Odds By
A2: Ballarat
A3: 1 | B3: 02:45:00 | C3: Porter Plant Mdn Plate - 1400 | D3: Fields | E3: Form | F3: Xtra Ratings | G3: Consistency
A4: 2 | B4: 03:20:00 | C4: Dowling Forest Equine Mdn - 1200 | D4: Fields | E4: Form | F4: Xtra Ratings | G4: Consistency
A5: 3 | B5: 03:57:00 | C5: Tracy The Placement People Mdn - 1000 | D5: Fields | E5: Form | F5: Xtra Ratings | G5: Consistency
A6: 4 | B6: 04:37:00 | C6: Ryan & McDonald Homes Hcp (72) - 1000 | D6: Fields | E6: Form | F6: Xtra Ratings | G6: Consistency
A7: 5 | B7: 05:17:00 | C7: Ballarat Bakery Hcp (62) - 1200 | D7: Fields | E7: Form | F7: Xtra Ratings | G7: Consistency
A8: 6 | B8: 05:57:00 | C8: Westag Hcp (68) - 2200 | D8: Fields | E8: Form | F8: Xtra Ratings | G8: Consistency
A9: 7 | B9: 06:35:00 | C9: Sportsbet.Com.Au Hcp (62) - 1600 | D9: Fields | E9: Form | F9: Xtra Ratings | G9: Consistency
A10: 8 | B10: 07:10:00 | C10: Transport Tyres Hcp (62) - 1400 | D10: Fields | E10: Form | F10: Xtra Ratings | G10: Consistency
A11: Geraldton
B12: 01:07:00 | C12: Purcher International Mdn - 1600 | D12: Fields | E12: Form | F12: Xtra Ratings | G12: Consistency
B13: 01:47:00 | C13: Hahn Super Dry Mdn - 1200 | D13: Fields | E13: Form | F13: Xtra Ratings | G13: Consistency
B14: 02:27:00 | C14: Mitchell & Brown (Bm68+) - 1300 | D14: Fields | E14: Form | F14: Xtra Ratings | G14: Consistency
B15: 03:07:00 | C15: Wafm Hcp (68) - 1600 | D15: Fields | E15: Form | F15: Xtra Ratings | G15: Consistency
B16: 03:47:00 | C16: Geraldton Guardian Hcp (68) - 1300 | D16: Fields | E16: Form | F16: Xtra Ratings | G16: Consistency
B17: 04:23:00 | C17: Boat Show In April (Bm62+) - 1900 | D17: Fields | E17: Form | F17: Xtra Ratings | G17: Consistency
B18: 05:00:00 | C18: Gwn Hcp (63) - 1100 | D18: Fields | E18: Form | F18: Xtra Ratings | G18: Consistency
A19: Hawkesbury
B20: 01:15:00 | C20: Tooheys New Hcp (C1) - 1000 | D20: Fields | E20: Form | F20: Xtra Ratings | G20: Consistency
B21: 01:50:00 | C21: Tru Blu Recruitment Mdn Plate - 1800 | D21: Fields | E21: Form | F21: Xtra Ratings | G21: Consistency
B22: 02:25:00 | C22: Acpe Mdn Plate - 1200 | D22: Fields | E22: Form | F22: Xtra Ratings | G22: Consistency
B23: 03:00:00 | C23: Penrith Juniors Mdn Plate - 1200 | D23: Fields | E23: Form | F23: Xtra Ratings | G23: Consistency
B24: 03:35:00 | C24: Kaos Mdn Hcp - 1300 | D24: Fields | E24: Form | F24: Xtra Ratings | G24: Consistency
B25: 04:14:00 | C25: Cabe (Bm60) - 1600 | D25: Fields | E25: Form | F25: Xtra Ratings | G25: Consistency
B26: 04:54:00 | C26: Penrith Panthers Hcp (C2) - 1400 | D26: Fields | E26: Form | F26: Xtra Ratings | G26: Consistency
B27: 05:34:00 | C27: Sky Racing (Bm65) - 1300 | D27: Fields | E27: Form | F27: Xtra Ratings | G27: Consistency
A28: Rockhampton
B29: 12:25:00 | C29: Bank Of Qld Nth Rockhampton-C2 - 1600 | D29: Fields | E29: Form | F29: Xtra Ratings | G29: Consistency
B30: 01:00:00 | C30: Lacey's 4x4 Megastore Hcp (C3) - 970 | D30: Fields | E30: Form | F30: Xtra Ratings | G30: Consistency
B31: 01:35:00 | C31: Motel 98 Hcp (C6) - 1200 | D31: Fields | E31: Form | F31: Xtra Ratings | G31: Consistency
B32: 02:10:00 | C32: O'Dowds Irish Pub Mdn Plate - 1100 | D32: Fields | E32: Form | F32: Xtra Ratings | G32: Consistency
B33: 02:45:00 | C33: Prydes Easifeeds Hcp - 1100 | D33: Fields | E33: Form | F33: Xtra Ratings | G33: Consistency
B34: 03:25:00 | C34: Sam's Fencing Hcp (C1) - 1200 | D34: Fields | E34: Form | F34: Xtra Ratings | G34: Consistency
B35: 04:05:00 | C35: Touch Hcp (C1) - 1200 | D35: Fields | E35: Form | F35: Xtra Ratings | G35: Consistency
B36: 04:45:00 | C36: X X X X Gold Hcp (C4) - 1400 | D36: Fields | E36: Form | F36: Xtra Ratings | G36: Consistency
A37: Wanganui
B38: 12:10:00 | C38: 94.4 The Sound Mdn - 1200 | D38: Fields | E38: Form | F38: Xtra Ratings | G38: Consistency
B39: 12:45:00 | C39: G Bristol & Sons Hcp (75) - 1200 | D39: Fields | E39: Form | F39: Xtra Ratings | G39: Consistency
B40: 01:20:00 | C40: Wanganui Steelformers Mdn - 1340 | D40: Fields | E40: Form | F40: Xtra Ratings | G40: Consistency
B41: 01:55:00 | C41: Guthrie Bowron Mdn - 1340 | D41: Fields | E41: Form | F41: Xtra Ratings | G41: Consistency
B42: 02:30:00 | C42: Jd Workman & Co Hcp (65) - 1340 | D42: Fields | E42: Form | F42: Xtra Ratings | G42: Consistency
B43: 03:05:00 | C43: Fauldings Sound Mdn - 1600 | D43: Fields | E43: Form | F43: Xtra Ratings | G43: Consistency
B44: 03:39:00 | C44: Mickeys Superliquor Mdn - 1600 | D44: Fields | E44: Form | F44: Xtra Ratings | G44: Consistency
B45: 04:14:00 | C45: Re Downs Builder Hcp (65) - 1600 | D45: Fields | E45: Form | F45: Xtra Ratings | G45: Consistency
A46: END

Sheet Meetings2
A2: Thursday, 2 February 2012 | B2: Times are Aust EST
A4: Trifecta Jackpot! | B4: ALBION PARK (BG) race 08 ($23,058)
A5: Quinella Jackpot! | B5: ANGLE PARK (AG) race 08 ($838)
A6: Races | D6: 1 | E6: 2 | F6: 3 | G6: 4 | H6: 5 | I6: 6 | J6: 7 | K6: 8 | L6: 9 | M6: 10 | N6: 11 | O6: 12
B7: ROCKHAMPTON (QR) | C7: Fields | D7: 1,6,2 F4 | E7: 2,6,9 F4 | F7: 6,3,5 F4 | G7: 3,16,12 F4 | H7: 2,4,3 F4 | I7: 9,4,10 F4 | J7: 9,4,1 F4 | K7: 5,7,6 F4
B8: HAWKESBURY (NR) | C8: Fields | D8: 4,6,2 | E8: 4,3,1 | F8: Abnd | G8: Abnd | H8: Abnd | I8: Abnd | J8: Abnd | K8: Abnd
B9: BALLARAT (VR) | C9: Fields | D9: 6,3,4 | E9: 13,4,10 | F9: 10,3,9 | G9: 6,2,5 | H9: 7,1,10 F4 | I9: 5,3,4 F4 | J9: 4,10,8 F4 | K9: 7,10,11 F4
B10: GERALDTON (PR) | C10: Fields | D10: 3,5,10 | E10: 8,2,14 | F10: 3,5,1 | G10: 7,9,1 | H10: 5,7,9 | I10: 3,4,1 | J10: 10,7,13
B11: WOLVERHAMPTON (BS) | C11: Fields | D11: 11:50:00 | E11: 12:20am | F11: 12:50am
B12: VAAL (AS) | C12: Fields | D12: 6m | E12: 36m | F12: 09:15:00 | G12: 09:45:00 | H12: 10:20:00 | I12: 11:00:00 | J12: 11:40:00 | K12: 12:20am
B13: SOUTHWELL (CS) | C13: Fields | D13: 11:30:00 | E13: 12:00am | F13: 12:30am
B14: WANGANUI (ZS) | C14: Fields | D14: 6,2,3 | E14: 1,3,5 | F14: 12,9,7 | G14: 5,11,9 | H14: 3,2,4 | I14: 10,9,5 | J14: 5,1,6 | K14: 2,8,4
A15: Trots | D15: 1 | E15: 2 | F15: 3 | G15: 4 | H15: 5 | I15: 6 | J15: 7 | K15: 8 | L15: 9 | M15: 10 | N15: 11 | O15: 12
B16: PENRITH (ST) | C16: Fields | D16: 10,1,8 | E16: 9,1,4 | F16: 4,1,5 | G16: 3,7,1 | H16: 9,1,3 | I16: 6,2,1 | J16: 8m | K16: 38m
B17: MELTON (MT) | C17: Fields | D17: 8,5,7 | E17: 3,11,13 | F17: 10,9,1 | G17: 4,5,1 | H17: 11,7,2 | I17: Interim | J17: 21m | K17: 51m
B18: GOLD COAST (QT) | C18: Fields | D18: 6,4,7 F4 | E18: 6,3,4 F4 | F18: 9,10,4 F4 | G18: 9,7,2 F4 | H18: 2,9,6 F4 | I18: 9,3,10 F4
B19: NEWCASTLE (NT) | C19: Fields | D19: Abnd | E19: Abnd | F19: Abnd | G19: Abnd | H19: Abnd | I19: Abnd | J19: Abnd
B20: KILMORE (VT) | C20: Fields | D20: 1,5,7 | E20: 2,1,8 | F20: 8,3,2 | G20: 9,7,6 | H20: 2,6,10 | I20: 1,3,11 | J20: 5,2,12 | K20: 6,9,7
B21: GLOUCESTER PARK (PT) | C21: Fields | D21: 7,11,2 | E21: 15m | F21: 45m | G21: 09:25:00 | H21: 09:57:00 | I21: 10:30:00 | J21: 10:55:00 | K21: 11:20:00
B22: FORBURY PARK (ZT) | C22: Fields | D22: 2,4,7 | E22: 5,6,4 | F22: 8,4,9 | G22: 2,4,12 | H22: 2,5,1 | I22: 3,2,9 | J22: 1,7,5 | K22: 2,9,3 | L22: 9,5,1 | M22: 7,5,3
A23: Greyhounds | D23: 1 | E23: 2 | F23: 3 | G23: 4 | H23: 5 | I23: 6 | J23: 7 | K23: 8 | L23: 9 | M23: 10 | N23: 11 | O23: 12
B24: ALBION PARK (BG) | C24: Fields | D24: 5,3,2 F4 | E24: 6,7,3 F4 | F24: 2,7,6 F4 | G24: 4,3,5 F4 | H24: 0m F4 | I24: 19m F4 | J24: 43m F4 | K24: 9:11 F4 | L24: 9:34 F4 | M24: 9:54 F4
B25: DAPTO (SG) | C25: Fields | D25: 4,7,3 | E25: 1,5,8 | F25: 8,1,6 | G25: 4,5,6 | H25: 2,7,4 | I25: 5m | J25: 29m | K25: 49m | L25: 09:22:00 | M25: 09:42:00
B26: SANDOWN PARK (MG) | C26: Fields | D26: 8,2,3 | E26: 4,6,9 | F26: 2,5,8 | G26: 3,7,2 | H26: 5,6,8 | I26: 5,8,3 | J26: 2m | K26: 26m | L26: 46m | M26: 09:14:00 | N26: 09:38:00
B27: MAITLAND (NG) | C27: Fields | D27: 1,8,5 | E27: Abnd | F27: Abnd | G27: Abnd | H27: Abnd | I27: Abnd | J27: Abnd | K27: Abnd | L27: Abnd | M27: Abnd
B28: GEELONG (VG) | C28: Fields | D28: 8,1,4 | E28: 7,5,6 | F28: 6,5,8 | G28: 4,5,3 | H28: 2,1,6 | I28: 4,2,6 | J28: 5,4,3 | K28: 1,2,4 | L28: 4,2,8 | M28: 6,8,1 | N28: 7,8,9
B29: ANGLE PARK (AG) | C29: Fields | D29: 2,8,1 F4 | E29: 7,6,4 F4 | F29: 5,3,4 F4 | G29: 8,1,3 F4 | H29: 4,8,3 F4 | I29: 4,3,5 F4 | J29: 13m F4 | K29: 32m F4 | L29: 56m F4 | M29: 9:26 F4 | N29: 9:46 F4
B30: GRAFTON (CG) | C30: Fields | D30: 3,7,6 | E30: 2,5,6 | F30: 3,8,5 | G30: 4,3,8 | H30: 2,6,4 | I30: 1,8,3 | J30: 2,4,6 | K30: 8,1,3 | L30: 3,7,2 | M30: 4,8,7 | N30: 1,5,9 | O30: 2,8,7
B31: MANDURAH (PG) | C31: Fields | D31: 25m | E31: 42m | F31: 09:10:00 | G31: 09:32:00 | H31: 09:52:00 | I31: 10:07:00 | J31: 10:22:00 | K31: 10:37:00 | L31: 10:52:00 | M31: 11:10:00 | N31: 11:27:00 | O31: 11:47:00 | P31: 12:02am
B32: BALLARAT (EG) | C32: Fields | D32: 9,4,6 | E32: 6,2,3 | F32: 1,8,6 | G32: 2,5,6 | H32: 2,1,5 | I32: 3,1,8 | J32: 8,6,3 | K32: 7,6,3 | L32: 4,2,6 | M32: 5,2,8 | N32: 1,6,4 | O32: 9,8,6
B33: CAMBRIDGE (OG) | C33: Fields | D33: 4,7,2 | E33: 7,1,6 | F33: 5,8,6 | G33: 3,4,5 | H33: 5,4,8 | I33: 3,7,2 | J33: 3,5,2 | K33: 7,3,5 | L33: 3,6,8 | M33: 4,8,1 | N33: 1,5,7
B34: ADDINGTON (ZG) | C34: Fields | D34: 3,9,1 | E34: 2,9,8 | F34: 3,7,1 | G34: 4,1,3 | H34: 1,4,8 | I34: 4,7,8 | J34: 3,1,2 | K34: 4,1,8 | L34: 3,4,5 | M34: 3,6,4 | N34: 8,6,5 | O34: 7,10,1
B35: HOBART (TG) | C35: Fields | D35: 4,6,2 | E35: 2,4,7 | F35: 3,5,1 | G35: 8,6,2 | H35: 4,2,3 | I35: Interim | J35: 16m | K35: 35m | L35: 59m | M35: 09:30:00 | N35: 09:50:00
A36: Last Race Results | B36: Multi-leg Info | C36: Scratchings
A38: Help | B38: Gambling Advice | C38: TAB Home | D38: Refresh
A39: © Copyright UNiTAB Ltd | B39: Created: Thu, 02 Feb 2012 20:08:28 Aust EST

Sheet Form
B1: Form - Ballarat 02/02/12
A2: =IF(AND(B4="Career::",B3=""),IF(C2="","",IF(ISERROR(MID(C2,FIND(" ",C2,1)+1,FIND("(",C2,1)-FIND(" ",C2,1)-2)),"",MID(C2,FIND(" ",C2,1)+1,FIND("(",C2,1)-FIND(" ",C2,1)-2))),IF(C1="","",IF(ISERROR(MID(C1,FIND(" ",C1,1)+1,FIND("(",C1,1)-FIND(" ",C1,1)-2)),"",MID(C1,FIND(" ",C1,1)+1,FIND("(",C1,1)-FIND(" ",C1,1)-2)))) -> 
A3: =IF(AND(B5="Career::",B4=""),IF(C3="","",IF(ISERROR(MID(C3,FIND(" ",C3,1)+1,FIND("(",C3,1)-FIND(" ",C3,1)-2)),"",MID(C3,FIND(" ",C3,1)+1,FIND("(",C3,1)-FIND(" ",C3,1)-2))),IF(C2="","",IF(ISERROR(MID(C2,FIND(" ",C2,1)+1,FIND("(",C2,1)-FIND(" ",C2,1)-2)),"",MID(C2,FIND(" ",C2,1)+1,FIND("(",C2,1)-FIND(" ",C2,1)-2)))) ->  | B3: Race 8 | D3: Transport Tyres Hcp (62) | F3: Restricted 62 | J3: 1400m
B4: 07::10 | D4: Apprentices Can Claim | F4: Handicap | I4: 22500
B5: # | C5: Form | D5: Horse (Barrier) | E5: Trainer | F5: Jockey | G5: Wgt | H5: API | I5: Win% | J5: Plc% | K5: Odds
B6: 1 | C6: 2107x | D6: Alter Ego (11) | E6: P G Moody | F6: J Duffy | G6: 60 | H6: 3.2 | I6: 25 | J6: 50 | K6: 5/2
B7: 2 | C7: 3331x2 | D7: Eight Stars (12) | E7: Patrick Payne | F7: Ms Michelle Payne | G7: 59.5 | H7: 4.6 | I7: 20 | J7: 100 | K7: 9/4
B8: 3 | C8: 321x9 | D8: Federation Square (8) | E8: M, W & J Hawkes | F8: D Dunn | G8: 59.5 | H8: 2.6 | I8: 25 | J8: 75 | K8: 10/1
B9: 4 | C9: 2634x1 | D9: Bongiorno (1) | E9: M Ellerton & S Zahra | F9: Chris Symons | G9: 59 | H9: 3 | I9: 11.1 | J9: 44.4 | K9: 9/2
B10: 5 | C10: 03619x | D10: Go Faraglioni (9) | E10: G Eurell | F10: Brent Evans | G10: 59 | H10: 1.6 | I10: 14.3 | J10: 28.6 | K10: 12/1
B11: 6 | C11: 64471x | D11: Printed (4) | E11: P Morgan | F11: C A Robertson | G11: 59 | H11: 1.9 | I11: 16.7 | J11: 16.7 | K11: 10/1
B12: 7 | C12: x40619 | D12: King's Shilling (6) | E12: J W Mason | F12: C Newitt | G12: 58.5 | H12: 1.4 | I12: 16.7 | J12: 16.7 | K12: 15/1
B13: 8 | C13: 372x68 | D13: Miss Reveal (13) | E13: A J Vasil | F13: M Zahra | G13: 58 | H13: 2.6 | I13: 12.5 | J13: 37.5 | K13: 7/1
B14: 9 | C14: 74756 | D14: Tequila Queen (5) | E14: D T Curran | F14: J Londregan | G14: 58 | H14: 2.2 | I14: 18.8 | J14: 18.8 | K14: 10/1
B15: 10 | C15: 55x630 | D15: Gothic Crown (3) | E15: Todd Balfour | F15: Nicholas Hall | G15: 57.5 | H15: 1.5 | I15: 10.6 | J15: 30.3 | K15: 15/1
B16: 11 | C16: 66x163 | D16: Lucy Lil (2) | E16: Ms Allison Sheehan | F16: Katelyn Mallyon | G16: 57.5 | H16: 1.7 | I16: 20 | J16: 40 | K16: 10/1
B17: 12 | C17: 564900 | D17: Keypoints (10) | E17: A F Murphy | F17: I Gundogdu | G17: 54.5 | H17: 0.6 | I17: 6.2 | J17: 18.8 | K17: 20/1
B18: 13 | C18: 400966 | D18: Orihime (7) | E18: Ms S Idnurm | F18: D Larsson | G18: 54 | H18: 0.5 | I18: 1.9 | J18: 17 | K18: 25/1
C20: 1 Alter Ego (11) 60.0kg 4yo b g | F20: Trainer:: P G Moody at Caulfield | I20: Jockey:: J Duffy
A21: Alter Ego | C21: Owners:: Contract Racing P/L Synd, J M Maclean, J T Barr, Mrs S A Moody, The Maroons Synd, N S & Mrs G C Psaltis, P H & Mrs E J Cransberg | F21: Breeding:: Dubai Destination - Franjelica by Snippets
B22: Comments:: Resumed from spell with 7-1/4 len 12th Excluded where vet examination 1500m Lakesi Hcp (72) Aug 28 . Then 3-1/4 len 7th Lady Pachira 1700m W'bool Hcp (68) Slow trk Sep 12 . Good win record at this distance.
B23: Career:: | C23: Earnings:: | D23: Win:: 25.0% | E23: Place:: | F23: API:: | G23: First Up:: | H23: Second Up:: | I23: Distance:: | J23: Track::
B24: 4::1-1-0 | C24: 12975 | E24: 0.5 | F24: 3.2 | G24: 1::0-1-0 | H24: 1::1-0-0 | I24: 1::1-0-0 | J24: 0::0-0-0
B25: Fast:: | C25: Good:: | D25: Dead:: | E25: Slow:: | F25: Heavy:: | G25: Distance/Track:: | H25: Win Distances::
B26: 0::0-0-0 | C26: 1::0-0-0 | D26: 1::0-1-0 | E26: 1::0-0-0 | F26: 1::1-0-0 | G26: 0::0-0-0 | H26: 1 (1400)
B27: 7-11 3.2L, W'bool, 2011-09-12, 1700m, Slow, Race 7, Hcp (68), RB68, $12000, ($250), Ms L J Meech, 8, Cd 56.0-0.0, (53), 1::46.23, (), 11/8F, Settled-2 1200-2 800-3 Turn-4, 1-Lady Pachira 55.5
B28: 12-14 7.3L, Lakesi, 2011-08-28, 1500m, Good, Race 8, Hcp (72), RB72, $30000, ($0), L Nolen, 5, Cd 55.0-0.0, (53), 1::31.34, (33.98), 11/4, Settled-5 1200- 800-6 Turn-5, 1-Excluded 58.5 Vet examination.
B29: 1-12 8.0L, W'bool, 2011-08-07, 1400m, Heavy, Race 6, 3yo+ Mdn, Mdn 3+, $12000, ($6825), Ms L J Meech, 5, Cd 58.0-0.0, (SW), 1::29.90, (), 8/11F, Settled-1 1200- 800-1 Turn-1, 2-Qalanjo 56.0 Struck interference at start.
B30: 2-10 0.8L, Wodong, 2011-07-24, 1300m, Dead, Race 2, 3yo Mdn Plate, Mdn 3, $12000, ($2100), M Pumpa, 3, Cd 57.0-0.0, (SW), 1::19.20, (), 7/2, Settled-1 1200- 800- Turn-3, 1-Bringenbrong 57.0
B31: 6-10 0.0L, Cran., 2010-10-12, 800m, Dead, Race 6, Barrier Trl, Btria 3 cg, $0, ($0), L Nolen, 6, Cd 0.0-0.0, (CWT), 0::47.56, (), , Settled- 1200- 800- Turn-, 1-Vacqueyras 0.0
C32: 2 Eight Stars (12) 59.5kg 3yo br g | F32: Trainer:: Patrick Payne at Ballarat | I32: Jockey:: Ms Michelle Payne
A33: Eight Stars | C33: Owners:: T Chan | F33: Breeding:: General Nediym - Bold Selection by Redoute's Choice
B34: Comments:: Followed spell with 4 len 1st Imply, Regal Christabel 1400m Bend 3Yo+ Mdn Dead trk Aug 04 . Then 3-3/4 len 2nd Triple Tease where struck interference early on 1200m Ball't Hcp (C1) Dead trk Jan 12 . Good win record at this distance.
B35: Career:: | C35: Earnings:: | D35: Win:: 20.0% | E35: Place:: | F35: API:: | G35: First Up:: | H35: Second Up:: | I35: Distance:: | J35: Track::
B36: 5::1-1-3 | C36: 23225 | E36: 1 | F36: 4.6 | G36: 2::0-1-1 | H36: 1::0-0-1 | I36: 1::1-0-0 | J36: 1::0-1-0
B37: Fast:: | C37: Good:: | D37: Dead:: | E37: Slow:: | F37: Heavy:: | G37: Distance/Track:: | H37: Win Distances::
B38: 0::0-0-0 | C38: 0::0-0-0 | D38: 4::1-1-2 | E38: 1::0-0-1 | F38: 0::0-0-0 | G38: 0::0-0-0 | H38: 1 (1400)
B39: 2-9 3.8L, Ball't, 2012-01-12, 1200m, Dead, Race 8, Hcp (C1), Cls 1, $22500, ($4200), Ms Michelle Payne, 2, Cd 56.5-0.0, (54), 1::10.22, (), 7/2, Settled-9 1200- 800- Turn-8, 1-Triple Tease 58.0 Struck interference early on.
B40: 3-10 4.0L, Bend, 2011-12-19, 1000m, Slow, Race 12, Barrier Trl, Btria 2+, $0, ($0), Ms Michelle Payne, 3, Cd 0.0-0.0, (CWT), 1::00.40, (), , Settled- 1200- 800- Turn-, 1-Henwood 0.0
B41: 1-12 4.0L, Bend, 2011-08-04, 1400m, Dead, Race 4, 3yo+ Mdn, Mdn 3+, $15000, ($8775), Ms Michelle Payne, 6, Cd 55.5-0.0, (SW), 1::25.22, (), 9/10F, Settled-5 1200- 800-6 Turn-3, 2-Imply 58.0
B42: 3-12 4.4L, Seymor, 2011-07-17, 1200m, Dead, Race 1, 2yo C&G Mdn, Mdn 2 cg, $20000, ($1850), Ms Michelle Payne, 3, Cd 57.0-0.0, (SW), 1::11.09, (), 11/4F, Settled-12 1200- 800- Turn-10, 1-Club Command 57.0 Slowly away. Disappointed for a run.
B43: 3-13 1.8L, W'bool, 2011-05-05, 1200m, Slow, Race 2, 2yo Hcp, Open 2, $22700, ($2100), S W Arnold, 3, Cd 57.5-0.0, (53), 1::12.99, (), 4/1, Settled-6 1200- 800- Turn-5, 1-Delegance 54.0 Struck interference near 600m.
B44: 3-6 1.5L, Caulf., 2011-04-09, 1200m, Dead, Race 1, 2yo Hcp, Open 2, $70000, ($6300), K A Myers, 4, Cd 57.0-0.0, (54), 1::11.18, (35.32), 9/1, Settled-5 1200- 800-5 Turn-6, 1-Burnout 56.0 Struck interference near 400m.
B45: 2-8 0.1L, Cran., 2011-04-04, 800m, Good, Race 5, Barrier Trl, Btria 2 cg, $0, ($0), K A Myers, 2, Cd 0.0-0.0, (CWT), 0::47.37, (), , Settled- 1200- 800- Turn-, 1-Phaedo 0.0
B46: 3-7 0.4L, Cran., 2011-03-21, 800m, Good, Race 3, Barrier Trl, Btria 2 cg, $0, ($0), S W Arnold, 3, Cd 0.0-0.0, (CWT), 0::47.18, (), , Settled- 1200- 800- Turn-, 1-The Counterfeiter 0.0
C47: 3 Federation Square (8) 59.5kg 4yo br g | F47: Trainer:: M, W & J Hawkes at Flemington | I47: Jockey:: D Dunn
A48: Federation Square | C48: Owners:: L S Tsatsaronis, Mrs L Tsatsaronis, R W Creighton, P Tsatsaronis, G Koufogiannis, Mrs J M Flanagan, A Clift, P A Wilson & S D Burgess | F48: Breeding:: Niello - Honore De Balzac by Danzatore
B49: Comments:: Followed spell with lg hd 1st Destiny's Kiss, Sweeneys Lane 1300m Geesyn 3Yo+ Mdn Plate Aug 23 . Then 10 len last Triple Tease 1200m Ball't Hcp (C1) Dead trk Jan 12 . Faded from 4th on turn at latest outing.
B50: Career:: | C50: Earnings:: | D50: Win:: 25.0% | E50: Place:: | F50: API:: | G50: First Up:: | H50: Second Up:: | I50: Distance:: | J50: Track::
B51: 4::1-1-1 | C51: 10225 | E51: 0.75 | F51: 2.6 | G51: 2::0-0-1 | H51: 1::0-1-0 | I51: 0::0-0-0 | J51: 1::0-0-0
B52: Fast:: | C52: Good:: | D52: Dead:: | E52: Slow:: | F52: Heavy:: | G52: Distance/Track:: | H52: Win Distances::
B53: 0::0-0-0 | C53: 3::1-1-1 | D53: 1::0-0-0 | E53: 0::0-0-0 | F53: 0::0-0-0 | G53: 0::0-0-0 | H53: 1 (1300)
B54: 9-9 10.0L, Ball't, 2012-01-12, 1200m, Dead, Race 8, Hcp (C1), Cls 1, $22500, ($250), R Wheeler, 7, Cd 58.0-0.0, (54), 1::10.22, (), 9/1, Settled-4 1200- 800- Turn-4, 1-Triple Tease 58.0
B55: 1-10 0.2L, GeeSyn, 2011-08-23, 1300m, Good, Race 3, 3yo+ Mdn Plate, Mdn 3+, $12000, ($6825), R Wheeler, 6, Cd 58.0-0.0, (SW), 1::18.80, (35.72), 2/5F, Settled-3 1200- 800- Turn-2, 2-Destiny's Kiss 55.5
B56: 2-11 0.1L, GeeSyn, 2011-08-09, 1300m, Good, Race 4, 3yo+ Mdn, Mdn 3+, $12000, ($2100), R Wheeler, 5, Cd 58.0-0.0, (SW), 1::17.86, (35.82), 3/1, Settled-5 1200- 800- Turn-5, 1-Alert The Jeweller 58.0
B57: 3-9 1.5L, GeeSyn, 2011-07-22, 1200m, Good, Race 3, 3yo Mdn Plate, Mdn 3, $12000, ($1050), R Wheeler, 1, Cd 57.0-0.0, (SW), 1::11.68, (34.60), 4/1, Settled-2 1200- 800- Turn-1, 1-Frenchkook 57.0
C58: 4 Bongiorno (1) 59.0kg 4yo b g | F58: Trainer:: M Ellerton & S Zahra at Flemington | I58: Jockey:: Chris Symons
A59: Bongiorno | C59: Owners:: Pinecliff Racing(Mgr:: J B Munz) & Contract Racing Pty Ltd (Mgr:: Mrs J S Moodie) | F59: Breeding:: Flying Spur - Fulton by Zabeel
A60: Pinecliff Racin | B60: Comments:: Followed spell with 1-1/2 len 4th Anotherexcuse where disappointed for a run 1736m Sale 3Yo Mdn Slow trk Jul 31 . Then sht 1/2 hd 1st Divismo, Ne Power 1200m K'more 4Yo+ Mdn Dead trk Jan 15 . Has good record in the wet.
B61: Career:: | C61: Earnings:: | D61: Win:: 11.1% | E61: Place:: | F61: API:: | G61: First Up:: | H61: Second Up:: | I61: Distance:: | J61: Track::
B62: 9::1-2-1 | C62: 26900 | E62: 0.444 | F62: 3 | G62: 4::1-1-0 | H62: 2::0-1-0 | I62: 1::0-0-1 | J62: 1::0-0-1
B63: Fast:: | C63: Good:: | D63: Dead:: | E63: Slow:: | F63: Heavy:: | G63: Distance/Track:: | H63: Win Distances::
B64: 0::0-0-0 | C64: 1::0-0-0 | D64: 4::1-1-0 | E64: 3::0-1-0 | F64: 1::0-0-1 | G64: 1::0-0-1 | H64: 1 (1200)
B65: 1-10 0.1L, K'more, 2012-01-15, 1200m, Dead, Race 2, 4yo+ Mdn, Mdn 4+, $12000, ($6825), J Winks, 2, Cd 58.5-0.0, (SW), 1::12.33, (), 13/8F, Settled-5 1200- 800- Turn-5, 2-Divismo 58.5
B66: 4-12 1.6L, Sale, 2011-07-31, 1736m, Slow, Race 2, 3yo Mdn, Mdn 3, $15000, ($675), Damian Lane, 3, Cd 57.0-0.0, (SW), 1::48.93, (), 13/4F, Settled-8 1200-7 800-8 Turn-9, 1-Anotherexcuse 57.0 Disappointed for a run.
A67: =IF(AND(B69="Career::",B68=""),IF(C67="","",IF(ISERROR(MID(C67,FIND(" ",C67,1)+1,FIND("(",C67,1)-FIND(" ",C67,1)-2)),"",MID(C67,FIND(" ",C67,1)+1,FIND("(",C67,1)-FIND(" ",C67,1)-2))),IF(C66="","",IF(ISERROR(MID(C66,FIND(" ",C66,1)+1,FIND("(",C66,1)-FIND(" ",C66,1)-2)),"",MID(C66,FIND(" ",C66,1)+1,FIND("(",C66,1)-FIND(" ",C66,1)-2)))) ->  | B67: 3-12 8.3L, Ball't, 2011-07-14, 1400m, Heavy, Race 3, 3yo Mdn, Mdn 3, $15000, ($1350), Chris Symons, 4, Cd 57.0-0.0, (SW), 1::33.20, (), 2/1, Settled-5 1200- 800-7 Turn-4, 1-African Heat 57.0
B68: 6-10 3.0L, Sale, 2011-06-30, 1213m, Dead, Race 2, 3yo Hcp (68), RB68 3, $22500, ($250), Dale Smith, 3, Cd 54.0-0.0, (53), 1::10.92, (), 20/1, Settled-6 1200- 800- Turn-5, 1-Al Jandar 58.0
B69: 2-11 1.5L, Seymor, 2011-06-16, 1209m, Dead, Race 3, 3yo Mdn, Mdn 3, $15000, ($2700), S R King, 10, Cd 57.0-0.0, (SW), 1::12.18, (), 8/1, Settled-5 1200- 800- Turn-4, 1-Glamour Rock 55.0
B70: 2-11 0.2L, Sale, 2011-05-26, 1200m, Slow, Race 2, 3yo Mdn Plate, Mdn 3, $15000, ($2700), Chris Symons, 7, Cd 57.0-0.0, (SW), 1::12.83, (), 12/1, Settled-1 1200- 800- Turn-2, 1-Flyingconi 57.0 Struck interference near post.
B71: 10-11 6.9L, P'ham, 2010-12-03, 1000m, Slow, Race 1, 3yo Mdn, Mdn 3, $12340, ($250), K L Bradley, 1, Cd 57.0-0.0, (SW), 0::58.84, (), 5/1, Settled-10 1200- 800- Turn-11, 1-Top Flight 55.0
B72: 4-8 0.0L, W'bee, 2010-11-19, 800m, Dead, Race 4, Barrier Trl, Btria 3 cg, $0, ($0), M Zahra, 4, Cd 0.0-0.0, (CWT), 0::50.24, (), , Settled- 1200- 800- Turn-, 1-Mushatta 0.0
B73: 7-10 5.8L, Mphvl, 2010-06-12, 1100m, Dead, Race 1, 2yo Hcp, Open 2, $40000, ($400), Ms H Mc Kechnie, 3, Cd 54.5-0.0, (53), 1::04.81, (), 7/1, Settled-5 1200- 800- Turn-5, 1-Happy Trails 53.0 Struck interference at start.
B74: 6-9 4.4L, Bend, 2010-05-20, 1000m, Good, Race 1, 2yo Mdn, Mdn 2, $15000, ($250), M J Allen, 7, Cd 57.0-0.0, (SW), 0::58.08, (), 5/2, Settled-5 1200- 800- Turn-5, 1-Liveandletdie 57.0
C75: 5 Go Faraglioni (9) 59.0kg 4yo b g | F75: Trainer:: G Eurell at Cranbourne | I75: Jockey:: Brent Evans
A76: Go Faraglioni | C76: Owners:: Larneuk Stud Pty Ltd Syndicate | F76: Breeding:: Tsigane - Blue Capri by Proven Valour
B77: Comments:: Resumed from spell with sht hd 1st Lyrical Master, Need To Exceed where struck interference near 1400m 1742m Sale 3Yo+ Mdn Dead trk Jun 30 . Then 19-3/4 len last King's Dream 2030m Mphvl 3Yo Hcp Dead trk Jul 30 . Has good record in the wet.
B78: Career:: | C78: Earnings:: | D78: Win:: 14.3% | E78: Place:: | F78: API:: | G78: First Up:: | H78: Second Up:: | I78: Distance:: | J78: Track::
B79: 7::1-0-1 | C79: 11375 | E79: 0.286 | F79: 1.6 | G79: 2::0-0-0 | H79: 1::0-0-0 | I79: 1::0-0-0 | J79: 0::0-0-0
B80: Fast:: | C80: Good:: | D80: Dead:: | E80: Slow:: | F80: Heavy:: | G80: Distance/Track:: | H80: Win Distances::
B81: 0::0-0-0 | C81: 0::0-0-0 | D81: 6::1-0-0 | E81: 0::0-0-0 | F81: 1::0-0-1 | G81: 0::0-0-0 | H81: 1 (1742)
B82: 9-9 19.7L, Mphvl, 2011-07-30, 2030m, Dead, Race 4, 3yo Hcp, Open 3, $40000, ($400), Nathan Rose, 5, Cd 54.5--2.0, (55), 2::10.83, (38.01), 16/1, Settled-8 1200-7 800-7 Turn-8, 1-King's Dream 55.5
B83: 1-13 0.1L, Sale, 2011-06-30, 1742m, Dead, Race 5, 3yo+ Mdn, Mdn 3+, $15000, ($8775), Chris Symons, 4, Cd 58.0-0.0, (SW), 1::47.13, (), 8/1, Settled-3 1200-3 800-3 Turn-3, 2-Lyrical Master 58.0 Struck interference near 1400m.
B84: 6-15 4.7L, Morn., 2011-06-13, 1512m, Dead, Race 1, 3yo+ Mdn, Mdn 3+, $30000, ($350), Chris Symons, 7, Cd 58.0-0.0, (SW), 1::33.14, (), 20/1, Settled-2 1200- 800-3 Turn-8, 1-Luckycent 58.0
B85: 3-12 1.3L, Cran., 2011-05-29, 1500m, Heavy, Race 3, 2yo+ Mdn Plate, Mdn 2+, $15000, ($1350), Chris Symons, 7, Cd 58.0-0.0, (SW), 1::37.38, (), 12/1, Settled-2 1200- 800-3 Turn-3, 1-The Southern 58.0
B86: 12-12 17.9L, Sale, 2011-05-08, 1400m, Dead, Race 3, 3yo Mdn Plate, Mdn 3, $12000, ($0), J R Todd, 2, Cd 57.0-0.0, (SW), 1::25.37, (), 7/1, Settled-3 1200- 800-3 Turn-8, 1-Bold Trojan 57.0 Struck interference near 200m.
B87: 5-8 3.5L, Morn., 2011-04-24, 1200m, Dead, Race 2, 3yo+ Mdn, Mdn 3+, $15000, ($250), Chris Symons, 1, Cd 57.5-0.0, (SW), 1::13.01, (), 15/1, Settled-4 1200- 800- Turn-4, 1-Our Pride And Joy 55.5
B88: 1-11 2.5L, Cran., 2011-04-04, 800m, Good, Race 10, Barrier Trl, Btria 3 cg, $0, ($0), Chris Symons, 1, Cd 0.0-0.0, (CWT), 0::47.09, (), , Settled- 1200- 800- Turn-, 2-Impulsive Business 0.0
B89: 9-10 8.0L, Bairns, 2010-09-11, 1200m, Dead, Race 1, 3yo Mdn, Mdn 3, $12000, ($250), B Park, 7, Cd 57.0-0.0, (SW), 1::13.28, (), 11/1, Settled-2 1200- 800- Turn-2, 1-Wildcat Strike 55.0
B90: 2-6 1.5L, Traral, 2010-08-23, 950m, Heavy, Race 2, Barrier Trl, Btria 3, $0, ($0), Chris Symons, 2, Cd 0.0-0.0, (CWT), 0::56.60, (), , Settled- 1200- 800- Turn-, 1-Lightenuff 0.0
C91: 6 Printed (4) 59.0kg 3yo b/br g | F91: Trainer:: P Morgan at Whittlesea | I91: Jockey:: C A Robertson
A92: Printed | C92: Owners:: B L & Mrs J A Mathieson, R Smith & P T Jackman | F92: Breeding:: Written Tycoon - Kassiyaka by Persian Bold
B93: Comments:: Resumed from spell with 2-1/4 len 7th Ivory Cross 1600m Lakesi 3Yo+ Mdn Dead trk Sep 14 . Then 1-1/4 len 1st Alfiler, Beckett Star where struck interference early on 1400m Echuca Hcp (58) Sep 27 . Good win record at this distance.
B94: Career:: | C94: Earnings:: | D94: Win:: 16.7% | E94: Place:: | F94: API:: | G94: First Up:: | H94: Second Up:: | I94: Distance:: | J94: Track::
B95: 6::1-0-0 | C95: 11475 | E95: 0.167 | F95: 1.9 | G95: 2::0-0-0 | H95: 1::0-0-0 | I95: 1::1-0-0 | J95: 1::0-0-0
B96: Fast:: | C96: Good:: | D96: Dead:: | E96: Slow:: | F96: Heavy:: | G96: Distance/Track:: | H96: Win Distances::
B97: 0::0-0-0 | C97: 2::1-0-0 | D97: 4::0-0-0 | E97: 0::0-0-0 | F97: 0::0-0-0 | G97: 0::0-0-0 | H97: 1 (1400)
B98: 1-14 1.3L, Echuca, 2011-09-27, 1400m, Good, Race 7, Hcp (58), RB58, $12000, ($6825), Ms L J Meech, 2, Cd 56.0-0.0, (53), 1::25.55, (), 3/1F, Settled- 1200- 800- Turn-, 2-Alfiler 57.0 Struck interference early on.
B99: 7-16 2.1L, Lakesi, 2011-09-14, 1600m, Dead, Race 1, 3yo+ Mdn, Mdn 3+, $30000, ($350), Ms L J Meech, 10, Cd 55.5-0.0, (SW), 1::39.04, (), 12/1, Settled-1 1200- 800-3 Turn-2, 1-Ivory Cross 58.0
B100: 4-16 2.2L, Ball't, 2011-09-08, 1500m, Good, Race 3, 3yo+ Mdn, Mdn 3+, $15000, ($675), Ms L J Meech, 2, Cd 55.5-0.0, (SW), 1::32.87, (), 8/1, Settled-6 1200- 800-7 Turn-8, 1-Quatra Valve 55.5 Disappointed for a run.
B101: 4-11 2.0L, Seymor, 2011-09-01, 1309m, Dead, Race 4, 3yo+ Mdn, Mdn 3+, $15000, ($675), Nicholas Hall, 1, Cd 55.5-0.0, (SW), 1::17.20, (), 12/1, Settled-5 1200- 800- Turn-5, 1-Jarss Act 55.5 Hung in during race.
B102: 6-14 5.3L, Bend, 2011-08-04, 1000m, Dead, Race 1, 3yo+ Mdn, Mdn 3+, $15000, ($250), Ms L J Meech, 3, Cd 55.5-0.0, (SW), 0::58.05, (), 5/1, Settled-7 1200- 800- Turn-6, 1-Persona Grata 56.0
B103: 1-9 0.1L, Tatura, 2011-07-20, 850m, Slow, Race 3, Barrier Trl, Btria 2 cg, $0, ($0), Ms L J Meech, 1, Cd 0.0-0.0, (CWT), 0::51.60, (), , Settled- 1200- 800- Turn-, 2-Rapid Advance 0.0
B104: 10-12 9.4L, Hillsi, 2011-01-29, 1000m, Dead, Race 2, 2yo Plate, Open 2, $70000, ($700), Craig Williams, 1, Cd 56.0-0.0, (SWP), 0::57.44, (33.82), 20/1, Settled-10 1200- 800-10 Turn-11, 1-Delago's Lad 56.0
B105: 4-7 0.0L, Cran., 2011-01-24, 800m, Dead, Race 2, Barrier Trl, Btria 2 cg, $0, ($0), Craig Williams, 4, Cd 0.0-0.0, (CWT), 0::47.30, (), , Settled- 1200- 800- Turn-, 1-Huegill 0.0
C106: 7 King's Shilling (6) 58.5kg 3yo b c | F106: Trainer:: J W Mason at Caulfield | I106: Jockey:: C Newitt
A107: King's Shilling | C107: Owners:: R W Digney, P J Digney, Mrs J Digney, D A Digney & J F Digney | F107: Breeding:: Royal Academy - Good Faith by Straight Strike
B108: Comments:: Resumed from let-up with 6 len 1st Littleriver Ruby, She's Ayce 1600m Stawel 3Yo+ Mdn Dead trk Oct 28 . Then 7-1/4 len 9th So Swift 1600m Hillsi Sandown Guineas Dead trk Nov 12 . Faded from 3rd on turn at latest outing.
B109: Career:: | C109: Earnings:: | D109: Win:: 16.7% | E109: Place:: | F109: API:: | G109: First Up:: | H109: Second Up:: | I109: Distance:: | J109: Track::
B110: 6::1-0-0 | C110: 8300 | E110: 0.167 | F110: 1.4 | G110: 2::0-0-0 | H110: 1::0-0-0 | I110: 0::0-0-0 | J110: 0::0-0-0
B111: Fast:: | C111: Good:: | D111: Dead:: | E111: Slow:: | F111: Heavy:: | G111: Distance/Track:: | H111: Win Distances::
B112: 0::0-0-0 | C112: 0::0-0-0 | D112: 5::1-0-0 | E112: 1::0-0-0 | F112: 0::0-0-0 | G112: 0::0-0-0 | H112: 1 (1600)
B113: 9-13 7.3L, Hillsi, 2011-11-12, 1600m, Dead, Race 7, Sandown Guineas, G2 3, $351000, ($0), J Mott, 9, Cd 56.5-0.0, (SW), 1::38.84, (37.24), 100/1, Settled-3 1200- 800-2 Turn-3, 1-So Swift 56.5
B114: 1-8 6.0L, Stawel, 2011-10-28, 1600m, Dead, Race 1, 3yo+ Mdn, Mdn 3+, $12000, ($6825), Jarrod Fry, 8, Cd 55.5-0.0, (SW), 1::38.74, (), 6/1, Settled- 1200- 800- Turn-, 2-Littleriver Ruby 56.0
B115: 6-11 6.5L, Seymor, 2011-10-16, 1300m, Dead, Race 3, 3yo+ Mdn, Mdn 3+, $20200, ($250), Ms Michelle Payne, 5, Cd 55.5-0.0, (SW), 1::17.78, (), 20/1, Settled-9 1200- 800- Turn-10, 1-Soros 55.5 Slowly away. Hung in during race. Raced Greenly.
B116: 11-13 11.7L, Bend, 2011-10-06, 1300m, Dead, Race 4, 3yo+ Mdn, Mdn 3+, $15000, ($0), Ms Michelle Payne, 11, Cd 55.5-0.0, (SW), 1::18.20, (), 20/1, Settled-7 1200- 800- Turn-10, 1-World Domination 55.5
B117: 4-6 8.8L, Sale, 2011-09-20, 1013m, Slow, Race 3, 3yo Mdn, Mdn 3, $12000, ($525), J Mott, 5, Cd 57.0-0.0, (SW), 1::00.40, (), 13/2, Settled-4 1200- 800- Turn-6, 1-Halle Rocks 55.0
B118: 9-9 10.5L, Caulf., 2011-03-26, 1200m, Dead, Race 1, 2yo Hcp, Open 2, $70000, ($700), Jack Hill, 2, Cd 53.5--2.0, (53), 1::10.36, (35.39), 20/1, Settled-6 1200- 800-6 Turn-7, 1-Cute Emily 53.5
B119: 5-9 0.0L, Cran., 2011-03-07, 800m, Dead, Race 2, Barrier Trl, Btria 2 cg, $0, ($0), J Maskiell, 5, Cd 0.0-0.0, (CWT), 0::46.78, (), , Settled- 1200- 800- Turn-, 1-Kidancho's Rogue 0.0
C120: 8 Miss Reveal (13) 58.0kg 4yo b m | F120: Trainer:: A J Vasil at Ballarat | I120: Jockey:: M Zahra
A121: Miss Reveal | C121: Owners:: J Kostopoulos, B Sakelariou, D Bennett, D Kalokathis, M Parisi & C Kostopoulos | F121: Breeding:: Testa Rossa - La Rev by Mr. Henrysee
B122: Comments:: Followed 2-3/4 len 6th Intreeg 1000m Ball't Hcp (68) Dead trk Dec 18 with 3-1/4 len 8th Dubawi Gold where struck interference at start 1200m Ball't Hcp (72) Jan 22 . Faded from 5th on turn at latest outing.
B123: Career:: | C123: Earnings:: | D123: Win:: 12.5% | E123: Place:: | F123: API:: | G123: First Up:: | H123: Second Up:: | I123: Distance:: | J123: Track::
B124: 16::2-2-2 | C124: 41830 | E124: 0.375 | F124: 2.6 | G124: 4::1-0-1 | H124: 3::0-0-0 | I124: 4::1-0-0 | J124: 6::1-1-0
B125: Fast:: | C125: Good:: | D125: Dead:: | E125: Slow:: | F125: Heavy:: | G125: Distance/Track:: | H125: Win Distances::
B126: 0::0-0-0 | C126: 5::1-1-1 | D126: 8::1-1-1 | E126: 1::0-0-0 | F126: 2::0-0-0 | G126: 2::1-0-0 | H126: 1 (1200), 1 (1400)
B127: 8-13 3.3L, Ball't, 2012-01-22, 1200m, Good, Race 6, Hcp (72), RB72, $22500, ($250), J Noonan, 2, Cd 54.5-0.0, (54), 1::11.44, (), 14/1, Settled-6 1200- 800- Turn-5, 1-Dubawi Gold 58.5 Slowly away. Struck interference at start.
B128: 6-8 2.7L, Ball't, 2011-12-18, 1000m, Dead, Race 5, Hcp (68), RB68, $22500, ($250), D Larsson, 5, Cd 56.5-0.0, (54.5), 1::00.24, (), 10/1, Settled-8 1200- 800- Turn-7, 1-Intreeg 57.0
B129: 2-12 0.8L, GeeSyn, 2011-07-15, 1200m, Good, Race 9, Hcp (68), RB68, $12000, ($2100), P Mertens, 1, Cd 55.5-0.0, (53), 1::11.83, (34.79), 6/1, Settled-7 1200- 800- Turn-5, 1-Zachary Quack 56.0 Disappointed for a run.
B130: 7-11 5.3L, Bend, 2011-06-19, 1300m, Dead, Race 6, 3yo+ F&M Hcp-68, RB68 3+ fm, $22500, ($250), J Maskiell, 10, Cd 57.5-0.0, (53), 1::18.10, (), 13/2, Settled-10 1200- 800- Turn-9, 1-Lonhrielle 55.5 Disappointed for a run. Struck interference near 200m.
A131: =IF(AND(B133="Career::",B132=""),IF(C131="","",IF(ISERROR(MID(C131,FIND(" ",C131,1)+1,FIND("(",C131,1)-FIND(" ",C131,1)-2)),"",MID(C131,FIND(" ",C131,1)+1,FIND("(",C131,1)-FIND(" ",C131,1)-2))),IF(C130="","",IF(ISERROR(MID(C130,FIND(" ",C130,1)+1,FIND("(",C130,1)-FIND(" ",C130,1)-2)),"",MID(C130,FIND(" ",C130,1)+1,FIND("(",C130,1)-FIND(" ",C130,1)-2)))) ->  | B131: 3-9 0.6L, GeeSyn, 2011-06-01, 1300m, Good, Race 6, 3yo F Hcp (72), RB72 3 f, $22500, ($2100), J Maskiell, 3, Cd 56.5-0.0, (53), 1::17.27, (34.01), 11/1, Settled-8 1200- 800-7 Turn-9, 1-Lady Pania 57.0
B132: 4-10 2.8L, Ball't, 2011-05-12, 1400m, Heavy, Race 7, Hcp (68), RB68, $15000, ($675), J Maskiell, 9, Cd 55.5-0.0, (53), 1::29.61, (), 6/1, Settled-7 1200- 800-6 Turn-5, 1-Zanzidar 58.0
B133: 4-12 5.1L, Ball't, 2011-04-21, 1200m, Slow, Race 9, 3yo+ F&M Hcp-68, RB68 3+ fm, $22500, ($1050), J Mott, 2, Cd 57.0-0.0, (53), 1::12.88, (), 10/1, Settled-9 1200- 800- Turn-9, 1-Straveen 58.5 Disappointed for a run.
B134: 7-8 4.7L, Lakesi, 2011-03-09, 1400m, Good, Race 2, 3yo F Hcp (72), RB72 3 f, $30000, ($350), J Noonan, 2, Cd 55.0--2.0, (53), 1::25.91, (32.83), 5/1, Settled-2 1200- 800- Turn-3, 1-She's Gifted 55.0 Checked near turn.
B135: 2-11 0.8L, Ball't, 2011-02-17, 1600m, Dead, Race 7, 3yo+ F&M Hcp-68, RB68 3+ fm, $22500, ($4200), J Mott, 6, Cd 57.0-0.0, (53), 1::39.63, (), 15/1, Settled-7 1200- 800-6 Turn-4, 1-Owners Priority 58.0 Disappointed for a run.
B136: 1-12 0.1L, Ball't, 2011-01-27, 1400m, Good, Race 8, 3yo+ F&M Hcp-68, RB68 3+ fm, $22500, ($13650), J Maskiell, 10, Cd 54.0-0.0, (53), 1::25.83, (), 20/1, Settled-3 1200- 800-3 Turn-3, 2-Yule Luvit 53.5
C137: 9 Tequila Queen (5) 58.0kg 4yo b m | F137: Trainer:: D T Curran at Kyneton | I137: Jockey:: J Londregan
A138: Tequila Queen | C138: Owners:: D T & Mrs C T Curran & V P Kavals | F138: Breeding:: Invincible Spirit - Hula Bar by Barathea
B139: Comments:: Followed 2-1/4 len 5th Oregon Spirit where pulled hard during race 1450m K'ton Hcp (68) Slow trk Jan 08 with 3-1/4 len 6th Dubawi Gold 1200m Ball't Hcp (72) Jan 22 . Good win record at this track.
B140: Career:: | C140: Earnings:: | D140: Win:: 18.8% | E140: Place:: | F140: API:: | G140: First Up:: | H140: Second Up:: | I140: Distance:: | J140: Track::
B141: 16::3-0-0 | C141: 35812 | E141: 0.188 | F141: 2.2 | G141: 3::1-0-0 | H141: 3::2-0-0 | I141: 1::0-0-0 | J141: 2::1-0-0
B142: Fast:: | C142: Good:: | D142: Dead:: | E142: Slow:: | F142: Heavy:: | G142: Distance/Track:: | H142: Win Distances::
B143: 0::0-0-0 | C143: 4::0-0-0 | D143: 7::2-0-0 | E143: 3::0-0-0 | F143: 2::1-0-0 | G143: 0::0-0-0 | H143: 2 (1000), 1 (1018)
B144: 6-13 3.1L, Ball't, 2012-01-22, 1200m, Good, Race 6, Hcp (72), RB72, $22500, ($250), J Londregan, 11, Cd 54.0-0.0, (54), 1::11.44, (), 40/1, Settled-1 1200- 800- Turn-2, 1-Dubawi Gold 58.5
B145: 5-9 2.2L, K'ton, 2012-01-08, 1450m, Slow, Race 6, Hcp (68), RB68, $12000, ($250), J Londregan, 8, Cd 53.0--2.0, (54), 1::30.07, (), 30/1, Settled-6 1200- 800-4 Turn-4, 1-Oregon Spirit 58.5 Jumped awkwardly. Pulled hard during race.
B146: 7-9 4.4L, K'ton, 2011-12-20, 1125m, Dead, Race 6, Hcp (68), RB68, $12000, ($250), J Benbow, 9, Cd 55.0-0.0, (53), 1::05.77, (), 12/1, Settled-4 1200- 800- Turn-3, 1-Set To Pounce 53.0
B147: 4-6 2.3L, Terang, 2011-12-12, 1000m, Dead, Race 5, Hcp (72), RB72, $12000, ($525), J Benbow, 5, Cd 53.0-0.0, (53), 0::58.71, (), 9/1, Settled-3 1200- 800- Turn-5, 1-Mossadina 59.0
B148: 7-9 2.7L, Bend, 2011-11-24, 1000m, Good, Race 6, Hcp (68), RB68, $15000, ($250), J Londregan, 4, Cd 56.0-0.0, (53), 0::57.82, (), 25/1, Settled-3 1200- 800- Turn-3, 1-Ferocia 56.5 Struck interference near 600m.
B149: 10-12 7.9L, K'ton, 2011-11-02, 1100m, Good, Race 9, 3yo+ F&M Hcp-72, RB72 3+ fm, $35000, ($350), C A Robertson, 11, Cd 55.5-0.0, (53), 1::04.22, (), 16/1, Settled-1 1200- 800- Turn-1, 1-Shabangabang 57.0 Vet examination.
B150: 1-9 0.4L, Morn., 2011-10-14, 1018m, Dead, Race 7, 3yo+ F&M Hcp-62, RB62 3+ fm, $17500, ($10400), J Londregan, 7, Cd 55.5--3.0, (54), 1::00.16, (), 14/1, Settled-2 1200- 800- Turn-2, 2-Ready As Elle 56.5
B151: 1-10 0.8L, Colac, 2011-10-02, 1000m, Heavy, Race 2, Hcp (58), RB58, $7000, ($3887), J Londregan, 1, Cd 54.0--3.0, (54), 1::00.87, (), 10/1, Settled- 1200- 800- Turn-, 2-Dinner On Tiges 56.5
B152: 9-9 19.4L, Lakesi, 2011-06-04, 1200m, Slow, Race 5, 3yo F Hcp, Open 3 f, $70000, ($700), D Nikolic, 9, Cd 54.0-0.0, (54), 1::14.89, (35.50), 100/1, Settled-9 1200- 800-9 Turn-9, 1-Royal Bender 59.0
B153: 8-10 11.7L, Hillsi, 2011-05-25, 1000m, Heavy, Race 3, 3yo F Hcp (72), RB72 3 f, $30000, ($350), C Newitt, 7, Cd 54.5-0.0, (53), 1::00.82, (36.62), 50/1, Settled-4 1200- 800- Turn-10, 1-Queen Delight 54.5
C154: 10 Gothic Crown (3) 57.5kg 8yo b g | F154: Trainer:: Todd Balfour at Cranbourne | I154: Jockey:: Nicholas Hall
A155: Gothic Crown | C155: Owners:: Miss V Stewart | F155: Breeding:: Beautiful Crown - Light Of Eire by Dash O' Pleasure
B156: Comments:: Followed len 1-1/4 len 3rd Fearless Fly, Gunman where disappointed for a run 1400m Ball't Hcp (58) Dec 28 with 7-1/2 len 10th Glacier King 1520m Morn. Hcp (58) Jan 01 . Where made no headway in the straight
B157: Career:: | C157: Earnings:: | D157: Win:: 10.6% | E157: Place:: | F157: API:: | G157: First Up:: | H157: Second Up:: | I157: Distance:: | J157: Track::
B158: 66::7-4-9 | C158: 100595 | E158: 0.303 | F158: 1.5 | G158: 10::1-0-0 | H158: 8::0-0-1 | I158: 13::1-2-1 | J158: 1::0-0-1
B159: Fast:: | C159: Good:: | D159: Dead:: | E159: Slow:: | F159: Heavy:: | G159: Distance/Track:: | H159: Win Distances::
B160: 0::0-0-0 | C160: 25::3-2-3 | D160: 21::1-1-4 | E160: 12::2-0-1 | F160: 8::1-1-1 | G160: 1::0-0-1 | H160: 1 (1400), 2 (1600), 1 (1700), 1 (1780), 1 (1900), 1 (2400)
B161: 10-12 7.6L, Morn., 2012-01-01, 1520m, Good, Race 5, Hcp (58), RB58, $15000, ($250), M J Allen, 12, Cd 60.0-0.0, (54), 1::32.68, (), 6/1, Settled-12 1200- 800-11 Turn-10, 1-Glacier King 60.0
B162: 3-13 2.1L, Ball't, 2011-12-28, 1400m, Good, Race 7, Hcp (58), RB58, $15000, ($1350), M J Allen, 10, Cd 59.0-0.0, (53), 1::26.68, (), 16/1, Settled-13 1200- 800-13 Turn-13, 1-Fearless Fly 58.0 Slowly away. Disappointed for a run.
B163: 6-12 0.8L, Cran., 2011-12-17, 1400m, Good, Race 7, Hcp (58), RB58, $12000, ($250), M J Allen, 3, Cd 59.0-0.0, (54), 1::26.30, (), 40/1, Settled-12 1200- 800-12 Turn-12, 1-Greywin 56.5 Disappointed for a run.
B164: 5-12 3.7L, Balakl, 2011-08-31, 2200m, Good, Race 4, Hwt (68), RB68, $10000, ($0), Matthew Bowes, 11, Cd 68.0-0.0, (65), 2::21.75, (37.49), 25/1, Settled-10 1200-9 800-9 Turn-9, 1-Athena Pegasus 66.5
B165: 5-10 20.3L, Gawlr, 2011-08-17, 3340m, Heavy, Race 1, Hrdl, Hrdle, $12000, ($0), John Allen, 1, Cd 64.0-0.0, (64), 3::51.88, (), 20/1, Settled-6 1200-5 800-5 Turn-6, 1-Half Moon Rising 72.0 Vet examination.
B166: 5-7 0.0L, Cran., 2011-08-08, 1550m, Slow, Race 18, Barrier Trl, Btria 3+, $0, ($0), A Mc Cabe, 5, Cd 0.0-0.0, (CWT), 1::39.55, (), , Settled- 1200- 800- Turn-, 1-Light Vision 0.0
B167: 4-6 16.3L, P'ham, 2011-07-16, 3200m, Heavy, Race 3, Mdn Hrdl, Mhdle, $15000, ($675), T Ryan, 3, Cd 68.0-0.0, (SW), 3::44.15, (), 11/1, Settled-4 1200-6 800-6 Turn-4, 1-Our Chateau 68.0
B168: 6-7 25.3L, W'bool, 2011-06-26, 3231m, Heavy, Race 2, 3yo+ Mdn Hrdl, Mhdle 3+, $15000, ($250), T Ryan, 4, Cd 68.0-0.0, (SW), 3::53.95, (), 7/2, Settled-1 1200-2 800-2 Turn-6, 1-Irish Charmer 68.0
B169: 2-7 0.1L, W'bool, 2011-06-14, 3221m, Heavy, Race 2, 3yo+ Hrdl (120), Rhdle, $15000, ($2700), T Ryan, 6, Cd 65.5-0.0, (65), 3::50.04, (), 10/1, Settled-3 1200-2 800-2 Turn-1, 1-Megapixel 68.0
B170: 5-8 27.8L, H'ton, 2011-06-07, 3200m, Slow, Race 1, 3yo+ Mdn Hrdl, Mhdle 3+, $15000, ($250), S Pateman, 6, Cd 68.0-0.0, (SW), 3::57.66, (), 5/4F, Settled-1 1200-2 800-2 Turn-5, 1-Megapixel 68.0 Vet examination.
C171: 11 Lucy Lil (2) 57.5kg 5yo b/br m | F171: Trainer:: Ms Allison Sheehan at Cranbourne | I171: Jockey:: Katelyn Mallyon
A172: Lucy Lil | C172: Owners:: G T John & Mrs D P W John | F172: Breeding:: Tayasu Tsuyoshi - Ardezia by Hanauma Bay
B173: Comments:: Followed 4-1/4 len 6th Tatum 1300m P'ham F&M Hcp (62) Jan 07 with 3 len len 3rd Skitter, Lizawi 1200m Cran. Hcp (C1) Jan 22 . Battled home from 4th on turn at latest outing.
B174: Career:: | C174: Earnings:: | D174: Win:: 20.0% | E174: Place:: | F174: API:: | G174: First Up:: | H174: Second Up:: | I174: Distance:: | J174: Track::
B175: 5::1-0-1 | C175: 8625 | E175: 0.4 | F175: 1.7 | G175: 2::1-0-0 | H175: 2::0-0-0 | I175: 0::0-0-0 | J175: 1::0-0-0
B176: Fast:: | C176: Good:: | D176: Dead:: | E176: Slow:: | F176: Heavy:: | G176: Distance/Track:: | H176: Win Distances::
B177: 0::0-0-0 | C177: 2::0-0-1 | D177: 1::1-0-0 | E177: 1::0-0-0 | F177: 1::0-0-0 | G177: 0::0-0-0 | H177: 1 (1312)
B178: 3-9 3.5L, Cran., 2012-01-22, 1200m, Good, Race 6, Hcp (C1), Cls 1, $12000, ($1050), Nicholas Hall, 9, Cd 57.5-0.0, (54), 1::11.29, (), 11/1, Settled-4 1200- 800- Turn-4, 1-Skitter 55.5
B179: 6-12 4.2L, P'ham, 2012-01-07, 1300m, Good, Race 7, F&M Hcp (62), RB62 3+ fm, $12200, ($250), M J Walker, 3, Cd 60.0-0.0, (54), 1::19.48, (), 9/1, Settled-2 1200- 800- Turn-4, 1-Tatum 58.5
B180: 1-15 0.8L, G'long, 2011-11-05, 1312m, Dead, Race 2, 3yo+ Mdn, Mdn 3+, $12000, ($6825), Katelyn Mallyon, 8, Cd 54.5--1.5, (SW), 1::19.42, (), 6/1, Settled-2 1200- 800- Turn-2, 2-Valdaine 56.0
B181: 2-12 0.1L, Cran., 2011-10-17, 990m, Dead, Race 19, Barrier Trl, Btria 3+, $0, ($0), D Nikolic, 2, Cd 0.0-0.0, (CWT), 0::59.28, (), , Settled- 1200- 800- Turn-, 1-Ourpalarchie 0.0
B182: 6-9 8.5L, Ball't, 2011-07-28, 1200m, Heavy, Race 2, 3yo+ Mdn, Mdn 3+, $15000, ($250), J Mallyon, 5, Cd 54.5--1.5, (SW), 1::19.83, (), 12/1, Settled-5 1200- 800- Turn-6, 1-Spirit Of Pompeii 56.0
B183: 6-12 2.6L, Bend, 2011-07-07, 1100m, Slow, Race 2, 3yo+ F&M Mdn, Mdn 3+ fm, $15000, ($250), L Currie, 10, Cd 57.0-0.0, (SW), 1::06.92, (), 25/1, Settled-6 1200- 800- Turn-5, 1-Friendsinthefield 57.0
C184: 12 Keypoints (10) 54.5kg 5yo b g | F184: Trainer:: A F Murphy at Miners Rest | I184: Jockey:: I Gundogdu
A185: Keypoints | C185: Owners:: A F Murphy | F185: Breeding:: Encosta De Lago - Points by Canny Lad
B186: Comments:: Resumed from let-up with 7-1/4 len last Mission Finder where struck interference near 200m 1800m Dunkld Hcp (58) Nov 12 . Then 8-1/4 len 11th French Selection where disappointed for a run 2000m Ararat Hcp (58) Dec 05 .
B187: Career:: | C187: Earnings:: | D187: Win:: 6.2% | E187: Place:: | F187: API:: | G187: First Up:: | H187: Second Up:: | I187: Distance:: | J187: Track::
B188: 16::1-1-1 | C188: 10072 | E188: 0.188 | F188: 0.6 | G188: 3::0-0-1 | H188: 3::0-0-0 | I188: 4::0-0-0 | J188: 0::0-0-0
B189: Fast:: | C189: Good:: | D189: Dead:: | E189: Slow:: | F189: Heavy:: | G189: Distance/Track:: | H189: Win Distances::
B190: 0::0-0-0 | C190: 5::0-1-0 | D190: 7::1-0-0 | E190: 2::0-0-0 | F190: 2::0-0-1 | G190: 0::0-0-0 | H190: 1 (2000)
B191: 11-14 8.3L, Ararat, 2011-12-05, 2000m, Good, Race 7, Hcp (58), RB58, $12000, ($0), Ryan Maloney, 5, Cd 56.5-0.0, (53), 2::03.85, (), 25/1, Settled- 1200- 800- Turn-, 1-French Selection 57.5 Disappointed for a run.
B192: 10-10 7.1L, Dunkld, 2011-11-12, 1800m, Good, Race 5, Hcp (58), RB58, $12000, ($250), Ms H Mc Kechnie, 8, Cd 57.0-0.0, (53), 1::53.58, (), 6/1, Settled- 1200- 800- Turn-, 1-Mission Finder 55.0 Struck interference near 200m.
B193: 9-10 42.7L, St Arn, 2011-10-22, 2000m, Slow, Race 7, Hcp (62), RB62, $7000, ($170), Ms C Puls, 9, Cd 57.0-0.0, (54), 2::09.19, (), 13/4F, Settled- 1200- 800- Turn-, 1-Letsgetrhythm 52.0
B194: 4-10 3.6L, Terang, 2011-10-04, 1600m, Heavy, Race 3, Hcp (58), RB58, $12000, ($525), Ryan Maloney, 5, Cd 58.0-0.0, (53), 1::43.40, (), 5/1, Settled- 1200- 800- Turn-, 1-Coppalrossa 58.5
A195: =IF(AND(B197="Career::",B196=""),IF(C195="","",IF(ISERROR(MID(C195,FIND(" ",C195,1)+1,FIND("(",C195,1)-FIND(" ",C195,1)-2)),"",MID(C195,FIND(" ",C195,1)+1,FIND("(",C195,1)-FIND(" ",C195,1)-2))),IF(C194="","",IF(ISERROR(MID(C194,FIND(" ",C194,1)+1,FIND("(",C194,1)-FIND(" ",C194,1)-2)),"",MID(C194,FIND(" ",C194,1)+1,FIND("(",C194,1)-FIND(" ",C194,1)-2)))) ->  | B195: 6-12 2.3L, H'ton, 2011-09-26, 1600m, Good, Race 3, Hcp (58), RB58, $12000, ($250), Ryan Maloney, 8, Cd 58.0-0.0, (53), 1::39.38, (), 7/2, Settled-5 1200- 800-6 Turn-6, 1-Bruno 58.5 Struck interference near 200m.
B196: 5-14 3.7L, W'bool, 2011-09-05, 1400m, Dead, Race 6, Hcp (62), RB62, $12000, ($250), Ryan Maloney, 14, Cd 56.5-0.0, (53), 1::25.67, (), 12/1, Settled-8 1200- 800-9 Turn-6, 1-Gadabout 57.0 Struck interference near turn.
B197: 3-10 1.6L, W'bool, 2011-08-07, 1300m, Heavy, Race 7, Hcp (62), RB62, $12000, ($1050), D Malouf, 4, Cd 56.5-0.0, (53), 1::22.55, (), 20/1, Settled-10 1200- 800- Turn-6, 1-Count Royal 59.0
B198: 7-12 3.8L, Terang, 2011-01-24, 1600m, Dead, Race 5, Hcp (62), RB62, $12000, ($250), Jacob Rule, 5, Cd 55.0--1.5, (53), 1::37.61, (), 12/1, Settled-10 1200- 800-10 Turn-10, 1-Annie's A Gem 55.5 Disappointed for a run. Struck interference near 200m.
B199: 10-13 7.1L, Morn., 2011-01-07, 1524m, Dead, Race 7, Hcp (58), RB58, $12000, ($250), Jacob Rule, 10, Cd 57.5--1.5, (54), 1::33.57, (), 12/1, Settled-8 1200- 800-7 Turn-6, 1-Special Warning 59.0 Struck interference near 400m.
B200: 5-13 3.7L, W'bool, 2010-12-27, 1400m, Dead, Race 6, Hcp (62), RB62, $12000, ($250), Jacob Rule, 5, Cd 55.5--1.5, (53), 1::24.57, (), 14/1, Settled-11 1200- 800-10 Turn-9, 1-Lord Of Arms 59.0 Disappointed for a run.
C201: 13 Orihime (7) 54.0kg 8yo gr m | F201: Trainer:: Ms S Idnurm at Ballarat | I201: Jockey:: D Larsson
... 23 more rows

Sheet Race
A2: BALLARAT | C2: VR 8 | D2: PAYING
A4: 2012-02-02 | B4: SHOWCASE 0 - 62 HANDICAP | E4: Fixed Price
A5: RADIO TAB | B5: 2-1-4-8 | C5: BRENDON TUPPER | D5: 2-1-8-10 | E5: Late Mail 2 | F5: 1400M | G5: FINE | H5: GOOD(3)
G7: SCR -
A8: 7 | C8: KING'S SHILLING | D8: 5.9 | E8: 2.3
A9: 10 | C9: GOTHIC CROWN | E9: 6.9 | G9: Sub Fav 2
A10: 11 | C10: LUCY LIL | E10: 3.3
A12: QN | B12: 7*10 | C12: 126.5 | G12: TF | H12: 7*10*11 | I12: 2325.8
A13: EX | B13: 7*10 | C13: 166.1 | G13: A2 | H13: 7*10 | I13: 59.9
A14: DD | B14: 4* 7 | C14: 81.6 | H14: 7*11 | I14: 20.6
A15: TT | B15: 5* 4* 7 | C15: 713.4 | H15: 10*11 | I15: 58.3
A16: QD | B16: 7* 5* 4* 7 | C16: 1949.9
A17: F4 | B17: 7*10*11* 8 | C17: 5503
B18: Jackpot | C18: 1207.15
A19: No. | C19: Name | D19: 0.2548611111 | E19: Win | F19: Plc | H19: Rider | I19: Bar | J19: Wght | L19: Form | M19: L3S | N19: Rtng
A20: 1 | C20: ALTER EGO | D20: 14.9 | E20: 7.2 | F20: 2.1 | H20: J DUFFY(A) | I20: 11 | J20: 60 | L20: DW | M20: 07X | N20: 95
A21: 2 | C21: EIGHT STARS | D21: 3.6 | E21: 3.8 | F21: 1.5 | H21: M PAYNE | I21: 12 | J21: 59.5 | L21: D | M21: 1X2 | N21: 100
A22: 3 | C22: FEDERATION SQUARE | D22: 10.1 | E22: 12.8 | F22: 4.4 | H22: D DUNN | I22: 8 | J22: 59.5 | M22: 1X9 | N22: 96
A23: 4 | C23: BONGIORNO | D23: 6.5 | E23: 8.5 | F23: 3 | H23: CHRIS SYMONS | I23: 1 | J23: 59 | M23: 4X1 | N23: 98
A24: 5 | C24: GO FARAGLIONI | D24: 24.8 | E24: 33.9 | F24: 9.1 | H24: B EVANS | I24: 9 | J24: 59 | M24: 19X | N24: 90
A25: 6 | C25: PRINTED | D25: 17.3 | E25: 22.4 | F25: 6 | H25: C ROBERTSON | I25: 4 | J25: 59 | L25: D | M25: 71X | N25: 90
A26: 7 | C26: KING'S SHILLING | D26: 7.2 | E26: 5.9 | F26: 2.3 | H26: C NEWITT | I26: 6 | J26: 58.5 | M26: 19X | N26: 94
A27: 8 | C27: MISS REVEAL | D27: 7.5 | E27: 6.3 | F27: 2.3 | H27: M ZAHRA | I27: 13 | J27: 58 | L27: C | M27: X68 | N27: 96
A28: 9 | C28: TEQUILA QUEEN | D28: 20.9 | E28: 21.5 | F28: 5 | H28: J NOONAN(A) | I28: 5 | J28: 58 | L28: WT | M28: 756 | N28: 94
A29: 10 | C29: GOTHIC CROWN | D29: 24.6 | E29: 32.8 | F29: 6.9 | H29: N HALL | I29: 3 | J29: 57.5 | L29: DW | M29: 630 | N29: 90
A30: 11 | C30: LUCY LIL | D30: 11 | E30: 12.2 | F30: 3.3 | H30: K MALLYON(A) | I30: 2 | J30: 57.5 | M30: X63 | N30: 96
A31: 12 | C31: KEYPOINTS | D31: 68.9 | E31: 86.5 | F31: 22.9 | H31: I GUNDOGDU(A) | I31: 10 | J31: 54.5 | M31: 900 | N31: 90
A32: 13 | C32: ORIHIME | D32: 73.2 | E32: 85.6 | F32: 28.8 | H32: D LARSSON | I32: 7 | J32: 54 | M32: 966 | N32: 91
A34: UNiTAB Pool Totals
A35: WN | B35: 37766 | C35: QN | D35: 6517 | E35: TF | F35: 20373 | G35: DD(7,8)
A36: PL | B36: 17874 | C36: EX | D36: 3283 | E36: F4 | F36: 1775 | G36: TT(6,7,8)
C37: A2 | D37: 1554 | G37: QD(5,6,7,8)
A39: << VR 1 2 3 4 5 6 7 8 DD/TT/QD XD Riders Fixed Price >>
A41: Help | B41: Gambling Advice | C41: TAB Home | D41: Refresh
A42: © Copyright UNiTAB Ltd | B42: Created: Thu, 02 Feb 2012 18:25:05 Aust EST

Sheet Tables
I1: Track | J1: =Data!N2 -> GOOD | K1: =IF(J1="SLOW",1,IF(J1="HEAVY",2,0)) -> 0
A3: Exclude | C3: Exclude | E3: Exclude | G3: Exclude | I3: Exclude | K3: Exclude | M3: Exclude | O3: Exclude | Q3: Exclude | S3: Exclude
A4: API | C4: Win&Place% | E4: Dist/Trk | G4: Slow | I4: Heavy | K4: Fitness | M4: Class | O4: Form | Q4: Qld Tab Rating | S4: PPP
A5: =IF(B$3<>"","",1) -> 1 | B5: 10 | C5: =IF(D$3<>"","",1) -> 1 | D5: 10 | E5: =IF(F$3<>"","",1) -> 1 | F5: 10 | G5: =IF($K$1=1,IF(H$3<>"","",1),"") ->  | H5: 10 | I5: =IF($K$1=2,IF(J$3<>"","",1),"") ->  | J5: 10 | K5: =IF(L$3<>"","",1) -> 1 | L5: 10 | M5: =IF(N$3<>"","",1) -> 1 | N5: 10 | O5: =IF(P$3<>"","",1) -> 1 | P5: 10 | Q5: =IF(R$3<>"","",1) -> 1 | R5: 10 | S5: =IF(T$3<>"","",1) -> 1 | T5: 10
A6: =IF(B$3<>"","",A5+1) -> 2 | B6: 8 | C6: =IF(D$3<>"","",C5+1) -> 2 | D6: 8 | E6: =IF(F$3<>"","",E5+1) -> 2 | F6: 8 | G6: =IF($K$1=1,IF(H$3<>"","",G5+1),"") ->  | H6: 8 | I6: =IF($K$1=2,IF(J$3<>"","",I5+1),"") ->  | J6: 8 | K6: =IF(L$3<>"","",K5+1) -> 2 | L6: 8 | M6: =IF(N$3<>"","",M5+1) -> 2 | N6: 8 | O6: =IF(P$3<>"","",O5+1) -> 2 | P6: 8 | Q6: =IF(R$3<>"","",Q5+1) -> 2 | R6: 8 | S6: =IF(T$3<>"","",S5+1) -> 2 | T6: 8
A7: =IF(B$3<>"","",A6+1) -> 3 | B7: 6 | C7: 3 | D7: 6 | E7: =IF(F$3<>"","",E6+1) -> 3 | F7: 6 | G7: =IF($K$1=1,IF(H$3<>"","",G6+1),"") ->  | H7: 6 | I7: =IF($K$1=2,IF(J$3<>"","",I6+1),"") ->  | J7: 6 | K7: =IF(L$3<>"","",K6+1) -> 3 | L7: 6 | M7: =IF(N$3<>"","",M6+1) -> 3 | N7: 6 | O7: =IF(P$3<>"","",O6+1) -> 3 | P7: 6 | Q7: =IF(R$3<>"","",Q6+1) -> 3 | R7: 6 | S7: =IF(T$3<>"","",S6+1) -> 3 | T7: 6
A8: 4 | B8: 4 | C8: 4 | D8: 4 | E8: 4 | F8: 4 | H8: 4 | J8: 4 | K8: 4 | L8: 4 | M8: 4 | N8: 4 | O8: 4 | P8: 4 | Q8: 4 | R8: 4 | S8: 4 | T8: 4
A9: 5 | B9: 2 | C9: 5 | D9: 2 | E9: 5 | F9: 2 | H9: 2 | J9: 2 | K9: 5 | L9: 2 | M9: 5 | N9: 2 | O9: 5 | P9: 2 | Q9: 5 | R9: 2 | S9: 5 | T9: 2
A10: 6 | B10: 0 | C10: 6 | D10: 0 | E10: 6 | F10: 0 | H10: 0 | J10: 0 | K10: 6 | L10: 0 | M10: 6 | N10: 0 | O10: 6 | P10: 0 | Q10: 6 | R10: 0 | S10: 6 | T10: 0
A11: 7 | B11: 0 | C11: 7 | D11: 0 | E11: 7 | F11: 0 | H11: 0 | J11: 0 | K11: 7 | L11: 0 | M11: 7 | N11: 0 | O11: 7 | P11: 0 | Q11: 7 | R11: 0 | S11: 7 | T11: 0
A12: 8 | B12: 0 | C12: 8 | D12: 0 | E12: 8 | F12: 0 | H12: 0 | J12: 0 | K12: 8 | L12: 0 | M12: 8 | N12: 0 | O12: 8 | P12: 0 | Q12: 8 | R12: 0 | S12: 8 | T12: 0
A13: 9 | B13: 0 | C13: 9 | D13: 0 | E13: 9 | F13: 0 | H13: 0 | J13: 0 | K13: 9 | L13: 0 | M13: 9 | N13: 0 | O13: 9 | P13: 0 | Q13: 9 | R13: 0 | S13: 9 | T13: 0
A14: 10 | B14: 0 | C14: 10 | D14: 0 | E14: 10 | F14: 0 | H14: 0 | J14: 0 | K14: 10 | L14: 0 | M14: 10 | N14: 0 | O14: 10 | P14: 0 | Q14: 10 | R14: 0 | S14: 10 | T14: 0
A15: 11 | B15: 0 | C15: 11 | D15: 0 | E15: 11 | F15: 0 | H15: 0 | J15: 0 | K15: 11 | L15: 0 | M15: 11 | N15: 0 | O15: 11 | P15: 0 | Q15: 11 | R15: 0 | S15: 11 | T15: 0
A16: 12 | B16: 0 | C16: 12 | D16: 0 | E16: 12 | F16: 0 | H16: 0 | J16: 0 | K16: 12 | L16: 0 | M16: 12 | N16: 0 | O16: 12 | P16: 0 | Q16: 12 | R16: 0 | S16: 12 | T16: 0
A17: 13 | B17: 0 | C17: 13 | D17: 0 | E17: 13 | F17: 0 | H17: 0 | J17: 0 | K17: 13 | L17: 0 | M17: 13 | N17: 0 | O17: 13 | P17: 0 | Q17: 13 | R17: 0 | S17: 13 | T17: 0
A18: 14 | B18: 0 | C18: 14 | D18: 0 | E18: 14 | F18: 0 | H18: 0 | J18: 0 | K18: 14 | L18: 0 | M18: 14 | N18: 0 | O18: 14 | P18: 0 | Q18: 14 | R18: 0 | S18: 14 | T18: 0
A19: 15 | B19: 0 | C19: 15 | D19: 0 | E19: 15 | F19: 0 | H19: 0 | J19: 0 | K19: 15 | L19: 0 | M19: 15 | N19: 0 | O19: 15 | P19: 0 | Q19: 15 | R19: 0 | S19: 15 | T19: 0
A20: 16 | B20: 0 | C20: 16 | D20: 0 | E20: 16 | F20: 0 | H20: 0 | J20: 0 | K20: 16 | L20: 0 | M20: 16 | N20: 0 | O20: 16 | P20: 0 | Q20: 16 | R20: 0 | S20: 16 | T20: 0
A21: 17 | B21: 0 | C21: 17 | D21: 0 | E21: 17 | F21: 0 | H21: 0 | J21: 0 | K21: 17 | L21: 0 | M21: 17 | N21: 0 | O21: 17 | P21: 0 | Q21: 17 | R21: 0 | S21: 17 | T21: 0
A22: 18 | B22: 0 | C22: 18 | D22: 0 | E22: 18 | F22: 0 | H22: 0 | J22: 0 | K22: 18 | L22: 0 | M22: 18 | N22: 0 | O22: 18 | P22: 0 | Q22: 18 | R22: 0 | S22: 18 | T22: 0
A23: 19 | B23: 0 | C23: 19 | D23: 0 | E23: 19 | F23: 0 | H23: 0 | J23: 0 | K23: 19 | L23: 0 | M23: 19 | N23: 0 | O23: 19 | P23: 0 | Q23: 19 | R23: 0 | S23: 19 | T23: 0
A24: 20 | B24: 0 | C24: 20 | D24: 0 | E24: 20 | F24: 0 | H24: 0 | J24: 0 | K24: 20 | L24: 0 | M24: 20 | N24: 0 | O24: 20 | P24: 0 | Q24: 20 | R24: 0 | S24: 20 | T24: 0
A25: 21 | B25: 0 | C25: 21 | D25: 0 | E25: 21 | F25: 0 | H25: 0 | J25: 0 | K25: 21 | L25: 0 | M25: 21 | N25: 0 | O25: 21 | P25: 0 | Q25: 21 | R25: 0 | S25: 21 | T25: 0
A26: 22 | B26: 0 | C26: 22 | D26: 0 | E26: 22 | F26: 0 | H26: 0 | J26: 0 | K26: 22 | L26: 0 | M26: 22 | N26: 0 | O26: 22 | P26: 0 | Q26: 22 | R26: 0 | S26: 22 | T26: 0
A27: 23 | B27: 0 | C27: 23 | D27: 0 | E27: 23 | F27: 0 | H27: 0 | J27: 0 | K27: 23 | L27: 0 | M27: 23 | N27: 0 | O27: 23 | P27: 0 | Q27: 23 | R27: 0 | S27: 23 | T27: 0
A28: 24 | B28: 0 | C28: 24 | D28: 0 | E28: 24 | F28: 0 | H28: 0 | J28: 0 | K28: 24 | L28: 0 | M28: 24 | N28: 0 | O28: 24 | P28: 0 | Q28: 24 | R28: 0 | S28: 24 | T28: 0

Sheet Data
L1: END | M1: =IF(Form!B1="","",LEFT(Form!B1,FIND("/",Form!B1)-3)) -> Form - Ballarat | N1: =IF(M1="","",CLEAN(TRIM(MID(M1,7,20)))) -> Ballarat | V1: =A45 ->  | AA1: Form - Ballarat 02/02/12 | AV1: Wanganui | AW1: =IF(AV1="","",IF(ISNUMBER(AV1),"",IF(AV1="Select Date","",AV1))) -> Wanganui | AX1: =IF(Race!J1<>"",Race!C1,"") ->  | AY1: =IF(AX1<>"",Race!N1,"") ->  | AZ1: =IF(AX1<>"",Race!I1,"") ->  | BA1: =IF(AX1<>"",Race!L1,"") ->  | BD1: Name | BF1: Tab No | BG1: Barrier | BH1: Weight | BI1: API | BL1: API | BM1: Win% | BN1: Place% | BO1: Win&Place% | BQ1: Win&Place | BR1: Distance | BY1: Track | CH1: Dist/Trk | CI1: Slow | CR1: Slow | CS1: Heavy | DB1: Heavy | DD1: Days LS | DG1: Days 2ndLS | DK1: Fitness | DL1: Class | DO1: Class | DP1: LS Margin | DV1: 2nd Last Mrg | EB1: 3rd Last Mrg | EJ1: Form | EL1: Qld Rtg | EN1: Qld Rtg | EO1: PPP | EU1: PPP | EV1: Rating | EW1: =MIN(EV2:EV26) -> 0 | EX1: 88 | EY1: =MAX(EW2:EW26) -> 50 | EZ1: 2 | FA1: =SUM(FA2:FA26) -> 442.3157895 | FB1: =SUM(EX2:EX26) -> 585.4210526
M2: 2012-02-02 | N2: =IF(Race!H5="","",IF(ISERROR(LEFT(Race!H5,FIND("(",Race!H5)-1)),Race!H5,LEFT(Race!H5,FIND("(",Race!H5)-1))) -> GOOD | O2: =IF(Form!B3="","",TRIM(MID(Form!B3,5,3))) -> 8 | P2: =IF(ISNA(CLEAN(TRIM(VLOOKUP(N1,M3:Y20,$O$2+2,FALSE)))),"",CLEAN(TRIM(VLOOKUP(N1,M3:Y20,$O$2+2,FALSE)))) -> http://www.tabonline.com.au/2012/02/02/VR08.html | V2: =A46 -> END | AV2: Select Date | AW2: =IF(AV2="","",IF(ISNUMBER(AV2),"",IF(AV2="Select Date","",AV2))) ->  | AX2: =IF(Race!J2<>"",Race!C2,"") ->  | AY2: =IF(AX2<>"",Race!N2,"") ->  | AZ2: =IF(AX2<>"",Race!I2,"") ->  | BA2: =IF(AX2<>"",Race!L2,"") ->  | BC2: =IF(BD2="","",BF2&" "&BD2) -> 1 Alter Ego | BD2: =IF(Form!K6<>"",LEFT(Form!D6,FIND("(",Form!D6)-2),"") -> Alter Ego | BF2: =IF(BD2="","",Form!B6) -> 1 | BG2: =IF($BD2="","",IF(ISNA(VLOOKUP(BD2,AX1:AZ100,3,FALSE)),"",VLOOKUP(BD2,AX1:AZ100,3,FALSE))) -> 11 | BH2: =IF(BG2="","",Form!G6) -> 60 | BI2: =IF($BG2="","",IF(MainSheet!G16="","",Form!H6)) -> 3.2 | BJ2: =IF(BG2="","",1-(BI2/1000)) -> 0.9968 | BK2: =IF(BG2="","",COUNT($BJ$2:$BJ$26)-(RANK(BJ2,$BJ$2:$BJ$26)+COUNTIF($BJ$2:BJ2,BJ2)-1)+1) -> 2 | BL2: =IF($BG2="","",IF(ISNA(VLOOKUP(BK2,Tables!A$5:B$28,2,FALSE)),0,VLOOKUP(BK2,Tables!A$5:B$28,2,FALSE))) -> 8 | BM2: =IF(BG2="","",Form!I6) -> 25 | BN2: =IF(BG2="","",Form!J6) -> 50 | BO2: =IF($BG2="","",(BM2+BN2)) -> 75 | BP2: =IF(BG2="","",COUNT($BO$2:$BO$26)-(RANK(BO2,$BO$2:$BO$26,1)+COUNTIF($BO$2:BO2,BO2)-1)+1) -> 3 | BQ2: =IF($BG2="","",IF(ISNA(VLOOKUP(BP2,Tables!C$5:D$28,2,FALSE)),0,VLOOKUP(BP2,Tables!C$5:D$28,2,FALSE))) -> 6 | BR2: =IF(BG2="","",INDEX(Form!$B$1:'Form'!$J$1000,MATCH($BD2,Form!$A$1:'Form'!$A$1000,0)+3,8)) -> 1::1-0-0 | BS2: =IF(BR2="","",IF(BR2=0,"",0+TRIM(CLEAN(LEFT(BR2,FIND(":",BR2)-1))))) -> 1 | BT2: =IF(BS2="","",RIGHT(BR2,LEN(BR2)-SEARCH("::",BR2,2))) -> :1-0-0 | BU2: =IF(BT2="","",SUBSTITUTE(SUBSTITUTE(BT2,":",""),"-"," ")) -> 1 0 0 | BV2: =IF(BU2="","",0+TRIM(CLEAN(LEFT(BU2,FIND(" ",BU2)-1)))) -> 1 | BW2: =IF(BS2="","",MID(BU2,SEARCH(" ",BU2,1)+1,SEARCH(" ",BU2,SEARCH(" ",BU2,1)+1)-SEARCH(" ",BU2,1))) -> 0 | BX2: =IF(BS2="","",RIGHT(BU2,LEN(BU2)-SEARCH(" ",BU2,SEARCH(" ",BU2,1)+1))) -> 0 | BY2: =IF(BG2="","",INDEX(Form!$B$1:'Form'!$J$1000,MATCH($BD2,Form!$A$1:'Form'!$A$1000,0)+3,9)) -> 0::0-0-0 | BZ2: =IF(BY2="","",IF(BY2=0,"",0+TRIM(CLEAN(LEFT(BY2,FIND(":",BY2)-1))))) -> 0 | CA2: =IF(BZ2="","",RIGHT(BY2,LEN(BY2)-SEARCH("::",BY2,2))) -> :0-0-0 | CB2: =IF(CA2="","",SUBSTITUTE(SUBSTITUTE(CA2,":",""),"-"," ")) -> 0 0 0 | CC2: =IF(CB2="","",0+TRIM(CLEAN(LEFT(CB2,FIND(" ",CB2)-1)))) -> 0 | CD2: =IF(BZ2="","",MID(CB2,SEARCH(" ",CB2,1)+1,SEARCH(" ",CB2,SEARCH(" ",CB2,1)+1)-SEARCH(" ",CB2,1))) -> 0 | CE2: =IF(BZ2="","",RIGHT(CB2,LEN(CB2)-SEARCH(" ",CB2,SEARCH(" ",CB2,1)+1))) -> 0 | CF2: =IF(BR2="","",IF(BR2=0,"",((BV2+CC2)*2)+BW2+BX2+CD2+CE2)) -> 2 | CG2: =IF(MainSheet!G16="","",IF(CF2="","",COUNT($CF$2:$CF$26)-(RANK(CF2,$CF$2:$CF$26,1)+COUNTIF($CF$2:CF2,CF2)-1)+1)) -> 8 | CH2: =IF($BY2="","",IF(Tables!$F$3<>"",0,IF(ISNA(VLOOKUP(CG2,Tables!E$5:F$28,2,FALSE)),0,VLOOKUP(CG2,Tables!E$5:F$28,2,FALSE)))) -> 0 | CI2: =IF(BG2="","",INDEX(Form!$B$1:'Form'!$J$1000,MATCH($BD2,Form!$A$1:'Form'!$A$1000,0)+5,5)) -> 1::1-0-0 | CJ2: =IF(CI2="","",IF(CI2=0,"",0+TRIM(CLEAN(LEFT(CI2,FIND(":",CI2)-1))))) -> 1 | CK2: =IF(CJ2="","",RIGHT(CI2,LEN(CI2)-SEARCH("::",CI2,2))) -> :1-0-0 | CL2: =IF(CK2="","",SUBSTITUTE(SUBSTITUTE(CK2,":",""),"-"," ")) -> 1 0 0 | CM2: =IF(CL2="","",0+TRIM(CLEAN(LEFT(CL2,FIND(" ",CL2)-1)))) -> 1 | CN2: =IF(CJ2="","",MID(CL2,SEARCH(" ",CL2,1)+1,SEARCH(" ",CL2,SEARCH(" ",CL2,1)+1)-SEARCH(" ",CL2,1))) -> 0 | CO2: =IF(CJ2="","",RIGHT(CL2,LEN(CL2)-SEARCH(" ",CL2,SEARCH(" ",CL2,1)+1))) -> 0 | CP2: =IF(CJ2="","",(CM2*2)+CN2+CO2) -> 2 | CQ2: =IF(BG2="","",IF(CI2=0,0,COUNT($CP$2:$CP$26)-(RANK(CP2,$CP$2:$CP$26,1)+COUNTIF($CP$2:CP2,CP2)-1)+1)) -> 4 | CR2: =IF($CI2="","",IF(Tables!$H$3<>"",0,IF(ISNA(VLOOKUP(CQ2,Tables!G$5:H$28,2,FALSE)),0,VLOOKUP(CQ2,Tables!G$5:H$28,2,FALSE)))) -> 0 | CS2: =IF(BG2="","",INDEX(Form!$B$1:'Form'!$J$1000,MATCH($BD2,Form!$A$1:'Form'!$A$1000,0)+5,6)) -> 0::0-0-0 | CT2: =IF(CS2="","",IF(CS2=0,"",0+TRIM(CLEAN(LEFT(CS2,FIND(":",CS2)-1))))) -> 0 | CU2: =IF(CT2="","",RIGHT(CS2,LEN(CS2)-SEARCH("::",CS2,2))) -> :0-0-0 | CV2: =IF(CU2="","",SUBSTITUTE(SUBSTITUTE(CU2,":",""),"-"," ")) -> 0 0 0 | CW2: =IF(CV2="","",0+TRIM(CLEAN(LEFT(CV2,FIND(" ",CV2)-1)))) -> 0 | CX2: =IF(CT2="","",0+MID(CV2,SEARCH(" ",CV2,1)+1,SEARCH(" ",CV2,SEARCH(" ",CV2,1)+1)-SEARCH(" ",CV2,1))) -> 0 | CY2: =IF(CT2="","",0+RIGHT(CV2,LEN(CV2)-SEARCH(" ",CV2,SEARCH(" ",CV2,1)+1))) -> 0 | CZ2: =IF(CT2="","",(CW2*2)+CX2+CY2) -> 0 | DA2: =IF(BG2="","",IF(CS2=0,0,COUNT($CZ$2:$CZ$26)-(RANK(CZ2,$CZ$2:$CZ$26,1)+COUNTIF($CZ$2:CZ2,CZ2)-1)+1)) -> 13 | DB2: =IF($CS2="","",IF(Tables!$J$3<>"",0,IF(Tables!$K$1=0,0,IF(ISNA(VLOOKUP(DA2,Tables!$I$5:$J$28,2,FALSE)),"0",VLOOKUP(DA2,Tables!$I$5:$J$28,2,FALSE))))) -> 0 | DC2: =IF($BG2="","",INDEX($AA$1:$AT$499,MATCH($BD2,$Z$1:$Z$499,0)+4,3)) -> 2011-09-12 | DD2: =IF(DC2="","",($M$2-DC2)) -> 143 | DE2: =IF(DD2="","",200-DD2) -> 57 | DF2: =IF($BG2="","",IF(DE2<-1000,0,INDEX($AA$1:$AT$499,MATCH($BD2,$Z$1:$Z$499,0)+5,3))) -> 2011-08-28 | DG2: =IF(DF2="","",$M$2-DF2) -> 158 | DH2: =IF(DG2="","",100-DG2) -> -58 | DI2: =IF(BG2="","",DE2+DH2) -> -1 | DJ2: =IF(BG2="","",COUNT($DI$2:$DI$26)-(RANK(DI2,$DI$2:$DI$26,1)+COUNTIF($DI$2:DI2,DI2)-1)+1) -> 12 | DK2: =IF($BG2="","",IF(ISNA(VLOOKUP(DJ2,Tables!K$5:L$28,2,FALSE)),"0",VLOOKUP(DJ2,Tables!K$5:L$28,2,FALSE))) -> 0 | DL2: =IF($BG2="","",INDEX($AA$1:$AT$499,MATCH($BD2,$Z$1:$Z$499,0)+4,9)) -> 12000 | DM2: =IF(BG2="","",(DL2-Form!$I$4)) -> -10500 | DN2: =IF(BG2="","",COUNT($DM$2:$DM$26)-(RANK(DM2,$DM$2:$DM$26,1)+COUNTIF($DM$2:DM2,DM2)-1)+1) -> 12 | DO2: =IF($BG2="","",IF(ISERROR(DN2),1,IF(ISNA(VLOOKUP(DN2,Tables!M$5:N$28,2,FALSE)),"0",VLOOKUP(DN2,Tables!M$5:N$28,2,FALSE)))) -> 0 | DP2: =IF(BG2="","",IF(ISERROR(INDEX($AA$1:$AT$499,MATCH($BD2,$Z$1:$Z$499,0)+7,1)),0,INDEX($AA$1:$AT$499,MATCH($BD2,$Z$1:$Z$499,0)+4,1))) -> 7-11 3.2L | DQ2: =IF($DP2="","",IF(ISERROR(0+CLEAN(LEFT(DP2,FIND("-",DP2)-1))),10,0+CLEAN(LEFT(DP2,FIND("-",DP2)-1)))) -> 7 | DR2: =IF(DP2="","",MID(DP2,FIND(CHAR(22),SUBSTITUTE(DP2," ",CHAR(22),LEN(DP2)-LEN(SUBSTITUTE(DP2," ",""))))+1,255)) -> 3.2L | DS2: =IF(BG2="","",IF(DQ2=10,10,(LEFT(DR2,FIND("L",DR2)-1)))) -> 3.2 | DT2: =IF(MainSheet!$G16="","",IF(DS2="","",IF(ISERROR(DS2),"",ROUND(0+DS2/0.5,0)*0.5))) -> 3 | DU2: =IF(DQ2="","",IF(DQ2=90,90,IF(DQ2=1,100-0,IF(DT2>10,90,100-DT2)))) -> 97 | DV2: =IF(BG2="","",IF(ISERROR(INDEX($AA$1:$AT$499,MATCH($BD2,$Z$1:$Z$499,0)+8,1)),0,INDEX($AA$1:$AT$499,MATCH($BD2,$Z$1:$Z$499,0)+5,1))) -> 12-14 7.3L | DW2: =IF($DP2="","",IF(ISERROR(0+CLEAN(LEFT(DV2,FIND("-",DV2)-1))),10,0+CLEAN(LEFT(DV2,FIND("-",DV2)-1)))) -> 12 | DX2: =IF(DV2="","",MID(DV2,FIND(CHAR(22),SUBSTITUTE(DV2," ",CHAR(22),LEN(DV2)-LEN(SUBSTITUTE(DV2," ",""))))+1,255)) -> 7.3L | DY2: =IF(BG2="","",IF(DW2=10,10,(LEFT(DX2,FIND("L",DX2)-1)))) -> 7.3 | DZ2: =IF(MainSheet!$G16="","",IF(DY2="","",IF(ISERROR(DY2),"",ROUND(0+DY2/0.5,0)*0.5))) -> 7.5 | EA2: =IF(DW2="","",IF(DW2=90,90,IF(DW2=1,100-0,IF(DZ2>10,90,100-DZ2)))) -> 92.5 | EB2: =IF(BG2="","",IF(ISERROR(INDEX($AA$1:$AT$499,MATCH($BD2,$Z$1:$Z$499,0)+9,1)),0,INDEX($AA$1:$AT$499,MATCH($BD2,$Z$1:$Z$499,0)+6,1))) -> 1-12 8.0L | EC2: =IF($DP2="","",IF(ISERROR(0+CLEAN(LEFT(EB2,FIND("-",EB2)-1))),10,0+CLEAN(LEFT(EB2,FIND("-",EB2)-1)))) -> 1 | ED2: =IF(EB2="","",MID(EB2,FIND(CHAR(22),SUBSTITUTE(EB2," ",CHAR(22),LEN(EB2)-LEN(SUBSTITUTE(EB2," ",""))))+1,255)) -> 8.0L | EE2: =IF(BG2="","",IF(EC2=10,10,(LEFT(ED2,FIND("L",ED2)-1)))) -> 8.0 | EF2: =IF(MainSheet!$G16="","",IF(EE2="","",IF(ISERROR(EE2),"",ROUND(0+EE2/0.5,0)*0.5))) -> 8 | EG2: =IF(EC2="","",IF(EC2=90,90,IF(EC2=1,100-0,IF(EF2>10,90,100-EF2)))) -> 100 | EH2: =IF(BG2="","",DU2+EA2+EG2) -> 289.5 | EI2: =IF(BG2="","",COUNT($EH$2:$EH$26)-(RANK(EH2,$EH$2:$EH$26,1)+COUNTIF($EH$2:EH2,EH2)-1)+1) -> 8 | EJ2: =IF($BG2="","",IF(ISNA(VLOOKUP(EI2,Tables!O$5:P$28,2,FALSE)),"0",VLOOKUP(EI2,Tables!O$5:P$28,2,FALSE))) -> 0 | EK2: =IF(BD2="","",IF(ISNA(VLOOKUP(BD2,$AX$1:$AY$100,2,FALSE)),"",VLOOKUP(BD2,$AX$1:$AY$100,2,FALSE))) -> 95 | EL2: =IF(EK2="","",0+EK2) -> 95 | EM2: =IF(BG2="","",IF(EL2=0,0,COUNT($EL$2:$EL$26)-(RANK(EL2,$EL$2:$EL$26,1)+COUNTIF($EL$2:EL2,EL2)-1)+1)) -> 6 | EN2: =IF($BG2="","",IF(ISNA(VLOOKUP(EM2,Tables!Q$5:R$26,2,FALSE)),"0",VLOOKUP(EM2,Tables!Q$5:R$26,2,FALSE))) -> 0 | EO2: =IF(BG2="","",Form!K6) -> 5/2 | EP2: =IF($EO2="","",IF(ISERROR(0+CLEAN(LEFT(EO2,FIND("/",EO2)-1))),10,0+CLEAN(LEFT(EO2,FIND("/",EO2)-1)))) -> 5 | EQ2: =IF(EO2="","",RIGHT(EO2,LEN(EO2)-SEARCH("/",EO2,2))) -> 2 | ER2: =IF(EO2="","",1+(0+EP2)/(0+EQ2)) -> 3.5 | ES2: =IF(EO2="","",500-ER2) -> 496.5 | ET2: =IF(BG2="","",IF(ES2=0,0,COUNT($ES$2:$ES$26)-(RANK(ES2,$ES$2:$ES$26,1)+COUNTIF($ES$2:ES2,ES2)-1)+1)) -> 2 | EU2: =IF($BG2="","",IF(ISNA(VLOOKUP(ET2,Tables!S$5:T$26,2,FALSE)),"0",VLOOKUP(ET2,Tables!S$5:T$26,2,FALSE))) -> 8 | EV2: =IF(BF2="","",IF(MainSheet!D16="Scratched","",IF(ISERROR(BL2+BQ2+CH2+CR2+DB2+DK2+DO2+EJ2+EN2+EU2),"",BL2+BQ2+CH2+CR2+DB2+DK2+DO2+EJ2+EN2+EU2))) -> 22 | EW2: =IF(EV2="","",IF(EV2=$EW$1,0,EV2-$EW$1)) -> 22 | EX2: =IF(EW2="","",IF(EW2=0,1,EW2+((EW2*EW2*$EZ$1)/($EX$1-$EY$1)))) -> 47.47368421 | EY2: =IF(EX2="","",COUNT($EX$2:$EX$26)-(RANK(EX2,$EX$2:$EX$26)+COUNTIF($EX$2:EX2,EX2)-1)+1) -> 10 | EZ2: =IF(EY2="","",RANK(EY2,$EY$2:$EY$26)) -> 4 | FA2: =IF(EZ2="","",IF(EZ2<6,EX2,"")) -> 47.47368421 | FB2: =IF(FA2="","",FA2/$FA$1) -> 0.1073298429 | FC2: =IF(EX2=1,0.02,IF(AND(EX2="",FA2=""),"",IF(FB2="",EX2/$FB$1,FB2))) -> 0.1073298429 | FD2: =IF(FC2="","",1/FC2*MainSheet!$R$11) -> 9.317073171
A3: =IF(Meetings1!A3="","",IF(Meetings1!A3="END","END",IF(Meetings1!B3="","",getAddress(Meetings1!E3)))) -> http://formguide.cyberhorse.com.au/Form/form.html?formdate=2012-02-02&track=Ball't&raceno=1 | M3: =IF(ISERROR(N3),"",IF(ISNA(VLOOKUP(N3,RaceList!$M$9:$O$41,3,FALSE)),"",VLOOKUP(N3,RaceList!$M$9:$O$41,3,FALSE))) ->  | N3: =IF(Meetings2!$B3="","",Meetings2!$B3) ->  | O3: =IF(Meetings2!D3="","",getAddress(Meetings2!D3)) ->  | P3: =IF(Meetings2!E3="","",getAddress(Meetings2!E3)) ->  | Q3: =IF(Meetings2!F3="","",getAddress(Meetings2!F3)) ->  | R3: =IF(Meetings2!G3="","",getAddress(Meetings2!G3)) ->  | S3: =IF(Meetings2!H3="","",getAddress(Meetings2!H3)) ->  | T3: =IF(Meetings2!I3="","",getAddress(Meetings2!I3)) ->  | U3: =IF(Meetings2!J3="","",getAddress(Meetings2!J3)) ->  | V3: =IF(Meetings2!K3="","",getAddress(Meetings2!K3)) ->  | W3: =IF(Meetings2!L3="","",getAddress(Meetings2!L3)) ->  | X3: =IF(Meetings2!M3="","",getAddress(Meetings2!M3)) ->  | Y3: =IF(Meetings2!AA3="","",getAddress(Meetings2!AA3)) ->  | AA3: Race 8 | AV3: Rockhampton | AW3: Rockhampton | AX3: =IF(Race!J3<>"",Race!C3,"") ->  | AY3: =IF(AX3<>"",Race!N3,"") ->  | AZ3: =IF(AX3<>"",Race!I3,"") ->  | BA3: =IF(AX3<>"",Race!L3,"") ->  | BC3: =IF(BD3="","",BF3&" "&BD3) -> 2 Eight Stars | BD3: =IF(Form!K7<>"",LEFT(Form!D7,FIND("(",Form!D7)-2),"") -> Eight Stars | BF3: =IF(BD3="","",Form!B7) -> 2 | BG3: 12 | BH3: =IF(BG3="","",Form!G7) -> 59.5 | BI3: =IF($BG3="","",IF(MainSheet!G17="","",Form!H7)) -> 4.6 | BJ3: =IF(BG3="","",1-(BI3/1000)) -> 0.9954 | BK3: =IF(BG3="","",COUNT($BJ$2:$BJ$26)-(RANK(BJ3,$BJ$2:$BJ$26)+COUNTIF($BJ$2:BJ3,BJ3)-1)+1) -> 1 | BL3: =IF($BG3="","",IF(ISNA(VLOOKUP(BK3,Tables!A$5:B$28,2,FALSE)),0,VLOOKUP(BK3,Tables!A$5:B$28,2,FALSE))) -> 10 | BM3: =IF(BG3="","",Form!I7) -> 20 | BN3: =IF(BG3="","",Form!J7) -> 100 | BO3: =IF($BG3="","",(BM3+BN3)) -> 120 | BP3: =IF(BG3="","",COUNT($BO$2:$BO$26)-(RANK(BO3,$BO$2:$BO$26,1)+COUNTIF($BO$2:BO3,BO3)-1)+1) -> 1 | BQ3: =IF($BG3="","",IF(ISNA(VLOOKUP(BP3,Tables!C$5:D$28,2,FALSE)),0,VLOOKUP(BP3,Tables!C$5:D$28,2,FALSE))) -> 10 | BR3: =IF(BG3="","",INDEX(Form!$B$1:'Form'!$J$1000,MATCH($BD3,Form!$A$1:'Form'!$A$1000,0)+3,8)) -> 1::1-0-0 | BS3: =IF(BR3="","",IF(BR3=0,"",0+TRIM(CLEAN(LEFT(BR3,FIND(":",BR3)-1))))) -> 1 | BT3: =IF(BS3="","",RIGHT(BR3,LEN(BR3)-SEARCH(":",BR3,1))) -> :1-0-0 | BU3: =IF(BT3="","",SUBSTITUTE(SUBSTITUTE(BT3,":",""),"-"," ")) -> 1 0 0 | BV3: =IF(BU3="","",0+TRIM(CLEAN(LEFT(BU3,FIND(" ",BU3)-1)))) -> 1 | BW3: =IF(BS3="","",MID(BU3,SEARCH(" ",BU3,1)+1,SEARCH(" ",BU3,SEARCH(" ",BU3,1)+1)-SEARCH(" ",BU3,1))) -> 0 | BX3: =IF(BS3="","",RIGHT(BU3,LEN(BU3)-SEARCH(" ",BU3,SEARCH(" ",BU3,1)+1))) -> 0 | BY3: =IF(BG3="","",INDEX(Form!$B$1:'Form'!$J$1000,MATCH($BD3,Form!$A$1:'Form'!$A$1000,0)+3,9)) -> 1::0-1-0 | BZ3: =IF(BY3="","",IF(BY3=0,"",0+TRIM(CLEAN(LEFT(BY3,FIND(":",BY3)-1))))) -> 1 | CA3: =IF(BZ3="","",RIGHT(BY3,LEN(BY3)-SEARCH("::",BY3,2))) -> :0-1-0 | CB3: =IF(CA3="","",SUBSTITUTE(SUBSTITUTE(CA3,":",""),"-"," ")) -> 0 1 0 | CC3: =IF(CB3="","",0+TRIM(CLEAN(LEFT(CB3,FIND(" ",CB3)-1)))) -> 0 | CD3: =IF(BZ3="","",MID(CB3,SEARCH(" ",CB3,1)+1,SEARCH(" ",CB3,SEARCH(" ",CB3,1)+1)-SEARCH(" ",CB3,1))) -> 1 | CE3: =IF(BZ3="","",RIGHT(CB3,LEN(CB3)-SEARCH(" ",CB3,SEARCH(" ",CB3,1)+1))) -> 0 | CF3: =IF(BR3="","",IF(BR3=0,"",((BV3+CC3)*2)+BW3+BX3+CD3+CE3)) -> 3 | CG3: =IF(MainSheet!G17="","",IF(CF3="","",COUNT($CF$2:$CF$26)-(RANK(CF3,$CF$2:$CF$26,1)+COUNTIF($CF$2:CF3,CF3)-1)+1)) -> 4 | CH3: =IF($BY3="","",IF(Tables!$F$3<>"",0,IF(ISNA(VLOOKUP(CG3,Tables!E$5:F$28,2,FALSE)),0,VLOOKUP(CG3,Tables!E$5:F$28,2,FALSE)))) -> 4 | CI3: =IF(BG3="","",INDEX(Form!$B$1:'Form'!$J$1000,MATCH($BD3,Form!$A$1:'Form'!$A$1000,0)+5,5)) -> 0::0-0-0 | CJ3: =IF(CI3="","",IF(CI3=0,"",0+TRIM(CLEAN(LEFT(CI3,FIND(":",CI3)-1))))) -> 0 | CK3: =IF(CJ3="","",RIGHT(CI3,LEN(CI3)-SEARCH("::",CI3,2))) -> :0-0-0 | CL3: =IF(CK3="","",SUBSTITUTE(SUBSTITUTE(CK3,":",""),"-"," ")) -> 0 0 0 | CM3: =IF(CL3="","",0+TRIM(CLEAN(LEFT(CL3,FIND(" ",CL3)-1)))) -> 0 | CN3: =IF(CJ3="","",MID(CL3,SEARCH(" ",CL3,1)+1,SEARCH(" ",CL3,SEARCH(" ",CL3,1)+1)-SEARCH(" ",CL3,1))) -> 0 | CO3: =IF(CJ3="","",RIGHT(CL3,LEN(CL3)-SEARCH(" ",CL3,SEARCH(" ",CL3,1)+1))) -> 0 | CP3: =IF(CJ3="","",(CM3*2)+CN3+CO3) -> 0 | CQ3: =IF(BG3="","",IF(CI3=0,0,COUNT($CP$2:$CP$26)-(RANK(CP3,$CP$2:$CP$26,1)+COUNTIF($CP$2:CP3,CP3)-1)+1)) -> 13 | CR3: =IF($CI3="","",IF(Tables!$H$3<>"",0,IF(ISNA(VLOOKUP(CQ3,Tables!G$5:H$28,2,FALSE)),0,VLOOKUP(CQ3,Tables!G$5:H$28,2,FALSE)))) -> 0 | CS3: =IF(BG3="","",INDEX(Form!$B$1:'Form'!$J$1000,MATCH($BD3,Form!$A$1:'Form'!$A$1000,0)+5,6)) -> 0::0-0-0 | CT3: =IF(CS3="","",IF(CS3=0,"",0+TRIM(CLEAN(LEFT(CS3,FIND(":",CS3)-1))))) -> 0 | CU3: =IF(CT3="","",RIGHT(CS3,LEN(CS3)-SEARCH("::",CS3,2))) -> :0-0-0 | CV3: =IF(CU3="","",SUBSTITUTE(SUBSTITUTE(CU3,":",""),"-"," ")) -> 0 0 0 | CW3: =IF(CV3="","",0+TRIM(CLEAN(LEFT(CV3,FIND(" ",CV3)-1)))) -> 0 | CX3: =IF(CT3="","",0+MID(CV3,SEARCH(" ",CV3,1)+1,SEARCH(" ",CV3,SEARCH(" ",CV3,1)+1)-SEARCH(" ",CV3,1))) -> 0 | CY3: =IF(CT3="","",0+RIGHT(CV3,LEN(CV3)-SEARCH(" ",CV3,SEARCH(" ",CV3,1)+1))) -> 0 | CZ3: =IF(CT3="","",(CW3*2)+CX3+CY3) -> 0 | DA3: =IF(BG3="","",IF(CS3=0,0,COUNT($CZ$2:$CZ$26)-(RANK(CZ3,$CZ$2:$CZ$26,1)+COUNTIF($CZ$2:CZ3,CZ3)-1)+1)) -> 12 | DB3: =IF($CS3="","",IF(Tables!$J$3<>"",0,IF(Tables!$K$1=0,0,IF(ISNA(VLOOKUP(DA3,Tables!$I$5:$J$28,2,FALSE)),"0",VLOOKUP(DA3,Tables!$I$5:$J$28,2,FALSE))))) -> 0 | DC3: =IF($BG3="","",INDEX($AA$1:$AT$499,MATCH($BD3,$Z$1:$Z$499,0)+4,3)) -> 2012-01-12 | DD3: =IF(DC3="","",$M$2-DC3) -> 21 | DE3: =IF(DD3="","",200-DD3) -> 179 | DF3: =IF($BG3="","",IF(DE3<-1000,0,INDEX($AA$1:$AT$499,MATCH($BD3,$Z$1:$Z$499,0)+5,3))) -> 2011-12-19 | DG3: =IF(DF3="","",$M$2-DF3) -> 45 | DH3: =IF(DG3="","",100-DG3) -> 55 | DI3: =IF(BG3="","",DE3+DH3) -> 234 | DJ3: =IF(BG3="","",COUNT($DI$2:$DI$26)-(RANK(DI3,$DI$2:$DI$26,1)+COUNTIF($DI$2:DI3,DI3)-1)+1) -> 5 | DK3: =IF($BG3="","",IF(ISNA(VLOOKUP(DJ3,Tables!K$5:L$28,2,FALSE)),"0",VLOOKUP(DJ3,Tables!K$5:L$28,2,FALSE))) -> 2 | DL3: =IF($BG3="","",INDEX($AA$1:$AT$499,MATCH($BD3,$Z$1:$Z$499,0)+4,9)) -> 22500 | DM3: =IF(BG3="","",(DL3-Form!$I$4)) -> 0 | DN3: =IF(BG3="","",COUNT($DM$2:$DM$26)-(RANK(DM3,$DM$2:$DM$26,1)+COUNTIF($DM$2:DM3,DM3)-1)+1) -> 6 | DO3: =IF($BG3="","",IF(ISERROR(DN3),1,IF(ISNA(VLOOKUP(DN3,Tables!M$5:N$28,2,FALSE)),"0",VLOOKUP(DN3,Tables!M$5:N$28,2,FALSE)))) -> 0 | DP3: =IF(BG3="","",IF(ISERROR(INDEX($AA$1:$AT$499,MATCH($BD3,$Z$1:$Z$499,0)+7,1)),0,INDEX($AA$1:$AT$499,MATCH($BD3,$Z$1:$Z$499,0)+4,1))) -> 2-9 3.8L | DQ3: =IF($DP3="","",IF(ISERROR(0+CLEAN(LEFT(DP3,FIND("-",DP3)-1))),10,0+CLEAN(LEFT(DP3,FIND("-",DP3)-1)))) -> 2 | DR3: =IF(DP3="","",MID(DP3,FIND(CHAR(22),SUBSTITUTE(DP3," ",CHAR(22),LEN(DP3)-LEN(SUBSTITUTE(DP3," ",""))))+1,255)) -> 3.8L | DS3: =IF(BG3="","",IF(DQ3=10,10,(LEFT(DR3,FIND("L",DR3)-1)))) -> 3.8 | DT3: =IF(MainSheet!$G17="","",IF(DS3="","",IF(ISERROR(DS3),"",ROUND(0+DS3/0.5,0)*0.5))) -> 4 | DU3: =IF(DQ3="","",IF(DQ3=90,90,IF(DQ3=1,100-0,IF(DT3>10,90,100-DT3)))) -> 96 | DV3: =IF(BG3="","",IF(ISERROR(INDEX($AA$1:$AT$499,MATCH($BD3,$Z$1:$Z$499,0)+8,1)),0,INDEX($AA$1:$AT$499,MATCH($BD3,$Z$1:$Z$499,0)+5,1))) -> 3-10 4.0L | DW3: =IF($DP3="","",IF(ISERROR(0+CLEAN(LEFT(DV3,FIND("-",DV3)-1))),10,0+CLEAN(LEFT(DV3,FIND("-",DV3)-1)))) -> 3 | DX3: =IF(DV3="","",MID(DV3,FIND(CHAR(22),SUBSTITUTE(DV3," ",CHAR(22),LEN(DV3)-LEN(SUBSTITUTE(DV3," ",""))))+1,255)) -> 4.0L | DY3: =IF(BG3="","",IF(DW3=10,10,(LEFT(DX3,FIND("L",DX3)-1)))) -> 4.0 | DZ3: =IF(MainSheet!$G17="","",IF(DY3="","",IF(ISERROR(DY3),"",ROUND(0+DY3/0.5,0)*0.5))) -> 4 | EA3: =IF(DW3="","",IF(DW3=90,90,IF(DW3=1,100-0,IF(DZ3>10,90,100-DZ3)))) -> 96 | EB3: =IF(BG3="","",IF(ISERROR(INDEX($AA$1:$AT$499,MATCH($BD3,$Z$1:$Z$499,0)+9,1)),0,INDEX($AA$1:$AT$499,MATCH($BD3,$Z$1:$Z$499,0)+6,1))) -> 1-12 4.0L | EC3: =IF($DP3="","",IF(ISERROR(0+CLEAN(LEFT(EB3,FIND("-",EB3)-1))),10,0+CLEAN(LEFT(EB3,FIND("-",EB3)-1)))) -> 1 | ED3: =IF(EB3="","",MID(EB3,FIND(CHAR(22),SUBSTITUTE(EB3," ",CHAR(22),LEN(EB3)-LEN(SUBSTITUTE(EB3," ",""))))+1,255)) -> 4.0L | EE3: =IF(BG3="","",IF(EC3=10,10,(LEFT(ED3,FIND("L",ED3)-1)))) -> 4.0 | EF3: =IF(MainSheet!$G17="","",IF(EE3="","",IF(ISERROR(EE3),"",ROUND(0+EE3/0.5,0)*0.5))) -> 4 | EG3: =IF(EC3="","",IF(EC3=90,90,IF(EC3=1,100-0,IF(EF3>10,90,100-EF3)))) -> 100 | EH3: =IF(BG3="","",DU3+EA3+EG3) -> 292 | EI3: =IF(BG3="","",COUNT($EH$2:$EH$26)-(RANK(EH3,$EH$2:$EH$26,1)+COUNTIF($EH$2:EH3,EH3)-1)+1) -> 4 | EJ3: =IF($BG3="","",IF(ISNA(VLOOKUP(EI3,Tables!O$5:P$28,2,FALSE)),"0",VLOOKUP(EI3,Tables!O$5:P$28,2,FALSE))) -> 4 | EK3: 100 | EL3: =IF(EK3="","",0+EK3) -> 100 | EM3: =IF(BG3="","",IF(EL3=0,0,COUNT($EL$2:$EL$26)-(RANK(EL3,$EL$2:$EL$26,1)+COUNTIF($EL$2:EL3,EL3)-1)+1)) -> 1 | EN3: =IF($BG3="","",IF(ISNA(VLOOKUP(EM3,Tables!Q$5:R$26,2,FALSE)),"0",VLOOKUP(EM3,Tables!Q$5:R$26,2,FALSE))) -> 10 | EO3: =IF(BG3="","",Form!K7) -> 9/4 | EP3: =IF($EO3="","",IF(ISERROR(0+CLEAN(LEFT(EO3,FIND("/",EO3)-1))),10,0+CLEAN(LEFT(EO3,FIND("/",EO3)-1)))) -> 9 | EQ3: =IF(EO3="","",RIGHT(EO3,LEN(EO3)-SEARCH("/",EO3,2))) -> 4 | ER3: =IF(EO3="","",1+(0+EP3)/(0+EQ3)) -> 3.25 | ES3: =IF(EO3="","",500-ER3) -> 496.75 | ET3: =IF(BG3="","",IF(ES3=0,0,COUNT($ES$2:$ES$26)-(RANK(ES3,$ES$2:$ES$26,1)+COUNTIF($ES$2:ES3,ES3)-1)+1)) -> 1 | EU3: =IF($BG3="","",IF(ISNA(VLOOKUP(ET3,Tables!S$5:T$26,2,FALSE)),"0",VLOOKUP(ET3,Tables!S$5:T$26,2,FALSE))) -> 10 | EV3: =IF(BF3="","",IF(MainSheet!D17="Scratched","",IF(ISERROR(BL3+BQ3+CH3+CR3+DB3+DK3+DO3+EJ3+EN3+EU3),"",BL3+BQ3+CH3+CR3+DB3+DK3+DO3+EJ3+EN3+EU3))) -> 50 | EW3: =IF(EV3="","",IF(EV3=$EW$1,0,EV3-$EW$1)) -> 50 | EX3: =IF(EW3="","",IF(EW3=0,1,EW3+((EW3*EW3*$EZ$1)/($EX$1-$EY$1)))) -> 181.5789474 | EY3: =IF(EX3="","",COUNT($EX$2:$EX$26)-(RANK(EX3,$EX$2:$EX$26)+COUNTIF($EX$2:EX3,EX3)-1)+1) -> 13 | EZ3: =IF(EY3="","",RANK(EY3,$EY$2:$EY$26)) -> 1 | FA3: =IF(EZ3="","",IF(EZ3<6,EX3,"")) -> 181.5789474 | FB3: =IF(FA3="","",FA3/$FA$1) -> 0.4105188006 | FC3: =IF(EX3=1,0.02,IF(AND(EX3="",FA3=""),"",IF(FB3="",EX3/$FB$1,FB3))) -> 0.4105188006 | FD3: =IF(FC3="","",1/FC3*MainSheet!$R$11) -> 2.435942029
A4: =IF(Meetings1!A4="","",IF(Meetings1!A4="END","END",IF(Meetings1!B4="","",getAddress(Meetings1!E4)))) -> http://formguide.cyberhorse.com.au/Form/form.html?formdate=2012-02-02&track=Ball't&raceno=2 | M4: =IF(ISERROR(N4),"",IF(ISNA(VLOOKUP(N4,RaceList!$M$9:$O$41,3,FALSE)),"",VLOOKUP(N4,RaceList!$M$9:$O$41,3,FALSE))) ->  | N4: =IF(O4="","",IF(Meetings2!$B4="","",Meetings2!$B4)) ->  | O4: =IF(Meetings2!D4="","",getAddress(Meetings2!D4)) ->  | P4: =IF(Meetings2!E4="","",getAddress(Meetings2!E4)) ->  | Q4: =IF(Meetings2!F4="","",getAddress(Meetings2!F4)) ->  | R4: =IF(Meetings2!G4="","",getAddress(Meetings2!G4)) ->  | S4: =IF(Meetings2!H4="","",getAddress(Meetings2!H4)) ->  | T4: =IF(Meetings2!I4="","",getAddress(Meetings2!I4)) ->  | U4: =IF(Meetings2!J4="","",getAddress(Meetings2!J4)) ->  | V4: =IF(Meetings2!K4="","",getAddress(Meetings2!K4)) ->  | W4: =IF(Meetings2!L4="","",getAddress(Meetings2!L4)) ->  | X4: =IF(Meetings2!M4="","",getAddress(Meetings2!M4)) ->  | Y4: =IF(Meetings2!AA4="","",getAddress(Meetings2!AA4)) ->  | Z4: =IF(AA4="","",IF(AA4="Career::",Form!A2,"")) ->  | AA4: 07::10 | AV4: Hawkesbury | AW4: Hawkesbury | AX4: =IF(Race!J4<>"",Race!C4,"") ->  | AY4: =IF(AX4<>"",Race!N4,"") ->  | AZ4: =IF(AX4<>"",Race!I4,"") ->  | BA4: =IF(AX4<>"",Race!L4,"") ->  | BC4: 3 Federation Square | BD4: =IF(Form!K8<>"",LEFT(Form!D8,FIND("(",Form!D8)-2),"") -> Federation Square | BF4: =IF(BD4="","",Form!B8) -> 3 | BG4: 8 | BH4: =IF(BG4="","",Form!G8) -> 59.5 | BI4: =IF($BG4="","",IF(MainSheet!G18="","",Form!H8)) -> 2.6 | BJ4: 0.9974 | BK4: =IF(BG4="","",COUNT($BJ$2:$BJ$26)-(RANK(BJ4,$BJ$2:$BJ$26)+COUNTIF($BJ$2:BJ4,BJ4)-1)+1) -> 5 | BL4: =IF($BG4="","",IF(ISNA(VLOOKUP(BK4,Tables!A$5:B$28,2,FALSE)),0,VLOOKUP(BK4,Tables!A$5:B$28,2,FALSE))) -> 2 | BM4: =IF(BG4="","",Form!I8) -> 25 | BN4: =IF(BG4="","",Form!J8) -> 75 | BO4: 100 | BP4: =IF(BG4="","",COUNT($BO$2:$BO$26)-(RANK(BO4,$BO$2:$BO$26,1)+COUNTIF($BO$2:BO4,BO4)-1)+1) -> 2 | BQ4: =IF($BG4="","",IF(ISNA(VLOOKUP(BP4,Tables!C$5:D$28,2,FALSE)),0,VLOOKUP(BP4,Tables!C$5:D$28,2,FALSE))) -> 8 | BR4: =IF(BG4="","",INDEX(Form!$B$1:'Form'!$J$1000,MATCH($BD4,Form!$A$1:'Form'!$A$1000,0)+3,8)) -> 0::0-0-0 | BS4: 0 | BT4: :0-0-0 | BU4: =IF(BT4="","",SUBSTITUTE(SUBSTITUTE(BT4,":",""),"-"," ")) -> 0 0 0 | BV4: 0 | BW4: 0 | BX4: 0 | BY4: =IF(BG4="","",INDEX(Form!$B$1:'Form'!$J$1000,MATCH($BD4,Form!$A$1:'Form'!$A$1000,0)+3,9)) -> 1::0-0-0 | BZ4: 1 | CA4: :0-0-0 | CB4: 0 0 0 | CC4: 0 | CD4: 0 | CE4: 0 | CF4: 0 | CG4: =IF(MainSheet!G18="","",IF(CF4="","",COUNT($CF$2:$CF$26)-(RANK(CF4,$CF$2:$CF$26,1)+COUNTIF($CF$2:CF4,CF4)-1)+1)) -> 13 | CH4: =IF($BY4="","",IF(Tables!$F$3<>"",0,IF(ISNA(VLOOKUP(CG4,Tables!E$5:F$28,2,FALSE)),0,VLOOKUP(CG4,Tables!E$5:F$28,2,FALSE)))) -> 0 | CI4: =IF(BG4="","",INDEX(Form!$B$1:'Form'!$J$1000,MATCH($BD4,Form!$A$1:'Form'!$A$1000,0)+5,5)) -> 0::0-0-0 | CJ4: 0 | CK4: :0-0-0 | CL4: 0 0 0 | CM4: 0 | CN4: 0 | CO4: 0 | CP4: 0 | CQ4: =IF(BG4="","",IF(CI4=0,0,COUNT($CP$2:$CP$26)-(RANK(CP4,$CP$2:$CP$26,1)+COUNTIF($CP$2:CP4,CP4)-1)+1)) -> 12 | CR4: =IF($CI4="","",IF(Tables!$H$3<>"",0,IF(ISNA(VLOOKUP(CQ4,Tables!G$5:H$28,2,FALSE)),0,VLOOKUP(CQ4,Tables!G$5:H$28,2,FALSE)))) -> 0 | CS4: =IF(BG4="","",INDEX(Form!$B$1:'Form'!$J$1000,MATCH($BD4,Form!$A$1:'Form'!$A$1000,0)+5,6)) -> 0::0-0-0 | CT4: 0 | CU4: :0-0-0 | CV4: 0 0 0 | CW4: 0 | CX4: 0 | CY4: 0 | CZ4: 0 | DA4: =IF(BG4="","",IF(CS4=0,0,COUNT($CZ$2:$CZ$26)-(RANK(CZ4,$CZ$2:$CZ$26,1)+COUNTIF($CZ$2:CZ4,CZ4)-1)+1)) -> 11 | DB4: =IF($CS4="","",IF(Tables!$J$3<>"",0,IF(Tables!$K$1=0,0,IF(ISNA(VLOOKUP(DA4,Tables!$I$5:$J$28,2,FALSE)),"0",VLOOKUP(DA4,Tables!$I$5:$J$28,2,FALSE))))) -> 0 | DC4: 2012-01-12 | DD4: 21 | DE4: 179 | DF4: 2011-08-23 | DG4: 163 | DH4: -63 | DI4: 116 | DJ4: =IF(BG4="","",COUNT($DI$2:$DI$26)-(RANK(DI4,$DI$2:$DI$26,1)+COUNTIF($DI$2:DI4,DI4)-1)+1) -> 9 | DK4: =IF($BG4="","",IF(ISNA(VLOOKUP(DJ4,Tables!K$5:L$28,2,FALSE)),"0",VLOOKUP(DJ4,Tables!K$5:L$28,2,FALSE))) -> 0 | DL4: 22500 | DM4: =IF(BG4="","",(DL4-Form!$I$4)) -> 0 | DN4: =IF(BG4="","",COUNT($DM$2:$DM$26)-(RANK(DM4,$DM$2:$DM$26,1)+COUNTIF($DM$2:DM4,DM4)-1)+1) -> 5 | DO4: =IF($BG4="","",IF(ISERROR(DN4),1,IF(ISNA(VLOOKUP(DN4,Tables!M$5:N$28,2,FALSE)),"0",VLOOKUP(DN4,Tables!M$5:N$28,2,FALSE)))) -> 2 | DP4: 9-9 10.0L | DQ4: 9 | DR4: 10.0L | DS4: 10.0 | DT4: =IF(MainSheet!$G18="","",IF(DS4="","",IF(ISERROR(DS4),"",ROUND(0+DS4/0.5,0)*0.5))) -> 10 | DU4: 90 | DV4: 1-10 0.2L | DW4: 1 | DX4: 0.2L | DY4: 0.2 | DZ4: =IF(MainSheet!$G18="","",IF(DY4="","",IF(ISERROR(DY4),"",ROUND(0+DY4/0.5,0)*0.5))) -> 0 | EA4: 100 | EB4: 2-11 0.1L | EC4: 2 | ED4: 0.1L | EE4: 0.1 | EF4: =IF(MainSheet!$G18="","",IF(EE4="","",IF(ISERROR(EE4),"",ROUND(0+EE4/0.5,0)*0.5))) -> 0 | EG4: 100 | EH4: 290 | EI4: =IF(BG4="","",COUNT($EH$2:$EH$26)-(RANK(EH4,$EH$2:$EH$26,1)+COUNTIF($EH$2:EH4,EH4)-1)+1) -> 7 | EJ4: =IF($BG4="","",IF(ISNA(VLOOKUP(EI4,Tables!O$5:P$28,2,FALSE)),"0",VLOOKUP(EI4,Tables!O$5:P$28,2,FALSE))) -> 0 | EK4: 96 | EL4: 96 | EM4: =IF(BG4="","",IF(EL4=0,0,COUNT($EL$2:$EL$26)-(RANK(EL4,$EL$2:$EL$26,1)+COUNTIF($EL$2:EL4,EL4)-1)+1)) -> 5 | EN4: =IF($BG4="","",IF(ISNA(VLOOKUP(EM4,Tables!Q$5:R$26,2,FALSE)),"0",VLOOKUP(EM4,Tables!Q$5:R$26,2,FALSE))) -> 2 | EO4: =IF(BG4="","",Form!K8) -> 10/1 | EP4: 10 | EQ4: 1 | ER4: 11 | ES4: 489 | ET4: =IF(BG4="","",IF(ES4=0,0,COUNT($ES$2:$ES$26)-(RANK(ES4,$ES$2:$ES$26,1)+COUNTIF($ES$2:ES4,ES4)-1)+1)) -> 8 | EU4: =IF($BG4="","",IF(ISNA(VLOOKUP(ET4,Tables!S$5:T$26,2,FALSE)),"0",VLOOKUP(ET4,Tables!S$5:T$26,2,FALSE))) -> 0 | EV4: =IF(BF4="","",IF(MainSheet!D18="Scratched","",IF(ISERROR(BL4+BQ4+CH4+CR4+DB4+DK4+DO4+EJ4+EN4+EU4),"",BL4+BQ4+CH4+CR4+DB4+DK4+DO4+EJ4+EN4+EU4))) -> 14 | EW4: 14 | EX4: 24.31578947 | EY4: =IF(EX4="","",COUNT($EX$2:$EX$26)-(RANK(EX4,$EX$2:$EX$26)+COUNTIF($EX$2:EX4,EX4)-1)+1) -> 7 | EZ4: 7 | FC4: 0.04153555695 | FD4: =IF(FC4="","",1/FC4*MainSheet!$R$11) -> 24.07575758
A5: =IF(Meetings1!A5="","",IF(Meetings1!A5="END","END",IF(Meetings1!B5="","",getAddress(Meetings1!E5)))) -> http://formguide.cyberhorse.com.au/Form/form.html?formdate=2012-02-02&track=Ball't&raceno=3 | M5: =IF(ISERROR(N5),"",IF(ISNA(VLOOKUP(N5,RaceList!$M$9:$O$41,3,FALSE)),"",VLOOKUP(N5,RaceList!$M$9:$O$41,3,FALSE))) ->  | N5: =IF(O5="","",IF(Meetings2!$B5="","",Meetings2!$B5)) ->  | O5: =IF(Meetings2!D5="","",getAddress(Meetings2!D5)) ->  | P5: =IF(Meetings2!E5="","",getAddress(Meetings2!E5)) ->  | Q5: =IF(Meetings2!F5="","",getAddress(Meetings2!F5)) ->  | R5: =IF(Meetings2!G5="","",getAddress(Meetings2!G5)) ->  | S5: =IF(Meetings2!H5="","",getAddress(Meetings2!H5)) ->  | T5: =IF(Meetings2!I5="","",getAddress(Meetings2!I5)) ->  | U5: =IF(Meetings2!J5="","",getAddress(Meetings2!J5)) ->  | V5: =IF(Meetings2!K5="","",getAddress(Meetings2!K5)) ->  | W5: =IF(Meetings2!L5="","",getAddress(Meetings2!L5)) ->  | X5: =IF(Meetings2!M5="","",getAddress(Meetings2!M5)) ->  | Y5: =IF(Meetings2!AA5="","",getAddress(Meetings2!AA5)) ->  | Z5: =IF(AA5="","",IF(AA5="Career::",Form!A3,"")) ->  | AA5: # | AV5: Geraldton | AW5: Geraldton | AX5: =IF(Race!J5<>"",Race!C5,"") ->  | AY5: =IF(AX5<>"",Race!N5,"") ->  | AZ5: =IF(AX5<>"",Race!I5,"") ->  | BA5: =IF(AX5<>"",Race!L5,"") ->  | BC5: 4 Bongiorno | BD5: =IF(Form!K9<>"",LEFT(Form!D9,FIND("(",Form!D9)-2),"") -> Bongiorno | BF5: =IF(BD5="","",Form!B9) -> 4 | BG5: 1 | BH5: =IF(BG5="","",Form!G9) -> 59 | BI5: =IF($BG5="","",IF(MainSheet!G19="","",Form!H9)) -> 3 | BJ5: 0.997 | BK5: =IF(BG5="","",COUNT($BJ$2:$BJ$26)-(RANK(BJ5,$BJ$2:$BJ$26)+COUNTIF($BJ$2:BJ5,BJ5)-1)+1) -> 3 | BL5: =IF($BG5="","",IF(ISNA(VLOOKUP(BK5,Tables!A$5:B$28,2,FALSE)),0,VLOOKUP(BK5,Tables!A$5:B$28,2,FALSE))) -> 6 | BM5: =IF(BG5="","",Form!I9) -> 11.1 | BN5: =IF(BG5="","",Form!J9) -> 44.4 | BO5: 55.5 | BP5: =IF(BG5="","",COUNT($BO$2:$BO$26)-(RANK(BO5,$BO$2:$BO$26,1)+COUNTIF($BO$2:BO5,BO5)-1)+1) -> 5 | BQ5: =IF($BG5="","",IF(ISNA(VLOOKUP(BP5,Tables!C$5:D$28,2,FALSE)),0,VLOOKUP(BP5,Tables!C$5:D$28,2,FALSE))) -> 2 | BR5: =IF(BG5="","",INDEX(Form!$B$1:'Form'!$J$1000,MATCH($BD5,Form!$A$1:'Form'!$A$1000,0)+3,8)) -> 1::0-0-1 | BS5: 1 | BT5: :0-0-1 | BU5: 0 0 1 | BV5: 0 | BW5: 0 | BX5: 1 | BY5: =IF(BG5="","",INDEX(Form!$B$1:'Form'!$J$1000,MATCH($BD5,Form!$A$1:'Form'!$A$1000,0)+3,9)) -> 1::0-0-1 | BZ5: 1 | CA5: :0-0-1 | CB5: 0 0 1 | CC5: 0 | CD5: 0 | CE5: 1 | CF5: 2 | CG5: =IF(MainSheet!G19="","",IF(CF5="","",COUNT($CF$2:$CF$26)-(RANK(CF5,$CF$2:$CF$26,1)+COUNTIF($CF$2:CF5,CF5)-1)+1)) -> 7 | CH5: =IF($BY5="","",IF(Tables!$F$3<>"",0,IF(ISNA(VLOOKUP(CG5,Tables!E$5:F$28,2,FALSE)),0,VLOOKUP(CG5,Tables!E$5:F$28,2,FALSE)))) -> 0 | CI5: =IF(BG5="","",INDEX(Form!$B$1:'Form'!$J$1000,MATCH($BD5,Form!$A$1:'Form'!$A$1000,0)+5,5)) -> 1::0-0-1 | CJ5: 1 | CK5: :0-0-1 | CL5: 0 0 1 | CM5: 0 | CN5: 0 | CO5: 1 | CP5: 1 | CQ5: =IF(BG5="","",IF(CI5=0,0,COUNT($CP$2:$CP$26)-(RANK(CP5,$CP$2:$CP$26,1)+COUNTIF($CP$2:CP5,CP5)-1)+1)) -> 7 | CR5: =IF($CI5="","",IF(Tables!$H$3<>"",0,IF(ISNA(VLOOKUP(CQ5,Tables!G$5:H$28,2,FALSE)),0,VLOOKUP(CQ5,Tables!G$5:H$28,2,FALSE)))) -> 0 | CS5: =IF(BG5="","",INDEX(Form!$B$1:'Form'!$J$1000,MATCH($BD5,Form!$A$1:'Form'!$A$1000,0)+5,6)) -> 1::0-0-1 | CT5: 1 | CU5: :0-0-1 | CV5: 0 0 1 | CW5: 0 | CX5: 0 | CY5: 1 | CZ5: 1 | DA5: =IF(BG5="","",IF(CS5=0,0,COUNT($CZ$2:$CZ$26)-(RANK(CZ5,$CZ$2:$CZ$26,1)+COUNTIF($CZ$2:CZ5,CZ5)-1)+1)) -> 4 | DB5: =IF($CS5="","",IF(Tables!$J$3<>"",0,IF(Tables!$K$1=0,0,IF(ISNA(VLOOKUP(DA5,Tables!$I$5:$J$28,2,FALSE)),"0",VLOOKUP(DA5,Tables!$I$5:$J$28,2,FALSE))))) -> 0 | DC5: 2012-01-15 | DD5: 18 | DE5: 182 | DF5: 2011-07-31 | DG5: 186 | DH5: -86 | DI5: 96 | DJ5: =IF(BG5="","",COUNT($DI$2:$DI$26)-(RANK(DI5,$DI$2:$DI$26,1)+COUNTIF($DI$2:DI5,DI5)-1)+1) -> 10 | DK5: =IF($BG5="","",IF(ISNA(VLOOKUP(DJ5,Tables!K$5:L$28,2,FALSE)),"0",VLOOKUP(DJ5,Tables!K$5:L$28,2,FALSE))) -> 0 | DL5: 12000 | DM5: =IF(BG5="","",(DL5-Form!$I$4)) -> -10500 | DN5: =IF(BG5="","",COUNT($DM$2:$DM$26)-(RANK(DM5,$DM$2:$DM$26,1)+COUNTIF($DM$2:DM5,DM5)-1)+1) -> 11 | DO5: =IF($BG5="","",IF(ISERROR(DN5),1,IF(ISNA(VLOOKUP(DN5,Tables!M$5:N$28,2,FALSE)),"0",VLOOKUP(DN5,Tables!M$5:N$28,2,FALSE)))) -> 0 | DP5: 1-10 0.1L | DQ5: 1 | DR5: 0.1L | DS5: 0.1 | DT5: =IF(MainSheet!$G19="","",IF(DS5="","",IF(ISERROR(DS5),"",ROUND(0+DS5/0.5,0)*0.5))) -> 0 | DU5: 100 | DV5: 4-12 1.6L | DW5: 4 | DX5: 1.6L | DY5: 1.6 | DZ5: =IF(MainSheet!$G19="","",IF(DY5="","",IF(ISERROR(DY5),"",ROUND(0+DY5/0.5,0)*0.5))) -> 1.5 | EA5: 98.5 | EB5: 3-12 8.3L | EC5: 3 | ED5: 8.3L | EE5: 8.3 | EF5: =IF(MainSheet!$G19="","",IF(EE5="","",IF(ISERROR(EE5),"",ROUND(0+EE5/0.5,0)*0.5))) -> 8.5 | EG5: 91.5 | EH5: 290 | EI5: =IF(BG5="","",COUNT($EH$2:$EH$26)-(RANK(EH5,$EH$2:$EH$26,1)+COUNTIF($EH$2:EH5,EH5)-1)+1) -> 6 | EJ5: =IF($BG5="","",IF(ISNA(VLOOKUP(EI5,Tables!O$5:P$28,2,FALSE)),"0",VLOOKUP(EI5,Tables!O$5:P$28,2,FALSE))) -> 0 | EK5: 98 | EL5: 98 | EM5: =IF(BG5="","",IF(EL5=0,0,COUNT($EL$2:$EL$26)-(RANK(EL5,$EL$2:$EL$26,1)+COUNTIF($EL$2:EL5,EL5)-1)+1)) -> 2 | EN5: =IF($BG5="","",IF(ISNA(VLOOKUP(EM5,Tables!Q$5:R$26,2,FALSE)),"0",VLOOKUP(EM5,Tables!Q$5:R$26,2,FALSE))) -> 8 | EO5: =IF(BG5="","",Form!K9) -> 9/2 | EP5: 9 | EQ5: 2 | ER5: 5.5 | ES5: 494.5 | ET5: =IF(BG5="","",IF(ES5=0,0,COUNT($ES$2:$ES$26)-(RANK(ES5,$ES$2:$ES$26,1)+COUNTIF($ES$2:ES5,ES5)-1)+1)) -> 3 | EU5: =IF($BG5="","",IF(ISNA(VLOOKUP(ET5,Tables!S$5:T$26,2,FALSE)),"0",VLOOKUP(ET5,Tables!S$5:T$26,2,FALSE))) -> 6 | EV5: =IF(BF5="","",IF(MainSheet!D19="Scratched","",IF(ISERROR(BL5+BQ5+CH5+CR5+DB5+DK5+DO5+EJ5+EN5+EU5),"",BL5+BQ5+CH5+CR5+DB5+DK5+DO5+EJ5+EN5+EU5))) -> 22 | EW5: 22 | EX5: 47.47368421 | EY5: =IF(EX5="","",COUNT($EX$2:$EX$26)-(RANK(EX5,$EX$2:$EX$26)+COUNTIF($EX$2:EX5,EX5)-1)+1) -> 9 | EZ5: 5 | FA5: 47.47368421 | FB5: 0.1073298429 | FC5: 0.1073298429 | FD5: =IF(FC5="","",1/FC5*MainSheet!$R$11) -> 9.317073171
A6: =IF(Meetings1!A6="","",IF(Meetings1!A6="END","END",IF(Meetings1!B6="","",getAddress(Meetings1!E6)))) -> http://formguide.cyberhorse.com.au/Form/form.html?formdate=2012-02-02&track=Ball't&raceno=4 | M6: =IF(ISERROR(N6),"",IF(ISNA(VLOOKUP(N6,RaceList!$M$9:$O$41,3,FALSE)),"",VLOOKUP(N6,RaceList!$M$9:$O$41,3,FALSE))) ->  | N6: =IF(O6="","",IF(Meetings2!$B6="","",Meetings2!$B6)) ->  | O6: =IF(Meetings2!D6="","",getAddress(Meetings2!D6)) ->  | P6: =IF(Meetings2!E6="","",getAddress(Meetings2!E6)) ->  | Q6: =IF(Meetings2!F6="","",getAddress(Meetings2!F6)) ->  | R6: =IF(Meetings2!G6="","",getAddress(Meetings2!G6)) ->  | S6: =IF(Meetings2!H6="","",getAddress(Meetings2!H6)) ->  | T6: =IF(Meetings2!I6="","",getAddress(Meetings2!I6)) ->  | U6: =IF(Meetings2!J6="","",getAddress(Meetings2!J6)) ->  | V6: =IF(Meetings2!K6="","",getAddress(Meetings2!K6)) ->  | W6: =IF(Meetings2!L6="","",getAddress(Meetings2!L6)) ->  | X6: =IF(Meetings2!M6="","",getAddress(Meetings2!M6)) ->  | Y6: =IF(Meetings2!AA6="","",getAddress(Meetings2!AA6)) ->  | Z6: =IF(AA6="","",IF(AA6="Career::",Form!A4,"")) ->  | AA6: 1 | AV6: Ballarat | AW6: Ballarat | AX6: =IF(Race!J6<>"",Race!C6,"") ->  | AY6: =IF(AX6<>"",Race!N6,"") ->  | AZ6: =IF(AX6<>"",Race!I6,"") ->  | BA6: =IF(AX6<>"",Race!L6,"") ->  | BC6: 5 Go Faraglioni | BD6: =IF(Form!K10<>"",LEFT(Form!D10,FIND("(",Form!D10)-2),"") -> Go Faraglioni | BF6: =IF(BD6="","",Form!B10) -> 5 | BG6: 9 | BH6: =IF(BG6="","",Form!G10) -> 59 | BI6: =IF($BG6="","",IF(MainSheet!G20="","",Form!H10)) -> 1.6 | BJ6: 0.9984 | BK6: =IF(BG6="","",COUNT($BJ$2:$BJ$26)-(RANK(BJ6,$BJ$2:$BJ$26)+COUNTIF($BJ$2:BJ6,BJ6)-1)+1) -> 9 | BL6: =IF($BG6="","",IF(ISNA(VLOOKUP(BK6,Tables!A$5:B$28,2,FALSE)),0,VLOOKUP(BK6,Tables!A$5:B$28,2,FALSE))) -> 0 | BM6: =IF(BG6="","",Form!I10) -> 14.3 | BN6: =IF(BG6="","",Form!J10) -> 28.6 | BO6: 42.9 | BP6: =IF(BG6="","",COUNT($BO$2:$BO$26)-(RANK(BO6,$BO$2:$BO$26,1)+COUNTIF($BO$2:BO6,BO6)-1)+1) -> 7 | BQ6: =IF($BG6="","",IF(ISNA(VLOOKUP(BP6,Tables!C$5:D$28,2,FALSE)),0,VLOOKUP(BP6,Tables!C$5:D$28,2,FALSE))) -> 0 | BR6: =IF(BG6="","",INDEX(Form!$B$1:'Form'!$J$1000,MATCH($BD6,Form!$A$1:'Form'!$A$1000,0)+3,8)) -> 1::0-0-0 | BS6: 1 | BT6: :0-0-0 | BU6: 0 0 0 | BV6: 0 | BW6: 0 | BX6: 0 | BY6: =IF(BG6="","",INDEX(Form!$B$1:'Form'!$J$1000,MATCH($BD6,Form!$A$1:'Form'!$A$1000,0)+3,9)) -> 0::0-0-0 | BZ6: 0 | CA6: :0-0-0 | CB6: 0 0 0 | CC6: 0 | CD6: 0 | CE6: 0 | CF6: 0 | CG6: =IF(MainSheet!G20="","",IF(CF6="","",COUNT($CF$2:$CF$26)-(RANK(CF6,$CF$2:$CF$26,1)+COUNTIF($CF$2:CF6,CF6)-1)+1)) -> 12 | CH6: =IF($BY6="","",IF(Tables!$F$3<>"",0,IF(ISNA(VLOOKUP(CG6,Tables!E$5:F$28,2,FALSE)),0,VLOOKUP(CG6,Tables!E$5:F$28,2,FALSE)))) -> 0 | CI6: =IF(BG6="","",INDEX(Form!$B$1:'Form'!$J$1000,MATCH($BD6,Form!$A$1:'Form'!$A$1000,0)+5,5)) -> 1::0-0-1 | CJ6: 1 | CK6: :0-0-1 | CL6: 0 0 1 | CM6: 0 | CN6: 0 | CO6: 1 | CP6: 1 | CQ6: =IF(BG6="","",IF(CI6=0,0,COUNT($CP$2:$CP$26)-(RANK(CP6,$CP$2:$CP$26,1)+COUNTIF($CP$2:CP6,CP6)-1)+1)) -> 6 | CR6: =IF($CI6="","",IF(Tables!$H$3<>"",0,IF(ISNA(VLOOKUP(CQ6,Tables!G$5:H$28,2,FALSE)),0,VLOOKUP(CQ6,Tables!G$5:H$28,2,FALSE)))) -> 0 | CS6: =IF(BG6="","",INDEX(Form!$B$1:'Form'!$J$1000,MATCH($BD6,Form!$A$1:'Form'!$A$1000,0)+5,6)) -> 0::0-0-0 | CT6: 0 | CU6: :0-0-0 | CV6: 0 0 0 | CW6: 0 | CX6: 0 | CY6: 0 | CZ6: 0 | DA6: =IF(BG6="","",IF(CS6=0,0,COUNT($CZ$2:$CZ$26)-(RANK(CZ6,$CZ$2:$CZ$26,1)+COUNTIF($CZ$2:CZ6,CZ6)-1)+1)) -> 10 | DB6: =IF($CS6="","",IF(Tables!$J$3<>"",0,IF(Tables!$K$1=0,0,IF(ISNA(VLOOKUP(DA6,Tables!$I$5:$J$28,2,FALSE)),"0",VLOOKUP(DA6,Tables!$I$5:$J$28,2,FALSE))))) -> 0 | DC6: 2011-07-30 | DD6: 187 | DE6: 13 | DF6: 2011-06-30 | DG6: 217 | DH6: -117 | DI6: -104 | DJ6: =IF(BG6="","",COUNT($DI$2:$DI$26)-(RANK(DI6,$DI$2:$DI$26,1)+COUNTIF($DI$2:DI6,DI6)-1)+1) -> 13 | DK6: =IF($BG6="","",IF(ISNA(VLOOKUP(DJ6,Tables!K$5:L$28,2,FALSE)),"0",VLOOKUP(DJ6,Tables!K$5:L$28,2,FALSE))) -> 0 | DL6: 40000 | DM6: =IF(BG6="","",(DL6-Form!$I$4)) -> 17500 | DN6: =IF(BG6="","",COUNT($DM$2:$DM$26)-(RANK(DM6,$DM$2:$DM$26,1)+COUNTIF($DM$2:DM6,DM6)-1)+1) -> 2 | DO6: =IF($BG6="","",IF(ISERROR(DN6),1,IF(ISNA(VLOOKUP(DN6,Tables!M$5:N$28,2,FALSE)),"0",VLOOKUP(DN6,Tables!M$5:N$28,2,FALSE)))) -> 8 | DP6: 9-9 19.7L | DQ6: 9 | DR6: 19.7L | DS6: 19.7 | DT6: =IF(MainSheet!$G20="","",IF(DS6="","",IF(ISERROR(DS6),"",ROUND(0+DS6/0.5,0)*0.5))) -> 19.5 | DU6: 90 | DV6: 1-13 0.1L | DW6: 1 | DX6: 0.1L | DY6: 0.1 | DZ6: =IF(MainSheet!$G20="","",IF(DY6="","",IF(ISERROR(DY6),"",ROUND(0+DY6/0.5,0)*0.5))) -> 0 | EA6: 100 | EB6: 6-15 4.7L | EC6: 6 | ED6: 4.7L | EE6: 4.7 | EF6: =IF(MainSheet!$G20="","",IF(EE6="","",IF(ISERROR(EE6),"",ROUND(0+EE6/0.5,0)*0.5))) -> 4.5 | EG6: 95.5 | EH6: 285.5 | EI6: =IF(BG6="","",COUNT($EH$2:$EH$26)-(RANK(EH6,$EH$2:$EH$26,1)+COUNTIF($EH$2:EH6,EH6)-1)+1) -> 11 | EJ6: =IF($BG6="","",IF(ISNA(VLOOKUP(EI6,Tables!O$5:P$28,2,FALSE)),"0",VLOOKUP(EI6,Tables!O$5:P$28,2,FALSE))) -> 0 | EK6: 90 | EL6: 90 | EM6: =IF(BG6="","",IF(EL6=0,0,COUNT($EL$2:$EL$26)-(RANK(EL6,$EL$2:$EL$26,1)+COUNTIF($EL$2:EL6,EL6)-1)+1)) -> 13 | EN6: =IF($BG6="","",IF(ISNA(VLOOKUP(EM6,Tables!Q$5:R$26,2,FALSE)),"0",VLOOKUP(EM6,Tables!Q$5:R$26,2,FALSE))) -> 0 | EO6: =IF(BG6="","",Form!K10) -> 12/1 | EP6: 12 | EQ6: 1 | ER6: 13 | ES6: 487 | ET6: =IF(BG6="","",IF(ES6=0,0,COUNT($ES$2:$ES$26)-(RANK(ES6,$ES$2:$ES$26,1)+COUNTIF($ES$2:ES6,ES6)-1)+1)) -> 9 | EU6: =IF($BG6="","",IF(ISNA(VLOOKUP(ET6,Tables!S$5:T$26,2,FALSE)),"0",VLOOKUP(ET6,Tables!S$5:T$26,2,FALSE))) -> 0 | EV6: =IF(BF6="","",IF(MainSheet!D20="Scratched","",IF(ISERROR(BL6+BQ6+CH6+CR6+DB6+DK6+DO6+EJ6+EN6+EU6),"",BL6+BQ6+CH6+CR6+DB6+DK6+DO6+EJ6+EN6+EU6))) -> 8 | EW6: 8 | EX6: 11.36842105 | EY6: =IF(EX6="","",COUNT($EX$2:$EX$26)-(RANK(EX6,$EX$2:$EX$26)+COUNTIF($EX$2:EX6,EX6)-1)+1) -> 2 | EZ6: 12 | FC6: 0.01941922143 | FD6: =IF(FC6="","",1/FC6*MainSheet!$R$11) -> 51.49537037
A7: =IF(Meetings1!A7="","",IF(Meetings1!A7="END","END",IF(Meetings1!B7="","",getAddress(Meetings1!E7)))) -> http://formguide.cyberhorse.com.au/Form/form.html?formdate=2012-02-02&track=Ball't&raceno=5 | M7: =IF(ISERROR(N7),"",IF(ISNA(VLOOKUP(N7,RaceList!$M$9:$O$41,3,FALSE)),"",VLOOKUP(N7,RaceList!$M$9:$O$41,3,FALSE))) ->  | N7: =IF(O7="","",IF(Meetings2!$B7="","",Meetings2!$B7)) -> ROCKHAMPTON (QR) | O7: =IF(Meetings2!D7="","",getAddress(Meetings2!D7)) -> http://www.tabonline.com.au/2012/02/02/QR01.html | P7: =IF(Meetings2!E7="","",getAddress(Meetings2!E7)) -> http://www.tabonline.com.au/2012/02/02/QR02.html | Q7: =IF(Meetings2!F7="","",getAddress(Meetings2!F7)) -> http://www.tabonline.com.au/2012/02/02/QR03.html | R7: =IF(Meetings2!G7="","",getAddress(Meetings2!G7)) -> http://www.tabonline.com.au/2012/02/02/QR04.html | S7: =IF(Meetings2!H7="","",getAddress(Meetings2!H7)) -> http://www.tabonline.com.au/2012/02/02/QR05.html | T7: =IF(Meetings2!I7="","",getAddress(Meetings2!I7)) -> http://www.tabonline.com.au/2012/02/02/QR06.html | U7: =IF(Meetings2!J7="","",getAddress(Meetings2!J7)) -> http://www.tabonline.com.au/2012/02/02/QR07.html | V7: =IF(Meetings2!K7="","",getAddress(Meetings2!K7)) -> http://www.tabonline.com.au/2012/02/02/QR08.html | W7: =IF(Meetings2!L7="","",getAddress(Meetings2!L7)) ->  | X7: =IF(Meetings2!M7="","",getAddress(Meetings2!M7)) ->  | Y7: =IF(Meetings2!AA7="","",getAddress(Meetings2!AA7)) ->  | Z7: =IF(AA7="","",IF(AA7="Career::",Form!A5,"")) ->  | AA7: 2 | AV7: 8 | AX7: =IF(Race!J7<>"",Race!C7,"") ->  | AY7: =IF(AX7<>"",Race!N7,"") ->  | AZ7: =IF(AX7<>"",Race!I7,"") ->  | BA7: =IF(AX7<>"",Race!L7,"") ->  | BC7: 6 Printed | BD7: =IF(Form!K11<>"",LEFT(Form!D11,FIND("(",Form!D11)-2),"") -> Printed | BF7: =IF(BD7="","",Form!B11) -> 6 | BG7: 4 | BH7: =IF(BG7="","",Form!G11) -> 59 | BI7: =IF($BG7="","",IF(MainSheet!G21="","",Form!H11)) -> 1.9 | BJ7: 0.9981 | BK7: =IF(BG7="","",COUNT($BJ$2:$BJ$26)-(RANK(BJ7,$BJ$2:$BJ$26)+COUNTIF($BJ$2:BJ7,BJ7)-1)+1) -> 7 | BL7: =IF($BG7="","",IF(ISNA(VLOOKUP(BK7,Tables!A$5:B$28,2,FALSE)),0,VLOOKUP(BK7,Tables!A$5:B$28,2,FALSE))) -> 0 | BM7: =IF(BG7="","",Form!I11) -> 16.7 | BN7: =IF(BG7="","",Form!J11) -> 16.7 | BO7: 33.4 | BP7: =IF(BG7="","",COUNT($BO$2:$BO$26)-(RANK(BO7,$BO$2:$BO$26,1)+COUNTIF($BO$2:BO7,BO7)-1)+1) -> 11 | BQ7: =IF($BG7="","",IF(ISNA(VLOOKUP(BP7,Tables!C$5:D$28,2,FALSE)),0,VLOOKUP(BP7,Tables!C$5:D$28,2,FALSE))) -> 0 | BR7: =IF(BG7="","",INDEX(Form!$B$1:'Form'!$J$1000,MATCH($BD7,Form!$A$1:'Form'!$A$1000,0)+3,8)) -> 1::1-0-0 | BS7: 1 | BT7: :1-0-0 | BU7: 1 0 0 | BV7: 1 | BW7: 0 | BX7: 0 | BY7: =IF(BG7="","",INDEX(Form!$B$1:'Form'!$J$1000,MATCH($BD7,Form!$A$1:'Form'!$A$1000,0)+3,9)) -> 1::0-0-0 | BZ7: 1 | CA7: :0-0-0 | CB7: 0 0 0 | CC7: 0 | CD7: 0 | CE7: 0 | CF7: 2 | CG7: =IF(MainSheet!G21="","",IF(CF7="","",COUNT($CF$2:$CF$26)-(RANK(CF7,$CF$2:$CF$26,1)+COUNTIF($CF$2:CF7,CF7)-1)+1)) -> 6 | CH7: =IF($BY7="","",IF(Tables!$F$3<>"",0,IF(ISNA(VLOOKUP(CG7,Tables!E$5:F$28,2,FALSE)),0,VLOOKUP(CG7,Tables!E$5:F$28,2,FALSE)))) -> 0 | CI7: =IF(BG7="","",INDEX(Form!$B$1:'Form'!$J$1000,MATCH($BD7,Form!$A$1:'Form'!$A$1000,0)+5,5)) -> 0::0-0-0 | CJ7: 0 | CK7: :0-0-0 | CL7: 0 0 0 | CM7: 0 | CN7: 0 | CO7: 0 | CP7: 0 | CQ7: =IF(BG7="","",IF(CI7=0,0,COUNT($CP$2:$CP$26)-(RANK(CP7,$CP$2:$CP$26,1)+COUNTIF($CP$2:CP7,CP7)-1)+1)) -> 11 | CR7: =IF($CI7="","",IF(Tables!$H$3<>"",0,IF(ISNA(VLOOKUP(CQ7,Tables!G$5:H$28,2,FALSE)),0,VLOOKUP(CQ7,Tables!G$5:H$28,2,FALSE)))) -> 0 | CS7: =IF(BG7="","",INDEX(Form!$B$1:'Form'!$J$1000,MATCH($BD7,Form!$A$1:'Form'!$A$1000,0)+5,6)) -> 0::0-0-0 | CT7: 0 | CU7: :0-0-0 | CV7: 0 0 0 | CW7: 0 | CX7: 0 | CY7: 0 | CZ7: 0 | DA7: =IF(BG7="","",IF(CS7=0,0,COUNT($CZ$2:$CZ$26)-(RANK(CZ7,$CZ$2:$CZ$26,1)+COUNTIF($CZ$2:CZ7,CZ7)-1)+1)) -> 9 | DB7: =IF($CS7="","",IF(Tables!$J$3<>"",0,IF(Tables!$K$1=0,0,IF(ISNA(VLOOKUP(DA7,Tables!$I$5:$J$28,2,FALSE)),"0",VLOOKUP(DA7,Tables!$I$5:$J$28,2,FALSE))))) -> 0 | DC7: 2011-09-27 | DD7: 128 | DE7: 72 | DF7: 2011-09-14 | DG7: 141 | DH7: -41 | DI7: 31 | DJ7: =IF(BG7="","",COUNT($DI$2:$DI$26)-(RANK(DI7,$DI$2:$DI$26,1)+COUNTIF($DI$2:DI7,DI7)-1)+1) -> 11 | DK7: =IF($BG7="","",IF(ISNA(VLOOKUP(DJ7,Tables!K$5:L$28,2,FALSE)),"0",VLOOKUP(DJ7,Tables!K$5:L$28,2,FALSE))) -> 0 | DL7: 12000 | DM7: =IF(BG7="","",(DL7-Form!$I$4)) -> -10500 | DN7: =IF(BG7="","",COUNT($DM$2:$DM$26)-(RANK(DM7,$DM$2:$DM$26,1)+COUNTIF($DM$2:DM7,DM7)-1)+1) -> 10 | DO7: =IF($BG7="","",IF(ISERROR(DN7),1,IF(ISNA(VLOOKUP(DN7,Tables!M$5:N$28,2,FALSE)),"0",VLOOKUP(DN7,Tables!M$5:N$28,2,FALSE)))) -> 0 | DP7: 1-14 1.3L | DQ7: 1 | DR7: 1.3L | DS7: 1.3 | DT7: =IF(MainSheet!$G21="","",IF(DS7="","",IF(ISERROR(DS7),"",ROUND(0+DS7/0.5,0)*0.5))) -> 1.5 | DU7: 100 | DV7: 7-16 2.1L | DW7: 7 | DX7: 2.1L | DY7: 2.1 | DZ7: =IF(MainSheet!$G21="","",IF(DY7="","",IF(ISERROR(DY7),"",ROUND(0+DY7/0.5,0)*0.5))) -> 2 | EA7: 98 | EB7: 4-16 2.2L | EC7: 4 | ED7: 2.2L | EE7: 2.2 | EF7: =IF(MainSheet!$G21="","",IF(EE7="","",IF(ISERROR(EE7),"",ROUND(0+EE7/0.5,0)*0.5))) -> 2 | EG7: 98 | EH7: 296 | EI7: =IF(BG7="","",COUNT($EH$2:$EH$26)-(RANK(EH7,$EH$2:$EH$26,1)+COUNTIF($EH$2:EH7,EH7)-1)+1) -> 1 | EJ7: =IF($BG7="","",IF(ISNA(VLOOKUP(EI7,Tables!O$5:P$28,2,FALSE)),"0",VLOOKUP(EI7,Tables!O$5:P$28,2,FALSE))) -> 10 | EK7: 90 | EL7: 90 | EM7: =IF(BG7="","",IF(EL7=0,0,COUNT($EL$2:$EL$26)-(RANK(EL7,$EL$2:$EL$26,1)+COUNTIF($EL$2:EL7,EL7)-1)+1)) -> 12 | EN7: =IF($BG7="","",IF(ISNA(VLOOKUP(EM7,Tables!Q$5:R$26,2,FALSE)),"0",VLOOKUP(EM7,Tables!Q$5:R$26,2,FALSE))) -> 0 | EO7: =IF(BG7="","",Form!K11) -> 10/1 | EP7: 10 | EQ7: 1 | ER7: 11 | ES7: 489 | ET7: =IF(BG7="","",IF(ES7=0,0,COUNT($ES$2:$ES$26)-(RANK(ES7,$ES$2:$ES$26,1)+COUNTIF($ES$2:ES7,ES7)-1)+1)) -> 7 | EU7: =IF($BG7="","",IF(ISNA(VLOOKUP(ET7,Tables!S$5:T$26,2,FALSE)),"0",VLOOKUP(ET7,Tables!S$5:T$26,2,FALSE))) -> 0 | EV7: =IF(BF7="","",IF(MainSheet!D21="Scratched","",IF(ISERROR(BL7+BQ7+CH7+CR7+DB7+DK7+DO7+EJ7+EN7+EU7),"",BL7+BQ7+CH7+CR7+DB7+DK7+DO7+EJ7+EN7+EU7))) -> 10 | EW7: 10 | EX7: 15.26315789 | EY7: =IF(EX7="","",COUNT($EX$2:$EX$26)-(RANK(EX7,$EX$2:$EX$26)+COUNTIF($EX$2:EX7,EX7)-1)+1) -> 5 | EZ7: 9 | FC7: 0.02607210285 | FD7: =IF(FC7="","",1/FC7*MainSheet!$R$11) -> 38.35517241
A8: =IF(Meetings1!A8="","",IF(Meetings1!A8="END","END",IF(Meetings1!B8="","",getAddress(Meetings1!E8)))) -> http://formguide.cyberhorse.com.au/Form/form.html?formdate=2012-02-02&track=Ball't&raceno=6 | M8: =IF(ISERROR(N8),"",IF(ISNA(VLOOKUP(N8,RaceList!$M$9:$O$41,3,FALSE)),"",VLOOKUP(N8,RaceList!$M$9:$O$41,3,FALSE))) ->  | N8: =IF(O8="","",IF(Meetings2!$B8="","",Meetings2!$B8)) -> HAWKESBURY (NR) | O8: =IF(Meetings2!D8="","",getAddress(Meetings2!D8)) -> http://www.tabonline.com.au/2012/02/02/NR01.html | P8: =IF(Meetings2!E8="","",getAddress(Meetings2!E8)) -> http://www.tabonline.com.au/2012/02/02/NR02.html | Q8: =IF(Meetings2!F8="","",getAddress(Meetings2!F8)) -> http://www.tabonline.com.au/2012/02/02/NR03.html | R8: =IF(Meetings2!G8="","",getAddress(Meetings2!G8)) -> http://www.tabonline.com.au/2012/02/02/NR04.html | S8: =IF(Meetings2!H8="","",getAddress(Meetings2!H8)) -> http://www.tabonline.com.au/2012/02/02/NR05.html | T8: =IF(Meetings2!I8="","",getAddress(Meetings2!I8)) -> http://www.tabonline.com.au/2012/02/02/NR06.html | U8: =IF(Meetings2!J8="","",getAddress(Meetings2!J8)) -> http://www.tabonline.com.au/2012/02/02/NR07.html | V8: =IF(Meetings2!K8="","",getAddress(Meetings2!K8)) -> http://www.tabonline.com.au/2012/02/02/NR08.html | W8: =IF(Meetings2!L8="","",getAddress(Meetings2!L8)) ->  | X8: =IF(Meetings2!M8="","",getAddress(Meetings2!M8)) ->  | Y8: =IF(Meetings2!AA8="","",getAddress(Meetings2!AA8)) ->  | Z8: =IF(AA8="","",IF(AA8="Career::",Form!A6,"")) ->  | AA8: 3 | AV8: 8 | AX8: =IF(Race!J8<>"",Race!C8,"") ->  | AY8: =IF(AX8<>"",Race!N8,"") ->  | AZ8: =IF(AX8<>"",Race!I8,"") ->  | BA8: =IF(AX8<>"",Race!L8,"") ->  | BC8: 7 King's Shilling | BD8: =IF(Form!K12<>"",LEFT(Form!D12,FIND("(",Form!D12)-2),"") -> King's Shilling | BF8: =IF(BD8="","",Form!B12) -> 7 | BG8: 6 | BH8: =IF(BG8="","",Form!G12) -> 58.5 | BI8: =IF($BG8="","",IF(MainSheet!G22="","",Form!H12)) -> 1.4 | BJ8: 0.9986 | BK8: =IF(BG8="","",COUNT($BJ$2:$BJ$26)-(RANK(BJ8,$BJ$2:$BJ$26)+COUNTIF($BJ$2:BJ8,BJ8)-1)+1) -> 11 | BL8: =IF($BG8="","",IF(ISNA(VLOOKUP(BK8,Tables!A$5:B$28,2,FALSE)),0,VLOOKUP(BK8,Tables!A$5:B$28,2,FALSE))) -> 0 | BM8: =IF(BG8="","",Form!I12) -> 16.7 | BN8: =IF(BG8="","",Form!J12) -> 16.7 | BO8: 33.4 | BP8: =IF(BG8="","",COUNT($BO$2:$BO$26)-(RANK(BO8,$BO$2:$BO$26,1)+COUNTIF($BO$2:BO8,BO8)-1)+1) -> 10 | BQ8: =IF($BG8="","",IF(ISNA(VLOOKUP(BP8,Tables!C$5:D$28,2,FALSE)),0,VLOOKUP(BP8,Tables!C$5:D$28,2,FALSE))) -> 0 | BR8: =IF(BG8="","",INDEX(Form!$B$1:'Form'!$J$1000,MATCH($BD8,Form!$A$1:'Form'!$A$1000,0)+3,8)) -> 0::0-0-0 | BS8: 0 | BT8: :0-0-0 | BU8: 0 0 0 | BV8: 0 | BW8: 0 | BX8: =IF(BS8="","",RIGHT(BU8,LEN(BU8)-SEARCH(" ",BU8,SEARCH(" ",BU8,1)+1))) -> 0 | BY8: =IF(BG8="","",INDEX(Form!$B$1:'Form'!$J$1000,MATCH($BD8,Form!$A$1:'Form'!$A$1000,0)+3,9)) -> 0::0-0-0 | BZ8: 0 | CA8: :0-0-0 | CB8: 0 0 0 | CC8: 0 | CD8: 0 | CE8: 0 | CF8: 0 | CG8: =IF(MainSheet!G22="","",IF(CF8="","",COUNT($CF$2:$CF$26)-(RANK(CF8,$CF$2:$CF$26,1)+COUNTIF($CF$2:CF8,CF8)-1)+1)) -> 11 | CH8: =IF($BY8="","",IF(Tables!$F$3<>"",0,IF(ISNA(VLOOKUP(CG8,Tables!E$5:F$28,2,FALSE)),0,VLOOKUP(CG8,Tables!E$5:F$28,2,FALSE)))) -> 0 | CI8: =IF(BG8="","",INDEX(Form!$B$1:'Form'!$J$1000,MATCH($BD8,Form!$A$1:'Form'!$A$1000,0)+5,5)) -> 0::0-0-0 | CJ8: 0 | CK8: :0-0-0 | CL8: 0 0 0 | CM8: 0 | CN8: 0 | CO8: 0 | CP8: 0 | CQ8: =IF(BG8="","",IF(CI8=0,0,COUNT($CP$2:$CP$26)-(RANK(CP8,$CP$2:$CP$26,1)+COUNTIF($CP$2:CP8,CP8)-1)+1)) -> 10 | CR8: =IF($CI8="","",IF(Tables!$H$3<>"",0,IF(ISNA(VLOOKUP(CQ8,Tables!G$5:H$28,2,FALSE)),0,VLOOKUP(CQ8,Tables!G$5:H$28,2,FALSE)))) -> 0 | CS8: =IF(BG8="","",INDEX(Form!$B$1:'Form'!$J$1000,MATCH($BD8,Form!$A$1:'Form'!$A$1000,0)+5,6)) -> 0::0-0-0 | CT8: 0 | CU8: :0-0-0 | CV8: 0 0 0 | CW8: 0 | CX8: 0 | CY8: 0 | CZ8: 0 | DA8: =IF(BG8="","",IF(CS8=0,0,COUNT($CZ$2:$CZ$26)-(RANK(CZ8,$CZ$2:$CZ$26,1)+COUNTIF($CZ$2:CZ8,CZ8)-1)+1)) -> 8 | DB8: =IF($CS8="","",IF(Tables!$J$3<>"",0,IF(Tables!$K$1=0,0,IF(ISNA(VLOOKUP(DA8,Tables!$I$5:$J$28,2,FALSE)),"0",VLOOKUP(DA8,Tables!$I$5:$J$28,2,FALSE))))) -> 0 | DC8: 2011-11-12 | DD8: 82 | DE8: 118 | DF8: 2011-10-28 | DG8: 97 | DH8: 3 | DI8: 121 | DJ8: =IF(BG8="","",COUNT($DI$2:$DI$26)-(RANK(DI8,$DI$2:$DI$26,1)+COUNTIF($DI$2:DI8,DI8)-1)+1) -> 8 | DK8: =IF($BG8="","",IF(ISNA(VLOOKUP(DJ8,Tables!K$5:L$28,2,FALSE)),"0",VLOOKUP(DJ8,Tables!K$5:L$28,2,FALSE))) -> 0 | DL8: 351000 | DM8: =IF(BG8="","",(DL8-Form!$I$4)) -> 328500 | DN8: =IF(BG8="","",COUNT($DM$2:$DM$26)-(RANK(DM8,$DM$2:$DM$26,1)+COUNTIF($DM$2:DM8,DM8)-1)+1) -> 1 | DO8: =IF($BG8="","",IF(ISERROR(DN8),1,IF(ISNA(VLOOKUP(DN8,Tables!M$5:N$28,2,FALSE)),"0",VLOOKUP(DN8,Tables!M$5:N$28,2,FALSE)))) -> 10 | DP8: 9-13 7.3L | DQ8: 9 | DR8: 7.3L | DS8: 7.3 | DT8: =IF(MainSheet!$G22="","",IF(DS8="","",IF(ISERROR(DS8),"",ROUND(0+DS8/0.5,0)*0.5))) -> 7.5 | DU8: 92.5 | DV8: 1-8 6.0L | DW8: 1 | DX8: 6.0L | DY8: 6.0 | DZ8: =IF(MainSheet!$G22="","",IF(DY8="","",IF(ISERROR(DY8),"",ROUND(0+DY8/0.5,0)*0.5))) -> 6 | EA8: 100 | EB8: 6-11 6.5L | EC8: 6 | ED8: 6.5L | EE8: 6.5 | EF8: =IF(MainSheet!$G22="","",IF(EE8="","",IF(ISERROR(EE8),"",ROUND(0+EE8/0.5,0)*0.5))) -> 6.5 | EG8: 93.5 | EH8: 286 | EI8: =IF(BG8="","",COUNT($EH$2:$EH$26)-(RANK(EH8,$EH$2:$EH$26,1)+COUNTIF($EH$2:EH8,EH8)-1)+1) -> 10 | EJ8: =IF($BG8="","",IF(ISNA(VLOOKUP(EI8,Tables!O$5:P$28,2,FALSE)),"0",VLOOKUP(EI8,Tables!O$5:P$28,2,FALSE))) -> 0 | EK8: 94 | EL8: 94 | EM8: =IF(BG8="","",IF(EL8=0,0,COUNT($EL$2:$EL$26)-(RANK(EL8,$EL$2:$EL$26,1)+COUNTIF($EL$2:EL8,EL8)-1)+1)) -> 8 | EN8: =IF($BG8="","",IF(ISNA(VLOOKUP(EM8,Tables!Q$5:R$26,2,FALSE)),"0",VLOOKUP(EM8,Tables!Q$5:R$26,2,FALSE))) -> 0 | EO8: =IF(BG8="","",Form!K12) -> 15/1 | EP8: 15 | EQ8: 1 | ER8: 16 | ES8: 484 | ET8: =IF(BG8="","",IF(ES8=0,0,COUNT($ES$2:$ES$26)-(RANK(ES8,$ES$2:$ES$26,1)+COUNTIF($ES$2:ES8,ES8)-1)+1)) -> 11 | EU8: =IF($BG8="","",IF(ISNA(VLOOKUP(ET8,Tables!S$5:T$26,2,FALSE)),"0",VLOOKUP(ET8,Tables!S$5:T$26,2,FALSE))) -> 0 | EV8: =IF(BF8="","",IF(MainSheet!D22="Scratched","",IF(ISERROR(BL8+BQ8+CH8+CR8+DB8+DK8+DO8+EJ8+EN8+EU8),"",BL8+BQ8+CH8+CR8+DB8+DK8+DO8+EJ8+EN8+EU8))) -> 10 | EW8: 10 | EX8: 15.26315789 | EY8: =IF(EX8="","",COUNT($EX$2:$EX$26)-(RANK(EX8,$EX$2:$EX$26)+COUNTIF($EX$2:EX8,EX8)-1)+1) -> 4 | EZ8: 10 | FC8: 0.02607210285 | FD8: =IF(FC8="","",1/FC8*MainSheet!$R$11) -> 38.35517241
A9: =IF(Meetings1!A9="","",IF(Meetings1!A9="END","END",IF(Meetings1!B9="","",getAddress(Meetings1!E9)))) -> http://formguide.cyberhorse.com.au/Form/form.html?formdate=2012-02-02&track=Ball't&raceno=7 | M9: =IF(ISERROR(N9),"",IF(ISNA(VLOOKUP(N9,RaceList!$M$9:$O$41,3,FALSE)),"",VLOOKUP(N9,RaceList!$M$9:$O$41,3,FALSE))) -> Ballarat | N9: =IF(O9="","",IF(Meetings2!$B9="","",Meetings2!$B9)) -> BALLARAT (VR) | O9: =IF(Meetings2!D9="","",getAddress(Meetings2!D9)) -> http://www.tabonline.com.au/2012/02/02/VR01.html | P9: =IF(Meetings2!E9="","",getAddress(Meetings2!E9)) -> http://www.tabonline.com.au/2012/02/02/VR02.html | Q9: =IF(Meetings2!F9="","",getAddress(Meetings2!F9)) -> http://www.tabonline.com.au/2012/02/02/VR03.html | R9: =IF(Meetings2!G9="","",getAddress(Meetings2!G9)) -> http://www.tabonline.com.au/2012/02/02/VR04.html | S9: =IF(Meetings2!H9="","",getAddress(Meetings2!H9)) -> http://www.tabonline.com.au/2012/02/02/VR05.html | T9: =IF(Meetings2!I9="","",getAddress(Meetings2!I9)) -> http://www.tabonline.com.au/2012/02/02/VR06.html | U9: =IF(Meetings2!J9="","",getAddress(Meetings2!J9)) -> http://www.tabonline.com.au/2012/02/02/VR07.html | V9: =IF(Meetings2!K9="","",getAddress(Meetings2!K9)) -> http://www.tabonline.com.au/2012/02/02/VR08.html | W9: =IF(Meetings2!L9="","",getAddress(Meetings2!L9)) ->  | X9: =IF(Meetings2!M9="","",getAddress(Meetings2!M9)) ->  | Y9: =IF(Meetings2!AA9="","",getAddress(Meetings2!AA9)) ->  | Z9: =IF(AA9="","",IF(AA9="Career::",Form!A7,"")) ->  | AA9: 4 | AV9: 8 | AX9: =IF(Race!J9<>"",Race!C9,"") ->  | AY9: =IF(AX9<>"",Race!N9,"") ->  | AZ9: =IF(AX9<>"",Race!I9,"") ->  | BA9: =IF(AX9<>"",Race!L9,"") ->  | BC9: 8 Miss Reveal | BD9: =IF(Form!K13<>"",LEFT(Form!D13,FIND("(",Form!D13)-2),"") -> Miss Reveal | BF9: =IF(BD9="","",Form!B13) -> 8 | BG9: 13 | BH9: =IF(BG9="","",Form!G13) -> 58 | BI9: =IF($BG9="","",IF(MainSheet!G23="","",Form!H13)) -> 2.6 | BJ9: 0.9974 | BK9: =IF(BG9="","",COUNT($BJ$2:$BJ$26)-(RANK(BJ9,$BJ$2:$BJ$26)+COUNTIF($BJ$2:BJ9,BJ9)-1)+1) -> 4 | BL9: =IF($BG9="","",IF(ISNA(VLOOKUP(BK9,Tables!A$5:B$28,2,FALSE)),0,VLOOKUP(BK9,Tables!A$5:B$28,2,FALSE))) -> 4 | BM9: =IF(BG9="","",Form!I13) -> 12.5 | BN9: =IF(BG9="","",Form!J13) -> 37.5 | BO9: 50 | BP9: =IF(BG9="","",COUNT($BO$2:$BO$26)-(RANK(BO9,$BO$2:$BO$26,1)+COUNTIF($BO$2:BO9,BO9)-1)+1) -> 6 | BQ9: =IF($BG9="","",IF(ISNA(VLOOKUP(BP9,Tables!C$5:D$28,2,FALSE)),0,VLOOKUP(BP9,Tables!C$5:D$28,2,FALSE))) -> 0 | BR9: =IF(BG9="","",INDEX(Form!$B$1:'Form'!$J$1000,MATCH($BD9,Form!$A$1:'Form'!$A$1000,0)+3,8)) -> 4::1-0-0 | BS9: 4 | BT9: :1-0-0 | BU9: 1 0 0 | BV9: 1 | BW9: 0 | BX9: 0 | BY9: =IF(BG9="","",INDEX(Form!$B$1:'Form'!$J$1000,MATCH($BD9,Form!$A$1:'Form'!$A$1000,0)+3,9)) -> 6::1-1-0 | BZ9: 6 | CA9: :1-1-0 | CB9: 1 1 0 | CC9: 1 | CD9: 1 | CE9: 0 | CF9: 5 | CG9: =IF(MainSheet!G23="","",IF(CF9="","",COUNT($CF$2:$CF$26)-(RANK(CF9,$CF$2:$CF$26,1)+COUNTIF($CF$2:CF9,CF9)-1)+1)) -> 2 | CH9: =IF($BY9="","",IF(Tables!$F$3<>"",0,IF(ISNA(VLOOKUP(CG9,Tables!E$5:F$28,2,FALSE)),0,VLOOKUP(CG9,Tables!E$5:F$28,2,FALSE)))) -> 8 | CI9: =IF(BG9="","",INDEX(Form!$B$1:'Form'!$J$1000,MATCH($BD9,Form!$A$1:'Form'!$A$1000,0)+5,5)) -> 2::0-0-0 | CJ9: 2 | CK9: :0-0-0 | CL9: 0 0 0 | CM9: 0 | CN9: 0 | CO9: 0 | CP9: 0 | CQ9: =IF(BG9="","",IF(CI9=0,0,COUNT($CP$2:$CP$26)-(RANK(CP9,$CP$2:$CP$26,1)+COUNTIF($CP$2:CP9,CP9)-1)+1)) -> 9 | CR9: =IF($CI9="","",IF(Tables!$H$3<>"",0,IF(ISNA(VLOOKUP(CQ9,Tables!G$5:H$28,2,FALSE)),0,VLOOKUP(CQ9,Tables!G$5:H$28,2,FALSE)))) -> 0 | CS9: =IF(BG9="","",INDEX(Form!$B$1:'Form'!$J$1000,MATCH($BD9,Form!$A$1:'Form'!$A$1000,0)+5,6)) -> 2::1-0-0 | CT9: 2 | CU9: :1-0-0 | CV9: 1 0 0 | CW9: 1 | CX9: 0 | CY9: 0 | CZ9: 2 | DA9: =IF(BG9="","",IF(CS9=0,0,COUNT($CZ$2:$CZ$26)-(RANK(CZ9,$CZ$2:$CZ$26,1)+COUNTIF($CZ$2:CZ9,CZ9)-1)+1)) -> 1 | DB9: =IF($CS9="","",IF(Tables!$J$3<>"",0,IF(Tables!$K$1=0,0,IF(ISNA(VLOOKUP(DA9,Tables!$I$5:$J$28,2,FALSE)),"0",VLOOKUP(DA9,Tables!$I$5:$J$28,2,FALSE))))) -> 0 | DC9: 2012-01-22 | DD9: 11 | DE9: 189 | DF9: 2011-12-18 | DG9: 46 | DH9: 54 | DI9: 243 | DJ9: =IF(BG9="","",COUNT($DI$2:$DI$26)-(RANK(DI9,$DI$2:$DI$26,1)+COUNTIF($DI$2:DI9,DI9)-1)+1) -> 4 | DK9: =IF($BG9="","",IF(ISNA(VLOOKUP(DJ9,Tables!K$5:L$28,2,FALSE)),"0",VLOOKUP(DJ9,Tables!K$5:L$28,2,FALSE))) -> 4 | DL9: 22500 | DM9: =IF(BG9="","",(DL9-Form!$I$4)) -> 0 | DN9: =IF(BG9="","",COUNT($DM$2:$DM$26)-(RANK(DM9,$DM$2:$DM$26,1)+COUNTIF($DM$2:DM9,DM9)-1)+1) -> 4 | DO9: =IF($BG9="","",IF(ISERROR(DN9),1,IF(ISNA(VLOOKUP(DN9,Tables!M$5:N$28,2,FALSE)),"0",VLOOKUP(DN9,Tables!M$5:N$28,2,FALSE)))) -> 4 | DP9: 8-13 3.3L | DQ9: 8 | DR9: 3.3L | DS9: 3.3 | DT9: =IF(MainSheet!$G23="","",IF(DS9="","",IF(ISERROR(DS9),"",ROUND(0+DS9/0.5,0)*0.5))) -> 3.5 | DU9: 96.5 | DV9: 6-8 2.7L | DW9: 6 | DX9: 2.7L | DY9: 2.7 | DZ9: =IF(MainSheet!$G23="","",IF(DY9="","",IF(ISERROR(DY9),"",ROUND(0+DY9/0.5,0)*0.5))) -> 2.5 | EA9: 97.5 | EB9: 2-12 0.8L | EC9: 2 | ED9: 0.8L | EE9: 0.8 | EF9: =IF(MainSheet!$G23="","",IF(EE9="","",IF(ISERROR(EE9),"",ROUND(0+EE9/0.5,0)*0.5))) -> 1 | EG9: 99 | EH9: 293 | EI9: =IF(BG9="","",COUNT($EH$2:$EH$26)-(RANK(EH9,$EH$2:$EH$26,1)+COUNTIF($EH$2:EH9,EH9)-1)+1) -> 2 | EJ9: =IF($BG9="","",IF(ISNA(VLOOKUP(EI9,Tables!O$5:P$28,2,FALSE)),"0",VLOOKUP(EI9,Tables!O$5:P$28,2,FALSE))) -> 8 | EK9: 96 | EL9: 96 | EM9: =IF(BG9="","",IF(EL9=0,0,COUNT($EL$2:$EL$26)-(RANK(EL9,$EL$2:$EL$26,1)+COUNTIF($EL$2:EL9,EL9)-1)+1)) -> 4 | EN9: =IF($BG9="","",IF(ISNA(VLOOKUP(EM9,Tables!Q$5:R$26,2,FALSE)),"0",VLOOKUP(EM9,Tables!Q$5:R$26,2,FALSE))) -> 4 | EO9: =IF(BG9="","",Form!K13) -> 7/1 | EP9: 7 | EQ9: 1 | ER9: 8 | ES9: 492 | ET9: =IF(BG9="","",IF(ES9=0,0,COUNT($ES$2:$ES$26)-(RANK(ES9,$ES$2:$ES$26,1)+COUNTIF($ES$2:ES9,ES9)-1)+1)) -> 4 | EU9: =IF($BG9="","",IF(ISNA(VLOOKUP(ET9,Tables!S$5:T$26,2,FALSE)),"0",VLOOKUP(ET9,Tables!S$5:T$26,2,FALSE))) -> 4 | EV9: =IF(BF9="","",IF(MainSheet!D23="Scratched","",IF(ISERROR(BL9+BQ9+CH9+CR9+DB9+DK9+DO9+EJ9+EN9+EU9),"",BL9+BQ9+CH9+CR9+DB9+DK9+DO9+EJ9+EN9+EU9))) -> 36 | EW9: 36 | EX9: 104.2105263 | EY9: =IF(EX9="","",COUNT($EX$2:$EX$26)-(RANK(EX9,$EX$2:$EX$26)+COUNTIF($EX$2:EX9,EX9)-1)+1) -> 12 | EZ9: 2 | FA9: 104.2105263 | FB9: 0.2356020942 | FC9: 0.2356020942 | FD9: =IF(FC9="","",1/FC9*MainSheet!$R$11) -> 4.244444444
A10: =IF(Meetings1!A10="","",IF(Meetings1!A10="END","END",IF(Meetings1!B10="","",getAddress(Meetings1!E10)))) -> http://formguide.cyberhorse.com.au/Form/form.html?formdate=2012-02-02&track=Ball't&raceno=8 | M10: =IF(ISERROR(N10),"",IF(ISNA(VLOOKUP(N10,RaceList!$M$9:$O$41,3,FALSE)),"",VLOOKUP(N10,RaceList!$M$9:$O$41,3,FALSE))) ->  | N10: =IF(O10="","",IF(Meetings2!$B10="","",Meetings2!$B10)) -> GERALDTON (PR) | O10: =IF(Meetings2!D10="","",getAddress(Meetings2!D10)) -> http://www.tabonline.com.au/2012/02/02/PR01.html | P10: =IF(Meetings2!E10="","",getAddress(Meetings2!E10)) -> http://www.tabonline.com.au/2012/02/02/PR02.html | Q10: =IF(Meetings2!F10="","",getAddress(Meetings2!F10)) -> http://www.tabonline.com.au/2012/02/02/PR03.html | R10: =IF(Meetings2!G10="","",getAddress(Meetings2!G10)) -> http://www.tabonline.com.au/2012/02/02/PR04.html | S10: =IF(Meetings2!H10="","",getAddress(Meetings2!H10)) -> http://www.tabonline.com.au/2012/02/02/PR05.html | T10: =IF(Meetings2!I10="","",getAddress(Meetings2!I10)) -> http://www.tabonline.com.au/2012/02/02/PR06.html | U10: =IF(Meetings2!J10="","",getAddress(Meetings2!J10)) -> http://www.tabonline.com.au/2012/02/02/PR07.html | V10: =IF(Meetings2!K10="","",getAddress(Meetings2!K10)) ->  | W10: =IF(Meetings2!L10="","",getAddress(Meetings2!L10)) ->  | X10: =IF(Meetings2!M10="","",getAddress(Meetings2!M10)) ->  | Y10: =IF(Meetings2!AA10="","",getAddress(Meetings2!AA10)) ->  | Z10: =IF(AA10="","",IF(AA10="Career::",Form!A8,"")) ->  | AA10: 5 | AV10: 8 | AX10: =IF(Race!J10<>"",Race!C10,"") ->  | AY10: =IF(AX10<>"",Race!N10,"") ->  | AZ10: =IF(AX10<>"",Race!I10,"") ->  | BA10: =IF(AX10<>"",Race!L10,"") ->  | BC10: 9 Tequila Queen | BD10: =IF(Form!K14<>"",LEFT(Form!D14,FIND("(",Form!D14)-2),"") -> Tequila Queen | BF10: =IF(BD10="","",Form!B14) -> 9 | BG10: 5 | BH10: =IF(BG10="","",Form!G14) -> 58 | BI10: =IF($BG10="","",IF(MainSheet!G24="","",Form!H14)) -> 2.2 | BJ10: 0.9978 | BK10: =IF(BG10="","",COUNT($BJ$2:$BJ$26)-(RANK(BJ10,$BJ$2:$BJ$26)+COUNTIF($BJ$2:BJ10,BJ10)-1)+1) -> 6 | BL10: =IF($BG10="","",IF(ISNA(VLOOKUP(BK10,Tables!A$5:B$28,2,FALSE)),0,VLOOKUP(BK10,Tables!A$5:B$28,2,FALSE))) -> 0 | BM10: =IF(BG10="","",Form!I14) -> 18.8 | BN10: =IF(BG10="","",Form!J14) -> 18.8 | BO10: 37.6 | BP10: =IF(BG10="","",COUNT($BO$2:$BO$26)-(RANK(BO10,$BO$2:$BO$26,1)+COUNTIF($BO$2:BO10,BO10)-1)+1) -> 9 | BQ10: =IF($BG10="","",IF(ISNA(VLOOKUP(BP10,Tables!C$5:D$28,2,FALSE)),0,VLOOKUP(BP10,Tables!C$5:D$28,2,FALSE))) -> 0 | BR10: =IF(BG10="","",INDEX(Form!$B$1:'Form'!$J$1000,MATCH($BD10,Form!$A$1:'Form'!$A$1000,0)+3,8)) -> 1::0-0-0 | BS10: 1 | BT10: :0-0-0 | BU10: 0 0 0 | BV10: 0 | BW10: 0 | BX10: 0 | BY10: =IF(BG10="","",INDEX(Form!$B$1:'Form'!$J$1000,MATCH($BD10,Form!$A$1:'Form'!$A$1000,0)+3,9)) -> 2::1-0-0 | BZ10: 2 | CA10: :1-0-0 | CB10: 1 0 0 | CC10: 1 | CD10: 0 | CE10: 0 | CF10: 2 | CG10: =IF(MainSheet!G24="","",IF(CF10="","",COUNT($CF$2:$CF$26)-(RANK(CF10,$CF$2:$CF$26,1)+COUNTIF($CF$2:CF10,CF10)-1)+1)) -> 5 | CH10: =IF($BY10="","",IF(Tables!$F$3<>"",0,IF(ISNA(VLOOKUP(CG10,Tables!E$5:F$28,2,FALSE)),0,VLOOKUP(CG10,Tables!E$5:F$28,2,FALSE)))) -> 2 | CI10: =IF(BG10="","",INDEX(Form!$B$1:'Form'!$J$1000,MATCH($BD10,Form!$A$1:'Form'!$A$1000,0)+5,5)) -> 2::1-0-0 | CJ10: 2 | CK10: :1-0-0 | CL10: 1 0 0 | CM10: 1 | CN10: 0 | CO10: 0 | CP10: 2 | CQ10: =IF(BG10="","",IF(CI10=0,0,COUNT($CP$2:$CP$26)-(RANK(CP10,$CP$2:$CP$26,1)+COUNTIF($CP$2:CP10,CP10)-1)+1)) -> 3 | CR10: =IF($CI10="","",IF(Tables!$H$3<>"",0,IF(ISNA(VLOOKUP(CQ10,Tables!G$5:H$28,2,FALSE)),0,VLOOKUP(CQ10,Tables!G$5:H$28,2,FALSE)))) -> 0 | CS10: =IF(BG10="","",INDEX(Form!$B$1:'Form'!$J$1000,MATCH($BD10,Form!$A$1:'Form'!$A$1000,0)+5,6)) -> 0::0-0-0 | CT10: 0 | CU10: :0-0-0 | CV10: 0 0 0 | CW10: 0 | CX10: 0 | CY10: 0 | CZ10: 0 | DA10: =IF(BG10="","",IF(CS10=0,0,COUNT($CZ$2:$CZ$26)-(RANK(CZ10,$CZ$2:$CZ$26,1)+COUNTIF($CZ$2:CZ10,CZ10)-1)+1)) -> 7 | DB10: =IF($CS10="","",IF(Tables!$J$3<>"",0,IF(Tables!$K$1=0,0,IF(ISNA(VLOOKUP(DA10,Tables!$I$5:$J$28,2,FALSE)),"0",VLOOKUP(DA10,Tables!$I$5:$J$28,2,FALSE))))) -> 0 | DC10: 2012-01-22 | DD10: 11 | DE10: 189 | DF10: 2012-01-08 | DG10: 25 | DH10: 75 | DI10: 264 | DJ10: =IF(BG10="","",COUNT($DI$2:$DI$26)-(RANK(DI10,$DI$2:$DI$26,1)+COUNTIF($DI$2:DI10,DI10)-1)+1) -> 1 | DK10: =IF($BG10="","",IF(ISNA(VLOOKUP(DJ10,Tables!K$5:L$28,2,FALSE)),"0",VLOOKUP(DJ10,Tables!K$5:L$28,2,FALSE))) -> 10 | DL10: 22500 | DM10: =IF(BG10="","",(DL10-Form!$I$4)) -> 0 | DN10: =IF(BG10="","",COUNT($DM$2:$DM$26)-(RANK(DM10,$DM$2:$DM$26,1)+COUNTIF($DM$2:DM10,DM10)-1)+1) -> 3 | DO10: =IF($BG10="","",IF(ISERROR(DN10),1,IF(ISNA(VLOOKUP(DN10,Tables!M$5:N$28,2,FALSE)),"0",VLOOKUP(DN10,Tables!M$5:N$28,2,FALSE)))) -> 6 | DP10: 6-13 3.1L | DQ10: 6 | DR10: 3.1L | DS10: 3.1 | DT10: =IF(MainSheet!$G24="","",IF(DS10="","",IF(ISERROR(DS10),"",ROUND(0+DS10/0.5,0)*0.5))) -> 3 | DU10: 97 | DV10: 5-9 2.2L | DW10: 5 | DX10: 2.2L | DY10: 2.2 | DZ10: =IF(MainSheet!$G24="","",IF(DY10="","",IF(ISERROR(DY10),"",ROUND(0+DY10/0.5,0)*0.5))) -> 2 | EA10: 98 | EB10: 7-9 4.4L | EC10: 7 | ED10: 4.4L | EE10: 4.4 | EF10: =IF(MainSheet!$G24="","",IF(EE10="","",IF(ISERROR(EE10),"",ROUND(0+EE10/0.5,0)*0.5))) -> 4.5 | EG10: 95.5 | EH10: 290.5 | EI10: =IF(BG10="","",COUNT($EH$2:$EH$26)-(RANK(EH10,$EH$2:$EH$26,1)+COUNTIF($EH$2:EH10,EH10)-1)+1) -> 5 | EJ10: =IF($BG10="","",IF(ISNA(VLOOKUP(EI10,Tables!O$5:P$28,2,FALSE)),"0",VLOOKUP(EI10,Tables!O$5:P$28,2,FALSE))) -> 2 | EK10: 94 | EL10: 94 | EM10: =IF(BG10="","",IF(EL10=0,0,COUNT($EL$2:$EL$26)-(RANK(EL10,$EL$2:$EL$26,1)+COUNTIF($EL$2:EL10,EL10)-1)+1)) -> 7 | EN10: =IF($BG10="","",IF(ISNA(VLOOKUP(EM10,Tables!Q$5:R$26,2,FALSE)),"0",VLOOKUP(EM10,Tables!Q$5:R$26,2,FALSE))) -> 0 | EO10: =IF(BG10="","",Form!K14) -> 10/1 | EP10: 10 | EQ10: 1 | ER10: 11 | ES10: 489 | ET10: =IF(BG10="","",IF(ES10=0,0,COUNT($ES$2:$ES$26)-(RANK(ES10,$ES$2:$ES$26,1)+COUNTIF($ES$2:ES10,ES10)-1)+1)) -> 6 | EU10: =IF($BG10="","",IF(ISNA(VLOOKUP(ET10,Tables!S$5:T$26,2,FALSE)),"0",VLOOKUP(ET10,Tables!S$5:T$26,2,FALSE))) -> 0 | EV10: =IF(BF10="","",IF(MainSheet!D24="Scratched","",IF(ISERROR(BL10+BQ10+CH10+CR10+DB10+DK10+DO10+EJ10+EN10+EU10),"",BL10+BQ10+CH10+CR10+DB10+DK10+DO10+EJ10+EN10+EU10))) -> 20 | EW10: 20 | EX10: 41.05263158 | EY10: =IF(EX10="","",COUNT($EX$2:$EX$26)-(RANK(EX10,$EX$2:$EX$26)+COUNTIF($EX$2:EX10,EX10)-1)+1) -> 8 | EZ10: 6 | FC10: 0.07012496629 | FD10: =IF(FC10="","",1/FC10*MainSheet!$R$11) -> 14.26025641
A11: =IF(Meetings1!A11="","",IF(Meetings1!A11="END","END",IF(Meetings1!B11="","",getAddress(Meetings1!E11)))) ->  | M11: =IF(ISERROR(N11),"",IF(ISNA(VLOOKUP(N11,RaceList!$M$9:$O$41,3,FALSE)),"",VLOOKUP(N11,RaceList!$M$9:$O$41,3,FALSE))) ->  | N11: =IF(O11="","",IF(Meetings2!$B11="","",Meetings2!$B11)) -> WOLVERHAMPTON (BS) | O11: =IF(Meetings2!D11="","",getAddress(Meetings2!D11)) -> http://www.tabonline.com.au/2012/02/02/BS01.html | P11: =IF(Meetings2!E11="","",getAddress(Meetings2!E11)) -> http://www.tabonline.com.au/2012/02/02/BS02.html | Q11: =IF(Meetings2!F11="","",getAddress(Meetings2!F11)) -> http://www.tabonline.com.au/2012/02/02/BS03.html | R11: =IF(Meetings2!G11="","",getAddress(Meetings2!G11)) ->  | S11: =IF(Meetings2!H11="","",getAddress(Meetings2!H11)) ->  | T11: =IF(Meetings2!I11="","",getAddress(Meetings2!I11)) ->  | U11: =IF(Meetings2!J11="","",getAddress(Meetings2!J11)) ->  | V11: =IF(Meetings2!K11="","",getAddress(Meetings2!K11)) ->  | W11: =IF(Meetings2!L11="","",getAddress(Meetings2!L11)) ->  | X11: =IF(Meetings2!M11="","",getAddress(Meetings2!M11)) ->  | Y11: =IF(Meetings2!AA11="","",getAddress(Meetings2!AA11)) ->  | Z11: =IF(AA11="","",IF(AA11="Career::",Form!A9,"")) ->  | AA11: 6 | AV11: 7 | AX11: =IF(Race!J11<>"",Race!C11,"") ->  | AY11: =IF(AX11<>"",Race!N11,"") ->  | AZ11: =IF(AX11<>"",Race!I11,"") ->  | BA11: =IF(AX11<>"",Race!L11,"") ->  | BC11: 10 Gothic Crown | BD11: =IF(Form!K15<>"",LEFT(Form!D15,FIND("(",Form!D15)-2),"") -> Gothic Crown | BF11: =IF(BD11="","",Form!B15) -> 10 | BG11: 3 | BH11: =IF(BG11="","",Form!G15) -> 57.5 | BI11: =IF($BG11="","",IF(MainSheet!G25="","",Form!H15)) -> 1.5 | BJ11: 0.9985 | BK11: =IF(BG11="","",COUNT($BJ$2:$BJ$26)-(RANK(BJ11,$BJ$2:$BJ$26)+COUNTIF($BJ$2:BJ11,BJ11)-1)+1) -> 10 | BL11: =IF($BG11="","",IF(ISNA(VLOOKUP(BK11,Tables!A$5:B$28,2,FALSE)),0,VLOOKUP(BK11,Tables!A$5:B$28,2,FALSE))) -> 0 | BM11: =IF(BG11="","",Form!I15) -> 10.6 | BN11: =IF(BG11="","",Form!J15) -> 30.3 | BO11: 40.9 | BP11: =IF(BG11="","",COUNT($BO$2:$BO$26)-(RANK(BO11,$BO$2:$BO$26,1)+COUNTIF($BO$2:BO11,BO11)-1)+1) -> 8 | BQ11: =IF($BG11="","",IF(ISNA(VLOOKUP(BP11,Tables!C$5:D$28,2,FALSE)),0,VLOOKUP(BP11,Tables!C$5:D$28,2,FALSE))) -> 0 | BR11: =IF(BG11="","",INDEX(Form!$B$1:'Form'!$J$1000,MATCH($BD11,Form!$A$1:'Form'!$A$1000,0)+3,8)) -> 13::1-2-1 | BS11: 13 | BT11: :1-2-1 | BU11: 1 2 1 | BV11: 1 | BW11: 2 | BX11: 1 | BY11: =IF(BG11="","",INDEX(Form!$B$1:'Form'!$J$1000,MATCH($BD11,Form!$A$1:'Form'!$A$1000,0)+3,9)) -> 1::0-0-1 | BZ11: 1 | CA11: :0-0-1 | CB11: 0 0 1 | CC11: 0 | CD11: 0 | CE11: 1 | CF11: 6 | CG11: =IF(MainSheet!G25="","",IF(CF11="","",COUNT($CF$2:$CF$26)-(RANK(CF11,$CF$2:$CF$26,1)+COUNTIF($CF$2:CF11,CF11)-1)+1)) -> 1 | CH11: =IF($BY11="","",IF(Tables!$F$3<>"",0,IF(ISNA(VLOOKUP(CG11,Tables!E$5:F$28,2,FALSE)),0,VLOOKUP(CG11,Tables!E$5:F$28,2,FALSE)))) -> 10 | CI11: =IF(BG11="","",INDEX(Form!$B$1:'Form'!$J$1000,MATCH($BD11,Form!$A$1:'Form'!$A$1000,0)+5,5)) -> 8::1-1-1 | CJ11: 8 | CK11: :1-1-1 | CL11: 1 1 1 | CM11: 1 | CN11: 1 | CO11: 1 | CP11: 4 | CQ11: =IF(BG11="","",IF(CI11=0,0,COUNT($CP$2:$CP$26)-(RANK(CP11,$CP$2:$CP$26,1)+COUNTIF($CP$2:CP11,CP11)-1)+1)) -> 1 | CR11: =IF($CI11="","",IF(Tables!$H$3<>"",0,IF(ISNA(VLOOKUP(CQ11,Tables!G$5:H$28,2,FALSE)),0,VLOOKUP(CQ11,Tables!G$5:H$28,2,FALSE)))) -> 0 | CS11: =IF(BG11="","",INDEX(Form!$B$1:'Form'!$J$1000,MATCH($BD11,Form!$A$1:'Form'!$A$1000,0)+5,6)) -> 1::0-0-1 | CT11: 1 | CU11: :0-0-1 | CV11: 0 0 1 | CW11: 0 | CX11: 0 | CY11: 1 | CZ11: 1 | DA11: =IF(BG11="","",IF(CS11=0,0,COUNT($CZ$2:$CZ$26)-(RANK(CZ11,$CZ$2:$CZ$26,1)+COUNTIF($CZ$2:CZ11,CZ11)-1)+1)) -> 3 | DB11: =IF($CS11="","",IF(Tables!$J$3<>"",0,IF(Tables!$K$1=0,0,IF(ISNA(VLOOKUP(DA11,Tables!$I$5:$J$28,2,FALSE)),"0",VLOOKUP(DA11,Tables!$I$5:$J$28,2,FALSE))))) -> 0 | DC11: 2012-01-01 | DD11: 32 | DE11: 168 | DF11: 2011-12-28 | DG11: 36 | DH11: 64 | DI11: 232 | DJ11: =IF(BG11="","",COUNT($DI$2:$DI$26)-(RANK(DI11,$DI$2:$DI$26,1)+COUNTIF($DI$2:DI11,DI11)-1)+1) -> 6 | DK11: =IF($BG11="","",IF(ISNA(VLOOKUP(DJ11,Tables!K$5:L$28,2,FALSE)),"0",VLOOKUP(DJ11,Tables!K$5:L$28,2,FALSE))) -> 0 | DL11: 15000 | DM11: =IF(BG11="","",(DL11-Form!$I$4)) -> -7500 | DN11: =IF(BG11="","",COUNT($DM$2:$DM$26)-(RANK(DM11,$DM$2:$DM$26,1)+COUNTIF($DM$2:DM11,DM11)-1)+1) -> 7 | DO11: =IF($BG11="","",IF(ISERROR(DN11),1,IF(ISNA(VLOOKUP(DN11,Tables!M$5:N$28,2,FALSE)),"0",VLOOKUP(DN11,Tables!M$5:N$28,2,FALSE)))) -> 0 | DP11: 10-12 7.6L | DQ11: 10 | DR11: 7.6L | DS11: 10 | DT11: =IF(MainSheet!$G25="","",IF(DS11="","",IF(ISERROR(DS11),"",ROUND(0+DS11/0.5,0)*0.5))) -> 10 | DU11: 90 | DV11: 3-13 2.1L | DW11: 3 | DX11: 2.1L | DY11: 2.1 | DZ11: =IF(MainSheet!$G25="","",IF(DY11="","",IF(ISERROR(DY11),"",ROUND(0+DY11/0.5,0)*0.5))) -> 2 | EA11: 98 | EB11: 6-12 0.8L | EC11: 6 | ED11: 0.8L | EE11: 0.8 | EF11: =IF(MainSheet!$G25="","",IF(EE11="","",IF(ISERROR(EE11),"",ROUND(0+EE11/0.5,0)*0.5))) -> 1 | EG11: 99 | EH11: 287 | EI11: =IF(BG11="","",COUNT($EH$2:$EH$26)-(RANK(EH11,$EH$2:$EH$26,1)+COUNTIF($EH$2:EH11,EH11)-1)+1) -> 9 | EJ11: =IF($BG11="","",IF(ISNA(VLOOKUP(EI11,Tables!O$5:P$28,2,FALSE)),"0",VLOOKUP(EI11,Tables!O$5:P$28,2,FALSE))) -> 0 | EK11: 90 | EL11: 90 | EM11: =IF(BG11="","",IF(EL11=0,0,COUNT($EL$2:$EL$26)-(RANK(EL11,$EL$2:$EL$26,1)+COUNTIF($EL$2:EL11,EL11)-1)+1)) -> 11 | EN11: =IF($BG11="","",IF(ISNA(VLOOKUP(EM11,Tables!Q$5:R$26,2,FALSE)),"0",VLOOKUP(EM11,Tables!Q$5:R$26,2,FALSE))) -> 0 | EO11: =IF(BG11="","",Form!K15) -> 15/1 | EP11: 15 | EQ11: 1 | ER11: 16 | ES11: 484 | ET11: =IF(BG11="","",IF(ES11=0,0,COUNT($ES$2:$ES$26)-(RANK(ES11,$ES$2:$ES$26,1)+COUNTIF($ES$2:ES11,ES11)-1)+1)) -> 10 | EU11: =IF($BG11="","",IF(ISNA(VLOOKUP(ET11,Tables!S$5:T$26,2,FALSE)),"0",VLOOKUP(ET11,Tables!S$5:T$26,2,FALSE))) -> 0 | EV11: =IF(BF11="","",IF(MainSheet!D25="Scratched","",IF(ISERROR(BL11+BQ11+CH11+CR11+DB11+DK11+DO11+EJ11+EN11+EU11),"",BL11+BQ11+CH11+CR11+DB11+DK11+DO11+EJ11+EN11+EU11))) -> 10 | EW11: 10 | EX11: 15.26315789 | EY11: =IF(EX11="","",COUNT($EX$2:$EX$26)-(RANK(EX11,$EX$2:$EX$26)+COUNTIF($EX$2:EX11,EX11)-1)+1) -> 3 | EZ11: 11 | FC11: 0.02607210285 | FD11: =IF(FC11="","",1/FC11*MainSheet!$R$11) -> 38.35517241
A12: =IF(Meetings1!A12="","",IF(Meetings1!A12="END","END",IF(Meetings1!B12="","",getAddress(Meetings1!E12)))) ->  | M12: =IF(ISERROR(N12),"",IF(ISNA(VLOOKUP(N12,RaceList!$M$9:$O$41,3,FALSE)),"",VLOOKUP(N12,RaceList!$M$9:$O$41,3,FALSE))) ->  | N12: =IF(O12="","",IF(Meetings2!$B12="","",Meetings2!$B12)) -> VAAL (AS) | O12: =IF(Meetings2!D12="","",getAddress(Meetings2!D12)) -> http://www.tabonline.com.au/2012/02/02/AS01.html | P12: =IF(Meetings2!E12="","",getAddress(Meetings2!E12)) -> http://www.tabonline.com.au/2012/02/02/AS02.html | Q12: =IF(Meetings2!F12="","",getAddress(Meetings2!F12)) -> http://www.tabonline.com.au/2012/02/02/AS03.html | R12: =IF(Meetings2!G12="","",getAddress(Meetings2!G12)) -> http://www.tabonline.com.au/2012/02/02/AS04.html | S12: =IF(Meetings2!H12="","",getAddress(Meetings2!H12)) -> http://www.tabonline.com.au/2012/02/02/AS05.html | T12: =IF(Meetings2!I12="","",getAddress(Meetings2!I12)) -> http://www.tabonline.com.au/2012/02/02/AS06.html | U12: =IF(Meetings2!J12="","",getAddress(Meetings2!J12)) -> http://www.tabonline.com.au/2012/02/02/AS07.html | V12: =IF(Meetings2!K12="","",getAddress(Meetings2!K12)) -> http://www.tabonline.com.au/2012/02/02/AS08.html | W12: =IF(Meetings2!L12="","",getAddress(Meetings2!L12)) ->  | X12: =IF(Meetings2!M12="","",getAddress(Meetings2!M12)) ->  | Y12: =IF(Meetings2!AA12="","",getAddress(Meetings2!AA12)) ->  | Z12: =IF(AA12="","",IF(AA12="Career::",Form!A10,"")) ->  | AA12: 7 | AV12: 7 | AX12: =IF(Race!J12<>"",Race!C12,"") ->  | AY12: =IF(AX12<>"",Race!N12,"") ->  | AZ12: =IF(AX12<>"",Race!I12,"") ->  | BA12: =IF(AX12<>"",Race!L12,"") ->  | BC12: 11 Lucy Lil | BD12: =IF(Form!K16<>"",LEFT(Form!D16,FIND("(",Form!D16)-2),"") -> Lucy Lil | BF12: =IF(BD12="","",Form!B16) -> 11 | BG12: 2 | BH12: =IF(BG12="","",Form!G16) -> 57.5 | BI12: =IF($BG12="","",IF(MainSheet!G26="","",Form!H16)) -> 1.7 | BJ12: 0.9983 | BK12: =IF(BG12="","",COUNT($BJ$2:$BJ$26)-(RANK(BJ12,$BJ$2:$BJ$26)+COUNTIF($BJ$2:BJ12,BJ12)-1)+1) -> 8 | BL12: =IF($BG12="","",IF(ISNA(VLOOKUP(BK12,Tables!A$5:B$28,2,FALSE)),0,VLOOKUP(BK12,Tables!A$5:B$28,2,FALSE))) -> 0 | BM12: =IF(BG12="","",Form!I16) -> 20 | BN12: =IF(BG12="","",Form!J16) -> 40 | BO12: 60 | BP12: =IF(BG12="","",COUNT($BO$2:$BO$26)-(RANK(BO12,$BO$2:$BO$26,1)+COUNTIF($BO$2:BO12,BO12)-1)+1) -> 4 | BQ12: =IF($BG12="","",IF(ISNA(VLOOKUP(BP12,Tables!C$5:D$28,2,FALSE)),0,VLOOKUP(BP12,Tables!C$5:D$28,2,FALSE))) -> 4 | BR12: =IF(BG12="","",INDEX(Form!$B$1:'Form'!$J$1000,MATCH($BD12,Form!$A$1:'Form'!$A$1000,0)+3,8)) -> 0::0-0-0 | BS12: 0 | BT12: :0-0-0 | BU12: 0 0 0 | BV12: 0 | BW12: 0 | BX12: 0 | BY12: =IF(BG12="","",INDEX(Form!$B$1:'Form'!$J$1000,MATCH($BD12,Form!$A$1:'Form'!$A$1000,0)+3,9)) -> 1::0-0-0 | BZ12: 1 | CA12: :0-0-0 | CB12: 0 0 0 | CC12: 0 | CD12: 0 | CE12: 0 | CF12: 0 | CG12: =IF(MainSheet!G26="","",IF(CF12="","",COUNT($CF$2:$CF$26)-(RANK(CF12,$CF$2:$CF$26,1)+COUNTIF($CF$2:CF12,CF12)-1)+1)) -> 10 | CH12: =IF($BY12="","",IF(Tables!$F$3<>"",0,IF(ISNA(VLOOKUP(CG12,Tables!E$5:F$28,2,FALSE)),0,VLOOKUP(CG12,Tables!E$5:F$28,2,FALSE)))) -> 0 | CI12: =IF(BG12="","",INDEX(Form!$B$1:'Form'!$J$1000,MATCH($BD12,Form!$A$1:'Form'!$A$1000,0)+5,5)) -> 1::0-0-0 | CJ12: 1 | CK12: :0-0-0 | CL12: 0 0 0 | CM12: 0 | CN12: 0 | CO12: 0 | CP12: 0 | CQ12: =IF(BG12="","",IF(CI12=0,0,COUNT($CP$2:$CP$26)-(RANK(CP12,$CP$2:$CP$26,1)+COUNTIF($CP$2:CP12,CP12)-1)+1)) -> 8 | CR12: =IF($CI12="","",IF(Tables!$H$3<>"",0,IF(ISNA(VLOOKUP(CQ12,Tables!G$5:H$28,2,FALSE)),0,VLOOKUP(CQ12,Tables!G$5:H$28,2,FALSE)))) -> 0 | CS12: =IF(BG12="","",INDEX(Form!$B$1:'Form'!$J$1000,MATCH($BD12,Form!$A$1:'Form'!$A$1000,0)+5,6)) -> 0::0-0-0 | CT12: 0 | CU12: :0-0-0 | CV12: 0 0 0 | CW12: 0 | CX12: 0 | CY12: 0 | CZ12: 0 | DA12: =IF(BG12="","",IF(CS12=0,0,COUNT($CZ$2:$CZ$26)-(RANK(CZ12,$CZ$2:$CZ$26,1)+COUNTIF($CZ$2:CZ12,CZ12)-1)+1)) -> 6 | DB12: =IF($CS12="","",IF(Tables!$J$3<>"",0,IF(Tables!$K$1=0,0,IF(ISNA(VLOOKUP(DA12,Tables!$I$5:$J$28,2,FALSE)),"0",VLOOKUP(DA12,Tables!$I$5:$J$28,2,FALSE))))) -> 0 | DC12: 2012-01-22 | DD12: 11 | DE12: 189 | DF12: 2012-01-07 | DG12: 26 | DH12: 74 | DI12: 263 | DJ12: =IF(BG12="","",COUNT($DI$2:$DI$26)-(RANK(DI12,$DI$2:$DI$26,1)+COUNTIF($DI$2:DI12,DI12)-1)+1) -> 2 | DK12: =IF($BG12="","",IF(ISNA(VLOOKUP(DJ12,Tables!K$5:L$28,2,FALSE)),"0",VLOOKUP(DJ12,Tables!K$5:L$28,2,FALSE))) -> 8 | DL12: 12000 | DM12: =IF(BG12="","",(DL12-Form!$I$4)) -> -10500 | DN12: =IF(BG12="","",COUNT($DM$2:$DM$26)-(RANK(DM12,$DM$2:$DM$26,1)+COUNTIF($DM$2:DM12,DM12)-1)+1) -> 9 | DO12: =IF($BG12="","",IF(ISERROR(DN12),1,IF(ISNA(VLOOKUP(DN12,Tables!M$5:N$28,2,FALSE)),"0",VLOOKUP(DN12,Tables!M$5:N$28,2,FALSE)))) -> 0 | DP12: 3-9 3.5L | DQ12: 3 | DR12: 3.5L | DS12: 3.5 | DT12: =IF(MainSheet!$G26="","",IF(DS12="","",IF(ISERROR(DS12),"",ROUND(0+DS12/0.5,0)*0.5))) -> 3.5 | DU12: 96.5 | DV12: 6-12 4.2L | DW12: 6 | DX12: 4.2L | DY12: 4.2 | DZ12: =IF(MainSheet!$G26="","",IF(DY12="","",IF(ISERROR(DY12),"",ROUND(0+DY12/0.5,0)*0.5))) -> 4 | EA12: 96 | EB12: 1-15 0.8L | EC12: 1 | ED12: 0.8L | EE12: 0.8 | EF12: =IF(MainSheet!$G26="","",IF(EE12="","",IF(ISERROR(EE12),"",ROUND(0+EE12/0.5,0)*0.5))) -> 1 | EG12: 100 | EH12: 292.5 | EI12: =IF(BG12="","",COUNT($EH$2:$EH$26)-(RANK(EH12,$EH$2:$EH$26,1)+COUNTIF($EH$2:EH12,EH12)-1)+1) -> 3 | EJ12: =IF($BG12="","",IF(ISNA(VLOOKUP(EI12,Tables!O$5:P$28,2,FALSE)),"0",VLOOKUP(EI12,Tables!O$5:P$28,2,FALSE))) -> 6 | EK12: 96 | EL12: 96 | EM12: =IF(BG12="","",IF(EL12=0,0,COUNT($EL$2:$EL$26)-(RANK(EL12,$EL$2:$EL$26,1)+COUNTIF($EL$2:EL12,EL12)-1)+1)) -> 3 | EN12: =IF($BG12="","",IF(ISNA(VLOOKUP(EM12,Tables!Q$5:R$26,2,FALSE)),"0",VLOOKUP(EM12,Tables!Q$5:R$26,2,FALSE))) -> 6 | EO12: =IF(BG12="","",Form!K16) -> 10/1 | EP12: 10 | EQ12: 1 | ER12: 11 | ES12: 489 | ET12: =IF(BG12="","",IF(ES12=0,0,COUNT($ES$2:$ES$26)-(RANK(ES12,$ES$2:$ES$26,1)+COUNTIF($ES$2:ES12,ES12)-1)+1)) -> 5 | EU12: =IF($BG12="","",IF(ISNA(VLOOKUP(ET12,Tables!S$5:T$26,2,FALSE)),"0",VLOOKUP(ET12,Tables!S$5:T$26,2,FALSE))) -> 2 | EV12: =IF(BF12="","",IF(MainSheet!D26="Scratched","",IF(ISERROR(BL12+BQ12+CH12+CR12+DB12+DK12+DO12+EJ12+EN12+EU12),"",BL12+BQ12+CH12+CR12+DB12+DK12+DO12+EJ12+EN12+EU12))) -> 26 | EW12: 26 | EX12: 61.57894737 | EY12: =IF(EX12="","",COUNT($EX$2:$EX$26)-(RANK(EX12,$EX$2:$EX$26)+COUNTIF($EX$2:EX12,EX12)-1)+1) -> 11 | EZ12: 3 | FA12: 61.57894737 | FB12: 0.1392194193 | FC12: 0.1392194193 | FD12: =IF(FC12="","",1/FC12*MainSheet!$R$11) -> 7.182905983
A13: =IF(Meetings1!A13="","",IF(Meetings1!A13="END","END",IF(Meetings1!B13="","",getAddress(Meetings1!E13)))) ->  | M13: =IF(ISERROR(N13),"",IF(ISNA(VLOOKUP(N13,RaceList!$M$9:$O$41,3,FALSE)),"",VLOOKUP(N13,RaceList!$M$9:$O$41,3,FALSE))) ->  | N13: =IF(O13="","",IF(Meetings2!$B13="","",Meetings2!$B13)) -> SOUTHWELL (CS) | O13: =IF(Meetings2!D13="","",getAddress(Meetings2!D13)) -> http://www.tabonline.com.au/2012/02/02/CS01.html | P13: =IF(Meetings2!E13="","",getAddress(Meetings2!E13)) -> http://www.tabonline.com.au/2012/02/02/CS02.html | Q13: =IF(Meetings2!F13="","",getAddress(Meetings2!F13)) -> http://www.tabonline.com.au/2012/02/02/CS03.html | R13: =IF(Meetings2!G13="","",getAddress(Meetings2!G13)) ->  | S13: =IF(Meetings2!H13="","",getAddress(Meetings2!H13)) ->  | T13: =IF(Meetings2!I13="","",getAddress(Meetings2!I13)) ->  | U13: =IF(Meetings2!J13="","",getAddress(Meetings2!J13)) ->  | V13: =IF(Meetings2!K13="","",getAddress(Meetings2!K13)) ->  | W13: =IF(Meetings2!L13="","",getAddress(Meetings2!L13)) ->  | X13: =IF(Meetings2!M13="","",getAddress(Meetings2!M13)) ->  | Y13: =IF(Meetings2!AA13="","",getAddress(Meetings2!AA13)) ->  | Z13: =IF(AA13="","",IF(AA13="Career::",Form!A11,"")) ->  | AA13: 8 | AV13: 7 | AX13: =IF(Race!J13<>"",Race!C13,"") ->  | AY13: =IF(AX13<>"",Race!N13,"") ->  | AZ13: =IF(AX13<>"",Race!I13,"") ->  | BA13: =IF(AX13<>"",Race!L13,"") ->  | BC13: 12 Keypoints | BD13: =IF(Form!K17<>"",LEFT(Form!D17,FIND("(",Form!D17)-2),"") -> Keypoints | BF13: =IF(BD13="","",Form!B17) -> 12 | BG13: 10 | BH13: =IF(BG13="","",Form!G17) -> 54.5 | BI13: =IF($BG13="","",IF(MainSheet!G27="","",Form!H17)) -> 0.6 | BJ13: 0.9994 | BK13: =IF(BG13="","",COUNT($BJ$2:$BJ$26)-(RANK(BJ13,$BJ$2:$BJ$26)+COUNTIF($BJ$2:BJ13,BJ13)-1)+1) -> 12 | BL13: =IF($BG13="","",IF(ISNA(VLOOKUP(BK13,Tables!A$5:B$28,2,FALSE)),0,VLOOKUP(BK13,Tables!A$5:B$28,2,FALSE))) -> 0 | BM13: =IF(BG13="","",Form!I17) -> 6.2 | BN13: =IF(BG13="","",Form!J17) -> 18.8 | BO13: 25 | BP13: =IF(BG13="","",COUNT($BO$2:$BO$26)-(RANK(BO13,$BO$2:$BO$26,1)+COUNTIF($BO$2:BO13,BO13)-1)+1) -> 12 | BQ13: =IF($BG13="","",IF(ISNA(VLOOKUP(BP13,Tables!C$5:D$28,2,FALSE)),0,VLOOKUP(BP13,Tables!C$5:D$28,2,FALSE))) -> 0 | BR13: =IF(BG13="","",INDEX(Form!$B$1:'Form'!$J$1000,MATCH($BD13,Form!$A$1:'Form'!$A$1000,0)+3,8)) -> 4::0-0-0 | BS13: 4 | BT13: :0-0-0 | BU13: 0 0 0 | BV13: 0 | BW13: 0 | BX13: 0 | BY13: =IF(BG13="","",INDEX(Form!$B$1:'Form'!$J$1000,MATCH($BD13,Form!$A$1:'Form'!$A$1000,0)+3,9)) -> 0::0-0-0 | BZ13: 0 | CA13: :0-0-0 | CB13: 0 0 0 | CC13: 0 | CD13: 0 | CE13: 0 | CF13: 0 | CG13: =IF(MainSheet!G27="","",IF(CF13="","",COUNT($CF$2:$CF$26)-(RANK(CF13,$CF$2:$CF$26,1)+COUNTIF($CF$2:CF13,CF13)-1)+1)) -> 9 | CH13: =IF($BY13="","",IF(Tables!$F$3<>"",0,IF(ISNA(VLOOKUP(CG13,Tables!E$5:F$28,2,FALSE)),0,VLOOKUP(CG13,Tables!E$5:F$28,2,FALSE)))) -> 0 | CI13: =IF(BG13="","",INDEX(Form!$B$1:'Form'!$J$1000,MATCH($BD13,Form!$A$1:'Form'!$A$1000,0)+5,5)) -> 2::0-0-1 | CJ13: 2 | CK13: :0-0-1 | CL13: 0 0 1 | CM13: 0 | CN13: 0 | CO13: 1 | CP13: 1 | CQ13: =IF(BG13="","",IF(CI13=0,0,COUNT($CP$2:$CP$26)-(RANK(CP13,$CP$2:$CP$26,1)+COUNTIF($CP$2:CP13,CP13)-1)+1)) -> 5 | CR13: =IF($CI13="","",IF(Tables!$H$3<>"",0,IF(ISNA(VLOOKUP(CQ13,Tables!G$5:H$28,2,FALSE)),0,VLOOKUP(CQ13,Tables!G$5:H$28,2,FALSE)))) -> 0 | CS13: =IF(BG13="","",INDEX(Form!$B$1:'Form'!$J$1000,MATCH($BD13,Form!$A$1:'Form'!$A$1000,0)+5,6)) -> 0::0-0-0 | CT13: 0 | CU13: :0-0-0 | CV13: 0 0 0 | CW13: 0 | CX13: 0 | CY13: 0 | CZ13: 0 | DA13: =IF(BG13="","",IF(CS13=0,0,COUNT($CZ$2:$CZ$26)-(RANK(CZ13,$CZ$2:$CZ$26,1)+COUNTIF($CZ$2:CZ13,CZ13)-1)+1)) -> 5 | DB13: =IF($CS13="","",IF(Tables!$J$3<>"",0,IF(Tables!$K$1=0,0,IF(ISNA(VLOOKUP(DA13,Tables!$I$5:$J$28,2,FALSE)),"0",VLOOKUP(DA13,Tables!$I$5:$J$28,2,FALSE))))) -> 0 | DC13: 2011-12-05 | DD13: 59 | DE13: 141 | DF13: 2011-11-12 | DG13: 82 | DH13: 18 | DI13: 159 | DJ13: =IF(BG13="","",COUNT($DI$2:$DI$26)-(RANK(DI13,$DI$2:$DI$26,1)+COUNTIF($DI$2:DI13,DI13)-1)+1) -> 7 | DK13: =IF($BG13="","",IF(ISNA(VLOOKUP(DJ13,Tables!K$5:L$28,2,FALSE)),"0",VLOOKUP(DJ13,Tables!K$5:L$28,2,FALSE))) -> 0 | DL13: 12000 | DM13: =IF(BG13="","",(DL13-Form!$I$4)) -> -10500 | DN13: =IF(BG13="","",COUNT($DM$2:$DM$26)-(RANK(DM13,$DM$2:$DM$26,1)+COUNTIF($DM$2:DM13,DM13)-1)+1) -> 8 | DO13: =IF($BG13="","",IF(ISERROR(DN13),1,IF(ISNA(VLOOKUP(DN13,Tables!M$5:N$28,2,FALSE)),"0",VLOOKUP(DN13,Tables!M$5:N$28,2,FALSE)))) -> 0 | DP13: 11-14 8.3L | DQ13: 11 | DR13: 8.3L | DS13: 8.3 | DT13: =IF(MainSheet!$G27="","",IF(DS13="","",IF(ISERROR(DS13),"",ROUND(0+DS13/0.5,0)*0.5))) -> 8.5 | DU13: 91.5 | DV13: 10-10 7.1L | DW13: 10 | DX13: 7.1L | DY13: 10 | DZ13: =IF(MainSheet!$G27="","",IF(DY13="","",IF(ISERROR(DY13),"",ROUND(0+DY13/0.5,0)*0.5))) -> 10 | EA13: 90 | EB13: 9-10 42.7L | EC13: 9 | ED13: 42.7L | EE13: 42.7 | EF13: =IF(MainSheet!$G27="","",IF(EE13="","",IF(ISERROR(EE13),"",ROUND(0+EE13/0.5,0)*0.5))) -> 42.5 | EG13: 90 | EH13: 271.5 | EI13: =IF(BG13="","",COUNT($EH$2:$EH$26)-(RANK(EH13,$EH$2:$EH$26,1)+COUNTIF($EH$2:EH13,EH13)-1)+1) -> 13 | EJ13: =IF($BG13="","",IF(ISNA(VLOOKUP(EI13,Tables!O$5:P$28,2,FALSE)),"0",VLOOKUP(EI13,Tables!O$5:P$28,2,FALSE))) -> 0 | EK13: 90 | EL13: 90 | EM13: =IF(BG13="","",IF(EL13=0,0,COUNT($EL$2:$EL$26)-(RANK(EL13,$EL$2:$EL$26,1)+COUNTIF($EL$2:EL13,EL13)-1)+1)) -> 10 | EN13: =IF($BG13="","",IF(ISNA(VLOOKUP(EM13,Tables!Q$5:R$26,2,FALSE)),"0",VLOOKUP(EM13,Tables!Q$5:R$26,2,FALSE))) -> 0 | EO13: =IF(BG13="","",Form!K17) -> 20/1 | EP13: 20 | EQ13: 1 | ER13: 21 | ES13: 479 | ET13: =IF(BG13="","",IF(ES13=0,0,COUNT($ES$2:$ES$26)-(RANK(ES13,$ES$2:$ES$26,1)+COUNTIF($ES$2:ES13,ES13)-1)+1)) -> 12 | EU13: =IF($BG13="","",IF(ISNA(VLOOKUP(ET13,Tables!S$5:T$26,2,FALSE)),"0",VLOOKUP(ET13,Tables!S$5:T$26,2,FALSE))) -> 0 | EV13: =IF(BF13="","",IF(MainSheet!D27="Scratched","",IF(ISERROR(BL13+BQ13+CH13+CR13+DB13+DK13+DO13+EJ13+EN13+EU13),"",BL13+BQ13+CH13+CR13+DB13+DK13+DO13+EJ13+EN13+EU13))) -> 0 | EW13: 0 | EX13: 1 | EY13: =IF(EX13="","",COUNT($EX$2:$EX$26)-(RANK(EX13,$EX$2:$EX$26)+COUNTIF($EX$2:EX13,EX13)-1)+1) -> 1 | EZ13: 13 | FC13: 0.02 | FD13: =IF(FC13="","",1/FC13*MainSheet!$R$11) -> 50
A14: =IF(Meetings1!A14="","",IF(Meetings1!A14="END","END",IF(Meetings1!B14="","",getAddress(Meetings1!E14)))) ->  | M14: =IF(ISERROR(N14),"",IF(ISNA(VLOOKUP(N14,RaceList!$M$9:$O$41,3,FALSE)),"",VLOOKUP(N14,RaceList!$M$9:$O$41,3,FALSE))) ->  | N14: =IF(O14="","",IF(Meetings2!$B14="","",Meetings2!$B14)) -> WANGANUI (ZS) | O14: =IF(Meetings2!D14="","",getAddress(Meetings2!D14)) -> http://www.tabonline.com.au/2012/02/02/ZS01.html | P14: =IF(Meetings2!E14="","",getAddress(Meetings2!E14)) -> http://www.tabonline.com.au/2012/02/02/ZS02.html | Q14: =IF(Meetings2!F14="","",getAddress(Meetings2!F14)) -> http://www.tabonline.com.au/2012/02/02/ZS03.html | R14: =IF(Meetings2!G14="","",getAddress(Meetings2!G14)) -> http://www.tabonline.com.au/2012/02/02/ZS04.html | S14: =IF(Meetings2!H14="","",getAddress(Meetings2!H14)) -> http://www.tabonline.com.au/2012/02/02/ZS05.html | T14: =IF(Meetings2!I14="","",getAddress(Meetings2!I14)) -> http://www.tabonline.com.au/2012/02/02/ZS06.html | U14: =IF(Meetings2!J14="","",getAddress(Meetings2!J14)) -> http://www.tabonline.com.au/2012/02/02/ZS07.html | V14: =IF(Meetings2!K14="","",getAddress(Meetings2!K14)) -> http://www.tabonline.com.au/2012/02/02/ZS08.html | W14: =IF(Meetings2!L14="","",getAddress(Meetings2!L14)) ->  | X14: =IF(Meetings2!M14="","",getAddress(Meetings2!M14)) ->  | Y14: =IF(Meetings2!AA14="","",getAddress(Meetings2!AA14)) ->  | Z14: =IF(AA14="","",IF(AA14="Career::",Form!A12,"")) ->  | AA14: 1900-01-09 | AV14: 7 | AX14: =IF(Race!J14<>"",Race!C14,"") ->  | AY14: =IF(AX14<>"",Race!N14,"") ->  | AZ14: =IF(AX14<>"",Race!I14,"") ->  | BA14: =IF(AX14<>"",Race!L14,"") ->  | BC14: 13 Orihime | BD14: =IF(Form!K18<>"",LEFT(Form!D18,FIND("(",Form!D18)-2),"") -> Orihime | BF14: =IF(BD14="","",Form!B18) -> 13 | BG14: 7 | BH14: =IF(BG14="","",Form!G18) -> 54 | BI14: =IF($BG14="","",IF(MainSheet!G28="","",Form!H18)) -> 0.5 | BJ14: 0.9995 | BK14: =IF(BG14="","",COUNT($BJ$2:$BJ$26)-(RANK(BJ14,$BJ$2:$BJ$26)+COUNTIF($BJ$2:BJ14,BJ14)-1)+1) -> 13 | BL14: =IF($BG14="","",IF(ISNA(VLOOKUP(BK14,Tables!A$5:B$28,2,FALSE)),0,VLOOKUP(BK14,Tables!A$5:B$28,2,FALSE))) -> 0 | BM14: =IF(BG14="","",Form!I18) -> 1.9 | BN14: =IF(BG14="","",Form!J18) -> 17 | BO14: 18.9 | BP14: =IF(BG14="","",COUNT($BO$2:$BO$26)-(RANK(BO14,$BO$2:$BO$26,1)+COUNTIF($BO$2:BO14,BO14)-1)+1) -> 13 | BQ14: =IF($BG14="","",IF(ISNA(VLOOKUP(BP14,Tables!C$5:D$28,2,FALSE)),0,VLOOKUP(BP14,Tables!C$5:D$28,2,FALSE))) -> 0 | BR14: =IF(BG14="","",INDEX(Form!$B$1:'Form'!$J$1000,MATCH($BD14,Form!$A$1:'Form'!$A$1000,0)+3,8)) -> 10::0-0-1 | BS14: 10 | BT14: :0-0-1 | BU14: 0 0 1 | BV14: 0 | BW14: 0 | BX14: 1 | BY14: =IF(BG14="","",INDEX(Form!$B$1:'Form'!$J$1000,MATCH($BD14,Form!$A$1:'Form'!$A$1000,0)+3,9)) -> 21::0-0-3 | BZ14: 21 | CA14: :0-0-3 | CB14: 0 0 3 | CC14: 0 | CD14: 0 | CE14: 3 | CF14: 4 | CG14: =IF(MainSheet!G28="","",IF(CF14="","",COUNT($CF$2:$CF$26)-(RANK(CF14,$CF$2:$CF$26,1)+COUNTIF($CF$2:CF14,CF14)-1)+1)) -> 3 | CH14: =IF($BY14="","",IF(Tables!$F$3<>"",0,IF(ISNA(VLOOKUP(CG14,Tables!E$5:F$28,2,FALSE)),0,VLOOKUP(CG14,Tables!E$5:F$28,2,FALSE)))) -> 6 | CI14: =IF(BG14="","",INDEX(Form!$B$1:'Form'!$J$1000,MATCH($BD14,Form!$A$1:'Form'!$A$1000,0)+5,5)) -> 6::0-1-1 | CJ14: 6 | CK14: :0-1-1 | CL14: 0 1 1 | CM14: 0 | CN14: 1 | CO14: 1 | CP14: 2 | CQ14: =IF(BG14="","",IF(CI14=0,0,COUNT($CP$2:$CP$26)-(RANK(CP14,$CP$2:$CP$26,1)+COUNTIF($CP$2:CP14,CP14)-1)+1)) -> 2 | CR14: =IF($CI14="","",IF(Tables!$H$3<>"",0,IF(ISNA(VLOOKUP(CQ14,Tables!G$5:H$28,2,FALSE)),0,VLOOKUP(CQ14,Tables!G$5:H$28,2,FALSE)))) -> 0 | CS14: =IF(BG14="","",INDEX(Form!$B$1:'Form'!$J$1000,MATCH($BD14,Form!$A$1:'Form'!$A$1000,0)+5,6)) -> 8::0-0-1 | CT14: 8 | CU14: :0-0-1 | CV14: 0 0 1 | CW14: 0 | CX14: 0 | CY14: 1 | CZ14: 1 | DA14: =IF(BG14="","",IF(CS14=0,0,COUNT($CZ$2:$CZ$26)-(RANK(CZ14,$CZ$2:$CZ$26,1)+COUNTIF($CZ$2:CZ14,CZ14)-1)+1)) -> 2 | DB14: =IF($CS14="","",IF(Tables!$J$3<>"",0,IF(Tables!$K$1=0,0,IF(ISNA(VLOOKUP(DA14,Tables!$I$5:$J$28,2,FALSE)),"0",VLOOKUP(DA14,Tables!$I$5:$J$28,2,FALSE))))) -> 0 | DC14: 2012-01-21 | DD14: 12 | DE14: 188 | DF14: 2012-01-05 | DG14: 28 | DH14: 72 | DI14: 260 | DJ14: =IF(BG14="","",COUNT($DI$2:$DI$26)-(RANK(DI14,$DI$2:$DI$26,1)+COUNTIF($DI$2:DI14,DI14)-1)+1) -> 3 | DK14: =IF($BG14="","",IF(ISNA(VLOOKUP(DJ14,Tables!K$5:L$28,2,FALSE)),"0",VLOOKUP(DJ14,Tables!K$5:L$28,2,FALSE))) -> 6 | DL14: 7000 | DM14: =IF(BG14="","",(DL14-Form!$I$4)) -> -15500 | DN14: =IF(BG14="","",COUNT($DM$2:$DM$26)-(RANK(DM14,$DM$2:$DM$26,1)+COUNTIF($DM$2:DM14,DM14)-1)+1) -> 13 | DO14: =IF($BG14="","",IF(ISERROR(DN14),1,IF(ISNA(VLOOKUP(DN14,Tables!M$5:N$28,2,FALSE)),"0",VLOOKUP(DN14,Tables!M$5:N$28,2,FALSE)))) -> 0 | DP14: 6-6 9.4L | DQ14: 6 | DR14: 9.4L | DS14: 9.4 | DT14: =IF(MainSheet!$G28="","",IF(DS14="","",IF(ISERROR(DS14),"",ROUND(0+DS14/0.5,0)*0.5))) -> 9.5 | DU14: 90.5 | DV14: 6-7 6.2L | DW14: 6 | DX14: 6.2L | DY14: 6.2 | DZ14: =IF(MainSheet!$G28="","",IF(DY14="","",IF(ISERROR(DY14),"",ROUND(0+DY14/0.5,0)*0.5))) -> 6 | EA14: 94 | EB14: 9-9 7.2L | EC14: 9 | ED14: 7.2L | EE14: 7.2 | EF14: =IF(MainSheet!$G28="","",IF(EE14="","",IF(ISERROR(EE14),"",ROUND(0+EE14/0.5,0)*0.5))) -> 7 | EG14: 93 | EH14: 277.5 | EI14: =IF(BG14="","",COUNT($EH$2:$EH$26)-(RANK(EH14,$EH$2:$EH$26,1)+COUNTIF($EH$2:EH14,EH14)-1)+1) -> 12 | EJ14: =IF($BG14="","",IF(ISNA(VLOOKUP(EI14,Tables!O$5:P$28,2,FALSE)),"0",VLOOKUP(EI14,Tables!O$5:P$28,2,FALSE))) -> 0 | EK14: 91 | EL14: 91 | EM14: =IF(BG14="","",IF(EL14=0,0,COUNT($EL$2:$EL$26)-(RANK(EL14,$EL$2:$EL$26,1)+COUNTIF($EL$2:EL14,EL14)-1)+1)) -> 9 | EN14: =IF($BG14="","",IF(ISNA(VLOOKUP(EM14,Tables!Q$5:R$26,2,FALSE)),"0",VLOOKUP(EM14,Tables!Q$5:R$26,2,FALSE))) -> 0 | EO14: =IF(BG14="","",Form!K18) -> 25/1 | EP14: 25 | EQ14: 1 | ER14: 26 | ES14: 474 | ET14: =IF(BG14="","",IF(ES14=0,0,COUNT($ES$2:$ES$26)-(RANK(ES14,$ES$2:$ES$26,1)+COUNTIF($ES$2:ES14,ES14)-1)+1)) -> 13 | EU14: =IF($BG14="","",IF(ISNA(VLOOKUP(ET14,Tables!S$5:T$26,2,FALSE)),"0",VLOOKUP(ET14,Tables!S$5:T$26,2,FALSE))) -> 0 | EV14: =IF(BF14="","",IF(MainSheet!D28="Scratched","",IF(ISERROR(BL14+BQ14+CH14+CR14+DB14+DK14+DO14+EJ14+EN14+EU14),"",BL14+BQ14+CH14+CR14+DB14+DK14+DO14+EJ14+EN14+EU14))) -> 12 | EW14: 12 | EX14: 19.57894737 | EY14: =IF(EX14="","",COUNT($EX$2:$EX$26)-(RANK(EX14,$EX$2:$EX$26)+COUNTIF($EX$2:EX14,EX14)-1)+1) -> 6 | EZ14: 8 | FC14: 0.03344421469 | FD14: =IF(FC14="","",1/FC14*MainSheet!$R$11) -> 29.90053763
A15: =IF(Meetings1!A15="","",IF(Meetings1!A15="END","END",IF(Meetings1!B15="","",getAddress(Meetings1!E15)))) ->  | M15: =IF(ISERROR(N15),"",IF(ISNA(VLOOKUP(N15,RaceList!$M$9:$O$41,3,FALSE)),"",VLOOKUP(N15,RaceList!$M$9:$O$41,3,FALSE))) ->  | N15: =IF(O15="","",IF(Meetings2!$B15="","",Meetings2!$B15)) ->  | O15: =IF(Meetings2!D15="","",getAddress(Meetings2!D15)) ->  | P15: =IF(Meetings2!E15="","",getAddress(Meetings2!E15)) ->  | Q15: =IF(Meetings2!F15="","",getAddress(Meetings2!F15)) ->  | R15: =IF(Meetings2!G15="","",getAddress(Meetings2!G15)) ->  | S15: =IF(Meetings2!H15="","",getAddress(Meetings2!H15)) ->  | T15: =IF(Meetings2!I15="","",getAddress(Meetings2!I15)) ->  | U15: =IF(Meetings2!J15="","",getAddress(Meetings2!J15)) ->  | V15: =IF(Meetings2!K15="","",getAddress(Meetings2!K15)) ->  | W15: =IF(Meetings2!L15="","",getAddress(Meetings2!L15)) ->  | X15: =IF(Meetings2!M15="","",getAddress(Meetings2!M15)) ->  | Y15: =IF(Meetings2!AA15="","",getAddress(Meetings2!AA15)) ->  | Z15: =IF(AA15="","",IF(AA15="Career::",Form!A13,"")) ->  | AA15: 10 | AV15: 7 | AX15: =IF(Race!J15<>"",Race!C15,"") ->  | AY15: =IF(AX15<>"",Race!N15,"") ->  | AZ15: =IF(AX15<>"",Race!I15,"") ->  | BA15: =IF(AX15<>"",Race!L15,"") ->  | BD15: =IF(Form!K19<>"",LEFT(Form!D19,FIND("(",Form!D19)-2),"") ->  | BF15: =IF(BD15="","",Form!B19) ->  | BH15: =IF(BG15="","",Form!G19) ->  | BI15: =IF($BG15="","",IF(MainSheet!G29="","",Form!H19)) ->  | BK15: =IF(BG15="","",COUNT($BJ$2:$BJ$26)-(RANK(BJ15,$BJ$2:$BJ$26)+COUNTIF($BJ$2:BJ15,BJ15)-1)+1) ->  | BL15: =IF($BG15="","",IF(ISNA(VLOOKUP(BK15,Tables!A$5:B$28,2,FALSE)),0,VLOOKUP(BK15,Tables!A$5:B$28,2,FALSE))) ->  | BM15: =IF(BG15="","",Form!I19) ->  | BN15: =IF(BG15="","",Form!J19) ->  | BP15: =IF(BG15="","",COUNT($BO$2:$BO$26)-(RANK(BO15,$BO$2:$BO$26,1)+COUNTIF($BO$2:BO15,BO15)-1)+1) ->  | BQ15: =IF($BG15="","",IF(ISNA(VLOOKUP(BP15,Tables!C$5:D$28,2,FALSE)),0,VLOOKUP(BP15,Tables!C$5:D$28,2,FALSE))) ->  | BR15: =IF(BG15="","",INDEX(Form!$B$1:'Form'!$J$1000,MATCH($BD15,Form!$A$1:'Form'!$A$1000,0)+3,8)) ->  | BY15: =IF(BG15="","",INDEX(Form!$B$1:'Form'!$J$1000,MATCH($BD15,Form!$A$1:'Form'!$A$1000,0)+3,9)) ->  | CG15: =IF(MainSheet!G29="","",IF(CF15="","",COUNT($CF$2:$CF$26)-(RANK(CF15,$CF$2:$CF$26,1)+COUNTIF($CF$2:CF15,CF15)-1)+1)) ->  | CH15: =IF($BY15="","",IF(Tables!$F$3<>"",0,IF(ISNA(VLOOKUP(CG15,Tables!E$5:F$28,2,FALSE)),0,VLOOKUP(CG15,Tables!E$5:F$28,2,FALSE)))) ->  | CI15: =IF(BG15="","",INDEX(Form!$B$1:'Form'!$J$1000,MATCH($BD15,Form!$A$1:'Form'!$A$1000,0)+5,5)) ->  | CQ15: =IF(BG15="","",IF(CI15=0,0,COUNT($CP$2:$CP$26)-(RANK(CP15,$CP$2:$CP$26,1)+COUNTIF($CP$2:CP15,CP15)-1)+1)) ->  | CR15: =IF($CI15="","",IF(Tables!$H$3<>"",0,IF(ISNA(VLOOKUP(CQ15,Tables!G$5:H$28,2,FALSE)),0,VLOOKUP(CQ15,Tables!G$5:H$28,2,FALSE)))) ->  | CS15: =IF(BG15="","",INDEX(Form!$B$1:'Form'!$J$1000,MATCH($BD15,Form!$A$1:'Form'!$A$1000,0)+5,6)) ->  | DA15: =IF(BG15="","",IF(CS15=0,0,COUNT($CZ$2:$CZ$26)-(RANK(CZ15,$CZ$2:$CZ$26,1)+COUNTIF($CZ$2:CZ15,CZ15)-1)+1)) ->  | DB15: =IF($CS15="","",IF(Tables!$J$3<>"",0,IF(Tables!$K$1=0,0,IF(ISNA(VLOOKUP(DA15,Tables!$I$5:$J$28,2,FALSE)),"0",VLOOKUP(DA15,Tables!$I$5:$J$28,2,FALSE))))) ->  | DJ15: =IF(BG15="","",COUNT($DI$2:$DI$26)-(RANK(DI15,$DI$2:$DI$26,1)+COUNTIF($DI$2:DI15,DI15)-1)+1) ->  | DK15: =IF($BG15="","",IF(ISNA(VLOOKUP(DJ15,Tables!K$5:L$28,2,FALSE)),"0",VLOOKUP(DJ15,Tables!K$5:L$28,2,FALSE))) ->  | DM15: =IF(BG15="","",(DL15-Form!$I$4)) ->  | DN15: =IF(BG15="","",COUNT($DM$2:$DM$26)-(RANK(DM15,$DM$2:$DM$26,1)+COUNTIF($DM$2:DM15,DM15)-1)+1) ->  | DO15: =IF($BG15="","",IF(ISERROR(DN15),1,IF(ISNA(VLOOKUP(DN15,Tables!M$5:N$28,2,FALSE)),"0",VLOOKUP(DN15,Tables!M$5:N$28,2,FALSE)))) ->  | DT15: =IF(MainSheet!$G29="","",IF(DS15="","",IF(ISERROR(DS15),"",ROUND(0+DS15/0.5,0)*0.5))) ->  | DZ15: =IF(MainSheet!$G29="","",IF(DY15="","",IF(ISERROR(DY15),"",ROUND(0+DY15/0.5,0)*0.5))) ->  | EF15: =IF(MainSheet!$G29="","",IF(EE15="","",IF(ISERROR(EE15),"",ROUND(0+EE15/0.5,0)*0.5))) ->  | EI15: =IF(BG15="","",COUNT($EH$2:$EH$26)-(RANK(EH15,$EH$2:$EH$26,1)+COUNTIF($EH$2:EH15,EH15)-1)+1) ->  | EJ15: =IF($BG15="","",IF(ISNA(VLOOKUP(EI15,Tables!O$5:P$28,2,FALSE)),"0",VLOOKUP(EI15,Tables!O$5:P$28,2,FALSE))) ->  | EM15: =IF(BG15="","",IF(EL15=0,0,COUNT($EL$2:$EL$26)-(RANK(EL15,$EL$2:$EL$26,1)+COUNTIF($EL$2:EL15,EL15)-1)+1)) ->  | EN15: =IF($BG15="","",IF(ISNA(VLOOKUP(EM15,Tables!Q$5:R$26,2,FALSE)),"0",VLOOKUP(EM15,Tables!Q$5:R$26,2,FALSE))) ->  | EO15: =IF(BG15="","",Form!K19) ->  | ET15: =IF(BG15="","",IF(ES15=0,0,COUNT($ES$2:$ES$26)-(RANK(ES15,$ES$2:$ES$26,1)+COUNTIF($ES$2:ES15,ES15)-1)+1)) ->  | EU15: =IF($BG15="","",IF(ISNA(VLOOKUP(ET15,Tables!S$5:T$26,2,FALSE)),"0",VLOOKUP(ET15,Tables!S$5:T$26,2,FALSE))) ->  | EV15: =IF(BF15="","",IF(MainSheet!D29="Scratched","",IF(ISERROR(BL15+BQ15+CH15+CR15+DB15+DK15+DO15+EJ15+EN15+EU15),"",BL15+BQ15+CH15+CR15+DB15+DK15+DO15+EJ15+EN15+EU15))) ->  | EY15: =IF(EX15="","",COUNT($EX$2:$EX$26)-(RANK(EX15,$EX$2:$EX$26)+COUNTIF($EX$2:EX15,EX15)-1)+1) ->  | FD15: =IF(FC15="","",1/FC15*MainSheet!$R$11) -> 
A16: =IF(Meetings1!A16="","",IF(Meetings1!A16="END","END",IF(Meetings1!B16="","",getAddress(Meetings1!E16)))) ->  | M16: =IF(ISERROR(N16),"",IF(ISNA(VLOOKUP(N16,RaceList!$M$9:$O$41,3,FALSE)),"",VLOOKUP(N16,RaceList!$M$9:$O$41,3,FALSE))) ->  | N16: =IF(O16="","",IF(Meetings2!$B16="","",Meetings2!$B16)) -> PENRITH (ST) | O16: =IF(Meetings2!D16="","",getAddress(Meetings2!D16)) -> http://www.tabonline.com.au/2012/02/02/ST01.html | P16: =IF(Meetings2!E16="","",getAddress(Meetings2!E16)) -> http://www.tabonline.com.au/2012/02/02/ST02.html | Q16: =IF(Meetings2!F16="","",getAddress(Meetings2!F16)) -> http://www.tabonline.com.au/2012/02/02/ST03.html | R16: =IF(Meetings2!G16="","",getAddress(Meetings2!G16)) -> http://www.tabonline.com.au/2012/02/02/ST04.html | S16: =IF(Meetings2!H16="","",getAddress(Meetings2!H16)) -> http://www.tabonline.com.au/2012/02/02/ST05.html | T16: =IF(Meetings2!I16="","",getAddress(Meetings2!I16)) -> http://www.tabonline.com.au/2012/02/02/ST06.html | U16: =IF(Meetings2!J16="","",getAddress(Meetings2!J16)) -> http://www.tabonline.com.au/2012/02/02/ST07.html | V16: =IF(Meetings2!K16="","",getAddress(Meetings2!K16)) -> http://www.tabonline.com.au/2012/02/02/ST08.html | W16: =IF(Meetings2!L16="","",getAddress(Meetings2!L16)) ->  | X16: =IF(Meetings2!M16="","",getAddress(Meetings2!M16)) ->  | Y16: =IF(Meetings2!AA16="","",getAddress(Meetings2!AA16)) ->  | Z16: =IF(AA16="","",IF(AA16="Career::",Form!A14,"")) ->  | AA16: 1900-01-11 | AV16: 6 | AX16: =IF(Race!J16<>"",Race!C16,"") ->  | AY16: =IF(AX16<>"",Race!N16,"") ->  | AZ16: =IF(AX16<>"",Race!I16,"") ->  | BA16: =IF(AX16<>"",Race!L16,"") ->  | BD16: =IF(Form!K20<>"",LEFT(Form!D20,FIND("(",Form!D20)-2),"") ->  | BF16: =IF(BD16="","",Form!B20) ->  | BH16: =IF(BG16="","",Form!G20) ->  | BI16: =IF($BG16="","",IF(MainSheet!G30="","",Form!H20)) ->  | BK16: =IF(BG16="","",COUNT($BJ$2:$BJ$26)-(RANK(BJ16,$BJ$2:$BJ$26)+COUNTIF($BJ$2:BJ16,BJ16)-1)+1) ->  | BL16: =IF($BG16="","",IF(ISNA(VLOOKUP(BK16,Tables!A$5:B$28,2,FALSE)),0,VLOOKUP(BK16,Tables!A$5:B$28,2,FALSE))) ->  | BM16: =IF(BG16="","",Form!I20) ->  | BN16: =IF(BG16="","",Form!J20) ->  | BP16: =IF(BG16="","",COUNT($BO$2:$BO$26)-(RANK(BO16,$BO$2:$BO$26,1)+COUNTIF($BO$2:BO16,BO16)-1)+1) ->  | BQ16: =IF($BG16="","",IF(ISNA(VLOOKUP(BP16,Tables!C$5:D$28,2,FALSE)),0,VLOOKUP(BP16,Tables!C$5:D$28,2,FALSE))) ->  | BR16: =IF(BG16="","",INDEX(Form!$B$1:'Form'!$J$1000,MATCH($BD16,Form!$A$1:'Form'!$A$1000,0)+3,8)) ->  | BY16: =IF(BG16="","",INDEX(Form!$B$1:'Form'!$J$1000,MATCH($BD16,Form!$A$1:'Form'!$A$1000,0)+3,9)) ->  | CG16: =IF(MainSheet!G30="","",IF(CF16="","",COUNT($CF$2:$CF$26)-(RANK(CF16,$CF$2:$CF$26,1)+COUNTIF($CF$2:CF16,CF16)-1)+1)) ->  | CH16: =IF($BY16="","",IF(Tables!$F$3<>"",0,IF(ISNA(VLOOKUP(CG16,Tables!E$5:F$28,2,FALSE)),0,VLOOKUP(CG16,Tables!E$5:F$28,2,FALSE)))) ->  | CI16: =IF(BG16="","",INDEX(Form!$B$1:'Form'!$J$1000,MATCH($BD16,Form!$A$1:'Form'!$A$1000,0)+5,5)) ->  | CQ16: =IF(BG16="","",IF(CI16=0,0,COUNT($CP$2:$CP$26)-(RANK(CP16,$CP$2:$CP$26,1)+COUNTIF($CP$2:CP16,CP16)-1)+1)) ->  | CR16: =IF($CI16="","",IF(Tables!$H$3<>"",0,IF(ISNA(VLOOKUP(CQ16,Tables!G$5:H$28,2,FALSE)),0,VLOOKUP(CQ16,Tables!G$5:H$28,2,FALSE)))) ->  | CS16: =IF(BG16="","",INDEX(Form!$B$1:'Form'!$J$1000,MATCH($BD16,Form!$A$1:'Form'!$A$1000,0)+5,6)) ->  | DA16: =IF(BG16="","",IF(CS16=0,0,COUNT($CZ$2:$CZ$26)-(RANK(CZ16,$CZ$2:$CZ$26,1)+COUNTIF($CZ$2:CZ16,CZ16)-1)+1)) ->  | DB16: =IF($CS16="","",IF(Tables!$J$3<>"",0,IF(Tables!$K$1=0,0,IF(ISNA(VLOOKUP(DA16,Tables!$I$5:$J$28,2,FALSE)),"0",VLOOKUP(DA16,Tables!$I$5:$J$28,2,FALSE))))) ->  | DJ16: =IF(BG16="","",COUNT($DI$2:$DI$26)-(RANK(DI16,$DI$2:$DI$26,1)+COUNTIF($DI$2:DI16,DI16)-1)+1) ->  | DK16: =IF($BG16="","",IF(ISNA(VLOOKUP(DJ16,Tables!K$5:L$28,2,FALSE)),"0",VLOOKUP(DJ16,Tables!K$5:L$28,2,FALSE))) ->  | DM16: =IF(BG16="","",(DL16-Form!$I$4)) ->  | DN16: =IF(BG16="","",COUNT($DM$2:$DM$26)-(RANK(DM16,$DM$2:$DM$26,1)+COUNTIF($DM$2:DM16,DM16)-1)+1) ->  | DO16: =IF($BG16="","",IF(ISERROR(DN16),1,IF(ISNA(VLOOKUP(DN16,Tables!M$5:N$28,2,FALSE)),"0",VLOOKUP(DN16,Tables!M$5:N$28,2,FALSE)))) ->  | DT16: =IF(MainSheet!$G30="","",IF(DS16="","",IF(ISERROR(DS16),"",ROUND(0+DS16/0.5,0)*0.5))) ->  | DZ16: =IF(MainSheet!$G30="","",IF(DY16="","",IF(ISERROR(DY16),"",ROUND(0+DY16/0.5,0)*0.5))) ->  | EF16: =IF(MainSheet!$G30="","",IF(EE16="","",IF(ISERROR(EE16),"",ROUND(0+EE16/0.5,0)*0.5))) ->  | EI16: =IF(BG16="","",COUNT($EH$2:$EH$26)-(RANK(EH16,$EH$2:$EH$26,1)+COUNTIF($EH$2:EH16,EH16)-1)+1) ->  | EJ16: =IF($BG16="","",IF(ISNA(VLOOKUP(EI16,Tables!O$5:P$28,2,FALSE)),"0",VLOOKUP(EI16,Tables!O$5:P$28,2,FALSE))) ->  | EM16: =IF(BG16="","",IF(EL16=0,0,COUNT($EL$2:$EL$26)-(RANK(EL16,$EL$2:$EL$26,1)+COUNTIF($EL$2:EL16,EL16)-1)+1)) ->  | EN16: =IF($BG16="","",IF(ISNA(VLOOKUP(EM16,Tables!Q$5:R$26,2,FALSE)),"0",VLOOKUP(EM16,Tables!Q$5:R$26,2,FALSE))) ->  | EO16: =IF(BG16="","",Form!K20) ->  | ET16: =IF(BG16="","",IF(ES16=0,0,COUNT($ES$2:$ES$26)-(RANK(ES16,$ES$2:$ES$26,1)+COUNTIF($ES$2:ES16,ES16)-1)+1)) ->  | EU16: =IF($BG16="","",IF(ISNA(VLOOKUP(ET16,Tables!S$5:T$26,2,FALSE)),"0",VLOOKUP(ET16,Tables!S$5:T$26,2,FALSE))) ->  | EV16: =IF(BF16="","",IF(MainSheet!D30="Scratched","",IF(ISERROR(BL16+BQ16+CH16+CR16+DB16+DK16+DO16+EJ16+EN16+EU16),"",BL16+BQ16+CH16+CR16+DB16+DK16+DO16+EJ16+EN16+EU16))) ->  | EY16: =IF(EX16="","",COUNT($EX$2:$EX$26)-(RANK(EX16,$EX$2:$EX$26)+COUNTIF($EX$2:EX16,EX16)-1)+1) ->  | FD16: =IF(FC16="","",1/FC16*MainSheet!$R$11) -> 
A17: =IF(Meetings1!A17="","",IF(Meetings1!A17="END","END",IF(Meetings1!B17="","",getAddress(Meetings1!E17)))) ->  | M17: =IF(ISERROR(N17),"",IF(ISNA(VLOOKUP(N17,RaceList!$M$9:$O$41,3,FALSE)),"",VLOOKUP(N17,RaceList!$M$9:$O$41,3,FALSE))) ->  | N17: =IF(O17="","",IF(Meetings2!$B17="","",Meetings2!$B17)) -> MELTON (MT) | O17: =IF(Meetings2!D17="","",getAddress(Meetings2!D17)) -> http://www.tabonline.com.au/2012/02/02/MT01.html | P17: =IF(Meetings2!E17="","",getAddress(Meetings2!E17)) -> http://www.tabonline.com.au/2012/02/02/MT02.html | Q17: =IF(Meetings2!F17="","",getAddress(Meetings2!F17)) -> http://www.tabonline.com.au/2012/02/02/MT03.html | R17: =IF(Meetings2!G17="","",getAddress(Meetings2!G17)) -> http://www.tabonline.com.au/2012/02/02/MT04.html | S17: =IF(Meetings2!H17="","",getAddress(Meetings2!H17)) -> http://www.tabonline.com.au/2012/02/02/MT05.html | T17: =IF(Meetings2!I17="","",getAddress(Meetings2!I17)) -> http://www.tabonline.com.au/2012/02/02/MT06.html | U17: =IF(Meetings2!J17="","",getAddress(Meetings2!J17)) -> http://www.tabonline.com.au/2012/02/02/MT07.html | V17: =IF(Meetings2!K17="","",getAddress(Meetings2!K17)) -> http://www.tabonline.com.au/2012/02/02/MT08.html | W17: =IF(Meetings2!L17="","",getAddress(Meetings2!L17)) ->  | X17: =IF(Meetings2!M17="","",getAddress(Meetings2!M17)) ->  | Y17: =IF(Meetings2!AA17="","",getAddress(Meetings2!AA17)) ->  | Z17: =IF(AA17="","",IF(AA17="Career::",Form!A15,"")) ->  | AA17: 1900-01-12 | AV17: 6 | AX17: =IF(Race!J17<>"",Race!C17,"") ->  | AY17: =IF(AX17<>"",Race!N17,"") ->  | AZ17: =IF(AX17<>"",Race!I17,"") ->  | BA17: =IF(AX17<>"",Race!L17,"") ->  | BD17: =IF(Form!K21<>"",LEFT(Form!D21,FIND("(",Form!D21)-2),"") ->  | BF17: =IF(BD17="","",Form!B21) ->  | BH17: =IF(BG17="","",Form!G21) ->  | BI17: =IF($BG17="","",IF(MainSheet!G31="","",Form!H21)) ->  | BK17: =IF(BG17="","",COUNT($BJ$2:$BJ$26)-(RANK(BJ17,$BJ$2:$BJ$26)+COUNTIF($BJ$2:BJ17,BJ17)-1)+1) ->  | BL17: =IF($BG17="","",IF(ISNA(VLOOKUP(BK17,Tables!A$5:B$28,2,FALSE)),0,VLOOKUP(BK17,Tables!A$5:B$28,2,FALSE))) ->  | BM17: =IF(BG17="","",Form!I21) ->  | BN17: =IF(BG17="","",Form!J21) ->  | BP17: =IF(BG17="","",COUNT($BO$2:$BO$26)-(RANK(BO17,$BO$2:$BO$26,1)+COUNTIF($BO$2:BO17,BO17)-1)+1) ->  | BQ17: =IF($BG17="","",IF(ISNA(VLOOKUP(BP17,Tables!C$5:D$28,2,FALSE)),0,VLOOKUP(BP17,Tables!C$5:D$28,2,FALSE))) ->  | BR17: =IF(BG17="","",INDEX(Form!$B$1:'Form'!$J$1000,MATCH($BD17,Form!$A$1:'Form'!$A$1000,0)+3,8)) ->  | BY17: =IF(BG17="","",INDEX(Form!$B$1:'Form'!$J$1000,MATCH($BD17,Form!$A$1:'Form'!$A$1000,0)+3,9)) ->  | CG17: =IF(MainSheet!G31="","",IF(CF17="","",COUNT($CF$2:$CF$26)-(RANK(CF17,$CF$2:$CF$26,1)+COUNTIF($CF$2:CF17,CF17)-1)+1)) ->  | CH17: =IF($BY17="","",IF(Tables!$F$3<>"",0,IF(ISNA(VLOOKUP(CG17,Tables!E$5:F$28,2,FALSE)),0,VLOOKUP(CG17,Tables!E$5:F$28,2,FALSE)))) ->  | CI17: =IF(BG17="","",INDEX(Form!$B$1:'Form'!$J$1000,MATCH($BD17,Form!$A$1:'Form'!$A$1000,0)+5,5)) ->  | CQ17: =IF(BG17="","",IF(CI17=0,0,COUNT($CP$2:$CP$26)-(RANK(CP17,$CP$2:$CP$26,1)+COUNTIF($CP$2:CP17,CP17)-1)+1)) ->  | CR17: =IF($CI17="","",IF(Tables!$H$3<>"",0,IF(ISNA(VLOOKUP(CQ17,Tables!G$5:H$28,2,FALSE)),0,VLOOKUP(CQ17,Tables!G$5:H$28,2,FALSE)))) ->  | CS17: =IF(BG17="","",INDEX(Form!$B$1:'Form'!$J$1000,MATCH($BD17,Form!$A$1:'Form'!$A$1000,0)+5,6)) ->  | DA17: =IF(BG17="","",IF(CS17=0,0,COUNT($CZ$2:$CZ$26)-(RANK(CZ17,$CZ$2:$CZ$26,1)+COUNTIF($CZ$2:CZ17,CZ17)-1)+1)) ->  | DB17: =IF($CS17="","",IF(Tables!$J$3<>"",0,IF(Tables!$K$1=0,0,IF(ISNA(VLOOKUP(DA17,Tables!$I$5:$J$28,2,FALSE)),"0",VLOOKUP(DA17,Tables!$I$5:$J$28,2,FALSE))))) ->  | DJ17: =IF(BG17="","",COUNT($DI$2:$DI$26)-(RANK(DI17,$DI$2:$DI$26,1)+COUNTIF($DI$2:DI17,DI17)-1)+1) ->  | DK17: =IF($BG17="","",IF(ISNA(VLOOKUP(DJ17,Tables!K$5:L$28,2,FALSE)),"0",VLOOKUP(DJ17,Tables!K$5:L$28,2,FALSE))) ->  | DM17: =IF(BG17="","",(DL17-Form!$I$4)) ->  | DN17: =IF(BG17="","",COUNT($DM$2:$DM$26)-(RANK(DM17,$DM$2:$DM$26,1)+COUNTIF($DM$2:DM17,DM17)-1)+1) ->  | DO17: =IF($BG17="","",IF(ISERROR(DN17),1,IF(ISNA(VLOOKUP(DN17,Tables!M$5:N$28,2,FALSE)),"0",VLOOKUP(DN17,Tables!M$5:N$28,2,FALSE)))) ->  | DT17: =IF(MainSheet!$G31="","",IF(DS17="","",IF(ISERROR(DS17),"",ROUND(0+DS17/0.5,0)*0.5))) ->  | DZ17: =IF(MainSheet!$G31="","",IF(DY17="","",IF(ISERROR(DY17),"",ROUND(0+DY17/0.5,0)*0.5))) ->  | EF17: =IF(MainSheet!$G31="","",IF(EE17="","",IF(ISERROR(EE17),"",ROUND(0+EE17/0.5,0)*0.5))) ->  | EI17: =IF(BG17="","",COUNT($EH$2:$EH$26)-(RANK(EH17,$EH$2:$EH$26,1)+COUNTIF($EH$2:EH17,EH17)-1)+1) ->  | EJ17: =IF($BG17="","",IF(ISNA(VLOOKUP(EI17,Tables!O$5:P$28,2,FALSE)),"0",VLOOKUP(EI17,Tables!O$5:P$28,2,FALSE))) ->  | EM17: =IF(BG17="","",IF(EL17=0,0,COUNT($EL$2:$EL$26)-(RANK(EL17,$EL$2:$EL$26,1)+COUNTIF($EL$2:EL17,EL17)-1)+1)) ->  | EN17: =IF($BG17="","",IF(ISNA(VLOOKUP(EM17,Tables!Q$5:R$26,2,FALSE)),"0",VLOOKUP(EM17,Tables!Q$5:R$26,2,FALSE))) ->  | EO17: =IF(BG17="","",Form!K21) ->  | ET17: =IF(BG17="","",IF(ES17=0,0,COUNT($ES$2:$ES$26)-(RANK(ES17,$ES$2:$ES$26,1)+COUNTIF($ES$2:ES17,ES17)-1)+1)) ->  | EU17: =IF($BG17="","",IF(ISNA(VLOOKUP(ET17,Tables!S$5:T$26,2,FALSE)),"0",VLOOKUP(ET17,Tables!S$5:T$26,2,FALSE))) ->  | EV17: =IF(BF17="","",IF(MainSheet!D31="Scratched","",IF(ISERROR(BL17+BQ17+CH17+CR17+DB17+DK17+DO17+EJ17+EN17+EU17),"",BL17+BQ17+CH17+CR17+DB17+DK17+DO17+EJ17+EN17+EU17))) ->  | EY17: =IF(EX17="","",COUNT($EX$2:$EX$26)-(RANK(EX17,$EX$2:$EX$26)+COUNTIF($EX$2:EX17,EX17)-1)+1) ->  | FD17: =IF(FC17="","",1/FC17*MainSheet!$R$11) -> 
A18: =IF(Meetings1!A18="","",IF(Meetings1!A18="END","END",IF(Meetings1!B18="","",getAddress(Meetings1!E18)))) ->  | M18: =IF(ISERROR(N18),"",IF(ISNA(VLOOKUP(N18,RaceList!$M$9:$O$41,3,FALSE)),"",VLOOKUP(N18,RaceList!$M$9:$O$41,3,FALSE))) ->  | N18: =IF(O18="","",IF(Meetings2!$B18="","",Meetings2!$B18)) -> GOLD COAST (QT) | O18: =IF(Meetings2!D18="","",getAddress(Meetings2!D18)) -> http://www.tabonline.com.au/2012/02/02/QT01.html | P18: =IF(Meetings2!E18="","",getAddress(Meetings2!E18)) -> http://www.tabonline.com.au/2012/02/02/QT02.html | Q18: =IF(Meetings2!F18="","",getAddress(Meetings2!F18)) -> http://www.tabonline.com.au/2012/02/02/QT03.html | R18: =IF(Meetings2!G18="","",getAddress(Meetings2!G18)) -> http://www.tabonline.com.au/2012/02/02/QT04.html | S18: =IF(Meetings2!H18="","",getAddress(Meetings2!H18)) -> http://www.tabonline.com.au/2012/02/02/QT05.html | T18: =IF(Meetings2!I18="","",getAddress(Meetings2!I18)) -> http://www.tabonline.com.au/2012/02/02/QT06.html | U18: =IF(Meetings2!J18="","",getAddress(Meetings2!J18)) ->  | V18: =IF(Meetings2!K18="","",getAddress(Meetings2!K18)) ->  | W18: =IF(Meetings2!L18="","",getAddress(Meetings2!L18)) ->  | X18: =IF(Meetings2!M18="","",getAddress(Meetings2!M18)) ->  | Y18: =IF(Meetings2!AA18="","",getAddress(Meetings2!AA18)) ->  | Z18: =IF(AA18="","",IF(AA18="Career::",Form!A16,"")) ->  | AA18: 1900-01-13 | AV18: 6 | AX18: =IF(Race!J18<>"",Race!C18,"") ->  | AY18: =IF(AX18<>"",Race!N18,"") ->  | AZ18: =IF(AX18<>"",Race!I18,"") ->  | BA18: =IF(AX18<>"",Race!L18,"") ->  | BD18: =IF(Form!K22<>"",LEFT(Form!D22,FIND("(",Form!D22)-2),"") ->  | BF18: =IF(BD18="","",Form!B22) ->  | BH18: =IF(BG18="","",Form!G22) ->  | BI18: =IF($BG18="","",IF(MainSheet!G32="","",Form!H22)) ->  | BK18: =IF(BG18="","",COUNT($BJ$2:$BJ$26)-(RANK(BJ18,$BJ$2:$BJ$26)+COUNTIF($BJ$2:BJ18,BJ18)-1)+1) ->  | BL18: =IF($BG18="","",IF(ISNA(VLOOKUP(BK18,Tables!A$5:B$28,2,FALSE)),0,VLOOKUP(BK18,Tables!A$5:B$28,2,FALSE))) ->  | BM18: =IF(BG18="","",Form!I22) ->  | BN18: =IF(BG18="","",Form!J22) ->  | BP18: =IF(BG18="","",COUNT($BO$2:$BO$26)-(RANK(BO18,$BO$2:$BO$26,1)+COUNTIF($BO$2:BO18,BO18)-1)+1) ->  | BQ18: =IF($BG18="","",IF(ISNA(VLOOKUP(BP18,Tables!C$5:D$28,2,FALSE)),0,VLOOKUP(BP18,Tables!C$5:D$28,2,FALSE))) ->  | BR18: =IF(BG18="","",INDEX(Form!$B$1:'Form'!$J$1000,MATCH($BD18,Form!$A$1:'Form'!$A$1000,0)+3,8)) ->  | BY18: =IF(BG18="","",INDEX(Form!$B$1:'Form'!$J$1000,MATCH($BD18,Form!$A$1:'Form'!$A$1000,0)+3,9)) ->  | CG18: =IF(MainSheet!G32="","",IF(CF18="","",COUNT($CF$2:$CF$26)-(RANK(CF18,$CF$2:$CF$26,1)+COUNTIF($CF$2:CF18,CF18)-1)+1)) ->  | CH18: =IF($BY18="","",IF(Tables!$F$3<>"",0,IF(ISNA(VLOOKUP(CG18,Tables!E$5:F$28,2,FALSE)),0,VLOOKUP(CG18,Tables!E$5:F$28,2,FALSE)))) ->  | CI18: =IF(BG18="","",INDEX(Form!$B$1:'Form'!$J$1000,MATCH($BD18,Form!$A$1:'Form'!$A$1000,0)+5,5)) ->  | CQ18: =IF(BG18="","",IF(CI18=0,0,COUNT($CP$2:$CP$26)-(RANK(CP18,$CP$2:$CP$26,1)+COUNTIF($CP$2:CP18,CP18)-1)+1)) ->  | CR18: =IF($CI18="","",IF(Tables!$H$3<>"",0,IF(ISNA(VLOOKUP(CQ18,Tables!G$5:H$28,2,FALSE)),0,VLOOKUP(CQ18,Tables!G$5:H$28,2,FALSE)))) ->  | CS18: =IF(BG18="","",INDEX(Form!$B$1:'Form'!$J$1000,MATCH($BD18,Form!$A$1:'Form'!$A$1000,0)+5,6)) ->  | DA18: =IF(BG18="","",IF(CS18=0,0,COUNT($CZ$2:$CZ$26)-(RANK(CZ18,$CZ$2:$CZ$26,1)+COUNTIF($CZ$2:CZ18,CZ18)-1)+1)) ->  | DB18: =IF($CS18="","",IF(Tables!$J$3<>"",0,IF(Tables!$K$1=0,0,IF(ISNA(VLOOKUP(DA18,Tables!$I$5:$J$28,2,FALSE)),"0",VLOOKUP(DA18,Tables!$I$5:$J$28,2,FALSE))))) ->  | DJ18: =IF(BG18="","",COUNT($DI$2:$DI$26)-(RANK(DI18,$DI$2:$DI$26,1)+COUNTIF($DI$2:DI18,DI18)-1)+1) ->  | DK18: =IF($BG18="","",IF(ISNA(VLOOKUP(DJ18,Tables!K$5:L$28,2,FALSE)),"0",VLOOKUP(DJ18,Tables!K$5:L$28,2,FALSE))) ->  | DM18: =IF(BG18="","",(DL18-Form!$I$4)) ->  | DN18: =IF(BG18="","",COUNT($DM$2:$DM$26)-(RANK(DM18,$DM$2:$DM$26,1)+COUNTIF($DM$2:DM18,DM18)-1)+1) ->  | DO18: =IF($BG18="","",IF(ISERROR(DN18),1,IF(ISNA(VLOOKUP(DN18,Tables!M$5:N$28,2,FALSE)),"0",VLOOKUP(DN18,Tables!M$5:N$28,2,FALSE)))) ->  | DT18: =IF(MainSheet!$G32="","",IF(DS18="","",IF(ISERROR(DS18),"",ROUND(0+DS18/0.5,0)*0.5))) ->  | DZ18: =IF(MainSheet!$G32="","",IF(DY18="","",IF(ISERROR(DY18),"",ROUND(0+DY18/0.5,0)*0.5))) ->  | EF18: =IF(MainSheet!$G32="","",IF(EE18="","",IF(ISERROR(EE18),"",ROUND(0+EE18/0.5,0)*0.5))) ->  | EI18: =IF(BG18="","",COUNT($EH$2:$EH$26)-(RANK(EH18,$EH$2:$EH$26,1)+COUNTIF($EH$2:EH18,EH18)-1)+1) ->  | EJ18: =IF($BG18="","",IF(ISNA(VLOOKUP(EI18,Tables!O$5:P$28,2,FALSE)),"0",VLOOKUP(EI18,Tables!O$5:P$28,2,FALSE))) ->  | EM18: =IF(BG18="","",IF(EL18=0,0,COUNT($EL$2:$EL$26)-(RANK(EL18,$EL$2:$EL$26,1)+COUNTIF($EL$2:EL18,EL18)-1)+1)) ->  | EN18: =IF($BG18="","",IF(ISNA(VLOOKUP(EM18,Tables!Q$5:R$26,2,FALSE)),"0",VLOOKUP(EM18,Tables!Q$5:R$26,2,FALSE))) ->  | EO18: =IF(BG18="","",Form!K22) ->  | ET18: =IF(BG18="","",IF(ES18=0,0,COUNT($ES$2:$ES$26)-(RANK(ES18,$ES$2:$ES$26,1)+COUNTIF($ES$2:ES18,ES18)-1)+1)) ->  | EU18: =IF($BG18="","",IF(ISNA(VLOOKUP(ET18,Tables!S$5:T$26,2,FALSE)),"0",VLOOKUP(ET18,Tables!S$5:T$26,2,FALSE))) ->  | EV18: =IF(BF18="","",IF(MainSheet!D32="Scratched","",IF(ISERROR(BL18+BQ18+CH18+CR18+DB18+DK18+DO18+EJ18+EN18+EU18),"",BL18+BQ18+CH18+CR18+DB18+DK18+DO18+EJ18+EN18+EU18))) ->  | EY18: =IF(EX18="","",COUNT($EX$2:$EX$26)-(RANK(EX18,$EX$2:$EX$26)+COUNTIF($EX$2:EX18,EX18)-1)+1) ->  | FD18: =IF(FC18="","",1/FC18*MainSheet!$R$11) -> 
A19: =IF(Meetings1!A19="","",IF(Meetings1!A19="END","END",IF(Meetings1!B19="","",getAddress(Meetings1!E19)))) ->  | M19: =IF(ISERROR(N19),"",IF(ISNA(VLOOKUP(N19,RaceList!$M$9:$O$41,3,FALSE)),"",VLOOKUP(N19,RaceList!$M$9:$O$41,3,FALSE))) ->  | N19: =IF(O19="","",IF(Meetings2!$B19="","",Meetings2!$B19)) -> NEWCASTLE (NT) | O19: =IF(Meetings2!D19="","",getAddress(Meetings2!D19)) -> http://www.tabonline.com.au/2012/02/02/NT01.html | P19: =IF(Meetings2!E19="","",getAddress(Meetings2!E19)) -> http://www.tabonline.com.au/2012/02/02/NT02.html | Q19: =IF(Meetings2!F19="","",getAddress(Meetings2!F19)) -> http://www.tabonline.com.au/2012/02/02/NT03.html | R19: =IF(Meetings2!G19="","",getAddress(Meetings2!G19)) -> http://www.tabonline.com.au/2012/02/02/NT04.html | S19: =IF(Meetings2!H19="","",getAddress(Meetings2!H19)) -> http://www.tabonline.com.au/2012/02/02/NT05.html | T19: =IF(Meetings2!I19="","",getAddress(Meetings2!I19)) -> http://www.tabonline.com.au/2012/02/02/NT06.html | U19: =IF(Meetings2!J19="","",getAddress(Meetings2!J19)) -> http://www.tabonline.com.au/2012/02/02/NT07.html | V19: =IF(Meetings2!K19="","",getAddress(Meetings2!K19)) ->  | W19: =IF(Meetings2!L19="","",getAddress(Meetings2!L19)) ->  | X19: =IF(Meetings2!M19="","",getAddress(Meetings2!M19)) ->  | Y19: =IF(Meetings2!AA19="","",getAddress(Meetings2!AA19)) ->  | Z19: =IF(AA19="","",IF(AA19="Career::",Form!A17,"")) ->  | AV19: 6 | AX19: =IF(Race!J19<>"",Race!C19,"") -> Name | AY19: =IF(AX19<>"",Race!N19,"") -> Rtng | AZ19: =IF(AX19<>"",Race!I19,"") -> Bar | BA19: =IF(AX19<>"",Race!L19,"") -> Form | BD19: =IF(Form!K23<>"",LEFT(Form!D23,FIND("(",Form!D23)-2),"") ->  | BF19: =IF(BD19="","",Form!B23) ->  | BG19: =IF($BD19="","",IF(ISNA(VLOOKUP(BD19,AX1:AZ117,3,FALSE)),"",VLOOKUP(BD19,AX1:AZ117,3,FALSE))) ->  | BH19: =IF(BG19="","",Form!G23) ->  | BI19: =IF($BG19="","",IF(MainSheet!G33="","",Form!H23)) ->  | BK19: =IF(BG19="","",COUNT($BJ$2:$BJ$26)-(RANK(BJ19,$BJ$2:$BJ$26)+COUNTIF($BJ$2:BJ19,BJ19)-1)+1) ->  | BL19: =IF($BG19="","",IF(ISNA(VLOOKUP(BK19,Tables!A$5:B$28,2,FALSE)),0,VLOOKUP(BK19,Tables!A$5:B$28,2,FALSE))) ->  | BM19: =IF(BG19="","",Form!I23) ->  | BN19: =IF(BG19="","",Form!J23) ->  | BP19: =IF(BG19="","",COUNT($BO$2:$BO$26)-(RANK(BO19,$BO$2:$BO$26,1)+COUNTIF($BO$2:BO19,BO19)-1)+1) ->  | BQ19: =IF($BG19="","",IF(ISNA(VLOOKUP(BP19,Tables!C$5:D$28,2,FALSE)),0,VLOOKUP(BP19,Tables!C$5:D$28,2,FALSE))) ->  | BR19: =IF(BG19="","",INDEX(Form!$B$1:'Form'!$J$1000,MATCH($BD19,Form!$A$1:'Form'!$A$1000,0)+3,8)) ->  | BY19: =IF(BG19="","",INDEX(Form!$B$1:'Form'!$J$1000,MATCH($BD19,Form!$A$1:'Form'!$A$1000,0)+3,9)) ->  | CG19: =IF(MainSheet!G33="","",IF(CF19="","",COUNT($CF$2:$CF$26)-(RANK(CF19,$CF$2:$CF$26,1)+COUNTIF($CF$2:CF19,CF19)-1)+1)) ->  | CH19: =IF($BY19="","",IF(Tables!$F$3<>"",0,IF(ISNA(VLOOKUP(CG19,Tables!E$5:F$28,2,FALSE)),0,VLOOKUP(CG19,Tables!E$5:F$28,2,FALSE)))) ->  | CI19: =IF(BG19="","",INDEX(Form!$B$1:'Form'!$J$1000,MATCH($BD19,Form!$A$1:'Form'!$A$1000,0)+5,5)) ->  | CQ19: =IF(BG19="","",IF(CI19=0,0,COUNT($CP$2:$CP$26)-(RANK(CP19,$CP$2:$CP$26,1)+COUNTIF($CP$2:CP19,CP19)-1)+1)) ->  | CR19: =IF($CI19="","",IF(Tables!$H$3<>"",0,IF(ISNA(VLOOKUP(CQ19,Tables!G$5:H$28,2,FALSE)),0,VLOOKUP(CQ19,Tables!G$5:H$28,2,FALSE)))) ->  | CS19: =IF(BG19="","",INDEX(Form!$B$1:'Form'!$J$1000,MATCH($BD19,Form!$A$1:'Form'!$A$1000,0)+5,6)) ->  | DA19: =IF(BG19="","",IF(CS19=0,0,COUNT($CZ$2:$CZ$26)-(RANK(CZ19,$CZ$2:$CZ$26,1)+COUNTIF($CZ$2:CZ19,CZ19)-1)+1)) ->  | DB19: =IF($CS19="","",IF(Tables!$J$3<>"",0,IF(Tables!$K$1=0,0,IF(ISNA(VLOOKUP(DA19,Tables!$I$5:$J$28,2,FALSE)),"0",VLOOKUP(DA19,Tables!$I$5:$J$28,2,FALSE))))) ->  | DJ19: =IF(BG19="","",COUNT($DI$2:$DI$26)-(RANK(DI19,$DI$2:$DI$26,1)+COUNTIF($DI$2:DI19,DI19)-1)+1) ->  | DK19: =IF($BG19="","",IF(ISNA(VLOOKUP(DJ19,Tables!K$5:L$28,2,FALSE)),"0",VLOOKUP(DJ19,Tables!K$5:L$28,2,FALSE))) ->  | DM19: =IF(BG19="","",(DL19-Form!$I$4)) ->  | DN19: =IF(BG19="","",COUNT($DM$2:$DM$26)-(RANK(DM19,$DM$2:$DM$26,1)+COUNTIF($DM$2:DM19,DM19)-1)+1) ->  | DO19: =IF($BG19="","",IF(ISERROR(DN19),1,IF(ISNA(VLOOKUP(DN19,Tables!M$5:N$28,2,FALSE)),"0",VLOOKUP(DN19,Tables!M$5:N$28,2,FALSE)))) ->  | DT19: =IF(MainSheet!$G33="","",IF(DS19="","",IF(ISERROR(DS19),"",ROUND(0+DS19/0.5,0)*0.5))) ->  | DZ19: =IF(MainSheet!$G33="","",IF(DY19="","",IF(ISERROR(DY19),"",ROUND(0+DY19/0.5,0)*0.5))) ->  | EF19: =IF(MainSheet!$G33="","",IF(EE19="","",IF(ISERROR(EE19),"",ROUND(0+EE19/0.5,0)*0.5))) ->  | EI19: =IF(BG19="","",COUNT($EH$2:$EH$26)-(RANK(EH19,$EH$2:$EH$26,1)+COUNTIF($EH$2:EH19,EH19)-1)+1) ->  | EJ19: =IF($BG19="","",IF(ISNA(VLOOKUP(EI19,Tables!O$5:P$28,2,FALSE)),"0",VLOOKUP(EI19,Tables!O$5:P$28,2,FALSE))) ->  | EM19: =IF(BG19="","",IF(EL19=0,0,COUNT($EL$2:$EL$26)-(RANK(EL19,$EL$2:$EL$26,1)+COUNTIF($EL$2:EL19,EL19)-1)+1)) ->  | EN19: =IF($BG19="","",IF(ISNA(VLOOKUP(EM19,Tables!Q$5:R$26,2,FALSE)),"0",VLOOKUP(EM19,Tables!Q$5:R$26,2,FALSE))) ->  | EO19: =IF(BG19="","",Form!K23) ->  | ET19: =IF(BG19="","",IF(ES19=0,0,COUNT($ES$2:$ES$26)-(RANK(ES19,$ES$2:$ES$26,1)+COUNTIF($ES$2:ES19,ES19)-1)+1)) ->  | EU19: =IF($BG19="","",IF(ISNA(VLOOKUP(ET19,Tables!S$5:T$26,2,FALSE)),"0",VLOOKUP(ET19,Tables!S$5:T$26,2,FALSE))) ->  | EV19: =IF(BF19="","",IF(MainSheet!D33="Scratched","",IF(ISERROR(BL19+BQ19+CH19+CR19+DB19+DK19+DO19+EJ19+EN19+EU19),"",BL19+BQ19+CH19+CR19+DB19+DK19+DO19+EJ19+EN19+EU19))) ->  | EY19: =IF(EX19="","",COUNT($EX$2:$EX$26)-(RANK(EX19,$EX$2:$EX$26)+COUNTIF($EX$2:EX19,EX19)-1)+1) ->  | FD19: =IF(FC19="","",1/FC19*MainSheet!$R$11) -> 
A20: =IF(Meetings1!A20="","",IF(Meetings1!A20="END","END",IF(Meetings1!B20="","",getAddress(Meetings1!E20)))) ->  | M20: =IF(ISERROR(N20),"",IF(ISNA(VLOOKUP(N20,RaceList!$M$9:$O$41,3,FALSE)),"",VLOOKUP(N20,RaceList!$M$9:$O$41,3,FALSE))) ->  | N20: =IF(O20="","",IF(Meetings2!$B20="","",Meetings2!$B20)) -> KILMORE (VT) | O20: =IF(Meetings2!D20="","",getAddress(Meetings2!D20)) -> http://www.tabonline.com.au/2012/02/02/VT01.html | P20: =IF(Meetings2!E20="","",getAddress(Meetings2!E20)) -> http://www.tabonline.com.au/2012/02/02/VT02.html | Q20: =IF(Meetings2!F20="","",getAddress(Meetings2!F20)) -> http://www.tabonline.com.au/2012/02/02/VT03.html | R20: =IF(Meetings2!G20="","",getAddress(Meetings2!G20)) -> http://www.tabonline.com.au/2012/02/02/VT04.html | S20: =IF(Meetings2!H20="","",getAddress(Meetings2!H20)) -> http://www.tabonline.com.au/2012/02/02/VT05.html | T20: =IF(Meetings2!I20="","",getAddress(Meetings2!I20)) -> http://www.tabonline.com.au/2012/02/02/VT06.html | U20: =IF(Meetings2!J20="","",getAddress(Meetings2!J20)) -> http://www.tabonline.com.au/2012/02/02/VT07.html | V20: =IF(Meetings2!K20="","",getAddress(Meetings2!K20)) -> http://www.tabonline.com.au/2012/02/02/VT08.html | W20: =IF(Meetings2!L20="","",getAddress(Meetings2!L20)) ->  | X20: =IF(Meetings2!M20="","",getAddress(Meetings2!M20)) ->  | Y20: =IF(Meetings2!AA20="","",getAddress(Meetings2!AA20)) ->  | Z20: =IF(AA20="","",IF(AA20="Career::",Form!A18,"")) ->  | AV20: 6 | AX20: =IF(Race!J20<>"",Race!C20,"") -> ALTER EGO | AY20: =IF(AX20<>"",Race!N20,"") -> 95 | AZ20: =IF(AX20<>"",Race!I20,"") -> 11 | BA20: =IF(AX20<>"",Race!L20,"") -> DW | BD20: =IF(Form!K24<>"",LEFT(Form!D24,FIND("(",Form!D24)-2),"") ->  | BF20: =IF(BD20="","",Form!B24) ->  | BG20: =IF($BD20="","",IF(ISNA(VLOOKUP(BD20,AX19:AZ118,3,FALSE)),"",VLOOKUP(BD20,AX19:AZ118,3,FALSE))) ->  | BH20: =IF(BG20="","",Form!G24) ->  | BI20: =IF($BG20="","",IF(MainSheet!G34="","",Form!H24)) ->  | BK20: =IF(BG20="","",COUNT($BJ$2:$BJ$26)-(RANK(BJ20,$BJ$2:$BJ$26)+COUNTIF($BJ$2:BJ20,BJ20)-1)+1) ->  | BL20: =IF($BG20="","",IF(ISNA(VLOOKUP(BK20,Tables!A$5:B$28,2,FALSE)),0,VLOOKUP(BK20,Tables!A$5:B$28,2,FALSE))) ->  | BM20: =IF(BG20="","",Form!I24) ->  | BN20: =IF(BG20="","",Form!J24) ->  | BP20: =IF(BG20="","",COUNT($BO$2:$BO$26)-(RANK(BO20,$BO$2:$BO$26,1)+COUNTIF($BO$2:BO20,BO20)-1)+1) ->  | BQ20: =IF($BG20="","",IF(ISNA(VLOOKUP(BP20,Tables!C$5:D$28,2,FALSE)),0,VLOOKUP(BP20,Tables!C$5:D$28,2,FALSE))) ->  | BR20: =IF(BG20="","",INDEX(Form!$B$1:'Form'!$J$1000,MATCH($BD20,Form!$A$1:'Form'!$A$1000,0)+3,8)) ->  | BY20: =IF(BG20="","",INDEX(Form!$B$1:'Form'!$J$1000,MATCH($BD20,Form!$A$1:'Form'!$A$1000,0)+3,9)) ->  | CG20: =IF(MainSheet!G34="","",IF(CF20="","",COUNT($CF$2:$CF$26)-(RANK(CF20,$CF$2:$CF$26,1)+COUNTIF($CF$2:CF20,CF20)-1)+1)) ->  | CH20: =IF($BY20="","",IF(Tables!$F$3<>"",0,IF(ISNA(VLOOKUP(CG20,Tables!E$5:F$28,2,FALSE)),0,VLOOKUP(CG20,Tables!E$5:F$28,2,FALSE)))) ->  | CI20: =IF(BG20="","",INDEX(Form!$B$1:'Form'!$J$1000,MATCH($BD20,Form!$A$1:'Form'!$A$1000,0)+5,5)) ->  | CQ20: =IF(BG20="","",IF(CI20=0,0,COUNT($CP$2:$CP$26)-(RANK(CP20,$CP$2:$CP$26,1)+COUNTIF($CP$2:CP20,CP20)-1)+1)) ->  | CR20: =IF($CI20="","",IF(Tables!$H$3<>"",0,IF(ISNA(VLOOKUP(CQ20,Tables!G$5:H$28,2,FALSE)),0,VLOOKUP(CQ20,Tables!G$5:H$28,2,FALSE)))) ->  | CS20: =IF(BG20="","",INDEX(Form!$B$1:'Form'!$J$1000,MATCH($BD20,Form!$A$1:'Form'!$A$1000,0)+5,6)) ->  | DA20: =IF(BG20="","",IF(CS20=0,0,COUNT($CZ$2:$CZ$26)-(RANK(CZ20,$CZ$2:$CZ$26,1)+COUNTIF($CZ$2:CZ20,CZ20)-1)+1)) ->  | DB20: =IF($CS20="","",IF(Tables!$J$3<>"",0,IF(Tables!$K$1=0,0,IF(ISNA(VLOOKUP(DA20,Tables!$I$5:$J$28,2,FALSE)),"0",VLOOKUP(DA20,Tables!$I$5:$J$28,2,FALSE))))) ->  | DJ20: =IF(BG20="","",COUNT($DI$2:$DI$26)-(RANK(DI20,$DI$2:$DI$26,1)+COUNTIF($DI$2:DI20,DI20)-1)+1) ->  | DK20: =IF($BG20="","",IF(ISNA(VLOOKUP(DJ20,Tables!K$5:L$28,2,FALSE)),"0",VLOOKUP(DJ20,Tables!K$5:L$28,2,FALSE))) ->  | DM20: =IF(BG20="","",(DL20-Form!$I$4)) ->  | DN20: =IF(BG20="","",COUNT($DM$2:$DM$26)-(RANK(DM20,$DM$2:$DM$26,1)+COUNTIF($DM$2:DM20,DM20)-1)+1) ->  | DO20: =IF($BG20="","",IF(ISERROR(DN20),1,IF(ISNA(VLOOKUP(DN20,Tables!M$5:N$28,2,FALSE)),"0",VLOOKUP(DN20,Tables!M$5:N$28,2,FALSE)))) ->  | DT20: =IF(MainSheet!$G34="","",IF(DS20="","",IF(ISERROR(DS20),"",ROUND(0+DS20/0.5,0)*0.5))) ->  | DZ20: =IF(MainSheet!$G34="","",IF(DY20="","",IF(ISERROR(DY20),"",ROUND(0+DY20/0.5,0)*0.5))) ->  | EF20: =IF(MainSheet!$G34="","",IF(EE20="","",IF(ISERROR(EE20),"",ROUND(0+EE20/0.5,0)*0.5))) ->  | EI20: =IF(BG20="","",COUNT($EH$2:$EH$26)-(RANK(EH20,$EH$2:$EH$26,1)+COUNTIF($EH$2:EH20,EH20)-1)+1) ->  | EJ20: =IF($BG20="","",IF(ISNA(VLOOKUP(EI20,Tables!O$5:P$28,2,FALSE)),"0",VLOOKUP(EI20,Tables!O$5:P$28,2,FALSE))) ->  | EM20: =IF(BG20="","",IF(EL20=0,0,COUNT($EL$2:$EL$26)-(RANK(EL20,$EL$2:$EL$26,1)+COUNTIF($EL$2:EL20,EL20)-1)+1)) ->  | EN20: =IF($BG20="","",IF(ISNA(VLOOKUP(EM20,Tables!Q$5:R$26,2,FALSE)),"0",VLOOKUP(EM20,Tables!Q$5:R$26,2,FALSE))) ->  | EO20: =IF(BG20="","",Form!K24) ->  | ET20: =IF(BG20="","",IF(ES20=0,0,COUNT($ES$2:$ES$26)-(RANK(ES20,$ES$2:$ES$26,1)+COUNTIF($ES$2:ES20,ES20)-1)+1)) ->  | EU20: =IF($BG20="","",IF(ISNA(VLOOKUP(ET20,Tables!S$5:T$26,2,FALSE)),"0",VLOOKUP(ET20,Tables!S$5:T$26,2,FALSE))) ->  | EV20: =IF(BF20="","",IF(MainSheet!D34="Scratched","",IF(ISERROR(BL20+BQ20+CH20+CR20+DB20+DK20+DO20+EJ20+EN20+EU20),"",BL20+BQ20+CH20+CR20+DB20+DK20+DO20+EJ20+EN20+EU20))) ->  | EY20: =IF(EX20="","",COUNT($EX$2:$EX$26)-(RANK(EX20,$EX$2:$EX$26)+COUNTIF($EX$2:EX20,EX20)-1)+1) ->  | FD20: =IF(FC20="","",1/FC20*MainSheet!$R$11) -> 
A21: =IF(Meetings1!A21="","",IF(Meetings1!A21="END","END",IF(Meetings1!B21="","",getAddress(Meetings1!E21)))) ->  | M21: =IF(ISERROR(N21),"",IF(ISNA(VLOOKUP(N21,RaceList!$M$9:$O$41,3,FALSE)),"",VLOOKUP(N21,RaceList!$M$9:$O$41,3,FALSE))) ->  | N21: =IF(O21="","",IF(Meetings2!$B21="","",Meetings2!$B21)) -> GLOUCESTER PARK (PT) | O21: =IF(Meetings2!D21="","",getAddress(Meetings2!D21)) -> http://www.tabonline.com.au/2012/02/02/PT01.html | P21: =IF(Meetings2!E21="","",getAddress(Meetings2!E21)) -> http://www.tabonline.com.au/2012/02/02/PT02.html | Q21: =IF(Meetings2!F21="","",getAddress(Meetings2!F21)) -> http://www.tabonline.com.au/2012/02/02/PT03.html | R21: =IF(Meetings2!G21="","",getAddress(Meetings2!G21)) -> http://www.tabonline.com.au/2012/02/02/PT04.html | S21: =IF(Meetings2!H21="","",getAddress(Meetings2!H21)) -> http://www.tabonline.com.au/2012/02/02/PT05.html | T21: =IF(Meetings2!I21="","",getAddress(Meetings2!I21)) -> http://www.tabonline.com.au/2012/02/02/PT06.html | U21: =IF(Meetings2!J21="","",getAddress(Meetings2!J21)) -> http://www.tabonline.com.au/2012/02/02/PT07.html | V21: =IF(Meetings2!K21="","",getAddress(Meetings2!K21)) -> http://www.tabonline.com.au/2012/02/02/PT08.html | W21: =IF(Meetings2!L21="","",getAddress(Meetings2!L21)) ->  | X21: =IF(Meetings2!M21="","",getAddress(Meetings2!M21)) ->  | Y21: =IF(Meetings2!AA21="","",getAddress(Meetings2!AA21)) ->  | Z21: =IF(AA21="","",IF(AA21="Career::",Form!A19,"")) ->  | AV21: 5 | AX21: =IF(Race!J21<>"",Race!C21,"") -> EIGHT STARS | AY21: =IF(AX21<>"",Race!N21,"") -> 100 | AZ21: =IF(AX21<>"",Race!I21,"") -> 12 | BA21: =IF(AX21<>"",Race!L21,"") -> D | BD21: =IF(Form!K25<>"",LEFT(Form!D25,FIND("(",Form!D25)-2),"") ->  | BF21: =IF(BD21="","",Form!B25) ->  | BH21: =IF(BG21="","",Form!G25) ->  | BI21: =IF($BG21="","",IF(MainSheet!G35="","",Form!H25)) ->  | BK21: =IF(BG21="","",COUNT($BJ$2:$BJ$26)-(RANK(BJ21,$BJ$2:$BJ$26)+COUNTIF($BJ$2:BJ21,BJ21)-1)+1) ->  | BL21: =IF($BG21="","",IF(ISNA(VLOOKUP(BK21,Tables!A$5:B$28,2,FALSE)),0,VLOOKUP(BK21,Tables!A$5:B$28,2,FALSE))) ->  | BM21: =IF(BG21="","",Form!I25) ->  | BN21: =IF(BG21="","",Form!J25) ->  | BP21: =IF(BG21="","",COUNT($BO$2:$BO$26)-(RANK(BO21,$BO$2:$BO$26,1)+COUNTIF($BO$2:BO21,BO21)-1)+1) ->  | BQ21: =IF($BG21="","",IF(ISNA(VLOOKUP(BP21,Tables!C$5:D$28,2,FALSE)),0,VLOOKUP(BP21,Tables!C$5:D$28,2,FALSE))) ->  | BR21: =IF(BG21="","",INDEX(Form!$B$1:'Form'!$J$1000,MATCH($BD21,Form!$A$1:'Form'!$A$1000,0)+3,8)) ->  | BY21: =IF(BG21="","",INDEX(Form!$B$1:'Form'!$J$1000,MATCH($BD21,Form!$A$1:'Form'!$A$1000,0)+3,9)) ->  | CG21: =IF(MainSheet!G35="","",IF(CF21="","",COUNT($CF$2:$CF$26)-(RANK(CF21,$CF$2:$CF$26,1)+COUNTIF($CF$2:CF21,CF21)-1)+1)) ->  | CH21: =IF($BY21="","",IF(Tables!$F$3<>"",0,IF(ISNA(VLOOKUP(CG21,Tables!E$5:F$28,2,FALSE)),0,VLOOKUP(CG21,Tables!E$5:F$28,2,FALSE)))) ->  | CI21: =IF(BG21="","",INDEX(Form!$B$1:'Form'!$J$1000,MATCH($BD21,Form!$A$1:'Form'!$A$1000,0)+5,5)) ->  | CQ21: =IF(BG21="","",IF(CI21=0,0,COUNT($CP$2:$CP$26)-(RANK(CP21,$CP$2:$CP$26,1)+COUNTIF($CP$2:CP21,CP21)-1)+1)) ->  | CR21: =IF($CI21="","",IF(Tables!$H$3<>"",0,IF(ISNA(VLOOKUP(CQ21,Tables!G$5:H$28,2,FALSE)),0,VLOOKUP(CQ21,Tables!G$5:H$28,2,FALSE)))) ->  | CS21: =IF(BG21="","",INDEX(Form!$B$1:'Form'!$J$1000,MATCH($BD21,Form!$A$1:'Form'!$A$1000,0)+5,6)) ->  | DA21: =IF(BG21="","",IF(CS21=0,0,COUNT($CZ$2:$CZ$26)-(RANK(CZ21,$CZ$2:$CZ$26,1)+COUNTIF($CZ$2:CZ21,CZ21)-1)+1)) ->  | DB21: =IF($CS21="","",IF(Tables!$J$3<>"",0,IF(Tables!$K$1=0,0,IF(ISNA(VLOOKUP(DA21,Tables!$I$5:$J$28,2,FALSE)),"0",VLOOKUP(DA21,Tables!$I$5:$J$28,2,FALSE))))) ->  | DJ21: =IF(BG21="","",COUNT($DI$2:$DI$26)-(RANK(DI21,$DI$2:$DI$26,1)+COUNTIF($DI$2:DI21,DI21)-1)+1) ->  | DK21: =IF($BG21="","",IF(ISNA(VLOOKUP(DJ21,Tables!K$5:L$28,2,FALSE)),"0",VLOOKUP(DJ21,Tables!K$5:L$28,2,FALSE))) ->  | DM21: =IF(BG21="","",(DL21-Form!$I$4)) ->  | DN21: =IF(BG21="","",COUNT($DM$2:$DM$26)-(RANK(DM21,$DM$2:$DM$26,1)+COUNTIF($DM$2:DM21,DM21)-1)+1) ->  | DO21: =IF($BG21="","",IF(ISERROR(DN21),1,IF(ISNA(VLOOKUP(DN21,Tables!M$5:N$28,2,FALSE)),"0",VLOOKUP(DN21,Tables!M$5:N$28,2,FALSE)))) ->  | DT21: =IF(MainSheet!$G35="","",IF(DS21="","",IF(ISERROR(DS21),"",ROUND(0+DS21/0.5,0)*0.5))) ->  | DZ21: =IF(MainSheet!$G35="","",IF(DY21="","",IF(ISERROR(DY21),"",ROUND(0+DY21/0.5,0)*0.5))) ->  | EF21: =IF(MainSheet!$G35="","",IF(EE21="","",IF(ISERROR(EE21),"",ROUND(0+EE21/0.5,0)*0.5))) ->  | EI21: =IF(BG21="","",COUNT($EH$2:$EH$26)-(RANK(EH21,$EH$2:$EH$26,1)+COUNTIF($EH$2:EH21,EH21)-1)+1) ->  | EJ21: =IF($BG21="","",IF(ISNA(VLOOKUP(EI21,Tables!O$5:P$28,2,FALSE)),"0",VLOOKUP(EI21,Tables!O$5:P$28,2,FALSE))) ->  | EM21: =IF(BG21="","",IF(EL21=0,0,COUNT($EL$2:$EL$26)-(RANK(EL21,$EL$2:$EL$26,1)+COUNTIF($EL$2:EL21,EL21)-1)+1)) ->  | EN21: =IF($BG21="","",IF(ISNA(VLOOKUP(EM21,Tables!Q$5:R$26,2,FALSE)),"0",VLOOKUP(EM21,Tables!Q$5:R$26,2,FALSE))) ->  | EO21: =IF(BG21="","",Form!K25) ->  | ET21: =IF(BG21="","",IF(ES21=0,0,COUNT($ES$2:$ES$26)-(RANK(ES21,$ES$2:$ES$26,1)+COUNTIF($ES$2:ES21,ES21)-1)+1)) ->  | EU21: =IF($BG21="","",IF(ISNA(VLOOKUP(ET21,Tables!S$5:T$26,2,FALSE)),"0",VLOOKUP(ET21,Tables!S$5:T$26,2,FALSE))) ->  | EV21: =IF(BF21="","",IF(MainSheet!D35="Scratched","",IF(ISERROR(BL21+BQ21+CH21+CR21+DB21+DK21+DO21+EJ21+EN21+EU21),"",BL21+BQ21+CH21+CR21+DB21+DK21+DO21+EJ21+EN21+EU21))) ->  | EY21: =IF(EX21="","",COUNT($EX$2:$EX$26)-(RANK(EX21,$EX$2:$EX$26)+COUNTIF($EX$2:EX21,EX21)-1)+1) ->  | FD21: =IF(FC21="","",1/FC21*MainSheet!$R$11) -> 
A22: =IF(Meetings1!A22="","",IF(Meetings1!A22="END","END",IF(Meetings1!B22="","",getAddress(Meetings1!E22)))) ->  | M22: =IF(ISERROR(N22),"",IF(ISNA(VLOOKUP(N22,RaceList!$M$9:$O$41,3,FALSE)),"",VLOOKUP(N22,RaceList!$M$9:$O$41,3,FALSE))) ->  | N22: =IF(O22="","",IF(Meetings2!$B22="","",Meetings2!$B22)) -> FORBURY PARK (ZT) | O22: =IF(Meetings2!D22="","",getAddress(Meetings2!D22)) -> http://www.tabonline.com.au/2012/02/02/ZT01.html | P22: =IF(Meetings2!E22="","",getAddress(Meetings2!E22)) -> http://www.tabonline.com.au/2012/02/02/ZT02.html | Q22: =IF(Meetings2!F22="","",getAddress(Meetings2!F22)) -> http://www.tabonline.com.au/2012/02/02/ZT03.html | R22: =IF(Meetings2!G22="","",getAddress(Meetings2!G22)) -> http://www.tabonline.com.au/2012/02/02/ZT04.html | S22: =IF(Meetings2!H22="","",getAddress(Meetings2!H22)) -> http://www.tabonline.com.au/2012/02/02/ZT05.html | T22: =IF(Meetings2!I22="","",getAddress(Meetings2!I22)) -> http://www.tabonline.com.au/2012/02/02/ZT06.html | U22: =IF(Meetings2!J22="","",getAddress(Meetings2!J22)) -> http://www.tabonline.com.au/2012/02/02/ZT07.html | V22: =IF(Meetings2!K22="","",getAddress(Meetings2!K22)) -> http://www.tabonline.com.au/2012/02/02/ZT08.html | W22: =IF(Meetings2!L22="","",getAddress(Meetings2!L22)) -> http://www.tabonline.com.au/2012/02/02/ZT09.html | X22: =IF(Meetings2!M22="","",getAddress(Meetings2!M22)) -> http://www.tabonline.com.au/2012/02/02/ZT10.html | Y22: =IF(Meetings2!AA22="","",getAddress(Meetings2!AA22)) ->  | Z22: =IF(AA22="","",IF(AA22="Career::",Form!A20,"")) ->  | AA22: Comments:: Resumed from spell with 7-1/4 len 12th Excluded where vet examination 1500m Lakesi Hcp (72) Aug 28 . Then 3-1/4 len 7th Lady Pachira 1700m W'bool Hcp (68) Slow trk Sep 12 . Good win record at this distance. | AV22: 5 | AX22: =IF(Race!J22<>"",Race!C22,"") -> FEDERATION SQUARE | AY22: =IF(AX22<>"",Race!N22,"") -> 96 | AZ22: =IF(AX22<>"",Race!I22,"") -> 8 | BA22: =IF(AX22<>"",Race!L22,"") -> 0 | BD22: =IF(Form!K26<>"",LEFT(Form!D26,FIND("(",Form!D26)-2),"") ->  | BF22: =IF(BD22="","",Form!B26) ->  | BH22: =IF(BG22="","",Form!G26) ->  | BI22: =IF($BG22="","",IF(MainSheet!G36="","",Form!H26)) ->  | BK22: =IF(BG22="","",COUNT($BJ$2:$BJ$26)-(RANK(BJ22,$BJ$2:$BJ$26)+COUNTIF($BJ$2:BJ22,BJ22)-1)+1) ->  | BL22: =IF($BG22="","",IF(ISNA(VLOOKUP(BK22,Tables!A$5:B$28,2,FALSE)),0,VLOOKUP(BK22,Tables!A$5:B$28,2,FALSE))) ->  | BM22: =IF(BG22="","",Form!I26) ->  | BN22: =IF(BG22="","",Form!J26) ->  | BP22: =IF(BG22="","",COUNT($BO$2:$BO$26)-(RANK(BO22,$BO$2:$BO$26,1)+COUNTIF($BO$2:BO22,BO22)-1)+1) ->  | BQ22: =IF($BG22="","",IF(ISNA(VLOOKUP(BP22,Tables!C$5:D$28,2,FALSE)),0,VLOOKUP(BP22,Tables!C$5:D$28,2,FALSE))) ->  | BR22: =IF(BG22="","",INDEX(Form!$B$1:'Form'!$J$1000,MATCH($BD22,Form!$A$1:'Form'!$A$1000,0)+3,8)) ->  | BY22: =IF(BG22="","",INDEX(Form!$B$1:'Form'!$J$1000,MATCH($BD22,Form!$A$1:'Form'!$A$1000,0)+3,9)) ->  | CG22: =IF(MainSheet!G36="","",IF(CF22="","",COUNT($CF$2:$CF$26)-(RANK(CF22,$CF$2:$CF$26,1)+COUNTIF($CF$2:CF22,CF22)-1)+1)) ->  | CH22: =IF($BY22="","",IF(Tables!$F$3<>"",0,IF(ISNA(VLOOKUP(CG22,Tables!E$5:F$28,2,FALSE)),0,VLOOKUP(CG22,Tables!E$5:F$28,2,FALSE)))) ->  | CI22: =IF(BG22="","",INDEX(Form!$B$1:'Form'!$J$1000,MATCH($BD22,Form!$A$1:'Form'!$A$1000,0)+5,5)) ->  | CQ22: =IF(BG22="","",IF(CI22=0,0,COUNT($CP$2:$CP$26)-(RANK(CP22,$CP$2:$CP$26,1)+COUNTIF($CP$2:CP22,CP22)-1)+1)) ->  | CR22: =IF($CI22="","",IF(Tables!$H$3<>"",0,IF(ISNA(VLOOKUP(CQ22,Tables!G$5:H$28,2,FALSE)),0,VLOOKUP(CQ22,Tables!G$5:H$28,2,FALSE)))) ->  | CS22: =IF(BG22="","",INDEX(Form!$B$1:'Form'!$J$1000,MATCH($BD22,Form!$A$1:'Form'!$A$1000,0)+5,6)) ->  | DA22: =IF(BG22="","",IF(CS22=0,0,COUNT($CZ$2:$CZ$26)-(RANK(CZ22,$CZ$2:$CZ$26,1)+COUNTIF($CZ$2:CZ22,CZ22)-1)+1)) ->  | DB22: =IF($CS22="","",IF(Tables!$J$3<>"",0,IF(Tables!$K$1=0,0,IF(ISNA(VLOOKUP(DA22,Tables!$I$5:$J$28,2,FALSE)),"0",VLOOKUP(DA22,Tables!$I$5:$J$28,2,FALSE))))) ->  | DJ22: =IF(BG22="","",COUNT($DI$2:$DI$26)-(RANK(DI22,$DI$2:$DI$26,1)+COUNTIF($DI$2:DI22,DI22)-1)+1) ->  | DK22: =IF($BG22="","",IF(ISNA(VLOOKUP(DJ22,Tables!K$5:L$28,2,FALSE)),"0",VLOOKUP(DJ22,Tables!K$5:L$28,2,FALSE))) ->  | DM22: =IF(BG22="","",(DL22-Form!$I$4)) ->  | DN22: =IF(BG22="","",COUNT($DM$2:$DM$26)-(RANK(DM22,$DM$2:$DM$26,1)+COUNTIF($DM$2:DM22,DM22)-1)+1) ->  | DO22: =IF($BG22="","",IF(ISERROR(DN22),1,IF(ISNA(VLOOKUP(DN22,Tables!M$5:N$28,2,FALSE)),"0",VLOOKUP(DN22,Tables!M$5:N$28,2,FALSE)))) ->  | DT22: =IF(MainSheet!$G36="","",IF(DS22="","",IF(ISERROR(DS22),"",ROUND(0+DS22/0.5,0)*0.5))) ->  | DZ22: =IF(MainSheet!$G36="","",IF(DY22="","",IF(ISERROR(DY22),"",ROUND(0+DY22/0.5,0)*0.5))) ->  | EF22: =IF(MainSheet!$G36="","",IF(EE22="","",IF(ISERROR(EE22),"",ROUND(0+EE22/0.5,0)*0.5))) ->  | EI22: =IF(BG22="","",COUNT($EH$2:$EH$26)-(RANK(EH22,$EH$2:$EH$26,1)+COUNTIF($EH$2:EH22,EH22)-1)+1) ->  | EJ22: =IF($BG22="","",IF(ISNA(VLOOKUP(EI22,Tables!O$5:P$28,2,FALSE)),"0",VLOOKUP(EI22,Tables!O$5:P$28,2,FALSE))) ->  | EM22: =IF(BG22="","",IF(EL22=0,0,COUNT($EL$2:$EL$26)-(RANK(EL22,$EL$2:$EL$26,1)+COUNTIF($EL$2:EL22,EL22)-1)+1)) ->  | EN22: =IF($BG22="","",IF(ISNA(VLOOKUP(EM22,Tables!Q$5:R$26,2,FALSE)),"0",VLOOKUP(EM22,Tables!Q$5:R$26,2,FALSE))) ->  | EO22: =IF(BG22="","",Form!K26) ->  | ET22: =IF(BG22="","",IF(ES22=0,0,COUNT($ES$2:$ES$26)-(RANK(ES22,$ES$2:$ES$26,1)+COUNTIF($ES$2:ES22,ES22)-1)+1)) ->  | EU22: =IF($BG22="","",IF(ISNA(VLOOKUP(ET22,Tables!S$5:T$26,2,FALSE)),"0",VLOOKUP(ET22,Tables!S$5:T$26,2,FALSE))) ->  | EV22: =IF(BF22="","",IF(MainSheet!D36="Scratched","",IF(ISERROR(BL22+BQ22+CH22+CR22+DB22+DK22+DO22+EJ22+EN22+EU22),"",BL22+BQ22+CH22+CR22+DB22+DK22+DO22+EJ22+EN22+EU22))) ->  | EY22: =IF(EX22="","",COUNT($EX$2:$EX$26)-(RANK(EX22,$EX$2:$EX$26)+COUNTIF($EX$2:EX22,EX22)-1)+1) ->  | FD22: =IF(FC22="","",1/FC22*MainSheet!$R$11) -> 
A23: =IF(Meetings1!A23="","",IF(Meetings1!A23="END","END",IF(Meetings1!B23="","",getAddress(Meetings1!E23)))) ->  | M23: =IF(ISERROR(N23),"",IF(ISNA(VLOOKUP(N23,RaceList!$M$9:$O$41,3,FALSE)),"",VLOOKUP(N23,RaceList!$M$9:$O$41,3,FALSE))) ->  | N23: =IF(O23="","",IF(Meetings2!$B23="","",Meetings2!$B23)) ->  | O23: =IF(Meetings2!D23="","",getAddress(Meetings2!D23)) ->  | P23: =IF(Meetings2!E23="","",getAddress(Meetings2!E23)) ->  | Q23: =IF(Meetings2!F23="","",getAddress(Meetings2!F23)) ->  | R23: =IF(Meetings2!G23="","",getAddress(Meetings2!G23)) ->  | S23: =IF(Meetings2!H23="","",getAddress(Meetings2!H23)) ->  | T23: =IF(Meetings2!I23="","",getAddress(Meetings2!I23)) ->  | U23: =IF(Meetings2!J23="","",getAddress(Meetings2!J23)) ->  | V23: =IF(Meetings2!K23="","",getAddress(Meetings2!K23)) ->  | W23: =IF(Meetings2!L23="","",getAddress(Meetings2!L23)) ->  | X23: =IF(Meetings2!M23="","",getAddress(Meetings2!M23)) ->  | Y23: =IF(Meetings2!AA23="","",getAddress(Meetings2!AA23)) ->  | Z23: =IF(AA23="","",IF(AA23="Career::",Form!A21,"")) -> Alter Ego | AA23: Career:: | AV23: 5 | AX23: =IF(Race!J23<>"",Race!C23,"") -> BONGIORNO | AY23: =IF(AX23<>"",Race!N23,"") -> 98 | AZ23: =IF(AX23<>"",Race!I23,"") -> 1 | BA23: =IF(AX23<>"",Race!L23,"") -> 0 | BD23: =IF(Form!K27<>"",LEFT(Form!D27,FIND("(",Form!D27)-2),"") ->  | BF23: =IF(BD23="","",Form!B27) ->  | BH23: =IF(BG23="","",Form!G27) ->  | BI23: =IF($BG23="","",IF(MainSheet!G37="","",Form!H27)) ->  | BK23: =IF(BG23="","",COUNT($BJ$2:$BJ$26)-(RANK(BJ23,$BJ$2:$BJ$26)+COUNTIF($BJ$2:BJ23,BJ23)-1)+1) ->  | BL23: =IF($BG23="","",IF(ISNA(VLOOKUP(BK23,Tables!A$5:B$28,2,FALSE)),0,VLOOKUP(BK23,Tables!A$5:B$28,2,FALSE))) ->  | BM23: =IF(BG23="","",Form!I27) ->  | BN23: =IF(BG23="","",Form!J27) ->  | BP23: =IF(BG23="","",COUNT($BO$2:$BO$26)-(RANK(BO23,$BO$2:$BO$26,1)+COUNTIF($BO$2:BO23,BO23)-1)+1) ->  | BQ23: =IF($BG23="","",IF(ISNA(VLOOKUP(BP23,Tables!C$5:D$28,2,FALSE)),0,VLOOKUP(BP23,Tables!C$5:D$28,2,FALSE))) ->  | BR23: =IF(BG23="","",INDEX(Form!$B$1:'Form'!$J$1000,MATCH($BD23,Form!$A$1:'Form'!$A$1000,0)+3,8)) ->  | BY23: =IF(BG23="","",INDEX(Form!$B$1:'Form'!$J$1000,MATCH($BD23,Form!$A$1:'Form'!$A$1000,0)+3,9)) ->  | CG23: =IF(MainSheet!G37="","",IF(CF23="","",COUNT($CF$2:$CF$26)-(RANK(CF23,$CF$2:$CF$26,1)+COUNTIF($CF$2:CF23,CF23)-1)+1)) ->  | CH23: =IF($BY23="","",IF(Tables!$F$3<>"",0,IF(ISNA(VLOOKUP(CG23,Tables!E$5:F$28,2,FALSE)),0,VLOOKUP(CG23,Tables!E$5:F$28,2,FALSE)))) ->  | CI23: =IF(BG23="","",INDEX(Form!$B$1:'Form'!$J$1000,MATCH($BD23,Form!$A$1:'Form'!$A$1000,0)+5,5)) ->  | CQ23: =IF(BG23="","",IF(CI23=0,0,COUNT($CP$2:$CP$26)-(RANK(CP23,$CP$2:$CP$26,1)+COUNTIF($CP$2:CP23,CP23)-1)+1)) ->  | CR23: =IF($CI23="","",IF(Tables!$H$3<>"",0,IF(ISNA(VLOOKUP(CQ23,Tables!G$5:H$28,2,FALSE)),0,VLOOKUP(CQ23,Tables!G$5:H$28,2,FALSE)))) ->  | CS23: =IF(BG23="","",INDEX(Form!$B$1:'Form'!$J$1000,MATCH($BD23,Form!$A$1:'Form'!$A$1000,0)+5,6)) ->  | DA23: =IF(BG23="","",IF(CS23=0,0,COUNT($CZ$2:$CZ$26)-(RANK(CZ23,$CZ$2:$CZ$26,1)+COUNTIF($CZ$2:CZ23,CZ23)-1)+1)) ->  | DB23: =IF($CS23="","",IF(Tables!$J$3<>"",0,IF(Tables!$K$1=0,0,IF(ISNA(VLOOKUP(DA23,Tables!$I$5:$J$28,2,FALSE)),"0",VLOOKUP(DA23,Tables!$I$5:$J$28,2,FALSE))))) ->  | DJ23: =IF(BG23="","",COUNT($DI$2:$DI$26)-(RANK(DI23,$DI$2:$DI$26,1)+COUNTIF($DI$2:DI23,DI23)-1)+1) ->  | DK23: =IF($BG23="","",IF(ISNA(VLOOKUP(DJ23,Tables!K$5:L$28,2,FALSE)),"0",VLOOKUP(DJ23,Tables!K$5:L$28,2,FALSE))) ->  | DM23: =IF(BG23="","",(DL23-Form!$I$4)) ->  | DN23: =IF(BG23="","",COUNT($DM$2:$DM$26)-(RANK(DM23,$DM$2:$DM$26,1)+COUNTIF($DM$2:DM23,DM23)-1)+1) ->  | DO23: =IF($BG23="","",IF(ISERROR(DN23),1,IF(ISNA(VLOOKUP(DN23,Tables!M$5:N$28,2,FALSE)),"0",VLOOKUP(DN23,Tables!M$5:N$28,2,FALSE)))) ->  | DT23: =IF(MainSheet!$G37="","",IF(DS23="","",IF(ISERROR(DS23),"",ROUND(0+DS23/0.5,0)*0.5))) ->  | DZ23: =IF(MainSheet!$G37="","",IF(DY23="","",IF(ISERROR(DY23),"",ROUND(0+DY23/0.5,0)*0.5))) ->  | EF23: =IF(MainSheet!$G37="","",IF(EE23="","",IF(ISERROR(EE23),"",ROUND(0+EE23/0.5,0)*0.5))) ->  | EI23: =IF(BG23="","",COUNT($EH$2:$EH$26)-(RANK(EH23,$EH$2:$EH$26,1)+COUNTIF($EH$2:EH23,EH23)-1)+1) ->  | EJ23: =IF($BG23="","",IF(ISNA(VLOOKUP(EI23,Tables!O$5:P$28,2,FALSE)),"0",VLOOKUP(EI23,Tables!O$5:P$28,2,FALSE))) ->  | EM23: =IF(BG23="","",IF(EL23=0,0,COUNT($EL$2:$EL$26)-(RANK(EL23,$EL$2:$EL$26,1)+COUNTIF($EL$2:EL23,EL23)-1)+1)) ->  | EN23: =IF($BG23="","",IF(ISNA(VLOOKUP(EM23,Tables!Q$5:R$26,2,FALSE)),"0",VLOOKUP(EM23,Tables!Q$5:R$26,2,FALSE))) ->  | EO23: =IF(BG23="","",Form!K27) ->  | ET23: =IF(BG23="","",IF(ES23=0,0,COUNT($ES$2:$ES$26)-(RANK(ES23,$ES$2:$ES$26,1)+COUNTIF($ES$2:ES23,ES23)-1)+1)) ->  | EU23: =IF($BG23="","",IF(ISNA(VLOOKUP(ET23,Tables!S$5:T$26,2,FALSE)),"0",VLOOKUP(ET23,Tables!S$5:T$26,2,FALSE))) ->  | EV23: =IF(BF23="","",IF(MainSheet!D37="Scratched","",IF(ISERROR(BL23+BQ23+CH23+CR23+DB23+DK23+DO23+EJ23+EN23+EU23),"",BL23+BQ23+CH23+CR23+DB23+DK23+DO23+EJ23+EN23+EU23))) ->  | EY23: =IF(EX23="","",COUNT($EX$2:$EX$26)-(RANK(EX23,$EX$2:$EX$26)+COUNTIF($EX$2:EX23,EX23)-1)+1) ->  | FD23: =IF(FC23="","",1/FC23*MainSheet!$R$11) -> 
A24: =IF(Meetings1!A24="","",IF(Meetings1!A24="END","END",IF(Meetings1!B24="","",getAddress(Meetings1!E24)))) ->  | M24: =IF(ISERROR(N24),"",IF(ISNA(VLOOKUP(N24,RaceList!$M$9:$O$41,3,FALSE)),"",VLOOKUP(N24,RaceList!$M$9:$O$41,3,FALSE))) ->  | N24: =IF(O24="","",IF(Meetings2!$B24="","",Meetings2!$B24)) -> ALBION PARK (BG) | O24: =IF(Meetings2!D24="","",getAddress(Meetings2!D24)) -> http://www.tabonline.com.au/2012/02/02/BG01.html | P24: =IF(Meetings2!E24="","",getAddress(Meetings2!E24)) -> http://www.tabonline.com.au/2012/02/02/BG02.html | Q24: =IF(Meetings2!F24="","",getAddress(Meetings2!F24)) -> http://www.tabonline.com.au/2012/02/02/BG03.html | R24: =IF(Meetings2!G24="","",getAddress(Meetings2!G24)) -> http://www.tabonline.com.au/2012/02/02/BG04.html | S24: =IF(Meetings2!H24="","",getAddress(Meetings2!H24)) -> http://www.tabonline.com.au/2012/02/02/BG05.html | T24: =IF(Meetings2!I24="","",getAddress(Meetings2!I24)) -> http://www.tabonline.com.au/2012/02/02/BG06.html | U24: =IF(Meetings2!J24="","",getAddress(Meetings2!J24)) -> http://www.tabonline.com.au/2012/02/02/BG07.html | V24: =IF(Meetings2!K24="","",getAddress(Meetings2!K24)) -> http://www.tabonline.com.au/2012/02/02/BG08.html | W24: =IF(Meetings2!L24="","",getAddress(Meetings2!L24)) -> http://www.tabonline.com.au/2012/02/02/BG09.html | X24: =IF(Meetings2!M24="","",getAddress(Meetings2!M24)) -> http://www.tabonline.com.au/2012/02/02/BG10.html | Z24: =IF(AA24="","",IF(AA24="Career::",Form!A22,"")) ->  | AA24: 4::1-1-0 | AV24: 5 | AX24: =IF(Race!J24<>"",Race!C24,"") -> GO FARAGLIONI | AY24: =IF(AX24<>"",Race!N24,"") -> 90 | AZ24: =IF(AX24<>"",Race!I24,"") -> 9 | BA24: =IF(AX24<>"",Race!L24,"") -> 0 | BD24: =IF(Form!K28<>"",LEFT(Form!D28,FIND("(",Form!D28)-2),"") ->  | BF24: =IF(BD24="","",Form!B28) ->  | BH24: =IF(BG24="","",Form!G28) ->  | BI24: =IF($BG24="","",IF(MainSheet!G38="","",Form!H28)) ->  | BK24: =IF(BG24="","",COUNT($BJ$2:$BJ$26)-(RANK(BJ24,$BJ$2:$BJ$26)+COUNTIF($BJ$2:BJ24,BJ24)-1)+1) ->  | BL24: =IF($BG24="","",IF(ISNA(VLOOKUP(BK24,Tables!A$5:B$28,2,FALSE)),0,VLOOKUP(BK24,Tables!A$5:B$28,2,FALSE))) ->  | BN24: =IF(BG24="","",Form!J28) ->  | BP24: =IF(BG24="","",COUNT($BO$2:$BO$26)-(RANK(BO24,$BO$2:$BO$26,1)+COUNTIF($BO$2:BO24,BO24)-1)+1) ->  | BQ24: =IF($BG24="","",IF(ISNA(VLOOKUP(BP24,Tables!C$5:D$28,2,FALSE)),0,VLOOKUP(BP24,Tables!C$5:D$28,2,FALSE))) ->  | BR24: =IF(BG24="","",INDEX(Form!$B$1:'Form'!$J$1000,MATCH($BD24,Form!$A$1:'Form'!$A$1000,0)+3,8)) ->  | BY24: =IF(BG24="","",INDEX(Form!$B$1:'Form'!$J$1000,MATCH($BD24,Form!$A$1:'Form'!$A$1000,0)+3,9)) ->  | CG24: =IF(MainSheet!G38="","",IF(CF24="","",COUNT($CF$2:$CF$26)-(RANK(CF24,$CF$2:$CF$26,1)+COUNTIF($CF$2:CF24,CF24)-1)+1)) ->  | CH24: =IF($BY24="","",IF(Tables!$F$3<>"",0,IF(ISNA(VLOOKUP(CG24,Tables!E$5:F$28,2,FALSE)),0,VLOOKUP(CG24,Tables!E$5:F$28,2,FALSE)))) ->  | CI24: =IF(BG24="","",INDEX(Form!$B$1:'Form'!$J$1000,MATCH($BD24,Form!$A$1:'Form'!$A$1000,0)+5,5)) ->  | CQ24: =IF(BG24="","",IF(CI24=0,0,COUNT($CP$2:$CP$26)-(RANK(CP24,$CP$2:$CP$26,1)+COUNTIF($CP$2:CP24,CP24)-1)+1)) ->  | CR24: =IF($CI24="","",IF(Tables!$H$3<>"",0,IF(ISNA(VLOOKUP(CQ24,Tables!G$5:H$28,2,FALSE)),0,VLOOKUP(CQ24,Tables!G$5:H$28,2,FALSE)))) ->  | CS24: =IF(BG24="","",INDEX(Form!$B$1:'Form'!$J$1000,MATCH($BD24,Form!$A$1:'Form'!$A$1000,0)+5,6)) ->  | DA24: =IF(BG24="","",IF(CS24=0,0,COUNT($CZ$2:$CZ$26)-(RANK(CZ24,$CZ$2:$CZ$26,1)+COUNTIF($CZ$2:CZ24,CZ24)-1)+1)) ->  | DB24: =IF($CS24="","",IF(Tables!$J$3<>"",0,IF(Tables!$K$1=0,0,IF(ISNA(VLOOKUP(DA24,Tables!$I$5:$J$28,2,FALSE)),"0",VLOOKUP(DA24,Tables!$I$5:$J$28,2,FALSE))))) ->  | DJ24: =IF(BG24="","",COUNT($DI$2:$DI$26)-(RANK(DI24,$DI$2:$DI$26,1)+COUNTIF($DI$2:DI24,DI24)-1)+1) ->  | DK24: =IF($BG24="","",IF(ISNA(VLOOKUP(DJ24,Tables!K$5:L$28,2,FALSE)),"0",VLOOKUP(DJ24,Tables!K$5:L$28,2,FALSE))) ->  | DM24: =IF(BG24="","",(DL24-Form!$I$4)) ->  | DN24: =IF(BG24="","",COUNT($DM$2:$DM$26)-(RANK(DM24,$DM$2:$DM$26,1)+COUNTIF($DM$2:DM24,DM24)-1)+1) ->  | DO24: =IF($BG24="","",IF(ISERROR(DN24),1,IF(ISNA(VLOOKUP(DN24,Tables!M$5:N$28,2,FALSE)),"0",VLOOKUP(DN24,Tables!M$5:N$28,2,FALSE)))) ->  | DT24: =IF(MainSheet!$G38="","",IF(DS24="","",IF(ISERROR(DS24),"",ROUND(0+DS24/0.5,0)*0.5))) ->  | DZ24: =IF(MainSheet!$G38="","",IF(DY24="","",IF(ISERROR(DY24),"",ROUND(0+DY24/0.5,0)*0.5))) ->  | EF24: =IF(MainSheet!$G38="","",IF(EE24="","",IF(ISERROR(EE24),"",ROUND(0+EE24/0.5,0)*0.5))) ->  | EI24: =IF(BG24="","",COUNT($EH$2:$EH$26)-(RANK(EH24,$EH$2:$EH$26,1)+COUNTIF($EH$2:EH24,EH24)-1)+1) ->  | EJ24: =IF($BG24="","",IF(ISNA(VLOOKUP(EI24,Tables!O$5:P$28,2,FALSE)),"0",VLOOKUP(EI24,Tables!O$5:P$28,2,FALSE))) ->  | EM24: =IF(BG24="","",IF(EL24=0,0,COUNT($EL$2:$EL$26)-(RANK(EL24,$EL$2:$EL$26,1)+COUNTIF($EL$2:EL24,EL24)-1)+1)) ->  | EN24: =IF($BG24="","",IF(ISNA(VLOOKUP(EM24,Tables!Q$5:R$26,2,FALSE)),"0",VLOOKUP(EM24,Tables!Q$5:R$26,2,FALSE))) ->  | EO24: =IF(BG24="","",Form!K28) ->  | ET24: =IF(BG24="","",IF(ES24=0,0,COUNT($ES$2:$ES$26)-(RANK(ES24,$ES$2:$ES$26,1)+COUNTIF($ES$2:ES24,ES24)-1)+1)) ->  | EU24: =IF($BG24="","",IF(ISNA(VLOOKUP(ET24,Tables!S$5:T$26,2,FALSE)),"0",VLOOKUP(ET24,Tables!S$5:T$26,2,FALSE))) ->  | EV24: =IF(BF24="","",IF(MainSheet!D38="Scratched","",IF(ISERROR(BL24+BQ24+CH24+CR24+DB24+DK24+DO24+EJ24+EN24+EU24),"",BL24+BQ24+CH24+CR24+DB24+DK24+DO24+EJ24+EN24+EU24))) ->  | EY24: =IF(EX24="","",COUNT($EX$2:$EX$26)-(RANK(EX24,$EX$2:$EX$26)+COUNTIF($EX$2:EX24,EX24)-1)+1) ->  | FD24: =IF(FC24="","",1/FC24*MainSheet!$R$11) -> 
A25: =IF(Meetings1!A25="","",IF(Meetings1!A25="END","END",IF(Meetings1!B25="","",getAddress(Meetings1!E25)))) ->  | M25: =IF(ISERROR(N25),"",IF(ISNA(VLOOKUP(N25,RaceList!$M$9:$O$41,3,FALSE)),"",VLOOKUP(N25,RaceList!$M$9:$O$41,3,FALSE))) ->  | N25: =IF(O25="","",IF(Meetings2!$B25="","",Meetings2!$B25)) -> DAPTO (SG) | O25: =IF(Meetings2!D25="","",getAddress(Meetings2!D25)) -> http://www.tabonline.com.au/2012/02/02/SG01.html | P25: =IF(Meetings2!E25="","",getAddress(Meetings2!E25)) -> http://www.tabonline.com.au/2012/02/02/SG02.html | Q25: =IF(Meetings2!F25="","",getAddress(Meetings2!F25)) -> http://www.tabonline.com.au/2012/02/02/SG03.html | R25: =IF(Meetings2!G25="","",getAddress(Meetings2!G25)) -> http://www.tabonline.com.au/2012/02/02/SG04.html | S25: =IF(Meetings2!H25="","",getAddress(Meetings2!H25)) -> http://www.tabonline.com.au/2012/02/02/SG05.html | T25: =IF(Meetings2!I25="","",getAddress(Meetings2!I25)) -> http://www.tabonline.com.au/2012/02/02/SG06.html | U25: =IF(Meetings2!J25="","",getAddress(Meetings2!J25)) -> http://www.tabonline.com.au/2012/02/02/SG07.html | V25: =IF(Meetings2!K25="","",getAddress(Meetings2!K25)) -> http://www.tabonline.com.au/2012/02/02/SG08.html | W25: =IF(Meetings2!L25="","",getAddress(Meetings2!L25)) -> http://www.tabonline.com.au/2012/02/02/SG09.html | X25: =IF(Meetings2!M25="","",getAddress(Meetings2!M25)) -> http://www.tabonline.com.au/2012/02/02/SG10.html | Y25: =IF(Meetings2!AA24="","",getAddress(Meetings2!AA24)) ->  | Z25: =IF(AA25="","",IF(AA25="Career::",Form!A23,"")) ->  | AA25: Fast:: | AV25: 5 | AX25: =IF(Race!J25<>"",Race!C25,"") -> PRINTED | AY25: =IF(AX25<>"",Race!N25,"") -> 90 | AZ25: =IF(AX25<>"",Race!I25,"") -> 4 | BA25: =IF(AX25<>"",Race!L25,"") -> D | BD25: =IF(Form!K29<>"",LEFT(Form!D29,FIND("(",Form!D29)-2),"") ->  | BF25: =IF(BD25="","",Form!B29) ->  | BH25: =IF(BG25="","",Form!G29) ->  | BI25: =IF($BG25="","",IF(MainSheet!G39="","",Form!H29)) ->  | BK25: =IF(BG25="","",COUNT($BJ$2:$BJ$26)-(RANK(BJ25,$BJ$2:$BJ$26)+COUNTIF($BJ$2:BJ25,BJ25)-1)+1) ->  | BL25: =IF($BG25="","",IF(ISNA(VLOOKUP(BK25,Tables!A$5:B$28,2,FALSE)),0,VLOOKUP(BK25,Tables!A$5:B$28,2,FALSE))) ->  | BM25: =IF($BD25="","",Form!I27) ->  | BN25: =IF(BG25="","",Form!J29) ->  | BP25: =IF(BG25="","",COUNT($BO$2:$BO$26)-(RANK(BO25,$BO$2:$BO$26,1)+COUNTIF($BO$2:BO25,BO25)-1)+1) ->  | BQ25: =IF($BG25="","",IF(ISNA(VLOOKUP(BP25,Tables!C$5:D$28,2,FALSE)),0,VLOOKUP(BP25,Tables!C$5:D$28,2,FALSE))) ->  | BR25: =IF(BG25="","",INDEX(Form!$B$1:'Form'!$J$1000,MATCH($BD25,Form!$A$1:'Form'!$A$1000,0)+3,8)) ->  | BY25: =IF(BG25="","",INDEX(Form!$B$1:'Form'!$J$1000,MATCH($BD25,Form!$A$1:'Form'!$A$1000,0)+3,9)) ->  | CG25: =IF(MainSheet!G39="","",IF(CF25="","",COUNT($CF$2:$CF$26)-(RANK(CF25,$CF$2:$CF$26,1)+COUNTIF($CF$2:CF25,CF25)-1)+1)) ->  | CH25: =IF($BY25="","",IF(Tables!$F$3<>"",0,IF(ISNA(VLOOKUP(CG25,Tables!E$5:F$28,2,FALSE)),0,VLOOKUP(CG25,Tables!E$5:F$28,2,FALSE)))) ->  | CI25: =IF(BG25="","",INDEX(Form!$B$1:'Form'!$J$1000,MATCH($BD25,Form!$A$1:'Form'!$A$1000,0)+5,5)) ->  | CQ25: =IF(BG25="","",IF(CI25=0,0,COUNT($CP$2:$CP$26)-(RANK(CP25,$CP$2:$CP$26,1)+COUNTIF($CP$2:CP25,CP25)-1)+1)) ->  | CR25: =IF($CI25="","",IF(Tables!$H$3<>"",0,IF(ISNA(VLOOKUP(CQ25,Tables!G$5:H$28,2,FALSE)),0,VLOOKUP(CQ25,Tables!G$5:H$28,2,FALSE)))) ->  | CS25: =IF(BG25="","",INDEX(Form!$B$1:'Form'!$J$1000,MATCH($BD25,Form!$A$1:'Form'!$A$1000,0)+5,6)) ->  | DA25: =IF(BG25="","",IF(CS25=0,0,COUNT($CZ$2:$CZ$26)-(RANK(CZ25,$CZ$2:$CZ$26,1)+COUNTIF($CZ$2:CZ25,CZ25)-1)+1)) ->  | DB25: =IF($CS25="","",IF(Tables!$J$3<>"",0,IF(Tables!$K$1=0,0,IF(ISNA(VLOOKUP(DA25,Tables!$I$5:$J$28,2,FALSE)),"0",VLOOKUP(DA25,Tables!$I$5:$J$28,2,FALSE))))) ->  | DJ25: =IF(BG25="","",COUNT($DI$2:$DI$26)-(RANK(DI25,$DI$2:$DI$26,1)+COUNTIF($DI$2:DI25,DI25)-1)+1) ->  | DK25: =IF($BG25="","",IF(ISNA(VLOOKUP(DJ25,Tables!K$5:L$28,2,FALSE)),"0",VLOOKUP(DJ25,Tables!K$5:L$28,2,FALSE))) ->  | DM25: =IF(BG25="","",(DL25-Form!$I$4)) ->  | DN25: =IF(BG25="","",COUNT($DM$2:$DM$26)-(RANK(DM25,$DM$2:$DM$26,1)+COUNTIF($DM$2:DM25,DM25)-1)+1) ->  | DO25: =IF($BG25="","",IF(ISERROR(DN25),1,IF(ISNA(VLOOKUP(DN25,Tables!M$5:N$28,2,FALSE)),"0",VLOOKUP(DN25,Tables!M$5:N$28,2,FALSE)))) ->  | DT25: =IF(MainSheet!$G39="","",IF(DS25="","",IF(ISERROR(DS25),"",ROUND(0+DS25/0.5,0)*0.5))) ->  | DZ25: =IF(MainSheet!$G39="","",IF(DY25="","",IF(ISERROR(DY25),"",ROUND(0+DY25/0.5,0)*0.5))) ->  | EF25: =IF(MainSheet!$G39="","",IF(EE25="","",IF(ISERROR(EE25),"",ROUND(0+EE25/0.5,0)*0.5))) ->  | EI25: =IF(BG25="","",COUNT($EH$2:$EH$26)-(RANK(EH25,$EH$2:$EH$26,1)+COUNTIF($EH$2:EH25,EH25)-1)+1) ->  | EJ25: =IF($BG25="","",IF(ISNA(VLOOKUP(EI25,Tables!O$5:P$28,2,FALSE)),"0",VLOOKUP(EI25,Tables!O$5:P$28,2,FALSE))) ->  | EM25: =IF(BG25="","",IF(EL25=0,0,COUNT($EL$2:$EL$26)-(RANK(EL25,$EL$2:$EL$26,1)+COUNTIF($EL$2:EL25,EL25)-1)+1)) ->  | EN25: =IF($BG25="","",IF(ISNA(VLOOKUP(EM25,Tables!Q$5:R$26,2,FALSE)),"0",VLOOKUP(EM25,Tables!Q$5:R$26,2,FALSE))) ->  | EO25: =IF(BG25="","",Form!K29) ->  | ET25: =IF(BG25="","",IF(ES25=0,0,COUNT($ES$2:$ES$26)-(RANK(ES25,$ES$2:$ES$26,1)+COUNTIF($ES$2:ES25,ES25)-1)+1)) ->  | EU25: =IF($BG25="","",IF(ISNA(VLOOKUP(ET25,Tables!S$5:T$26,2,FALSE)),"0",VLOOKUP(ET25,Tables!S$5:T$26,2,FALSE))) ->  | EV25: =IF(BF25="","",IF(MainSheet!D39="Scratched","",IF(ISERROR(BL25+BQ25+CH25+CR25+DB25+DK25+DO25+EJ25+EN25+EU25),"",BL25+BQ25+CH25+CR25+DB25+DK25+DO25+EJ25+EN25+EU25))) ->  | EY25: =IF(EX25="","",COUNT($EX$2:$EX$26)-(RANK(EX25,$EX$2:$EX$26)+COUNTIF($EX$2:EX25,EX25)-1)+1) ->  | FD25: =IF(FC25="","",1/FC25*MainSheet!$R$11) -> 
A26: =IF(Meetings1!A26="","",IF(Meetings1!A26="END","END",IF(Meetings1!B26="","",getAddress(Meetings1!E26)))) ->  | M26: =IF(ISERROR(N26),"",IF(ISNA(VLOOKUP(N26,RaceList!$M$9:$O$41,3,FALSE)),"",VLOOKUP(N26,RaceList!$M$9:$O$41,3,FALSE))) ->  | N26: =IF(O26="","",IF(Meetings2!$B26="","",Meetings2!$B26)) -> SANDOWN PARK (MG) | O26: =IF(Meetings2!D26="","",getAddress(Meetings2!D26)) -> http://www.tabonline.com.au/2012/02/02/MG01.html | P26: =IF(Meetings2!E26="","",getAddress(Meetings2!E26)) -> http://www.tabonline.com.au/2012/02/02/MG02.html | Q26: =IF(Meetings2!F26="","",getAddress(Meetings2!F26)) -> http://www.tabonline.com.au/2012/02/02/MG03.html | R26: =IF(Meetings2!G26="","",getAddress(Meetings2!G26)) -> http://www.tabonline.com.au/2012/02/02/MG04.html | S26: =IF(Meetings2!H26="","",getAddress(Meetings2!H26)) -> http://www.tabonline.com.au/2012/02/02/MG05.html | T26: =IF(Meetings2!I26="","",getAddress(Meetings2!I26)) -> http://www.tabonline.com.au/2012/02/02/MG06.html | U26: =IF(Meetings2!J26="","",getAddress(Meetings2!J26)) -> http://www.tabonline.com.au/2012/02/02/MG07.html | V26: =IF(Meetings2!K26="","",getAddress(Meetings2!K26)) -> http://www.tabonline.com.au/2012/02/02/MG08.html | W26: =IF(Meetings2!L26="","",getAddress(Meetings2!L26)) -> http://www.tabonline.com.au/2012/02/02/MG09.html | X26: =IF(Meetings2!M26="","",getAddress(Meetings2!M26)) -> http://www.tabonline.com.au/2012/02/02/MG10.html | Y26: =IF(Meetings2!AA25="","",getAddress(Meetings2!AA25)) ->  | Z26: =IF(AA26="","",IF(AA26="Career::",Form!A24,"")) ->  | AA26: 0::0-0-0 | AV26: 4 | AX26: =IF(Race!J26<>"",Race!C26,"") -> KING'S SHILLING | AY26: =IF(AX26<>"",Race!N26,"") -> 94 | AZ26: =IF(AX26<>"",Race!I26,"") -> 6 | BA26: =IF(AX26<>"",Race!L26,"") -> 0
A27: =IF(Meetings1!A27="","",IF(Meetings1!A27="END","END",IF(Meetings1!B27="","",getAddress(Meetings1!E27)))) ->  | M27: =IF(ISERROR(N27),"",IF(ISNA(VLOOKUP(N27,RaceList!$M$9:$O$41,3,FALSE)),"",VLOOKUP(N27,RaceList!$M$9:$O$41,3,FALSE))) ->  | N27: =IF(O27="","",IF(Meetings2!$B27="","",Meetings2!$B27)) -> MAITLAND (NG) | O27: =IF(Meetings2!D27="","",getAddress(Meetings2!D27)) -> http://www.tabonline.com.au/2012/02/02/NG01.html | P27: =IF(Meetings2!E27="","",getAddress(Meetings2!E27)) -> http://www.tabonline.com.au/2012/02/02/NG02.html | Q27: =IF(Meetings2!F27="","",getAddress(Meetings2!F27)) -> http://www.tabonline.com.au/2012/02/02/NG03.html | R27: =IF(Meetings2!G27="","",getAddress(Meetings2!G27)) -> http://www.tabonline.com.au/2012/02/02/NG04.html | S27: =IF(Meetings2!H27="","",getAddress(Meetings2!H27)) -> http://www.tabonline.com.au/2012/02/02/NG05.html | T27: =IF(Meetings2!I27="","",getAddress(Meetings2!I27)) -> http://www.tabonline.com.au/2012/02/02/NG06.html | U27: =IF(Meetings2!J27="","",getAddress(Meetings2!J27)) -> http://www.tabonline.com.au/2012/02/02/NG07.html | V27: =IF(Meetings2!K27="","",getAddress(Meetings2!K27)) -> http://www.tabonline.com.au/2012/02/02/NG08.html | W27: =IF(Meetings2!L27="","",getAddress(Meetings2!L27)) -> http://www.tabonline.com.au/2012/02/02/NG09.html | X27: =IF(Meetings2!M27="","",getAddress(Meetings2!M27)) -> http://www.tabonline.com.au/2012/02/02/NG10.html | Y27: =IF(Meetings2!AA26="","",getAddress(Meetings2!AA26)) ->  | Z27: =IF(AA27="","",IF(AA27="Career::",Form!A25,"")) ->  | AA27: 7-11 3.2L | AB27: W'bool | AC27: 2011-09-12 | AD27: 1700m | AE27: Slow | AF27: Race 7 | AG27: Hcp (68) | AH27: RB68 | AI27: 12000 | AJ27: -250 | AK27: Ms L J Meech | AL27: 8 | AM27: Cd 56.0-0.0 | AN27: -53 | AO27: 1::46.23 | AP27: () | AQ27: 11/8F | AR27: Settled-2 1200-2 800-3 Turn-4 | AS27: 1-Lady Pachira 55.5 | AV27: 4 | AX27: =IF(Race!J27<>"",Race!C27,"") -> MISS REVEAL | AY27: =IF(AX27<>"",Race!N27,"") -> 96 | AZ27: =IF(AX27<>"",Race!I27,"") -> 13 | BA27: =IF(AX27<>"",Race!L27,"") -> C | BP27: =IF(MainSheet!$G41="","",IF(RANK(BM27,$BN$2:$BN$26)<6,RANK(BM27,$BN$2:$BN$26),"")) ->  | BU27: =IF(BT27="","",SUBSTITUTE(BT27,"-"," ")) ->  | BV27: =IF(BT27="","",0+TRIM(CLEAN(LEFT(BT27,FIND("-",BT27)-1)))) ->  | CA27: =IF(BZ27="","",RIGHT(BY27,LEN(BY27)-SEARCH(":",BY27,1))) ->  | CB27: =IF(CA27="","",SUBSTITUTE(CA27,"-"," ")) ->  | CC27: =IF(CA27="","",0+TRIM(CLEAN(LEFT(CA27,FIND("-",CA27)-1)))) ->  | CD27: =IF(BZ27="","",MID(CB27,SEARCH(" ",CB27,1)+1,SEARCH(" ",CB27,SEARCH(" ",CB27,1)+1)-SEARCH(" ",CB27,1))) ->  | CE27: =IF(BZ27="","",RIGHT(CB27,LEN(CB27)-SEARCH(" ",CB27,SEARCH(" ",CB27,1)+1))) ->  | CF27: =IF(CBF27="","",((BV27+CC27)*2)+BW27+BX27+CD27+CE27) ->  | CK27: =IF(CJ27="","",RIGHT(CI27,LEN(CI27)-SEARCH(":",CI27,1))) ->  | CL27: =IF(CK27="","",SUBSTITUTE(CK27,"-"," ")) ->  | CM27: =IF(CK27="","",0+TRIM(CLEAN(LEFT(CK27,FIND("-",CK27)-1)))) ->  | CN27: =IF(CJ27="","",MID(CL27,SEARCH(" ",CL27,1)+1,SEARCH(" ",CL27,SEARCH(" ",CL27,1)+1)-SEARCH(" ",CL27,1))) ->  | CO27: =IF(CJ27="","",RIGHT(CL27,LEN(CL27)-SEARCH(" ",CL27,SEARCH(" ",CL27,1)+1))) ->  | CU27: =IF(CS27="","",RIGHT(CS27,LEN(CS27)-SEARCH(":",CS27,1))) ->  | CV27: =IF(CU27="","",SUBSTITUTE(CU27,"-"," ")) ->  | CW27: =IF(CU27="","",0+TRIM(CLEAN(LEFT(CU27,FIND("-",CU27)-1)))) ->  | CX27: =IF(CS27="","",MID(CV27,SEARCH(" ",CV27,1)+1,SEARCH(" ",CV27,SEARCH(" ",CV27,1)+1)-SEARCH(" ",CV27,1))) ->  | CY27: =IF(CS27="","",RIGHT(CV27,LEN(CV27)-SEARCH(" ",CV27,SEARCH(" ",CV27,1)+1))) ->  | CZ27: =IF(CS27="","",(CW27*2)+CX27+CY27) ->  | DI27: =IF(MainSheet!$G41="","",DE27+DH27) ->  | DJ27: =IF(MainSheet!$G41="","",IF(RANK(DI27,$DI$2:$DI$26)<6,RANK(DI27,$DI$2:$DI$26),"")) ->  | EY27: =IF(EX27="","",COUNT($EX$2:$EX$26)-(RANK(EX27,$EX$2:$EX$26)+COUNTIF($EX$2:EX27,EX27)-1)+1) ->  | FD27: =IF(FC27="","",1/FC27*MainSheet!$R$11) -> 
A28: =IF(Meetings1!A28="","",IF(Meetings1!A28="END","END",IF(Meetings1!B28="","",getAddress(Meetings1!E28)))) ->  | M28: =IF(ISERROR(N28),"",IF(ISNA(VLOOKUP(N28,RaceList!$M$9:$O$41,3,FALSE)),"",VLOOKUP(N28,RaceList!$M$9:$O$41,3,FALSE))) ->  | N28: =IF(O28="","",IF(Meetings2!$B28="","",Meetings2!$B28)) -> GEELONG (VG) | O28: =IF(Meetings2!D28="","",getAddress(Meetings2!D28)) -> http://www.tabonline.com.au/2012/02/02/VG01.html | P28: =IF(Meetings2!E28="","",getAddress(Meetings2!E28)) -> http://www.tabonline.com.au/2012/02/02/VG02.html | Q28: =IF(Meetings2!F28="","",getAddress(Meetings2!F28)) -> http://www.tabonline.com.au/2012/02/02/VG03.html | R28: =IF(Meetings2!G28="","",getAddress(Meetings2!G28)) -> http://www.tabonline.com.au/2012/02/02/VG04.html | S28: =IF(Meetings2!H28="","",getAddress(Meetings2!H28)) -> http://www.tabonline.com.au/2012/02/02/VG05.html | T28: =IF(Meetings2!I28="","",getAddress(Meetings2!I28)) -> http://www.tabonline.com.au/2012/02/02/VG06.html | U28: =IF(Meetings2!J28="","",getAddress(Meetings2!J28)) -> http://www.tabonline.com.au/2012/02/02/VG07.html | V28: =IF(Meetings2!K28="","",getAddress(Meetings2!K28)) -> http://www.tabonline.com.au/2012/02/02/VG08.html | W28: =IF(Meetings2!L28="","",getAddress(Meetings2!L28)) -> http://www.tabonline.com.au/2012/02/02/VG09.html | X28: =IF(Meetings2!M28="","",getAddress(Meetings2!M28)) -> http://www.tabonline.com.au/2012/02/02/VG10.html | Y28: =IF(Meetings2!AA27="","",getAddress(Meetings2!AA27)) ->  | Z28: =IF(AA28="","",IF(AA28="Career::",Form!A26,"")) ->  | AA28: 12-14 7.3L | AB28: Lakesi | AC28: 2011-08-28 | AD28: 1500m | AE28: Good | AF28: Race 8 | AG28: Hcp (72) | AH28: RB72 | AI28: 30000 | AJ28: 0 | AK28: L Nolen | AL28: 5 | AM28: Cd 55.0-0.0 | AN28: -53 | AO28: 1::31.34 | AP28: -33.98 | AQ28: 11/4 | AR28: Settled-5 1200- 800-6 Turn-5 | AS28: 1-Excluded 58.5 Vet examination. | AV28: 4 | AX28: =IF(Race!J28<>"",Race!C28,"") -> TEQUILA QUEEN | AY28: =IF(AX28<>"",Race!N28,"") -> 94 | AZ28: =IF(AX28<>"",Race!I28,"") -> 5 | BA28: =IF(AX28<>"",Race!L28,"") -> WT | BP28: =IF(MainSheet!$G42="","",IF(RANK(BM28,$BN$2:$BN$26)<6,RANK(BM28,$BN$2:$BN$26),"")) ->  | DI28: =IF(MainSheet!$G42="","",DE28+DH28) ->  | DJ28: =IF(MainSheet!$G42="","",IF(RANK(DI28,$DI$2:$DI$26)<6,RANK(DI28,$DI$2:$DI$26),"")) ->  | EY28: =IF(EX28="","",COUNT($EX$2:$EX$26)-(RANK(EX28,$EX$2:$EX$26)+COUNTIF($EX$2:EX28,EX28)-1)+1) ->  | FD28: =IF(FC28="","",1/FC28*MainSheet!$R$11) -> 
A29: =IF(Meetings1!A29="","",IF(Meetings1!A29="END","END",IF(Meetings1!B29="","",getAddress(Meetings1!E29)))) ->  | M29: =IF(ISERROR(N29),"",IF(ISNA(VLOOKUP(N29,RaceList!$M$9:$O$41,3,FALSE)),"",VLOOKUP(N29,RaceList!$M$9:$O$41,3,FALSE))) ->  | N29: =IF(O29="","",IF(Meetings2!$B29="","",Meetings2!$B29)) -> ANGLE PARK (AG) | O29: =IF(Meetings2!D29="","",getAddress(Meetings2!D29)) -> http://www.tabonline.com.au/2012/02/02/AG01.html | P29: =IF(Meetings2!E29="","",getAddress(Meetings2!E29)) -> http://www.tabonline.com.au/2012/02/02/AG02.html | Q29: =IF(Meetings2!F29="","",getAddress(Meetings2!F29)) -> http://www.tabonline.com.au/2012/02/02/AG03.html | R29: =IF(Meetings2!G29="","",getAddress(Meetings2!G29)) -> http://www.tabonline.com.au/2012/02/02/AG04.html | S29: =IF(Meetings2!H29="","",getAddress(Meetings2!H29)) -> http://www.tabonline.com.au/2012/02/02/AG05.html | T29: =IF(Meetings2!I29="","",getAddress(Meetings2!I29)) -> http://www.tabonline.com.au/2012/02/02/AG06.html | U29: =IF(Meetings2!J29="","",getAddress(Meetings2!J29)) -> http://www.tabonline.com.au/2012/02/02/AG07.html | V29: =IF(Meetings2!K29="","",getAddress(Meetings2!K29)) -> http://www.tabonline.com.au/2012/02/02/AG08.html | W29: =IF(Meetings2!L29="","",getAddress(Meetings2!L29)) -> http://www.tabonline.com.au/2012/02/02/AG09.html | X29: =IF(Meetings2!M29="","",getAddress(Meetings2!M29)) -> http://www.tabonline.com.au/2012/02/02/AG10.html | Y29: =IF(Meetings2!AA28="","",getAddress(Meetings2!AA28)) ->  | Z29: =IF(AA29="","",IF(AA29="Career::",Form!A27,"")) ->  | AA29: 1-12 8.0L | AB29: W'bool | AC29: 2011-08-07 | AD29: 1400m | AE29: Heavy | AF29: Race 6 | AG29: 3yo+ Mdn | AH29: Mdn 3+ | AI29: 12000 | AJ29: -6825 | AK29: Ms L J Meech | AL29: 5 | AM29: Cd 58.0-0.0 | AN29: (SW) | AO29: 1::29.90 | AP29: () | AQ29: 8/11F | AR29: Settled-1 1200- 800-1 Turn-1 | AS29: 2-Qalanjo 56.0 Struck interference at start. | AV29: 4 | AX29: =IF(Race!J29<>"",Race!C29,"") -> GOTHIC CROWN | AY29: =IF(AX29<>"",Race!N29,"") -> 90 | AZ29: =IF(AX29<>"",Race!I29,"") -> 3 | BA29: =IF(AX29<>"",Race!L29,"") -> DW | BP29: =IF(MainSheet!$G43="","",IF(RANK(BM29,$BN$2:$BN$26)<6,RANK(BM29,$BN$2:$BN$26),"")) ->  | DI29: =IF(MainSheet!$G43="","",DE29+DH29) ->  | DJ29: =IF(MainSheet!$G43="","",IF(RANK(DI29,$DI$2:$DI$26)<6,RANK(DI29,$DI$2:$DI$26),"")) ->  | EY29: =IF(EX29="","",COUNT($EX$2:$EX$26)-(RANK(EX29,$EX$2:$EX$26)+COUNTIF($EX$2:EX29,EX29)-1)+1) ->  | FD29: =IF(FC29="","",1/FC29*MainSheet!$R$11) -> 
A30: =IF(Meetings1!A30="","",IF(Meetings1!A30="END","END",IF(Meetings1!B30="","",getAddress(Meetings1!E30)))) ->  | M30: =IF(ISERROR(N30),"",IF(ISNA(VLOOKUP(N30,RaceList!$M$9:$O$41,3,FALSE)),"",VLOOKUP(N30,RaceList!$M$9:$O$41,3,FALSE))) ->  | N30: =IF(O30="","",IF(Meetings2!$B30="","",Meetings2!$B30)) -> GRAFTON (CG) | O30: =IF(Meetings2!D30="","",getAddress(Meetings2!D30)) -> http://www.tabonline.com.au/2012/02/02/CG01.html | P30: =IF(Meetings2!E30="","",getAddress(Meetings2!E30)) -> http://www.tabonline.com.au/2012/02/02/CG02.html | Q30: =IF(Meetings2!F30="","",getAddress(Meetings2!F30)) -> http://www.tabonline.com.au/2012/02/02/CG03.html | R30: =IF(Meetings2!G30="","",getAddress(Meetings2!G30)) -> http://www.tabonline.com.au/2012/02/02/CG04.html | S30: =IF(Meetings2!H30="","",getAddress(Meetings2!H30)) -> http://www.tabonline.com.au/2012/02/02/CG05.html | T30: =IF(Meetings2!I30="","",getAddress(Meetings2!I30)) -> http://www.tabonline.com.au/2012/02/02/CG06.html | U30: =IF(Meetings2!J30="","",getAddress(Meetings2!J30)) -> http://www.tabonline.com.au/2012/02/02/CG07.html | V30: =IF(Meetings2!K30="","",getAddress(Meetings2!K30)) -> http://www.tabonline.com.au/2012/02/02/CG08.html | W30: =IF(Meetings2!L30="","",getAddress(Meetings2!L30)) -> http://www.tabonline.com.au/2012/02/02/CG09.html | X30: =IF(Meetings2!M30="","",getAddress(Meetings2!M30)) -> http://www.tabonline.com.au/2012/02/02/CG10.html | Y30: =IF(Meetings2!AA29="","",getAddress(Meetings2!AA29)) ->  | Z30: =IF(AA30="","",IF(AA30="Career::",Form!A28,"")) ->  | AA30: 2-10 0.8L | AB30: Wodong | AC30: 2011-07-24 | AD30: 1300m | AE30: Dead | AF30: Race 2 | AG30: 3yo Mdn Plate | AH30: Mdn 3 | AI30: 12000 | AJ30: -2100 | AK30: M Pumpa | AL30: 3 | AM30: Cd 57.0-0.0 | AN30: (SW) | AO30: 1::19.20 | AP30: () | AQ30: 7/2 | AR30: Settled-1 1200- 800- Turn-3 | AS30: 1-Bringenbrong 57.0 | AV30: 4 | AX30: =IF(Race!J30<>"",Race!C30,"") -> LUCY LIL | AY30: =IF(AX30<>"",Race!N30,"") -> 96 | AZ30: =IF(AX30<>"",Race!I30,"") -> 2 | BA30: =IF(AX30<>"",Race!L30,"") -> 0 | BP30: =IF(MainSheet!$G44="","",IF(RANK(BM30,$BN$2:$BN$26)<6,RANK(BM30,$BN$2:$BN$26),"")) ->  | DI30: =IF(MainSheet!$G44="","",DE30+DH30) ->  | DJ30: =IF(MainSheet!$G44="","",IF(RANK(DI30,$DI$2:$DI$26)<6,RANK(DI30,$DI$2:$DI$26),"")) ->  | EY30: =IF(EX30="","",COUNT($EX$2:$EX$26)-(RANK(EX30,$EX$2:$EX$26)+COUNTIF($EX$2:EX30,EX30)-1)+1) ->  | FD30: =IF(FC30="","",1/FC30*MainSheet!$R$11) -> 
A31: =IF(Meetings1!A31="","",IF(Meetings1!A31="END","END",IF(Meetings1!B31="","",getAddress(Meetings1!E31)))) ->  | M31: =IF(ISERROR(N31),"",IF(ISNA(VLOOKUP(N31,RaceList!$M$9:$O$41,3,FALSE)),"",VLOOKUP(N31,RaceList!$M$9:$O$41,3,FALSE))) ->  | N31: =IF(O31="","",IF(Meetings2!$B31="","",Meetings2!$B31)) -> MANDURAH (PG) | O31: =IF(Meetings2!D31="","",getAddress(Meetings2!D31)) -> http://www.tabonline.com.au/2012/02/02/PG01.html | P31: =IF(Meetings2!E31="","",getAddress(Meetings2!E31)) -> http://www.tabonline.com.au/2012/02/02/PG02.html | Q31: =IF(Meetings2!F31="","",getAddress(Meetings2!F31)) -> http://www.tabonline.com.au/2012/02/02/PG03.html | R31: =IF(Meetings2!G31="","",getAddress(Meetings2!G31)) -> http://www.tabonline.com.au/2012/02/02/PG04.html | S31: =IF(Meetings2!H31="","",getAddress(Meetings2!H31)) -> http://www.tabonline.com.au/2012/02/02/PG05.html | T31: =IF(Meetings2!I31="","",getAddress(Meetings2!I31)) -> http://www.tabonline.com.au/2012/02/02/PG06.html | U31: =IF(Meetings2!J31="","",getAddress(Meetings2!J31)) -> http://www.tabonline.com.au/2012/02/02/PG07.html | V31: =IF(Meetings2!K31="","",getAddress(Meetings2!K31)) -> http://www.tabonline.com.au/2012/02/02/PG08.html | W31: =IF(Meetings2!L31="","",getAddress(Meetings2!L31)) -> http://www.tabonline.com.au/2012/02/02/PG09.html | X31: =IF(Meetings2!M31="","",getAddress(Meetings2!M31)) -> http://www.tabonline.com.au/2012/02/02/PG10.html | Y31: =IF(Meetings2!AA30="","",getAddress(Meetings2!AA30)) ->  | Z31: =IF(AA31="","",IF(AA31="Career::",Form!A29,"")) ->  | AA31: 6-10 0.0L | AB31: Cran. | AC31: 2010-10-12 | AD31: 800m | AE31: Dead | AF31: Race 6 | AG31: Barrier Trl | AH31: Btria 3 cg | AI31: 0 | AJ31: 0 | AK31: L Nolen | AL31: 6 | AM31: Cd 0.0-0.0 | AN31: (CWT) | AO31: 0::47.56 | AP31: () | AR31: Settled- 1200- 800- Turn- | AS31: 1-Vacqueyras 0.0 | AV31: 3 | AX31: =IF(Race!J31<>"",Race!C31,"") -> KEYPOINTS | AY31: =IF(AX31<>"",Race!N31,"") -> 90 | AZ31: =IF(AX31<>"",Race!I31,"") -> 10 | BA31: =IF(AX31<>"",Race!L31,"") -> 0 | BP31: =IF(MainSheet!$G45="","",IF(RANK(BM31,$BN$2:$BN$26)<6,RANK(BM31,$BN$2:$BN$26),"")) ->  | DI31: =IF(MainSheet!$G45="","",DE31+DH31) ->  | DJ31: =IF(MainSheet!$G45="","",IF(RANK(DI31,$DI$2:$DI$26)<6,RANK(DI31,$DI$2:$DI$26),"")) ->  | EY31: =IF(EX31="","",COUNT($EX$2:$EX$26)-(RANK(EX31,$EX$2:$EX$26)+COUNTIF($EX$2:EX31,EX31)-1)+1) ->  | FD31: =IF(FC31="","",1/FC31*MainSheet!$R$11) -> 
A32: =IF(Meetings1!A32="","",IF(Meetings1!A32="END","END",IF(Meetings1!B32="","",getAddress(Meetings1!E32)))) ->  | M32: =IF(ISERROR(N32),"",IF(ISNA(VLOOKUP(N32,RaceList!$M$9:$O$41,3,FALSE)),"",VLOOKUP(N32,RaceList!$M$9:$O$41,3,FALSE))) ->  | N32: =IF(O32="","",IF(Meetings2!$B32="","",Meetings2!$B32)) -> BALLARAT (EG) | O32: =IF(Meetings2!D32="","",getAddress(Meetings2!D32)) -> http://www.tabonline.com.au/2012/02/02/EG01.html | P32: =IF(Meetings2!E32="","",getAddress(Meetings2!E32)) -> http://www.tabonline.com.au/2012/02/02/EG02.html | Q32: =IF(Meetings2!F32="","",getAddress(Meetings2!F32)) -> http://www.tabonline.com.au/2012/02/02/EG03.html | R32: =IF(Meetings2!G32="","",getAddress(Meetings2!G32)) -> http://www.tabonline.com.au/2012/02/02/EG04.html | S32: =IF(Meetings2!H32="","",getAddress(Meetings2!H32)) -> http://www.tabonline.com.au/2012/02/02/EG05.html | T32: =IF(Meetings2!I32="","",getAddress(Meetings2!I32)) -> http://www.tabonline.com.au/2012/02/02/EG06.html | U32: =IF(Meetings2!J32="","",getAddress(Meetings2!J32)) -> http://www.tabonline.com.au/2012/02/02/EG07.html | V32: =IF(Meetings2!K32="","",getAddress(Meetings2!K32)) -> http://www.tabonline.com.au/2012/02/02/EG08.html | W32: =IF(Meetings2!L32="","",getAddress(Meetings2!L32)) -> http://www.tabonline.com.au/2012/02/02/EG09.html | X32: =IF(Meetings2!M32="","",getAddress(Meetings2!M32)) -> http://www.tabonline.com.au/2012/02/02/EG10.html | Y32: =IF(Meetings2!AA31="","",getAddress(Meetings2!AA31)) ->  | Z32: =IF(AA32="","",IF(AA32="Career::",Form!A30,"")) ->  | AV32: 3 | AX32: =IF(Race!J32<>"",Race!C32,"") -> ORIHIME | AY32: =IF(AX32<>"",Race!N32,"") -> 91 | AZ32: =IF(AX32<>"",Race!I32,"") -> 7 | BA32: =IF(AX32<>"",Race!L32,"") -> 0 | BP32: =IF(MainSheet!$G46="","",IF(RANK(BM32,$BN$2:$BN$26)<6,RANK(BM32,$BN$2:$BN$26),"")) ->  | DI32: =IF(MainSheet!$G46="","",DE32+DH32) ->  | DJ32: =IF(MainSheet!$G46="","",IF(RANK(DI32,$DI$2:$DI$26)<6,RANK(DI32,$DI$2:$DI$26),"")) ->  | EY32: =IF(EX32="","",COUNT($EX$2:$EX$26)-(RANK(EX32,$EX$2:$EX$26)+COUNTIF($EX$2:EX32,EX32)-1)+1) ->  | FD32: =IF(FC32="","",1/FC32*MainSheet!$R$11) -> 
A33: =IF(Meetings1!A33="","",IF(Meetings1!A33="END","END",IF(Meetings1!B33="","",getAddress(Meetings1!E33)))) ->  | M33: =IF(ISERROR(N33),"",IF(ISNA(VLOOKUP(N33,RaceList!$M$9:$O$41,3,FALSE)),"",VLOOKUP(N33,RaceList!$M$9:$O$41,3,FALSE))) ->  | N33: =IF(O33="","",IF(Meetings2!$B33="","",Meetings2!$B33)) -> CAMBRIDGE (OG) | O33: =IF(Meetings2!D33="","",getAddress(Meetings2!D33)) -> http://www.tabonline.com.au/2012/02/02/OG01.html | P33: =IF(Meetings2!E33="","",getAddress(Meetings2!E33)) -> http://www.tabonline.com.au/2012/02/02/OG02.html | Q33: =IF(Meetings2!F33="","",getAddress(Meetings2!F33)) -> http://www.tabonline.com.au/2012/02/02/OG03.html | R33: =IF(Meetings2!G33="","",getAddress(Meetings2!G33)) -> http://www.tabonline.com.au/2012/02/02/OG04.html | S33: =IF(Meetings2!H33="","",getAddress(Meetings2!H33)) -> http://www.tabonline.com.au/2012/02/02/OG05.html | T33: =IF(Meetings2!I33="","",getAddress(Meetings2!I33)) -> http://www.tabonline.com.au/2012/02/02/OG06.html | U33: =IF(Meetings2!J33="","",getAddress(Meetings2!J33)) -> http://www.tabonline.com.au/2012/02/02/OG07.html | V33: =IF(Meetings2!K33="","",getAddress(Meetings2!K33)) -> http://www.tabonline.com.au/2012/02/02/OG08.html | W33: =IF(Meetings2!L33="","",getAddress(Meetings2!L33)) -> http://www.tabonline.com.au/2012/02/02/OG09.html | X33: =IF(Meetings2!M33="","",getAddress(Meetings2!M33)) -> http://www.tabonline.com.au/2012/02/02/OG10.html | Y33: =IF(Meetings2!AA32="","",getAddress(Meetings2!AA32)) ->  | Z33: =IF(AA33="","",IF(AA33="Career::",Form!A31,"")) ->  | AV33: 3 | AX33: =IF(Race!J33<>"",Race!C33,"") ->  | AY33: =IF(AX33<>"",Race!N33,"") ->  | AZ33: =IF(AX33<>"",Race!I33,"") ->  | BA33: =IF(AX33<>"",Race!L33,"") ->  | BP33: =IF(MainSheet!$G47="","",IF(RANK(BM33,$BN$2:$BN$26)<6,RANK(BM33,$BN$2:$BN$26),"")) ->  | DI33: =IF(MainSheet!$G47="","",DE33+DH33) ->  | DJ33: =IF(MainSheet!$G47="","",IF(RANK(DI33,$DI$2:$DI$26)<6,RANK(DI33,$DI$2:$DI$26),"")) ->  | EY33: =IF(EX33="","",COUNT($EX$2:$EX$26)-(RANK(EX33,$EX$2:$EX$26)+COUNTIF($EX$2:EX33,EX33)-1)+1) ->  | FD33: =IF(FC33="","",1/FC33*MainSheet!$R$11) -> 
A34: =IF(Meetings1!A34="","",IF(Meetings1!A34="END","END",IF(Meetings1!B34="","",getAddress(Meetings1!E34)))) ->  | M34: =IF(ISERROR(N34),"",IF(ISNA(VLOOKUP(N34,RaceList!$M$9:$O$41,3,FALSE)),"",VLOOKUP(N34,RaceList!$M$9:$O$41,3,FALSE))) ->  | N34: =IF(O34="","",IF(Meetings2!$B34="","",Meetings2!$B34)) -> ADDINGTON (ZG) | O34: =IF(Meetings2!D34="","",getAddress(Meetings2!D34)) -> http://www.tabonline.com.au/2012/02/02/ZG01.html | P34: =IF(Meetings2!E34="","",getAddress(Meetings2!E34)) -> http://www.tabonline.com.au/2012/02/02/ZG02.html | Q34: =IF(Meetings2!F34="","",getAddress(Meetings2!F34)) -> http://www.tabonline.com.au/2012/02/02/ZG03.html | R34: =IF(Meetings2!G34="","",getAddress(Meetings2!G34)) -> http://www.tabonline.com.au/2012/02/02/ZG04.html | S34: =IF(Meetings2!H34="","",getAddress(Meetings2!H34)) -> http://www.tabonline.com.au/2012/02/02/ZG05.html | T34: =IF(Meetings2!I34="","",getAddress(Meetings2!I34)) -> http://www.tabonline.com.au/2012/02/02/ZG06.html | U34: =IF(Meetings2!J34="","",getAddress(Meetings2!J34)) -> http://www.tabonline.com.au/2012/02/02/ZG07.html | V34: =IF(Meetings2!K34="","",getAddress(Meetings2!K34)) -> http://www.tabonline.com.au/2012/02/02/ZG08.html | W34: =IF(Meetings2!L34="","",getAddress(Meetings2!L34)) -> http://www.tabonline.com.au/2012/02/02/ZG09.html | X34: =IF(Meetings2!M34="","",getAddress(Meetings2!M34)) -> http://www.tabonline.com.au/2012/02/02/ZG10.html | Y34: =IF(Meetings2!AA33="","",getAddress(Meetings2!AA33)) ->  | Z34: =IF(AA34="","",IF(AA34="Career::",Form!A32,"")) ->  | AA34: Comments:: Followed spell with 4 len 1st Imply | AB34: Regal Christabel 1400m Bend 3Yo+ Mdn Dead trk Aug 04 . Then 3-3/4 len 2nd Triple Tease where struck interference early on 1200m Ball't Hcp (C1) Dead trk Jan 12 . Good win record at this distance. | AV34: 3 | AX34: =IF(Race!J34<>"",Race!C34,"") ->  | AY34: =IF(AX34<>"",Race!N34,"") ->  | AZ34: =IF(AX34<>"",Race!I34,"") ->  | BA34: =IF(AX34<>"",Race!L34,"") ->  | BP34: =IF(MainSheet!$G48="","",IF(RANK(BM34,$BN$2:$BN$26)<6,RANK(BM34,$BN$2:$BN$26),"")) ->  | DI34: =IF(MainSheet!$G48="","",DE34+DH34) ->  | DJ34: =IF(MainSheet!$G48="","",IF(RANK(DI34,$DI$2:$DI$26)<6,RANK(DI34,$DI$2:$DI$26),"")) ->  | EY34: =IF(EX34="","",COUNT($EX$2:$EX$26)-(RANK(EX34,$EX$2:$EX$26)+COUNTIF($EX$2:EX34,EX34)-1)+1) ->  | FD34: =IF(FC34="","",1/FC34*MainSheet!$R$11) -> 
A35: =IF(Meetings1!A35="","",IF(Meetings1!A35="END","END",IF(Meetings1!B35="","",getAddress(Meetings1!E35)))) ->  | O35: =IF(Meetings2!D35="","",getAddress(Meetings2!D35)) -> http://www.tabonline.com.au/2012/02/02/TG01.html | P35: =IF(Meetings2!E35="","",getAddress(Meetings2!E35)) -> http://www.tabonline.com.au/2012/02/02/TG02.html | Q35: =IF(Meetings2!F35="","",getAddress(Meetings2!F35)) -> http://www.tabonline.com.au/2012/02/02/TG03.html | R35: =IF(Meetings2!G35="","",getAddress(Meetings2!G35)) -> http://www.tabonline.com.au/2012/02/02/TG04.html | S35: =IF(Meetings2!H35="","",getAddress(Meetings2!H35)) -> http://www.tabonline.com.au/2012/02/02/TG05.html | T35: =IF(Meetings2!I35="","",getAddress(Meetings2!I35)) -> http://www.tabonline.com.au/2012/02/02/TG06.html | U35: =IF(Meetings2!J35="","",getAddress(Meetings2!J35)) -> http://www.tabonline.com.au/2012/02/02/TG07.html | V35: =IF(Meetings2!K35="","",getAddress(Meetings2!K35)) -> http://www.tabonline.com.au/2012/02/02/TG08.html | W35: =IF(Meetings2!L35="","",getAddress(Meetings2!L35)) -> http://www.tabonline.com.au/2012/02/02/TG09.html | X35: =IF(Meetings2!M35="","",getAddress(Meetings2!M35)) -> http://www.tabonline.com.au/2012/02/02/TG10.html | Y35: =IF(Meetings2!AA34="","",getAddress(Meetings2!AA34)) ->  | Z35: =IF(AA35="","",IF(AA35="Career::",Form!A33,"")) -> Eight Stars | AA35: Career:: | AV35: 3 | AX35: =IF(Race!J35<>"",Race!C35,"") ->  | AY35: =IF(AX35<>"",Race!N35,"") ->  | AZ35: =IF(AX35<>"",Race!I35,"") ->  | BA35: =IF(AX35<>"",Race!L35,"") ->  | BP35: =IF(MainSheet!$G49="","",IF(RANK(BM35,$BN$2:$BN$26)<6,RANK(BM35,$BN$2:$BN$26),"")) ->  | DI35: =IF(MainSheet!$G49="","",DE35+DH35) ->  | DJ35: =IF(MainSheet!$G49="","",IF(RANK(DI35,$DI$2:$DI$26)<6,RANK(DI35,$DI$2:$DI$26),"")) ->  | EY35: =IF(EX35="","",COUNT($EX$2:$EX$26)-(RANK(EX35,$EX$2:$EX$26)+COUNTIF($EX$2:EX35,EX35)-1)+1) ->  | FD35: =IF(FC35="","",1/FC35*MainSheet!$R$11) -> 
A36: =IF(Meetings1!A36="","",IF(Meetings1!A36="END","END",IF(Meetings1!B36="","",getAddress(Meetings1!E36)))) ->  | O36: =IF(Meetings2!D36="","",getAddress(Meetings2!D36)) ->  | P36: =IF(Meetings2!E36="","",getAddress(Meetings2!E36)) ->  | Q36: =IF(Meetings2!F36="","",getAddress(Meetings2!F36)) ->  | R36: =IF(Meetings2!G36="","",getAddress(Meetings2!G36)) ->  | S36: =IF(Meetings2!H36="","",getAddress(Meetings2!H36)) ->  | T36: =IF(Meetings2!I36="","",getAddress(Meetings2!I36)) ->  | U36: =IF(Meetings2!J36="","",getAddress(Meetings2!J36)) ->  | V36: =IF(Meetings2!K36="","",getAddress(Meetings2!K36)) ->  | W36: =IF(Meetings2!L36="","",getAddress(Meetings2!L36)) ->  | X36: =IF(Meetings2!M36="","",getAddress(Meetings2!M36)) ->  | Y36: =IF(Meetings2!AA35="","",getAddress(Meetings2!AA35)) ->  | Z36: =IF(AA36="","",IF(AA36="Career::",Form!A34,"")) ->  | AA36: 5::1-1-3 | AV36: 2 | AX36: =IF(Race!J36<>"",Race!C36,"") ->  | AY36: =IF(AX36<>"",Race!N36,"") ->  | AZ36: =IF(AX36<>"",Race!I36,"") ->  | BA36: =IF(AX36<>"",Race!L36,"") ->  | BP36: =IF(MainSheet!$G50="","",IF(RANK(BM36,$BN$2:$BN$26)<6,RANK(BM36,$BN$2:$BN$26),"")) ->  | DI36: =IF(MainSheet!$G50="","",DE36+DH36) ->  | DJ36: =IF(MainSheet!$G50="","",IF(RANK(DI36,$DI$2:$DI$26)<6,RANK(DI36,$DI$2:$DI$26),"")) ->  | EY36: =IF(EX36="","",COUNT($EX$2:$EX$26)-(RANK(EX36,$EX$2:$EX$26)+COUNTIF($EX$2:EX36,EX36)-1)+1) ->  | FD36: =IF(FC36="","",1/FC36*MainSheet!$R$11) -> 
